Workbook

Sheet Control Panel
A1: GO TO
A2: Utah | C2: FILING INFORMATION | J2: Model Checks
A3: 1.1 | J3: (Must Be 0)
A4: 1.2 | E4: UTAH | J4: ='Model Checks'!D7 -> 2.235774502
A5: 1.3 pg 1 | D5: Current Case No. | E5: 17-057-20 | J5: (If this is not 0, or very close, go to
A6: 1.3 pg 2 | D6: Filing Date | E6: 2017-10-02 | J6: the "Model Checks"
D7: Test Year Ending | E7: 2018-10-31 | J7: Tab and find the
A8: 1.4 pg 1 | D8: Proposed Effective Date | E8: 2017-11-01 | J8: problem.)
A9: 1.4 pg 2 | D9: Prior Case No. | E9: 17-057-07
A10: 1.4 pg 3 | J10: Go To
A11: 1.5 | C11: Total Increase (Decrease) | E11: ='Utah Summary-by class'!Q24 -> 24570078.25 | G11: =E11-F11 -> 24570078.25 | J11: Model Checks'
A12: 1.6 pg 1
A13: 1.6 pg 2
A14: 1.6 pg 3 | C14: Typical Customer's Bill | J14: Old Ut Data color
A15: 1.7 pg 1
A16: 1.7 pg 2 | D16: Previous | E16: ='Ut 1.7'!F30 -> 695.93 | J16: New Data color
A17: 1.8 | D17: Proposed | E17: ='Ut 1.7'!H30 -> 713.67
A18: 1.9 | D18: Difference | E18: ='Ut 1.7'!J30 -> 17.74 | G18: =E18-F18 -> 17.74
A19: Monthly Inputs | D19: % Difference | E19: ='Ut 1.7'!J32 -> 2.55 | G19: =E19-F19 -> 2.55
A20: Other Inputs
A21: Expenses
A22: Rate Base
C29: Exhibit Headings
C31: UTAH
E32: Dominion Energy Utah
E33: ="Docket No. "&E5 -> Docket No. 17-057-20
C35: Test Year (enter as text)
D36: from | E36: Nov-17
D37: to | E37: Oct-18

Sheet Monthly Inputs
A1: MONTHLY INPUTS
G2: TEST YEAR COLUMNS | S2: 12-Month
E3: Sep17 | F3: Oct17 | G3: Nov17 | H3: Dec17 | I3: Jan18 | J3: Feb18 | K3: Mar18 | L3: Apr18 | M3: May18 | N3: Jun18 | O3: Jul18 | P3: Aug18 | Q3: Sep18 | R3: Oct18 | S3: =R3 -> Oct18
E4: 9 | F4: 10 | G4: 11 | H4: 12 | I4: 1 | J4: 2 | K4: 3 | L4: 4 | M4: 5 | N4: 6 | O4: 7 | P4: 8 | Q4: 9 | R4: 10
A5: QGC Company Produced Gas In MDth | I5: Updated: | J5: 2017-09-08
A6: WEXPRO I
B7: Company Production In Dth | E7: 4204604.374 | F7: 5199530.551 | G7: 5057460.721 | H7: 5084998.727 | I7: 4944637.909 | J7: 4424291.653 | K7: 4798884.833 | L7: 4545112.581 | M7: 4604872.719 | N7: 4374904.58 | O7: 4443113.092 | P7: 4368342.299 | Q7: 4162288.802 | R7: 6274592.932 | S7: =SUM(G7:R7) -> 57083500.85
B8: Birch Cr Gathering | E8: 0 | F8: 0 | G8: 0 | H8: 0 | I8: 0 | J8: 0 | K8: 0 | L8: 0 | M8: 0 | N8: 0 | O8: 0 | P8: 0 | Q8: 0 | R8: =R7/$S$7*$S$8 -> 0 | S8: ='Other Inputs'!$D$192 -> 0
B9: Gathering | E9: 2631816.761 | F9: 3283276.664 | G9: =G7/$S$7*$S$9 -> 3219539.081 | H9: =H7/$S$7*$S$9 -> 3237069.556 | I9: 3147716.981 | J9: 2816468.712 | K9: 3054931.738 | L9: 2893382.35 | M9: 2931425.176 | N9: 2785029.297 | O9: 2828450.29 | P9: 2780851.801 | Q9: 2649679.791 | R9: =R7/$S$7*$S$9 -> 3994355.721 | S9: =+'Ex 1.1 Data'!E1 -> 36338900.49
A12: WEXPRO II
B13: Company Production In Dth | E13: 1061857.995 | F13: 1082417.703 | G13: 1100541.005 | H13: 1141584.278 | I13: 1103981.305 | J13: 1167174.402 | K13: 1256166.496 | L13: 1168533.008 | M13: 1167472.417 | N13: 1374825.016 | O13: 1386301.412 | P13: 1547095.371 | Q13: 1858998.443 | R13: 2040057.299 | S13: =SUM(G13:R13) -> 16312730.45
B14: Samson Gathering | E14: 957421.8493 | F14: 1082003.081 | G14: =G13/$S$13*$S$14 -> 1100541.005 | H14: =H13/$S$13*$S$14 -> 1141584.278 | I14: 1103981.305 | J14: 1167174.402 | K14: 1256166.496 | L14: 1168533.008 | M14: 1167472.417 | N14: 1374825.016 | O14: 1386301.412 | P14: 1547095.371 | Q14: 1858998.443 | R14: =R13/$S$13*$S$14 -> 2040057.299 | S14: =+'Ex 1.1 Data'!L1 -> 16312730.45
D21: 1000
B23: Injections in Dth
C24: Chalk Creek | E24: 0 | F24: 0 | G24: 151896.1945 | H24: 95563.82751 | I24: 56458.30536 | J24: 0 | K24: 0 | L24: 0 | M24: 0 | N24: 0 | O24: 0 | P24: 0 | Q24: 0 | R24: 0 | S24: =SUM(G24:R24) -> 303918.3273
C25: Clay Basin | E25: 1847664.642 | F25: 223540.8831 | G25: 0 | H25: 0 | I25: 0 | J25: 0 | K25: 0 | L25: 0 | M25: 222400.5585 | N25: 2402097.351 | O25: 2634037.964 | P25: 2816996.586 | Q25: 2656265.625 | R25: 968916.7361 | S25: =SUM(G25:R25) -> 11700714.82
C26: Coalville | E26: 0 | F26: 111245.9564 | G26: 121359.2224 | H26: 49099.91837 | I26: 0 | J26: 0 | K26: 0 | L26: 0 | M26: 0 | N26: 0 | O26: 0 | P26: 0 | Q26: 31957.92961 | R26: 111245.9564 | S26: =SUM(G26:R26) -> 313663.0268
C27: Leroy | E27: 0 | F27: 77486.90796 | G27: 238202.0874 | H27: 0 | I27: 0 | J27: 0 | K27: 0 | L27: 0 | M27: 0 | N27: 0 | O27: 0 | P27: 0 | Q27: 9424.08371 | R27: 297382.2021 | S27: =SUM(G27:R27) -> 545008.3733
C28: Ryckman | E28: 0 | F28: 0 | G28: 0 | H28: 0 | I28: 0 | J28: 0 | K28: 0 | L28: 0 | M28: 0 | N28: 0 | O28: 0 | P28: 0 | Q28: 0 | R28: 0 | S28: 0
C29: Total Injections | E29: =SUM(E24:E28) -> 1847664.642 | F29: =SUM(F24:F28) -> 412273.7474 | G29: 511457.5043 | H29: 144663.7459 | I29: 56458.30536 | J29: 0 | K29: 0 | L29: 0 | M29: 222400.5585 | N29: 2402097.351 | O29: 2634037.964 | P29: 2816996.586 | Q29: 2697647.638 | R29: 1377544.895 | S29: =SUM(G29:R29) -> 12863304.55
B31: Withdrawls In Dth
C32: Chalk Creek | E32: 0 | F32: 0 | G32: 0 | H32: 0 | I32: 0 | J32: 0 | K32: 257250 | L32: 44875.19836 | M32: 0 | N32: 0 | O32: 0 | P32: 0 | Q32: 0 | R32: 0 | S32: =SUM(G32:R32) -> 302125.1984
C33: Clay Basin | E33: 0 | F33: 262822.114 | G33: 43610.05211 | H33: 3798000 | I33: 3059000 | J33: 2247000 | K33: 1233907.059 | L33: 543492.9504 | M33: 0 | N33: 0 | O33: 0 | P33: 0 | Q33: 0 | R33: 0 | S33: =SUM(G33:R33) -> 10925010.06
C34: Coalville | E34: 0 | F34: 0 | G34: 0 | H34: 0 | I34: 0 | J34: 0 | K34: 310000 | L34: 0 | M34: 0 | N34: 0 | O34: 0 | P34: 0 | Q34: 0 | R34: 0 | S34: 310000
C35: Leroy | E35: 0 | F35: 0 | G35: 0 | H35: 0 | I35: 0 | J35: 0 | K35: 310000 | L35: 0 | M35: 0 | N35: 0 | O35: 0 | P35: 0 | Q35: 0 | R35: 0 | S35: =SUM(G35:R35) -> 310000
C36: Ryckman | E36: 0 | F36: 0 | G36: 0 | H36: 0 | I36: 0 | J36: 0 | K36: 0 | L36: 0 | M36: 0 | N36: 0 | O36: 0 | P36: 0 | Q36: 0 | R36: 0 | S36: 0
C37: Total Withdrawls | E37: =SUM(E32:E36) -> 0 | F37: =SUM(F32:F36) -> 262822.114 | G37: 43610.05211 | H37: 3798000 | I37: 3059000 | J37: 2247000 | K37: 2111157.059 | L37: 588368.1488 | M37: 0 | N37: 0 | O37: 0 | P37: 0 | Q37: 0 | R37: 0 | S37: =SUM(G37:R37) -> 11847135.26
B39: Lost & Unaccounted for on QPC
A42: Injection and Withdrawl Used, Lost and Unaccounted For
D43: Gas Use
D44: %
B45: Injections in Dth
C46: Chalk Creek | D46: ='Other Inputs'!E167 -> 0.0059 | E46: 0 | F46: 0 | G46: -896.1875473 | H46: -563.8265823 | I46: -333.1040016 | J46: 0 | K46: 0 | L46: 0 | M46: 0 | N46: 0 | O46: 0 | P46: 0 | Q46: 0 | R46: =R24*-$D46 -> 0 | S46: =SUM(G46:R46) -> -1793.118131
C47: Clay Basin | D47: ='Other Inputs'!E176 -> 0.03198 | E47: -56908.07098 | F47: -7148.83744 | G47: 0 | H47: 0 | I47: 0 | J47: 0 | K47: 0 | L47: 0 | M47: -7112.36986 | N47: -76819.07329 | O47: -84236.53408 | P47: -88076.13674 | Q47: -84947.37469 | R47: =R25*-$D47 -> -30985.95722 | S47: =SUM(G47:R47) -> -372177.4459
C48: Coalville | D48: ='Other Inputs'!E179 -> 0.0112 | E48: 0 | F48: -1245.954712 | G48: -1359.223291 | H48: -549.9190857 | I48: 0 | J48: 0 | K48: 0 | L48: 0 | M48: 0 | N48: 0 | O48: 0 | P48: 0 | Q48: -357.9288116 | R48: =R26*-$D48 -> -1245.954712 | S48: =SUM(G48:R48) -> -3513.0259
C49: Leroy | D49: ='Other Inputs'!E173 -> 0.045 | E49: 0 | F49: -3486.910858 | G49: -10719.09393 | H49: 0 | I49: 0 | J49: 0 | K49: 0 | L49: 0 | M49: 0 | N49: 0 | O49: 0 | P49: 0 | Q49: -424.0837669 | R49: =R27*-$D49 -> -13382.1991 | S49: =SUM(G49:R49) -> -24525.3768
C50: Ryckman | D50: ='Other Inputs'!E170 -> 0.025 | E50: -8776.65 | F50: -9054.325104 | G50: 0 | H50: 0 | I50: 0 | J50: 0 | K50: 0 | L50: -7320.284271 | M50: -9054.325104 | N50: -8762.249756 | O50: -9054.325104 | P50: -9054.325104 | Q50: -8762.249756 | R50: 0 | S50: =SUM(G50:R50) -> -52007.75909
C51: Total Injections | E51: =SUM(E46:E50) -> -65684.72098 | F51: =SUM(F46:F50) -> -20936.02811 | G51: -12974.50477 | H51: -1113.745668 | I51: -333.1040016 | J51: 0 | K51: 0 | L51: -7320.284271 | M51: -16166.69496 | N51: -85581.32304 | O51: -93290.85919 | P51: -97130.46184 | Q51: -94491.63702 | R51: -45614.11103 | S51: =SUM(S46:S50) -> -454016.7258
B53: Withdrawls In Dth
C54: Chalk Creek | D54: ='Other Inputs'!E168 -> 0.0281 | E54: 0 | F54: 0 | G54: 0 | H54: 0 | I54: 0 | J54: 0 | K54: -7228.725 | L54: -1260.993074 | M54: 0 | N54: 0 | O54: 0 | P54: 0 | Q54: 0 | R54: =R32*-$D54 -> 0 | S54: =SUM(G54:R54) -> -8489.718074
C55: Clay Basin | D55: ='Other Inputs'!E177 -> 0.0238 | E55: 0 | F55: -6255.166313 | G55: -1037.91924 | H55: -90392.4 | I55: -72804.2 | J55: -53478.6 | K55: -29366.988 | L55: -12935.13222 | M55: 0 | N55: 0 | O55: 0 | P55: 0 | Q55: 0 | R55: =R33*-$D55 -> 0 | S55: =SUM(G55:R55) -> -260015.2395
C56: Coalville | D56: ='Other Inputs'!E180 -> 0.018 | E56: 0 | F56: 0 | G56: 0 | H56: 0 | I56: 0 | J56: 0 | K56: -5580 | L56: 0 | M56: 0 | N56: 0 | O56: 0 | P56: 0 | Q56: 0 | R56: =R34*-$D56 -> 0 | S56: =SUM(G56:R56) -> -5580
C57: Leroy | D57: ='Other Inputs'!E174 -> 0.0245 | E57: 0 | F57: 0 | G57: 0 | H57: 0 | I57: 0 | J57: 0 | K57: -7595 | L57: 0 | M57: 0 | N57: 0 | O57: 0 | P57: 0 | Q57: 0 | R57: =R35*-$D57 -> 0 | S57: =SUM(G57:R57) -> -7595
C58: Ryckman | D58: ='Other Inputs'!E171 -> 0 | E58: 0 | F58: 0 | G58: 0 | H58: 0 | I58: 0 | J58: 0 | K58: 0 | L58: 0 | M58: 0 | N58: 0 | O58: 0 | P58: 0 | Q58: 0 | R58: 0 | S58: =SUM(G58:R58) -> 0
C59: Total Withdrawls | E59: =SUM(E54:E58) -> 0 | F59: -6255.166313 | G59: -1037.91924 | H59: -90392.4 | I59: -72804.2 | J59: -53478.6 | K59: -49770.713 | L59: -14196.12529 | M59: 0 | N59: 0 | O59: 0 | P59: 0 | Q59: 0 | R59: 0 | S59: =SUM(S54:S58) -> -281679.9575
B61: QPC Transportation Loss
C62: Chalk Creek | D62: ='Other Inputs'!$E$318 -> 0.0156 | E62: 0 | F62: 0 | G62: 0 | H62: 0 | I62: 0 | J62: 0 | K62: -4013.1 | L62: -700.0530945 | M62: 0 | N62: 0 | O62: 0 | P62: 0 | Q62: 0 | R62: =R32*-$D62 -> 0 | S62: =SUM(G62:R62) -> -4713.153094
C63: Clay Basin | D63: ='Other Inputs'!$E$318 -> 0.0156 | E63: 0 | F63: -4100.024978 | G63: -680.3168129 | H63: -59248.8 | I63: -47720.4 | J63: -35053.2 | K63: -19248.95012 | L63: -8478.490027 | M63: 0 | N63: 0 | O63: 0 | P63: 0 | Q63: 0 | R63: =R33*-$D63 -> 0 | S63: =SUM(G63:R63) -> -170430.157
C64: Coalville | D64: ='Other Inputs'!$E$318 -> 0.0156 | E64: 0 | F64: 0 | G64: 0 | H64: 0 | I64: 0 | J64: 0 | K64: -4836 | L64: 0 | M64: 0 | N64: 0 | O64: 0 | P64: 0 | Q64: 0 | R64: =R34*-$D64 -> 0 | S64: =SUM(G64:R64) -> -4836
C65: Leroy | D65: ='Other Inputs'!$E$318 -> 0.0156 | E65: 0 | F65: 0 | G65: 0 | H65: 0 | I65: 0 | J65: 0 | K65: -4836 | L65: 0 | M65: 0 | N65: 0 | O65: 0 | P65: 0 | Q65: 0 | R65: =R35*-$D65 -> 0 | S65: =SUM(G65:R65) -> -4836
C66: Ryckman | D66: ='Other Inputs'!$E$318 -> 0.0156 | E66: 0 | F66: -5254.788684 | G66: -2678.048877 | H66: -8027.759619 | I66: -8027.759619 | J66: -7250.87981 | K66: 0 | L66: -6082.867419 | M66: 0 | N66: 0 | O66: 0 | P66: 0 | Q66: 0 | R66: 0 | S66: =SUM(G66:R66) -> -32067.31534
C67: Total Withdrawls | E67: =SUM(E62:E66) -> 0 | F67: =SUM(F62:F66) -> -9354.813662 | G67: -3358.36569 | H67: -67276.55962 | I67: -55748.15962 | J67: -42304.07981 | K67: -32934.05012 | L67: -15261.41054 | M67: 0 | N67: 0 | O67: 0 | P67: 0 | Q67: 0 | R67: 0 | S67: -216882.6254
B70: Total Injections & Withdrawls | E70: =E53+E60 -> 0 | F70: 0 | G70: =G53+G60 -> 0 | H70: 0 | I70: 0 | J70: 0 | K70: 0 | L70: 0 | M70: 0 | N70: 0 | O70: 0 | P70: 0 | Q70: 0 | R70: 0 | S70: =S51+S59 -> -735696.6833
R72: Fuel Factor | S72: =-S70/(S37+S29) -> 0.02977270696
S74: 12-Month
E75: =+E3 -> Sep17 | F75: =+F3 -> Oct17 | G75: =G3 -> Nov17 | H75: Dec17 | I75: Jan18 | J75: Feb18 | K75: Mar18 | L75: Apr18 | M75: May18 | N75: Jun18 | O75: Jul18 | P75: Aug18 | Q75: Sep18 | R75: Oct18 | S75: Total
I77: Updated: | J77: 2017-09-08 | K77: EXH 1.2
A78: Natural Gas Spot Price Forecast - Average of GI, Cera & Pira | G78: (Forecast --->)
B79: Kern River Opal, Wyoming | E79: 2.64 | F79: 2.77 | G79: 2.98 | H79: 3.24 | I79: 3.3 | J79: 3.27 | K79: 3.09 | L79: 2.76 | M79: 2.72 | N79: 2.75 | O79: 2.82 | P79: 2.83 | Q79: 2.75 | R79: 2.8
B82: Spot Purchases from IRP | G82: 4944.591809 | H82: 3865.619875 | I82: 4641.085238 | J82: 4165.754747 | K82: 4515.04185 | L82: 1980.737263 | M82: 276.1929927 | N82: 439.6500092 | O82: 0 | P82: 0 | Q82: 79.21075667 | R82: 0 | S82: =SUM(G82:R82) -> 24907.88454
C83: In DTH | G83: =G82*1000 -> 4944591.809 | H83: =H82*1000 -> 3865619.875 | I83: 4641085.238 | J83: 4165754.747 | K83: 4515041.85 | L83: =L82*1000 -> 1980737.263 | M83: =M82*1000 -> 276192.9927 | N83: 439650.0092 | O83: =O82*1000 -> 0 | P83: 0 | Q83: 79210.75667 | R83: 0 | S83: =SUM(G83:R83) -> 24907884.54
C84: In $ | G84: =G83*G79 -> 14734883.59 | H84: 12524608.4 | I84: 15315581.29 | J84: 13622018.02 | K84: =K83*K79 -> 13951479.32 | L84: 5466834.846 | M84: 751244.9401 | N84: 1209037.525 | O84: 0 | P84: 0 | Q84: 217829.5808 | R84: 0 | S84: =SUM(G84:R84) -> 77793517.51
A87: CONTRACT PURCHASES | I87: Updated: | J87: 2017-09-08
B89: Peaking Purchases (DTH) | G89: 1000000 | H89: 4000000 | I89: 5000000 | J89: 3000000 | K89: 0 | L89: 0 | M89: 0 | N89: 0 | O89: 0 | P89: 0 | Q89: 0 | R89: 0 | S89: =SUM(G89:R89) -> 13000000
B90: Peaking Purchases ($) | G90: 3080424.764 | H90: 13393647.21 | I90: 17039625.86 | J90: 10150400.8 | K90: 0 | L90: 0 | M90: 0 | N90: 0 | O90: 0 | P90: 0 | Q90: 0 | R90: 0 | S90: =SUM(G90:R90) -> 43664098.64
B92: Term Purchases (DTH) | G92: 1350000 | H92: 2416450 | I92: 2416450 | J92: 2182600 | K92: 930000 | L92: 900000 | M92: 0 | N92: 0 | O92: 0 | P92: 0 | Q92: 0 | R92: 930000 | S92: =SUM(G92:R92) -> 11125500
B93: Term Purchases ($) | G93: 4312416.748 | H93: 8204388.474 | I93: 8352338.381 | J93: 7477231.483 | K93: 3126859.977 | L93: 2724484.217 | M93: 0 | N93: 0 | O93: 0 | P93: 0 | Q93: 0 | R93: 2771452.08 | S93: =SUM(G93:R93) -> 36969171.36
B94: Stabilization Costs (Winter Months - Oct to Mar) | G94: 0 | H94: 0 | I94: 0 | J94: 0 | K94: 0 | L94: 0 | M94: 0 | N94: 0 | O94: 0 | P94: 0 | Q94: 0 | R94: 0 | S94: =SUM(G94:R94) -> 0
B97: Total Purchases (DTH) | E97: 0 | F97: 0 | G97: =G89+G92 -> 2350000 | H97: =H89+H92 -> 6416450 | I97: 7416450 | J97: 5182600 | K97: 930000 | L97: =L89+L92 -> 900000 | M97: 0 | N97: 0 | O97: 0 | P97: 0 | Q97: 0 | R97: 930000 | S97: =SUM(G97:R97) -> 24125500
B98: Total Purchases ($) | E98: 0 | F98: 0 | G98: 7392841.511 | H98: 21598035.68 | I98: 25391964.24 | J98: 17627632.28 | K98: 3126859.977 | L98: =L90+L93 -> 2724484.217 | M98: 0 | N98: 0 | O98: 0 | P98: 0 | Q98: 0 | R98: 2771452.08 | S98: =SUM(G98:R98) -> 80633270
A101: Typical Customer Monthly Usage in Dth
B102: Utah | G102: =VLOOKUP(MONTH(G3),$F$116:$G$127,2,FALSE) -> 6.3 | H102: =VLOOKUP(MONTH(H3),$F$116:$G$127,2,FALSE) -> 11.5 | I102: =VLOOKUP(MONTH(I3),$F$116:$G$127,2,FALSE) -> 14.9 | J102: 12.5 | K102: 10.1 | L102: 8.3 | M102: 4.4 | N102: 3.1 | O102: 2 | P102: 1.8 | Q102: 2 | R102: 3.1 | S102: =SUM(G102:R102) -> 80
B103: Wyoming | G103: =VLOOKUP(MONTH(G3),$F$116:$H$127,3,FALSE) -> 0 | H103: =VLOOKUP(MONTH(H3),$F$116:$H$127,3,FALSE) -> 0 | I103: =VLOOKUP(MONTH(I3),$F$116:$H$127,3,FALSE) -> 0 | J103: 0 | K103: 0 | L103: 0 | M103: 0 | N103: 0 | O103: 0 | P103: 0 | Q103: 0 | R103: 0 | S103: =SUM(G103:R103) -> 0
A105: INPUTS FROM WEXPRO | G105: =G3 -> Nov17 | H105: =H3 -> Dec17 | I105: Jan18 | J105: Feb18 | K105: Mar18 | L105: Apr18 | M105: May18 | N105: Jun18 | O105: Jul18 | P105: =P3 -> Aug18 | Q105: Sep18 | R105: Oct18 | S105: 12-Month
S106: Total
A107: Wexpro I Operator Fee (Wexpro forecast) | G107: 22356675.05 | H107: 22151772.17 | I107: 21545734.56 | J107: 21335406.9 | K107: 21002895.58 | L107: 21484976.74 | M107: 20319867.66 | N107: 20373233.39 | O107: 20173602.01 | P107: 20213958.68 | Q107: 20342866.04 | R107: 20542359.18 | S107: =SUM(G107:R107) -> 251843348
A109: Wexpro II Operator Fee (Wexpro forecast) | G109: 3852078.916 | H109: 3899726.166 | I109: 3794996.196 | J109: 4045390.806 | K109: 3980088.543 | L109: 3836192.469 | M109: 3744999.116 | N109: 3673950.669 | O109: 3615528.532 | P109: 3624173.568 | Q109: 3643518.051 | R109: 3673598.297 | S109: =SUM(G109:R109) -> 45384241.33
F115: Typical UPC | G115: UT
F116: 1 | G116: 14.9
F117: 2 | G117: 12.5
F118: 3 | G118: 10.1
F119: 4 | G119: 8.3
F120: 5 | G120: 4.4
F121: 6 | G121: 3.1
F122: 7 | G122: 2
F123: 8 | G123: 1.8
F124: 9 | G124: 2
F125: 10 | G125: 3.1
F126: 11 | G126: 6.3
F127: 12 | G127: 11.5
F128: Total | G128: =SUM(G116:G127) -> 80

Sheet Graph (Ex 1.10) Inputs
C1: ACTUAL | D1: CERA | E1: PIRA | F1: AVG
B2: Nov17 | D2: 2.7 | E2: 3.26 | F2: 2.98
B3: Dec17 | D3: 2.87 | E3: 3.61 | F3: 3.24
B4: Jan18 | D4: 2.91 | E4: 3.69 | F4: 3.3
B5: Feb18 | D5: 2.95 | E5: 3.59 | F5: 3.27
B6: Mar18 | D6: 2.82 | E6: 3.37 | F6: 3.09
B7: Apr18 | D7: 2.66 | E7: 2.87 | F7: 2.76
B8: May18 | D8: 2.61 | E8: 2.82 | F8: 2.72
B9: Jun18 | D9: 2.6 | E9: 2.91 | F9: 2.75
B10: Jul18 | D10: 2.66 | E10: 2.97 | F10: 2.82
B11: Aug18 | D11: 2.69 | E11: 2.96 | F11: 2.83
B12: Sept18 | D12: 2.67 | E12: 2.83 | F12: 2.75
B13: Oct18 | D13: 2.74 | E13: 2.86 | F13: 2.8

Sheet Other Inputs
H1: Used In
A2: INPUT SECTION | H2: Ut | I2: Wy | J2: Source
A3: INPUTS FROM QUESTAR PIPELINE TARIFF AND CONTRACTS
B5: Storage Commodity Rates | E5: Rate | F5: Effective
B6: Peaking Injections | E6: 0.03872 | F6: 2017-01-01 | H6: 1.3.2 | I6: 1.3p2 | J6: QPC Tariff Statement of Rates
B7: Peaking Withdrawals | E7: 0.03872 | F7: =$F$6 -> 2017-01-01 | H7: 1.3.2 | I7: 1.3p2 | J7: =J6 -> QPC Tariff Statement of Rates
B8: Ryckman Injections | E8: 0.015 | F8: =$F$6 -> 2017-01-01
B9: Ryckman Withdrawals | E9: 0.01 | F9: 2017-01-01
B10: Clay Basin Injections | E10: 0.01049 | F10: =$F$6 -> 2017-01-01 | H10: 1.3.2 | I10: 1.3p2 | J10: QPC Tariff Statement of Rates
B11: Clay Basin Withdrawals | E11: 0.01781 | F11: =$F$6 -> 2017-01-01 | H11: 1.3.2 | I11: 1.3p2 | J11: =J10 -> QPC Tariff Statement of Rates
B13: Storage Field Reservation Charges
B14: Peaking Storage Fields Demand (Leroy, Chalk Creek, Coalville) | E14: 2.87375 | F14: =$F$6 -> 2017-01-01 | H14: 1.3.2 | I14: 1.3p2 | J14: =$J$6 -> QPC Tariff Statement of Rates
B15: Ryckman | E15: 0.09 | F15: =$F$6 -> 2017-01-01
B16: Clay Basin Demand | E16: 2.85338 | F16: =$F$6 -> 2017-01-01 | H16: 1.3.2 | I16: 1.3p2 | J16: =$J$6 -> QPC Tariff Statement of Rates
B17: Clay Basin Capacity | E17: 0.02378 | F17: =$F$6 -> 2017-01-01 | H17: 1.3.2 | I17: 1.3p2 | J17: =$J$6 -> QPC Tariff Statement of Rates
B19: Peak Hour Service
B20: Kern River | D20: =100000/24*6 -> 25000 | E20: 3 | F20: =+F21*E21/E20 -> 11.65333333
B21: mid Nov - mid Feb | E21: 92 | F21: 0.38
B23: Dominion Energy Questar Pipeline | D23: 83333 | E23: 3 | F23: =1487815/(D23*E23) -> 5.951283805
B24: mid Nov - mid Feb | E24: =16+31+31+14 -> 92 | F24: =+F23/E24*E23 -> 0.1940636023
J26: used in Exhibit 1.3
B27: FIRM TRANSPORTATION | D27: Contract Dth | E27: Months | F27: Maximum Rate | G27: Effective
B28: T-1 Transportation - Yearly (MT241) | D28: =798902 -> 798902 | E28: 12 | F28: 5.28804 | G28: 2017-01-01 | H28: 1.3p1 | J28: =$J$6 -> QPC Tariff Statement of Rates
B29: T-1 Transportation - Yearly (Mainline 104) | D29: 30000 | E29: 12 | F29: 5.28804 | G29: =$G$28 -> 2017-01-01 | H29: Jan | J29: =$J$6 -> QPC Tariff Statement of Rates
B30: T-1 Transportation - Yearly (Tieline 112) | D30: 12000 | E30: 12 | F30: 5.28804 | G30: =$G$28 -> 2017-01-01 | H30: 1.3p1 | J30: =$J$6 -> QPC Tariff Statement of Rates
B31: T-1 Transportation - Nov-Mar | D31: 75000 | E31: 5 | F31: 6.80887 | G31: =$G$28 -> 2017-01-01
B32: Total Yearly T-1 Transportation | D32: =SUM(D28:D31) -> 915902 | E32: 12
B34: T-1 Transportation - Seasonal(BASE TARIFF RATE LOW LOAD) Mainline 104 | D34: 0 | E34: 0 | F34: 0
B36: No-Notice Transportation (BASE TARIFF RATE) | D36: 203542 | E36: 12 | F36: 0.86753 | G36: =$G$28 -> 2017-01-01 | H36: 1.3p1 | J36: =$J$6 -> QPC Tariff Statement of Rates
B37: GRI - Yearly (SURCHARGE LOW LOAD CUSTOMERS MAXIMUM) | D37: =D32 -> 915902 | E37: 12 | F37: 0 | G37: =$G$28 -> 2017-01-01 | H37: 1.3p1 | J37: =$J$6 -> QPC Tariff Statement of Rates
B38: GRI - Seasonal (No GRI currently) | D38: 30000 | E38: 3 | F38: =+F37 -> 0 | G38: =$G$28 -> 2017-01-01 | H38: 1.3p1 | J38: =$J$6 -> QPC Tariff Statement of Rates
B39: GRI | D39: 52000 | E39: 12 | F39: =+F37 -> 0 | G39: =$G$28 -> 2017-01-01 | H39: 1.3p1 | J39: =$J$6 -> QPC Tariff Statement of Rates
B41: TRANSPORTATION COMMODITY
B42: PIPELINE USAGE CHARGE TO VOLUMETRIC RELEASES
B43: QPC Commodity
B44: QPC Firm Transportation Usage Charge (Max & Min) (BASE TARIFF RATE) | F44: 0.00267 | G44: 2017-01-01 | H44: 1.3p1 | J44: =$J$6 -> QPC Tariff Statement of Rates
B45: QPC (ANNUAL CHARGE ADJUSTMENT) | F45: 0.0013 | G45: 2016-10-01 | H45: 1.3p1 | J45: FERC Website
B46: QPC GRI SURCHARGE (not used currently) | F46: 0 | G46: =G44 -> 2017-01-01 | H46: 1.3p1 | J46: =$J$6 -> QPC Tariff Statement of Rates
E47: Current | F47: Proposed
B48: INTER TRANS (T-2 PIPELINE BASE TARIFF) MAX | D48: Base Tariff | E48: 0.17652 | F48: 0.17652 | G48: 2016-01-01 | J48: =$J$6 -> QPC Tariff Statement of Rates
C49: (not used currently) | D49: GRI Surcharge | E49: 0 | F49: 0 | G49: =G48 -> 2016-01-01 | J49: =$J$6 -> QPC Tariff Statement of Rates
D50: Annual Charge | E50: 0.0013 | F50: 0.0013 | G50: =+G45 -> 2016-10-01 | J50: ferc.gov
D51: Total | E51: =SUM(E48:E50) -> 0.17782 | F51: =SUM(F48:F50) -> 0.17782
B54: Utah | E54: =ROUND((E51)/(1-$E315),5) -> 0.17864 | F54: =ROUND((F51)/(1-E315),5) -> 0.17864 | H54: 1.6.3 | J54: Before Adjustment for Bad Debt (Transport grossed up for QGC fuel)
B55: Wyoming | F55: =ROUND((F51)/(1-E316),5) -> 0.18053
A57: INPUTS FROM KERN RIVER PIPELINE TARIFF AND CONTRACTS
B58: Kern River 2003 Expansion | D58: Contract Dth | E58: Months | F58: Maximum Rate | G58: Effective
F59: 0.4717 | G59: 2017-04-01 | J59: KR Tariff 5-A
B60: Jan - Dec #1715 | D60: 3000 | E60: 7 | F60: =(F59*(E63-153))/E60 -> 14.28577143 | H60: 1.3.1
B61: November - March #1715 | D61: 50000 | E61: 5 | F61: =F60 -> 14.28577143 | H61: Jan
B62: Jan - Dec #1829 | D62: 1885 | E62: 12 | F62: =F63*E63/E62 -> 17.74204167
B63: Days in Tariff Rate | E63: 365 | F63: 0.5833 | G63: =G59 -> 2017-04-01
B65: May #1715 Period Two rate in effect | D65: 3000 | E65: 5 | F65: =F66*E66/E65 -> 6.17508 | H65: 1.3.1
E66: =31+30+31+31+30 -> 153 | F66: 0.2018 | G66: 2017-05-01 | J66: KR Tariff 5-A
B68: Citadel Energy Marketing
B69: Dec - Feb #20017 | D69: 56925 | E69: 3 | F69: =+E70*F70/E69 -> 8.7 | H69: 1.3.1
B70: Days in Tariff Rate | E70: =31+31+28 -> 90 | F70: 0.29
B71: Nov & Mar #20017 | D71: 6000 | E71: 2 | F71: =+F72*E72/E71 -> 8.845 | H71: Jan
B72: Days in Tariff Rate | E72: =30+31 -> 61 | F72: 0.29
B73: Nov - Mar #20024 | D73: 27000 | E73: 5 | F73: =+F74*E74/E73 -> 8.758 | H73: Jan
B74: Days in Tariff Rate | E74: =30+31+31+28+31 -> 151 | F74: 0.29
B76: Sequent | D76: 30000 | E76: 8 | F76: =+F77*E77/E76 -> 14.27625
B77: Oct - May | E77: =31+30+31+31+28+31+30+31 -> 243 | F77: 0.47 | G77: 2016-12-01
B81: Kern River 2003 Expansion | E81: Days in TEST PERIOD
B82: Jan - Dec | C82: 0.9381890652 | D82: =D60+D62 -> 4885 | E82: 365 | F82: 0.0044 | G82: =G63 -> 2017-04-01 | H82: 1.3p1 | J82: KR Tariff 5-A
B83: November - March | C83: =C82 -> 0.9381890652 | D83: =D61 -> 50000 | E83: 151 | F83: 0.0044 | G83: =G63 -> 2017-04-01 | H83: 1.3p1 | J83: KR Tariff 5-A
B85: Kern River Original System Period Two Rates #20017
B86: Dec - Feb #20017 | C86: =+C82 -> 0.9381890652 | D86: 56925 | E86: 90 | F86: 0.0044 | G86: 2017-01-01 | H86: 1.3.1 | J86: KR Tariff 5.01
B87: Nov & Mar #20017 | C87: =+C82 -> 0.9381890652 | D87: 6000 | E87: 61 | F87: 0.0044 | G87: 2017-01-01 | H87: 1.3.2 | J87: KR Tariff 5.01
B88: Kern River 2002 Expansion Period Two Rates #20024
B89: Nov - Mar #20024 | C89: =+C82 -> 0.9381890652 | D89: 27000 | E89: 151 | F89: 0.0044 | G89: 2017-01-01 | H89: Jan
B91: Sequent
B92: Oct - April | C92: =+C82 -> 0.9381890652 | D92: 30000 | E92: =+E77 -> 243 | F92: 0.0044 | G92: 2016-04-01
A95: INPUTS FROM QUESTAR GAS TARIFF
B97: I-Sales Commodity Rates | E97: I-2 -eliminated | F97: IS
B98: Effective Date | E98: 11/1/2005 | F98: 7/31/2009
B99: Commodity Rate | E99: 0 | F99: =ROUND((7353080/1941997),5) -> 3.78635
B100: CO2 Refund | E100: 0 | F100: 0
B101: Net Commodity Rate | E101: =SUM(E99:E100) -> 0 | F101: =SUM(F99:F100) -> 3.78635
A103: Current SNG Rates
B104: UTAH | E104: Current SNG Base | F104: Current SNG Amort. | G104: Current SNG Total | J104: Effective
B105: GS | D105: Winter | E105: 1.21114 | F105: 0.0505 | G105: =E105+F105 -> 1.26164 | J105: 2017-10-01
D106: Summer | E106: 0.56865 | F106: 0.02371 | G106: =E106+F106 -> 0.59236 | J106: =J105 -> 2017-10-01
B108: FS | D108: Winter | E108: 1.17959 | F108: 0.04919 | G108: =E108+F108 -> 1.22878 | J108: 2017-10-01
D109: Summer | E109: 0.56865 | F109: 0.02371 | G109: =E109+F109 -> 0.59236 | J109: =J108 -> 2017-10-01
B111: NGV | E111: 0.87398 | F111: 0.03644 | G111: =E111+F111 -> 0.91042 | J111: 2017-10-01
B113: (This includes bad debt adjustment) IS | E113: 0.17922 | F113: 0 | G113: =E113+F113 -> 0.17922 | J113: 2017-10-01
A116: Current Rates
B117: Utah GS | J117: Effective
B118: Block 1 | D118: Summer | G118: 6.74613 | J118: 2017-10-01
B119: Block 2 | D119: Summer | G119: 5.63557 | J119: =J118 -> 2017-10-01
B120: Block 1 | D120: Winter | G120: 8.10705 | J120: =J118 -> 2017-10-01
B121: Block 2 | D121: Winter | G121: 6.99649 | J121: =J118 -> 2017-10-01
B122: #1 BSF | G122: 6.75 | J122: =J118 -> 2017-10-01
B124: Wyoming GS
B125: Block 1 | G125: 7.35639 | J125: 2017-06-15
B126: Block 2 | G126: 7.098 | J126: =J125 -> 2017-06-15
B127: BSF | G127: 12 | J127: =J125 -> 2017-06-15
A129: INPUTS FROM PREVIOUS PASSTHROUGH CASE
B130: PRIOR PERIOD COMPANY PRODUCTION AVERAGE GAS COST
E131: PROPOSED | F131: PRIOR CASE | G131: Most Recent
B132: VOLUMES DTH | E132: =+'Monthly Inputs'!S7+'Monthly Inputs'!S13 -> 73396231.3 | F132: 70455903 | G132: EXH 1.1 | J132: LAST CASE IN WHICH RATES CHANGED
B133: AMOUNT | E133: =+D216+D237 -> 332610598.1 | F133: 329421198 | G133: EXH 1.1
B134: AVG COST | E134: =+E133/E132 -> 4.531712218 | F134: =ROUND(+F133/F132,5) -> 4.67557
B136: Utah Cost of Gas by Component
B137: Unit Cost Of Gas (Line 7) | F137: 4.0683 | J137: Exhibit 1.6 pg 1 (Prior case)
B138: 191 Account Amortization (Line 8) | F138: -0.04894 | J138: Exhibit 1.6 pg 1 (Prior case )
B139: Total Unit Cost In Rates (Line 9) | F139: =SUM(F137:F138) -> 4.01936
B141: I-2 Commodity Cost (excluding bad debt) | E141: 0
B143: Wyoming Cost of Gas by Component
B144: Unit Cost Of Gas (Line 9) | F144: 4.83716 | J144: (WY) Exhibit 1.6 pg 1
B145: 191 Account Amortization (Line 10) | F145: 0.13568 | J145: (WY) Exhibit 1.6 pg 1
B146: Total Unit Cost In Rates (Line 11) | F146: =F144+F145 -> 4.97284 | J146: (WY) Exhibit 1.6 pg 1
A151: INPUTS FROM 191 ACCOUNT MONTH END BALANCE ACTUAL OR FORECAST | E151: Utah | F151: Wyoming
E152: 2017 | F152: 2017-08-31
H153: 1.6.2
D154: current yr /mo(text)
B155: August 2017 191 account (Actual/Forecast) | D155: 2017 | E155: 27904274 | F155: 1649144 | H155: 1.6.1 | J155: 191 Account Forecast/Actual
B156: Supplier Non-Gas Cost Under (Over) Collected through AugustJuly 2017 (act/fcst) | D156: August | E156: 12900555 | H156: 1.6.2 | J156: 191 Account Year-End (sometimes through current period)
B157: Commodity Cost Under (Over) Collected during YEAR (Act/Fcst) | E157: =E155-E156 -> 15003719
A159: INPUTS FROM IRP
B160: #1 Peak Day Demand Forecast | E160: 2017 | F160: Source
B161: Utah | E161: =E163-E162 -> 1300103.223 | F161: 2017 IRP
B162: Wyoming | E162: 37076.77713
B163: System Total Peak Day Demand Forecast | E163: 1337180 | H163: 1.5 | I163: 1.5
A166: STORAGE FIELD INPUTS | E166: Storage
B167: Chalk Creek Injections Factor | E167: 0.0059
B168: Chalk Creek Withdrawls Factor | E168: 0.0281
B170: Ryckman Injections Factor | E170: 0.025
B171: Ryckman Withdrawls Factor | E171: 0
B173: Leroy Injections Factor | E173: 0.045
B174: Leroy Withdrawls Factor | E174: 0.0245
B176: Clay Basin Injections Factor | E176: 0.03198
B177: Clay Basin Withdrawls Factor | E177: 0.0238
B179: Coalville Injections Factor | E179: 0.0112
B180: Coalville Withdrawls Factor | E180: 0.018
B182: QPC Storage Field Reservation Charges | E182: Monthly Dth
B183: Peaking Storage Fields Maximum Daily Withdrawal Qty (Leroy, Chalk Creek, Coalville) | E183: 184625
B184: Ryckman Maximum Storage Qty | E184: =2500000 -> 2500000
B185: Clay Basin Minimum Required Deliverability | E185: 111827
B186: Clay Basin Capacity | E186: 13419000
A188: OTHER INPUTS FROM GLEN, TOM, TINA & Al | D188: Revenue
B189: OTHER GATHERING
B194: Total Forecasted Birch Creek | D194: 296549.7908 | E194: 2016-08-31
B196: Other gathering | D196: 1605913.92 | E196: 2016-08-31 | H196: JanB
B197: Total Gathering | D197: =SUM(D194:D196) -> 1902463.711 | H197: 1.3.1 | I197: 1.3P1
B199: Other Transportation | D199: 3500325.926 | E199: 2016-08-31 | H199: 1.3.1
B201: Forecast Future Contracts Premium over spot price | E201: 0.02
D203: Commodity | E203: Demand
D204: Charge | E204: Charge | F204: Effective
B205: Gathering Rates -System wide Gathering agreement #163 (SWGA) | D205: 5958489.514 | E205: 12245844 | F205: 2017-01-01 | I205: 1.3p1
B208: Gathering Rate Wexpro II | D208: 7101910.329 | I208: 1.3p1
D211: Volume (Dth) | E211: Revenue
A212: WEXPRO I
B213: Questar Gas Production 1/ | D213: Current
B214: Test Year Royalties | D214: ='Ut 1.1'!I1411 -> 27382571.12 | H214: 1.4.1 | I214: 1.4P1
B215: Operator Service Fee | D215: ='Monthly Inputs'!S107 -> 251843348 | H215: 1.4.1 | I215: 1.4P1
B216: Total Questar Gas Production Costs | D216: =SUM(D214:D215) -> 279225919.1
B218: Total Questar Gas Production Dth | D218: ='Ut 1.1'!F1416 -> 57083500.85
F219: Hot | G219: Hot
B220: Other Revenue Credits | D220: 1 | E220: 2 | F220: 2 | G220: 2 | I220: 1
D221: Historical | E221: Forecast | F221: =HLOOKUP(F$220,$D$220:$E$228,$I221) -> Forecast | G221: =HLOOKUP(G$220,$D$220:$E$228,$I221) -> Forecast | I221: 2
D222: 12 Mo Ending | E222: 12 Mo Ending | F222: Utah | G222: Wyoming | I222: 3
B223: 483 Sales for Resale | E223: 2864257.6 | F223: =HLOOKUP(F$220,$D$220:$E$228,$I223) -> 2864257.6 | G223: =HLOOKUP(G$220,$D$220:$E$228,$I223) -> 2864257.6 | I223: 4
B224: 490 Incidental Plant Prod Sales | E224: 3053673 | F224: =HLOOKUP(F$220,$D$220:$E$228,$I224) -> 3053673 | G224: 3053673 | I224: 5
B225: 492 Incidental Gasoline_Oil Sales | E225: 468514.6156 | F225: 468514.6156 | G225: 468514.6156 | I225: 6
B226: 4951 Overriding Royalty Revenue from Celsius | E226: 12742454.03 | F226: 12742454.03 | G226: 12742454.03 | I226: 7
B227: 4952 Oil Revenue Received from Wexpro | E227: 0 | F227: 0 | G227: 0 | I227: 8
B228: 758001 Gas Well Royalities - Other | E228: -77258.06012 | F228: -77258.06012 | G228: -77258.06012 | I228: 9
B231: Total Other Revenue Credits | D231: =SUM(D223:D228) -> 0 | E231: =SUM(E223:E228) -> 19051641.19 | F231: =SUM(F223:F228) -> 19051641.19 | G231: =SUM(G223:G228) -> 19051641.19
A233: WEXPRO II
B234: Questar Gas Production 1/ | D234: Current
B235: Test Year Royalties | D235: ='Ut 1.1'!I1627 -> 8000437.717 | H235: 1.4.1 | I235: 1.4P1
B236: Operator Service Fee | D236: ='Monthly Inputs'!S109 -> 45384241.33 | H236: 1.4.1 | I236: 1.4P1
B237: Total Questar Gas Production Costs | D237: =SUM(D235:D236) -> 53384679.05
B239: Total Questar Gas Production Dth | D239: ='Ut 1.1'!F1632 -> 16312730.45
F240: Hot | G240: Hot
B241: Other Revenue Credits | D241: 1 | E241: 2 | F241: 2 | G241: 2 | I241: 1
D242: Historical | E242: Forecast | F242: =HLOOKUP(F$220,$D$220:$E$228,$I242) -> Forecast | G242: =HLOOKUP(G$220,$D$220:$E$228,$I242) -> Forecast | I242: 2
D243: 12 Mo Ending | E243: 12 Mo Ending | F243: Utah | G243: Wyoming | I243: 3
B244: 483 Sales for Resale | E244: 0 | F244: =HLOOKUP(F$241,$D$241:$E$249,$I244) -> 0 | G244: 0 | I244: 4
B245: 490 Incidental Plant Prod Sales | E245: 562982.7086 | F245: 562982.7086 | G245: 562982.7086 | I245: 5
B246: 492 Incidental Gasoline_Oil Sales | E246: 1537181.285 | F246: 1537181.285 | G246: 1537181.285 | I246: 6
B247: 4951 Overriding Royalty Revenue from Celsius | E247: 522369.6115 | F247: 522369.6115 | G247: 522369.6115 | I247: 7
B248: 4952 Oil Revenue Received from Wexpro | E248: 220173.8498 | F248: 220173.8498 | G248: 220173.8498 | I248: 8
B249: 758001 Gas Well Royalities - Other | E249: -258355.5957 | F249: -258355.5957 | G249: -258355.5957 | I249: 9
B252: Total Other Revenue Credits | D252: =SUM(D244:D249) -> 0 | E252: =SUM(E244:E250) -> 2584351.859 | F252: =SUM(F244:F249) -> 2584351.859 | G252: =SUM(G244:G249) -> 2584351.859
E254: Proceeds | F254: Dths | G254: Price
B255: Sales of Wexpro Gas | E255: 0 | F255: 0 | G255: 0
A257: SUMMARY INPUTS FROM REVRUN, RATE BASE, EXPENSES, ETC.
B259: Supplier Non-Gas Costs Recovered at Current Rates 3/ | E259: ='RevRun Fcst'!T$199 -> 117886344.3 | H259: 1.6.2
B260: MT Supplier Non-Gas | E260: ='RevRun Fcst'!T142 -> 0
B261: Net Supplier Non-Gas | E261: =E259-E260 -> 117886344.3
B262: UT Current Int Sales SNG Rate - not including Bad Debt adj. | E262: ='RevRun Fcst'!T102+'RevRun Fcst'!T93 -> 565291 | F262: 0.17877
E264: ='Rate Base'!$U$8 -> 2017-08-31
B265: Account 164-1 - Gas Stored Underground | D265: Dth | E265: Ending Balance | F265: $ per Dth
D266: ='Rate Base'!T285 -> -9940657 | E266: ='Rate Base'!T206 -> 48018857.41 | F266: =+E266/D266 -> -4.830551684 | H266: 1.4.2
A269: UT CET and DSM AMORTIZATION FILING INPUTS
E270: Base DNG | F270: Current DNG
B271: GS Rates (Base rates are before CET, DSM, & EA Amortizations) | D271: Summer Blk 1 | E271: 1.7267 | F271: 2.13441
... 38 more rows

Sheet CET & DSM WY (hidden)
A1: Rate Caclulation for the CET and DSM Amortizations WY
L3: Solver Cells
A4: CET Amortization % Calculation | L4: % Change | M4: Difference
B5: Balance | C5: Date | D5: GS Dth | F5: Amortization per Dth | L5: =J20/D20 -> 0.01140516088 | M5: =G20-B11 -> 0 | O5: -> Difference should be at 0 (Use Goal Seek to Get Difference to Equal 0.
A6: DSM Balance | B6: ='Other Inputs'!$E$299 -> 274858.68 | C6: ='Other Inputs'!$F$299 -> 2011-07-31 | D6: =B20 -> 3298812 | F6: =B6/D6 -> 0.08332050447
O8: Typical Bill Rates
A9: CET Amortization Calculation
B10: Balance | C10: Date | D10: DNG Rev | F10: New DNG | I10: % Change | O10: Current | P10: Proposed
A11: CET Balance | B11: ='Other Inputs'!$E$298 -> 57097.0875 | C11: ='Other Inputs'!$F$298 -> 2011-07-31 | D11: =D20 -> 5006250.073 | F11: =D11+B11 -> 5063347.161 | I11: =L5 -> 0.01140516088 | O11: Effective | R11: SNG & | S11: CET, DSM
O12: ='Other Inputs'!$J$125 -> 2017-06-15 | P12: CET Only | Q12: DSM Only | R12: Commodity | S12: Commodity
O13: BSF | P13: BSF | Q13: BSF | R13: BSF | S13: BSF
B14: Revenue Calculation | F14: CET Amortization | I14: Total DNG | L14: REVRUN Calculation | O14: ='Other Inputs'!$G$127 -> 12 | P14: ='Other Inputs'!$G$127 -> 12 | Q14: ='Other Inputs'!$G$127 -> 12 | R14: ='Other Inputs'!$G$127 -> 12 | S14: =#REF! -> 
A15: WY GS | B15: Dth | C15: Base DNG | D15: DNG Revenue | F15: CET Rate | G15: Revenue | I15: DNG Rate | J15: Revenue | L15: CET Rate | M15: CET Amort
A16: Block 1 | B16: ='Other Inputs'!E301 -> 2593433 | C16: ='Other Inputs'!E291 -> 1.73142 | D16: =B16*C16 -> 4490321.765 | F16: =ROUND((G16/B16),5) -> 0.01975 | G16: =D16*$L$5 -> 51212.84214 | I16: =C16+F16 -> 1.75117 | J16: =I16*B16 -> 4541542.067 | L16: =ROUND(F16,5) -> 0.01975 | M16: =B16*L16 -> 51220.30175 | O16: ='Other Inputs'!$G$118 -> 6.74613 | P16: =J24 -> 6.78793 | Q16: =J31 -> 6.82863 | R16: =J36 ->  | S16: =J41 -> 
A17: Block 2 | B17: ='Other Inputs'!E302 -> 705379 | C17: ='Other Inputs'!E292 -> 0.73142 | D17: =B17*C17 -> 515928.3082 | F17: =ROUND((G17/B17),5) -> 0.00834 | G17: =D17*$L$5 -> 5884.245359 | I17: =C17+F17 -> 0.73976 | J17: =I17*B17 -> 521811.169 | L17: =ROUND(F17,5) -> 0.00834 | M17: =B17*L17 -> 5882.86086
O18: ='Other Inputs'!$G$125 -> 7.35639 | P18: =J24 -> 6.78793 | Q18: =J31 -> 6.82863 | R18: =J36 ->  | S18: =J41 -> 
A20: GS-1 Block Rev | B20: =SUM(B16:B19) -> 3298812 | D20: =SUM(D16:D19) -> 5006250.073 | G20: =SUM(G16:G19) -> 57097.0875 | J20: =B11 -> 57097.0875 | M20: =SUM(M16:M19) -> 57103.16261
A22: Total Rate Calculation With CET Amortization Only | J22: ='Control Panel'!#REF! ->  | L22: ='Other Inputs'!$J$125 -> 2017-06-15
A23: WY GS | B23: Total DNG | C23: CET | D23: DSM | F23: Total DNG | G23: Core Commodity Cost | J23: Total Rate | L23: Total Rate
A24: Block 1 | B24: =$C$16 -> 1.73142 | C24: =$F$16 -> 0.01975 | D24: 0.06792 | F24: =SUM(B24:D24) -> 1.81909 | G24: 4.96884 | J24: =SUM(F24:G24) -> 6.78793 | L24: ='Other Inputs'!G125 -> 7.35639 | M24: =J24-L24 -> -0.56846
A25: Block 2 | B25: =$C$17 -> 0.73142 | C25: =$F$17 -> 0.00834 | D25: =$D$24 -> 0.06792 | F25: =SUM(B25:D25) -> 0.80768 | G25: =G24 -> 4.96884 | J25: =SUM(F25:G25) -> 5.77652 | L25: ='Other Inputs'!$G$126 -> 7.098 | M25: =J25-L25 -> -1.32148
A29: Total Rate Calculation With DSM Amortization Only | J29: =J22 ->  | L29: ='Other Inputs'!$J$125 -> 2017-06-15
A30: WY GS | B30: Base DNG | C30: CET | D30: DSM | F30: Total DNG | G30: Core Commodity Cost | J30: Total Rate | L30: Total Rate
A31: Block 1 | B31: =$C$16 -> 1.73142 | C31: 0.04505 | D31: =$F$6 -> 0.08332050447 | F31: =ROUND(SUM(B31:D31),5) -> 1.85979 | G31: =G24 -> 4.96884 | J31: =SUM(F31:I31) -> 6.82863 | L31: ='Other Inputs'!$G$118 -> 6.74613 | M31: =J31-L31 -> 0.0825
A32: Block 2 | B32: =$C$17 -> 0.73142 | C32: 0.02848 | D32: =$F$6 -> 0.08332050447 | F32: =ROUND(SUM(B32:D32),5) -> 0.84322 | G32: =G25 -> 4.96884 | J32: =SUM(F32:I32) -> 5.81206 | L32: ='Other Inputs'!$G$126 -> 7.098 | M32: =J32-L32 -> -1.28594
A34: Total Rate Calculation With Core Commodity Cost Changes Only | J34: =J22 ->  | L34: ='Other Inputs'!$J$125 -> 2017-06-15
A35: WY GS | B35: Base DNG | C35: CET | D35: DSM | F35: Total DNG | G35: Core Commodity Cost | J35: Total Rate | L35: Total Rate
A36: Block 1 | B36: =$C$16 -> 1.73142 | C36: =C31 -> 0.04505 | D36: =D24 -> 0.06792 | F36: =SUM(B36:D36) -> 1.84439 | G36: =#REF! ->  | J36: =SUM(F36:I36) ->  | L36: ='Other Inputs'!$G$118 -> 6.74613 | M36: =J36-L36 -> 
A37: Block 2 | B37: =$C$17 -> 0.73142 | C37: =C32 -> 0.02848 | D37: =D25 -> 0.06792 | F37: =SUM(B37:D37) -> 0.82782 | G37: =#REF! ->  | J37: =SUM(F37:I37) ->  | L37: ='Other Inputs'!$G$126 -> 7.098 | M37: =J37-L37 -> 
A39: Total Rate Calculation | J39: =J29 ->  | L39: ='Other Inputs'!$J$125 -> 2017-06-15
A40: WY GS | B40: Base DNG | C40: CET | D40: DSM | F40: Total DNG | G40: Core Commodity Cost | J40: Total Rate | L40: Total Rate
A41: Block 1 | B41: =$C$16 -> 1.73142 | C41: =$F$16 -> 0.01975 | D41: =$F$6 -> 0.08332050447 | F41: =SUM(B41:D41) -> 1.834490504 | G41: =#REF! ->  | J41: =SUM(F41:I41) ->  | L41: ='Other Inputs'!$G$118 -> 6.74613 | M41: =J41-L41 -> 
A42: Block 2 | B42: =$C$17 -> 0.73142 | C42: =$F$17 -> 0.00834 | D42: =$F$6 -> 0.08332050447 | F42: =SUM(B42:D42) -> 0.8230805045 | G42: =#REF! ->  | J42: =SUM(F42:I42) ->  | L42: ='Other Inputs'!$G$126 -> 7.098 | M42: =J42-L42 -> 
A44: Typical Customer Difference - CET Amortization Only
B45: Typical
A46: GS | B46: Dth | C46: =O12 -> 2017-06-15 | D46: =J39 ->  | F46: Change | G46: % Change
A47: January | B47: 14.7 | C47: =ROUND($O$14+(B47*$O$18),2) -> 120.14 | D47: =ROUND($P$14+(B47*$P$18),2) -> 111.78 | F47: =D47-C47 -> -8.36
A48: February | B48: 14.1 | C48: =ROUND($O$14+(B48*$O$18),2) -> 115.73 | D48: =ROUND($P$14+(B48*$P$18),2) -> 107.71 | F48: =D48-C48 -> -8.02
A49: March | B49: 11.8 | C49: =ROUND($O$14+(B49*$O$18),2) -> 98.81 | D49: =ROUND($P$14+(B49*$P$18),2) -> 92.1 | F49: -6.71
A50: April | B50: 9.4 | C50: =ROUND($O$14+(B50*$O$16),2) -> 75.41 | D50: =ROUND($P$14+(B50*$P$16),2) -> 75.81 | F50: 0.4
A51: May | B51: 5.8 | C51: 51.13 | D51: =ROUND($P$14+(B51*$P$16),2) -> 51.37 | F51: 0.24
A52: June | B52: 3.7 | C52: 36.96 | D52: 37.12 | F52: 0.16
A53: July | B53: 2.3 | C53: 27.52 | D53: 27.61 | F53: 0.09
A54: August | B54: 1.7 | C54: 23.47 | D54: 23.54 | F54: 0.07
A55: September | B55: 2.1 | C55: 26.17 | D55: 26.25 | F55: 0.08
A56: October | B56: 4.1 | C56: 39.66 | D56: 39.83 | F56: 0.17
A57: November | B57: 8 | C57: =ROUND($O$14+(B57*$O$18),2) -> 70.85 | D57: =ROUND($P$14+(B57*$P$18),2) -> 66.3 | F57: -4.55
A58: December | B58: 12.3 | C58: =ROUND($O$14+(B58*$O$18),2) -> 102.48 | D58: =ROUND($P$14+(B58*$P$18),2) -> 95.49 | F58: -6.99
B59: =SUM(B47:B58) -> 90 | C59: =SUM(C47:C58) -> 788.33 | D59: =SUM(D47:D58) -> 754.91 | F59: =SUM(F47:F58) -> -33.42 | G59: =F59/C59 -> -0.04239341393
A62: Typical Customer Difference - DSM Amortization Only
B63: Typical
A64: GS | B64: Dth | C64: =C46 -> 2017-06-15 | D64: =D46 ->  | F64: Change | G64: % Change
A65: January | B65: 14.7 | C65: =ROUND($O$14+(B65*$O$18),2) -> 120.14 | D65: =ROUND($Q$14+(B65*$Q$18),2) -> 112.38 | F65: =D65-C65 -> -7.76
A66: February | B66: 14.1 | C66: =ROUND($O$14+(B66*$O$18),2) -> 115.73 | D66: =ROUND($Q$14+(B66*$Q$18),2) -> 108.28 | F66: =D66-C66 -> -7.45
A67: March | B67: 11.8 | C67: =ROUND($O$14+(B67*$O$18),2) -> 98.81 | D67: =ROUND($Q$14+(B67*$Q$18),2) -> 92.58 | F67: -6.23
A68: April | B68: 9.4 | C68: =ROUND($O$14+(B68*$O$16),2) -> 75.41 | D68: =ROUND($Q$14+(B68*$Q$16),2) -> 76.19 | F68: 0.78
A69: May | B69: 5.8 | C69: 51.13 | D69: 51.61 | F69: 0.48
A70: June | B70: 3.7 | C70: 36.96 | D70: 37.27 | F70: 0.31
A71: July | B71: 2.3 | C71: 27.52 | D71: 27.71 | F71: 0.19
A72: August | B72: 1.7 | C72: 23.47 | D72: 23.61 | F72: 0.14
A73: September | B73: 2.1 | C73: 26.17 | D73: 26.34 | F73: 0.17
A74: October | B74: 4.1 | C74: 39.66 | D74: 40 | F74: 0.34
A75: November | B75: 8 | C75: =ROUND($O$14+(B75*$O$18),2) -> 70.85 | D75: =ROUND($Q$14+(B75*$Q$18),2) -> 66.63 | F75: -4.22
A76: December | B76: 12.3 | C76: =ROUND($O$14+(B76*$O$18),2) -> 102.48 | D76: =ROUND($Q$14+(B76*$Q$18),2) -> 95.99 | F76: -6.49
B77: =SUM(B65:B76) -> 90 | C77: =SUM(C65:C76) -> 788.33 | D77: =SUM(D65:D76) -> 758.59 | F77: =SUM(F65:F76) -> -29.74 | G77: =F77/C77 -> -0.03772531808
A80: Typical Customer Difference - SNG and Commodity Changes Only
B81: Typical
A82: GS | B82: Dth | C82: =C64 -> 2017-06-15 | D82: =D64 ->  | F82: Change | G82: % Change
A83: January | B83: 14.7 | C83: =ROUND($O$14+(B83*$O$18),2) -> 120.14 | D83: =ROUND($R$14+(B83*$R$18),2) ->  | F83: =D83-C83 -> 
A84: February | B84: 14.1 | C84: =ROUND($O$14+(B84*$O$18),2) -> 115.73 | D84: =ROUND($R$14+(B84*$R$18),2) ->  | F84: =D84-C84 -> 
A85: March | B85: 11.8 | C85: =ROUND($O$14+(B85*$O$18),2) -> 98.81 | D85: =ROUND($R$14+(B85*$R$18),2) -> 
A86: April | B86: 9.4 | C86: =ROUND($O$14+(B86*$O$16),2) -> 75.41 | D86: =ROUND($R$14+(B86*$R$16),2) -> 
A87: May | B87: 5.8 | C87: 51.13
A88: June | B88: 3.7 | C88: 36.96
A89: July | B89: 2.3 | C89: 27.52
A90: August | B90: 1.7 | C90: 23.47
A91: September | B91: 2.1 | C91: 26.17
A92: October | B92: 4.1 | C92: 39.66
A93: November | B93: 8 | C93: =ROUND($O$14+(B93*$O$18),2) -> 70.85 | D93: =ROUND($R$14+(B93*$R$18),2) -> 
A94: December | B94: 12.3 | C94: =ROUND($O$14+(B94*$O$18),2) -> 102.48 | D94: =ROUND($R$14+(B94*$R$18),2) -> 
B95: =SUM(B83:B94) -> 90 | C95: =SUM(C83:C94) -> 788.33 | D95: =SUM(D83:D94) ->  | F95: =SUM(F83:F94) ->  | G95: =F95/C95 -> 
A98: Typical Customer Difference - CET & DSM Amort, SNG and Commodity Changes
B99: Typical
A100: GS | B100: Dth | C100: =C46 -> 2017-06-15 | D100: =D46 ->  | F100: Change | G100: % Change
A101: January | B101: 14.7 | C101: =ROUND($O$14+(B101*$O$18),2) -> 120.14 | D101: =ROUND($S$14+(B101*$S$18),2) ->  | F101: =D101-C101 -> 
A102: February | B102: 14.1 | C102: =ROUND($O$14+(B102*$O$18),2) -> 115.73 | D102: =ROUND($S$14+(B102*$S$18),2) ->  | F102: =D102-C102 -> 
A103: March | B103: 11.8 | C103: =ROUND($O$14+(B103*$O$18),2) -> 98.81 | D103: =ROUND($S$14+(B103*$S$18),2) -> 
A104: April | B104: 9.4 | C104: =ROUND($O$14+(B104*$O$16),2) -> 75.41 | D104: =ROUND($S$14+(B104*$S$16),2) -> 
A105: May | B105: 5.8 | C105: 51.13
A106: June | B106: 3.7 | C106: 36.96
A107: July | B107: 2.3 | C107: 27.52
A108: August | B108: 1.7 | C108: 23.47
A109: September | B109: 2.1 | C109: 26.17
A110: October | B110: 4.1 | C110: 39.66
A111: November | B111: 8 | C111: =ROUND($O$14+(B111*$O$18),2) -> 70.85 | D111: =ROUND($S$14+(B111*$S$18),2) -> 
A112: December | B112: 12.3 | C112: =ROUND($O$14+(B112*$O$18),2) -> 102.48 | D112: =ROUND($S$14+(B112*$S$18),2) -> 
B113: =SUM(B101:B112) -> 90 | C113: =SUM(C101:C112) -> 788.33 | D113: =SUM(D101:D112) ->  | F113: =SUM(F101:F112) ->  | G113: =F113/C113 -> 

Sheet WY Tariff Sheets (hidden)
T2: Rates Per Dth Used Each Month
B3: 2.02 General Service Rate Schedule (GS) | K3: 2.02 General Service Rate Schedule (GS) | Q3: 2.03 Firm Sales Service Rate Schedule (FS) | T3: Dth = decatherm = 10 therms = 1,000,000 BTU | Z3: 4.02 INTERRUPTIBLE SALES RATE SERVICE SCHEDULE (IS) | BF3: 2.04 NATURAL GAS VEHICLE RATE (NGV)
L4: Rates Per Dth Used Each Month | R4: Summer Rates: Apr. 1 - Oct. 31
C5: Rates Per Dth Used Each Month | L5: Dth = decatherm = 10 therms = 1,000,000 BTU | R5: First | T5: Next | V5: All Over | Z5: IS VOLUMETRIC RATES | AA5: Rates Per Dth Used Each Month | BF5: NGV Volumetric Rate
C6: Dth = decatherm = 10 therms = 1,000,000 BTU | L6: First 45 Dth | M6: All Over 45 Dth | R6: 80 | T6: 730 | V6: 810 | AA6: Dth = decatherm = 10 therms = 1,000,000 BTU | BJ6: Rates Per Dth Used Each Month
C7: First 45 Dth | D7: All Over 45 Dth | K7: Non-Gas Cost | L7: ='CET & DSM WY'!B31 -> 1.73142 | M7: ='CET & DSM WY'!B32 -> 0.73142 | Q7: Non Gas Cost | R7: =#REF! ->  | T7: =#REF! ->  | V7: =#REF! ->  | AA7: First | AB7: Next | AC7: All Over | BJ7: Dth = decatherm = 10 therms = 1,000,000 BTU
B8: Non-Gas Cost | C8: ='CET & DSM WY'!B24 -> 1.73142 | D8: ='CET & DSM WY'!B25 -> 0.73142 | K8: Conservation Enabling Adjustment | L8: =ROUND('CET & DSM WY'!C31,5) -> 0.04505 | M8: ='CET & DSM WY'!C32 -> 0.02848 | Q8: Core Service Commodity Cost | R8: =#REF! ->  | T8: =#REF! ->  | V8: =#REF! ->  | AA8: 48600 | AB8: 72900 | AC8: 121500
B9: Conservation Enabling Adjustment | C9: ='CET & DSM WY'!C24 -> 0.01975 | D9: ='CET & DSM WY'!C25 -> 0.00834 | K9: Energy Efficiency Services | L9: ='CET & DSM WY'!D31 -> 0.08332050447 | M9: ='CET & DSM WY'!D32 -> 0.08332050447 | Z9: Distribution Non-Gas Rate | AA9: =#REF! ->  | AB9: =#REF! ->  | AC9: =#REF! ->  | BF9: Non-Gas Cost | BG9: =#REF! -> 
B10: Energy Efficiency Services | C10: ='CET & DSM WY'!D24 -> 0.06792 | D10: ='CET & DSM WY'!D25 -> 0.06792 | K10: Core Service Commodity Cost | L10: ='CET & DSM WY'!G31 -> 4.96884 | M10: =ROUND('CET & DSM WY'!G32,5) -> 4.96884 | Q10: Total Rate | R10: =SUM(R7:R8) ->  | T10: =SUM(T7:T8) ->  | V10: =SUM(V7:V8) ->  | Z10: Upstream Pipeline Cost | AA10: =#REF! ->  | AB10: =#REF! ->  | AC10: =#REF! ->  | BF10: Core Commodity Cost | BG10: =#REF! -> 
B11: Core Service Commodity Cost | C11: ='CET & DSM WY'!G24 -> 4.96884 | D11: ='CET & DSM WY'!G25 -> 4.96884 | Z11: Commodity Rate | BF11: Total Rate | BG11: =SUM(BG9:BJ10) -> 
K12: Total Rate | L12: =SUM(L7:L10) -> 6.828630504 | M12: =SUM(M7:M10) -> 5.812060504 | Q12: Minimum Monthly Distribution Non-Gas Charge | W12: =#REF! -> 
B13: Total Rate | C13: =SUM(C8:C11) -> 6.78793 | D13: =SUM(D8:D11) -> 5.77652
M15: BSF Category 1 | N15: =E16 -> 12
D16: BSF Category 1 | E16: ='CET & DSM WY'!O14 -> 12 | M16: BSF Category 2 | N16: =E17 -> 44 | U16: BSF Category 1 | W16: ='Other Inputs'!G127 -> 12
D17: BSF Category 2 | E17: 44 | M17: BSF Category 3 | N17: =E18 -> 86 | U17: BSF Category 2 | W17: =#REF! -> 
D18: BSF Category 3 | E18: 86 | M18: BSF Category 4 | N18: =E19 -> 555 | U18: BSF Category 3 | W18: =#REF! ->  | Z18: Total Rate | AA18: $ | AB18: $ | AC18: $
D19: BSF Category 4 | E19: 555 | U19: BSF Category 4 | W19: =#REF! -> 
Z20: Minimum Monthly Distribution Non-Gas Charge
BF23: =B38 -> Issued by R. W. Jibson, President | BI23: Advice No | BJ23: Section Revision No.
AB24: BSF Category 1 | AC24: ='Other Inputs'!G127 -> 12
AB25: BSF Category 2 | AC25: =#REF! -> 
AB26: BSF Category 3 | AC26: =#REF! -> 
AB27: BSF Category 4 | AC27: =#REF! -> 
K37: Issued by R. W. Jibson, President | M37: Section Revision No. | N37: Effective Date
B38: Issued by R. W. Jibson, President | D38: Section Revision No. | E38: Effective Date | Q38: =B38 -> Issued by R. W. Jibson, President | T38: Advice No | U38: Section Revision No. | W38: Effective Date
B42: New CET ONLY | K42: New DSM ONLY | Q42: New Pass Through Values
Z47: =B38 -> Issued by R. W. Jibson, President | AC47: Advice No
Z50: New Pass Through Values

Sheet Calculations
A1: GAS BALANCE FOR 12 MONTHS ENDING: _________________
D3: SALES VOLUMES IN dekathermS (12 Months of Forecast)
D4: Forecast | E4: Forecast | F4: Forecast | G4: Forecast | H4: Forecast | I4: Forecast | J4: Forecast | K4: Forecast | L4: Forecast | M4: Forecast | N4: Forecast | O4: Forecast | P4: 12-Month
A5: RATE CLASS | D5: ='Monthly Inputs'!G3 -> Nov17 | E5: ='Monthly Inputs'!H3 -> Dec17 | F5: ='Monthly Inputs'!I3 -> Jan18 | G5: ='Monthly Inputs'!J3 -> Feb18 | H5: ='Monthly Inputs'!K3 -> Mar18 | I5: ='Monthly Inputs'!L3 -> Apr18 | J5: ='Monthly Inputs'!M3 -> May18 | K5: ='Monthly Inputs'!N3 -> Jun18 | L5: ='Monthly Inputs'!O3 -> Jul18 | M5: ='Monthly Inputs'!P3 -> Aug18 | N5: ='Monthly Inputs'!Q3 -> Sep18 | O5: ='Monthly Inputs'!R3 -> Oct18 | P5: Total | Q5: 1
A6: UTAH | D6: =MONTH(D5) -> 11 | E6: =MONTH(E5) -> 12 | F6: 1 | G6: 2 | H6: 3 | I6: 4 | J6: 5 | K6: 6 | L6: 7 | M6: 8 | N6: 9 | O6: 10 | Q6: 2
B7: GSR | D7: ='RevRun Fcst'!H21 -> 11612469 | E7: ='RevRun Fcst'!I21 -> 18240637 | F7: ='RevRun Fcst'!J21 -> 19103597 | G7: ='RevRun Fcst'!K21 -> 15427005 | H7: ='RevRun Fcst'!L21 -> 12039846 | I7: ='RevRun Fcst'!M21 -> 7902341 | J7: ='RevRun Fcst'!N21 -> 4815860 | K7: ='RevRun Fcst'!O21 -> 2859281 | L7: ='RevRun Fcst'!P21 -> 2409399 | M7: ='RevRun Fcst'!Q21 -> 2279222 | N7: ='RevRun Fcst'!R21 -> 2494890 | O7: ='RevRun Fcst'!S21 -> 6710736 | P7: =SUM(D7:O7) -> 105895283 | Q7: 3
B8: GSC | D8: ='RevRun Fcst'!H30 -> 0 | E8: ='RevRun Fcst'!I30 -> 0 | F8: ='RevRun Fcst'!J30 -> 0 | G8: ='RevRun Fcst'!K30 -> 0 | H8: ='RevRun Fcst'!L30 -> 0 | I8: ='RevRun Fcst'!M30 -> 0 | J8: ='RevRun Fcst'!N30 -> 0 | K8: ='RevRun Fcst'!O30 -> 0 | L8: ='RevRun Fcst'!P30 -> 0 | M8: ='RevRun Fcst'!Q30 -> 0 | N8: ='RevRun Fcst'!R30 -> 0 | O8: ='RevRun Fcst'!S30 -> 0 | P8: 0 | Q8: 4
B9: GSS | D9: ='RevRun Fcst'!H39 -> 0 | E9: ='RevRun Fcst'!I39 -> 0 | F9: ='RevRun Fcst'!J39 -> 0 | G9: ='RevRun Fcst'!K39 -> 0 | H9: ='RevRun Fcst'!L39 -> 0 | I9: ='RevRun Fcst'!M39 -> 0 | J9: ='RevRun Fcst'!N39 -> 0 | K9: ='RevRun Fcst'!O39 -> 0 | L9: ='RevRun Fcst'!P39 -> 0 | M9: ='RevRun Fcst'!Q39 -> 0 | N9: ='RevRun Fcst'!R39 -> 0 | O9: ='RevRun Fcst'!S39 -> 0 | P9: 0 | Q9: 5
B10: F-1 | D10: ='RevRun Fcst'!H48 -> 310548 | E10: ='RevRun Fcst'!I48 -> 417583 | F10: ='RevRun Fcst'!J48 -> 484919 | G10: ='RevRun Fcst'!K48 -> 425114 | H10: ='RevRun Fcst'!L48 -> 403701 | I10: ='RevRun Fcst'!M48 -> 383132 | J10: ='RevRun Fcst'!N48 -> 308159 | K10: ='RevRun Fcst'!O48 -> 290140 | L10: ='RevRun Fcst'!P48 -> 225747 | M10: ='RevRun Fcst'!Q48 -> 210735 | N10: ='RevRun Fcst'!R48 -> 253386 | O10: ='RevRun Fcst'!S48 -> 257802 | P10: 3970966 | Q10: 6
B11: F-4 | D11: ='RevRun Fcst'!H75 -> 0 | E11: ='RevRun Fcst'!I75 -> 0 | F11: ='RevRun Fcst'!J75 -> 0 | G11: ='RevRun Fcst'!K75 -> 0 | H11: ='RevRun Fcst'!L75 -> 0 | I11: ='RevRun Fcst'!M75 -> 0 | J11: ='RevRun Fcst'!N75 -> 0 | K11: ='RevRun Fcst'!O75 -> 0 | L11: ='RevRun Fcst'!P75 -> 0 | M11: ='RevRun Fcst'!Q75 -> 0 | N11: ='RevRun Fcst'!R75 -> 0 | O11: ='RevRun Fcst'!S75 -> 0 | P11: 0 | Q11: 7
B12: NGV | D12: ='RevRun Fcst'!H66 -> 22821 | E12: ='RevRun Fcst'!I66 -> 19463 | F12: ='RevRun Fcst'!J66 -> 23246 | G12: ='RevRun Fcst'!K66 -> 21146 | H12: ='RevRun Fcst'!L66 -> 22656 | I12: ='RevRun Fcst'!M66 -> 24832 | J12: ='RevRun Fcst'!N66 -> 24203 | K12: ='RevRun Fcst'!O66 -> 26194 | L12: ='RevRun Fcst'!P66 -> 21810 | M12: ='RevRun Fcst'!Q66 -> 25818 | N12: ='RevRun Fcst'!R66 -> 25250 | O12: ='RevRun Fcst'!S66 -> 24213 | P12: 281652 | Q12: 8
A13: Total Firm Sales | D13: =SUM(D7:D12) -> 11945838 | E13: 18677683 | F13: =SUM(F7:F12) -> 19611762 | G13: 15873265 | H13: 12466203 | I13: 8310305 | J13: 5148222 | K13: 3175615 | L13: 2656956 | M13: 2515775 | N13: 2773526 | O13: 6992751 | P13: =SUM(P7:P12) -> 110147901 | Q13: 9
Q14: 10
B15: I-4 | D15: ='RevRun Fcst'!H102 -> 45347 | E15: ='RevRun Fcst'!I102 -> 55264 | F15: ='RevRun Fcst'!J102 -> 49041 | G15: ='RevRun Fcst'!K102 -> 49470 | H15: ='RevRun Fcst'!L102 -> 39968 | I15: ='RevRun Fcst'!M102 -> 45427 | J15: ='RevRun Fcst'!N102 -> 50441 | K15: ='RevRun Fcst'!O102 -> 50834 | L15: ='RevRun Fcst'!P102 -> 40872 | M15: ='RevRun Fcst'!Q102 -> 44094 | N15: ='RevRun Fcst'!R102 -> 47544 | O15: ='RevRun Fcst'!S102 -> 46989 | P15: =SUM(D15:O15) -> 565291 | Q15: 11
B16: IS-4 | D16: ='RevRun Fcst'!H93 -> 0 | E16: ='RevRun Fcst'!I93 -> 0 | F16: ='RevRun Fcst'!J93 -> 0 | G16: ='RevRun Fcst'!K93 -> 0 | H16: ='RevRun Fcst'!L93 -> 0 | I16: ='RevRun Fcst'!M93 -> 0 | J16: ='RevRun Fcst'!N93 -> 0 | K16: ='RevRun Fcst'!O93 -> 0 | L16: ='RevRun Fcst'!P93 -> 0 | M16: ='RevRun Fcst'!Q93 -> 0 | N16: ='RevRun Fcst'!R93 -> 0 | O16: ='RevRun Fcst'!S93 -> 0 | P16: =SUM(D16:O16) -> 0 | Q16: 12
A17: Total Interruptible Sales | D17: =SUM(D15:D16) -> 45347 | E17: 55264 | F17: 49041 | G17: 49470 | H17: 39968 | I17: 45427 | J17: 50441 | K17: 50834 | L17: 40872 | M17: 44094 | N17: 47544 | O17: 46989 | P17: 565291 | Q17: 13
Q18: 14
Q19: 15
A20: Total Utah Sales | D20: =+D13+D17 -> 11991185 | E20: =+E13+E17 -> 18732947 | F20: =+F13+F17 -> 19660803 | G20: =+G13+G17 -> 15922735 | H20: 12506171 | I20: 8355732 | J20: 5198663 | K20: 3226449 | L20: 2697828 | M20: 2559869 | N20: 2821070 | O20: 7039740 | P20: =+P13+P17 -> 110713192 | Q20: 16
Q21: 17
A22: Total Utah Transportation | D22: ='RevRun Fcst'!H204 -> 7060468 | E22: ='RevRun Fcst'!I204 -> 8423919 | F22: ='RevRun Fcst'!J204 -> 8418855 | G22: ='RevRun Fcst'!K204 -> 7706602 | H22: ='RevRun Fcst'!L204 -> 7367881 | I22: ='RevRun Fcst'!M204 -> 7822096 | J22: ='RevRun Fcst'!N204 -> 8046893 | K22: ='RevRun Fcst'!O204 -> 7655912 | L22: ='RevRun Fcst'!P204 -> 7994821 | M22: ='RevRun Fcst'!Q204 -> 7703233 | N22: ='RevRun Fcst'!R204 -> 6775011 | O22: ='RevRun Fcst'!S204 -> 6625907 | P22: =SUM(D22:O22) -> 91601598 | Q22: 18
Q23: 19
Q24: 20
A25: Total Utah Sales & Trans | D25: =+D20+D22 -> 19051653 | E25: 27156866 | F25: 28079658 | G25: 23629337 | H25: 19874052 | I25: 16177828 | J25: 13245556 | K25: 10882361 | L25: 10692649 | M25: 10263102 | N25: 9596081 | O25: 13665647 | P25: =+P20+P22 -> 202314790 | Q25: 21
Q26: 22
A27: WYOMING | Q27: 23
A28: GS-1 | D28: ='RevRun Fcst'!H244 -> 412167 | E28: ='RevRun Fcst'!I244 -> 619656 | F28: ='RevRun Fcst'!J244 -> 640612 | G28: ='RevRun Fcst'!K244 -> 580540 | H28: ='RevRun Fcst'!L244 -> 489966 | I28: ='RevRun Fcst'!M244 -> 339583 | J28: ='RevRun Fcst'!N244 -> 220361 | K28: ='RevRun Fcst'!O244 -> 116144 | L28: ='RevRun Fcst'!P244 -> 67831 | M28: ='RevRun Fcst'!Q244 -> 67819 | N28: ='RevRun Fcst'!R244 -> 103394 | O28: ='RevRun Fcst'!S244 -> 231559 | P28: =SUM(D28:O28) -> 3889632 | Q28: 24
A29: GS-W | D29: ='RevRun Fcst'!H271 -> 0 | E29: ='RevRun Fcst'!I271 -> 0 | F29: ='RevRun Fcst'!J271 -> 0 | G29: ='RevRun Fcst'!K271 -> 0 | H29: ='RevRun Fcst'!L271 -> 0 | I29: ='RevRun Fcst'!M271 -> 0 | J29: ='RevRun Fcst'!N271 -> 0 | K29: ='RevRun Fcst'!O271 -> 0 | L29: ='RevRun Fcst'!P271 -> 0 | M29: ='RevRun Fcst'!Q271 -> 0 | N29: ='RevRun Fcst'!R271 -> 0 | O29: ='RevRun Fcst'!S271 -> 0 | P29: =SUM(D29:O29) -> 0 | Q29: 25
A30: F-1 | D30: ='RevRun Fcst'!H253 -> 16256 | E30: ='RevRun Fcst'!I253 -> 21201 | F30: ='RevRun Fcst'!J253 -> 24130 | G30: ='RevRun Fcst'!K253 -> 21931 | H30: ='RevRun Fcst'!L253 -> 20642 | I30: ='RevRun Fcst'!M253 -> 19973 | J30: ='RevRun Fcst'!N253 -> 15480 | K30: ='RevRun Fcst'!O253 -> 12637 | L30: ='RevRun Fcst'!P253 -> 12035 | M30: ='RevRun Fcst'!Q253 -> 10027 | N30: ='RevRun Fcst'!R253 -> 11836 | O30: ='RevRun Fcst'!S253 -> 13011 | P30: =SUM(D30:O30) -> 199159 | Q30: 26
A31: NGV | D31: ='RevRun Fcst'!H262 -> 730 | E31: ='RevRun Fcst'!I262 -> 480 | F31: ='RevRun Fcst'!J262 -> 533 | G31: ='RevRun Fcst'!K262 -> 578 | H31: ='RevRun Fcst'!L262 -> 555 | I31: ='RevRun Fcst'!M262 -> 546 | J31: ='RevRun Fcst'!N262 -> 642 | K31: ='RevRun Fcst'!O262 -> 591 | L31: ='RevRun Fcst'!P262 -> 511 | M31: ='RevRun Fcst'!Q262 -> 674 | N31: ='RevRun Fcst'!R262 -> 614 | O31: ='RevRun Fcst'!S262 -> 707 | P31: =SUM(D31:O31) -> 7161 | Q31: 27
A32: Total Firm Sales | D32: =SUM(D28:D31) -> 429153 | E32: 641337 | F32: 665275 | G32: 603049 | H32: 511163 | I32: 360102 | J32: 236483 | K32: 129372 | L32: 80377 | M32: 78520 | N32: 115844 | O32: 245277 | P32: 4095952 | Q32: 28
Q33: 29
A34: I-2 | D34: ='RevRun Fcst'!H280 -> 18024 | E34: ='RevRun Fcst'!I280 -> 17188 | F34: ='RevRun Fcst'!J280 -> 20227 | G34: ='RevRun Fcst'!K280 -> 18141 | H34: ='RevRun Fcst'!L280 -> 14291 | I34: ='RevRun Fcst'!M280 -> 12938 | J34: ='RevRun Fcst'!N280 -> 10019 | K34: ='RevRun Fcst'!O280 -> 6552 | L34: ='RevRun Fcst'!P280 -> 7096 | M34: ='RevRun Fcst'!Q280 -> 7051 | N34: ='RevRun Fcst'!R280 -> 6810 | O34: ='RevRun Fcst'!S280 -> 5253 | P34: =SUM(D34:O34) -> 143590 | Q34: 30
A35: I-4 | D35: ='RevRun Fcst'!H289 -> 0 | E35: ='RevRun Fcst'!I289 -> 0 | F35: ='RevRun Fcst'!J289 -> 0 | G35: ='RevRun Fcst'!K289 -> 0 | H35: ='RevRun Fcst'!L289 -> 0 | I35: ='RevRun Fcst'!M289 -> 0 | J35: ='RevRun Fcst'!N289 -> 0 | K35: ='RevRun Fcst'!O289 -> 0 | L35: ='RevRun Fcst'!P289 -> 0 | M35: ='RevRun Fcst'!Q289 -> 0 | N35: ='RevRun Fcst'!R289 -> 0 | O35: ='RevRun Fcst'!S289 -> 0 | P35: =SUM(D35:O35) -> 0 | Q35: 31
A36: Total Interruptible Sales | D36: =SUM(D34:D35) -> 18024 | E36: 17188 | F36: 20227 | G36: 18141 | H36: 14291 | I36: 12938 | J36: 10019 | K36: 6552 | L36: 7096 | M36: 7051 | N36: 6810 | O36: 5253 | P36: 143590 | Q36: 32
Q37: 33
Q38: 34
A39: Total Wyoming Sales | D39: =+D32+D36 -> 447177 | E39: =+E32+E36 -> 658525 | F39: 685502 | G39: 621190 | H39: 525454 | I39: 373040 | J39: 246502 | K39: 135924 | L39: 87473 | M39: 85571 | N39: 122654 | O39: 250530 | P39: 4239542 | Q39: 35
Q40: 36
A41: Total Wyoming Transportation | D41: ='RevRun Fcst'!H328 -> 60022 | E41: ='RevRun Fcst'!I328 -> 69687 | F41: ='RevRun Fcst'!J328 -> 57810 | G41: ='RevRun Fcst'!K328 -> 45900 | H41: ='RevRun Fcst'!L328 -> 56059 | I41: ='RevRun Fcst'!M328 -> 34875 | J41: ='RevRun Fcst'!N328 -> 70157 | K41: ='RevRun Fcst'!O328 -> 26238 | L41: ='RevRun Fcst'!P328 -> 14151 | M41: ='RevRun Fcst'!Q328 -> 14784 | N41: ='RevRun Fcst'!R328 -> 104306 | O41: ='RevRun Fcst'!S328 -> 60090 | P41: =SUM(D41:O41) -> 614079 | Q41: 37
Q42: 38
Q43: 39
A44: Total Wyoming Sales & Trans | D44: =+D39+D41 -> 507199 | E44: 728212 | F44: 743312 | G44: 667090 | H44: 581513 | I44: 407915 | J44: 316659 | K44: 162162 | L44: 101624 | M44: 100355 | N44: 226960 | O44: 310620 | P44: 4853621 | Q44: 40
Q45: 41
Q46: 42
A47: Total System Sales and Trans | D47: =+D25+D44 -> 19558852 | E47: 27885078 | F47: 28822970 | G47: 24296427 | H47: 20455565 | I47: 16585743 | J47: 13562215 | K47: 11044523 | L47: 10794273 | M47: 10363457 | N47: 9823041 | O47: =+O25+O44 -> 13976267 | P47: 207168411 | Q47: 43
Q48: 44
A49: Usage by Season | Q49: 45
C50: Month | D50: =MONTH(D5) -> 11 | E50: 12 | F50: 1 | G50: 2 | H50: 3 | I50: 4 | J50: 5 | K50: 6 | L50: 7 | M50: 8 | N50: 9 | O50: 10 | Q50: 46
A51: GS | C51: Season (0=Winter, 1=Summer) | D51: =IF(D$50<4,0,IF(D$50>10,0,1)) -> 0 | E51: =IF(E$50<4,0,IF(E$50>10,0,1)) -> 0 | F51: 0 | G51: 0 | H51: 0 | I51: 1 | J51: 1 | K51: 1 | L51: 1 | M51: 1 | N51: 1 | O51: 1 | P51: Total | Q51: 47
B52: Winter | D52: =IF(D51=0,D7+D8,0) -> 11612469 | E52: =IF(E51=0,E7+E8,0) -> 18240637 | F52: 19103597 | G52: 15427005 | H52: 12039846 | I52: 0 | J52: 0 | K52: 0 | L52: 0 | M52: 0 | N52: 0 | O52: 0 | P52: =SUM(D52:O52) -> 76423554 | Q52: 48
B53: Summer | D53: =IF(D51=1,D7+D8,0) -> 0 | E53: 0 | F53: 0 | G53: 0 | H53: 0 | I53: 7902341 | J53: 4815860 | K53: 2859281 | L53: 2409399 | M53: 2279222 | N53: 2494890 | O53: 6710736 | P53: =SUM(D53:O53) -> 29471729 | Q53: 49
A54: GSS | Q54: 50
B55: Winter | D55: =IF(D51=0,D9,0) -> 0 | E55: 0 | F55: 0 | G55: 0 | H55: 0 | I55: 0 | J55: 0 | K55: 0 | L55: 0 | M55: 0 | N55: 0 | O55: 0 | P55: =SUM(D55:O55) -> 0 | Q55: 51
B56: Summer | D56: =IF(D51=1,D9,0) -> 0 | E56: 0 | F56: 0 | G56: 0 | H56: 0 | I56: 0 | J56: 0 | K56: 0 | L56: 0 | M56: 0 | N56: 0 | O56: 0 | P56: =SUM(D56:O56) -> 0 | Q56: 52
A57: F-S | Q57: 53
B58: Winter | D58: =IF(D51=0,D10,0) -> 310548 | E58: 417583 | F58: 484919 | G58: 425114 | H58: 403701 | I58: 0 | J58: 0 | K58: 0 | L58: 0 | M58: 0 | N58: 0 | O58: 0 | P58: =SUM(D58:O58) -> 2041865 | Q58: 54
B59: Summer | D59: =IF(D51=1,D10,0) -> 0 | E59: 0 | F59: 0 | G59: 0 | H59: 0 | I59: 383132 | J59: 308159 | K59: 290140 | L59: 225747 | M59: 210735 | N59: 253386 | O59: 257802 | P59: =SUM(D59:O59) -> 1929101 | Q59: 55
Q60: 56
Q61: 57
B62: Rates: R050201.R1 | C62: WYOMING NON-CORE DNG REVENUES FROM DEMAND FORECAST AND CURRENTLY EFFECTIVE I-SALES GAS COST RATES | Q62: 58
D63: Forecast | E63: Forecast | F63: Forecast | G63: Forecast | H63: Forecast | I63: Forecast | J63: Forecast | K63: Forecast | L63: Forecast | M63: Forecast | N63: Forecast | O63: Forecast | P63: 12-Month | Q63: 59
D64: =D5 -> Nov17 | E64: =E5 -> Dec17 | F64: =F5 -> Jan18 | G64: Feb18 | H64: Mar18 | I64: Apr18 | J64: May18 | K64: Jun18 | L64: Jul18 | M64: Aug18 | N64: Sep18 | O64: Oct18 | P64: Total | Q64: 60
A65: I-2 & 1-4 (Non-Gas Revenue) (Yearly) | D65: ='RevRun Fcst'!H273+'RevRun Fcst'!H282 -> 6193.36 | E65: ='RevRun Fcst'!I273+'RevRun Fcst'!I282 -> 5983.12 | F65: ='RevRun Fcst'!J273+'RevRun Fcst'!J282 -> 6747.39 | G65: ='RevRun Fcst'!K273+'RevRun Fcst'!K282 -> 6222.78 | H65: ='RevRun Fcst'!L273+'RevRun Fcst'!L282 -> 5254.54 | I65: ='RevRun Fcst'!M273+'RevRun Fcst'!M282 -> 4914.28 | J65: ='RevRun Fcst'!N273+'RevRun Fcst'!N282 -> 4180.17 | K65: ='RevRun Fcst'!O273+'RevRun Fcst'!O282 -> 3308.26 | L65: ='RevRun Fcst'!P273+'RevRun Fcst'!P282 -> 3445.07 | M65: ='RevRun Fcst'!Q273+'RevRun Fcst'!Q282 -> 3433.76 | N65: ='RevRun Fcst'!R273+'RevRun Fcst'!R282 -> 3373.14 | O65: ='RevRun Fcst'!S273+'RevRun Fcst'!S282 -> 2981.58 | P65: =SUM(D65:O65) -> 56037.45 | Q65: 61
A66: IC (Total Revenue) (Yearly) | D66: =ROUND(D41*$P66/$P41,0) -> 11121 | E66: 12912 | F66: 10712 | G66: 8505 | H66: 10387 | I66: 6462 | J66: 12999 | K66: 4862 | L66: 2622 | M66: 2739 | N66: 19327 | O66: =P66-SUM(D66:N66) -> 11134.69 | P66: ='RevRun Fcst'!T300+'RevRun Fcst'!T314 -> 113782.69 | Q66: 62
Q67: 63
A68: ="I-2 Gas Cost (Rate Effective "&'Other Inputs'!E98&")" -> I-2 Gas Cost (Rate Effective 11/1/2005) | D68: ='Other Inputs'!E101 -> 0 | E68: =+D68 -> 0 | F68: 0 | G68: 0 | H68: 0 | I68: 0 | J68: 0 | K68: 0 | L68: 0 | M68: 0 | N68: 0 | O68: 0 | Q68: 64
A69: ="I-4 Gas Cost (Rate Effective "&'Other Inputs'!F98&")" -> I-4 Gas Cost (Rate Effective 7/31/2009) | D69: ='Other Inputs'!F101 -> 3.78635 | E69: =+D69 -> 3.78635 | F69: 3.78635 | G69: 3.78635 | H69: 3.78635 | I69: 3.78635 | J69: 3.78635 | K69: 3.78635 | L69: 3.78635 | M69: 3.78635 | N69: 3.78635 | O69: 3.78635 | Q69: 65
Q70: 66
Q71: 67
D72: ALLOCATION BASES | Q72: 68
D73: DEMAND | G73: OTHER COST | Q73: 69
A74: Utah Peak Day Demand | D74: =+D76-D75 -> 1300103.223 | E74: =D74/D76 -> 0.9722724112 | G74: Utah Sales | H74: =+P20 -> 110713192 | I74: =H74/H76 -> 0.9631192591 | Q74: 70
A75: Wyoming Peak Day Demand | D75: ='Other Inputs'!E162 -> 37076.77713 | E75: =1-E74 -> 0.02772758875 | G75: Wyoming Sales | H75: =+P39 -> 4239542 | I75: =1-I74 -> 0.03688074091 | Q75: 71
A76: Peak Day Demand | D76: ='Other Inputs'!E163 -> 1337180 | E76: =ROUND(D76/D$76,4) -> 1 | G76: Total Sales | H76: =+H74+H75 -> 114952734 | I76: =ROUND(H76/H$76,4) -> 1 | Q76: 72
Q77: 73
Q78: 74
D79: Financial Report Information (Latest 12 Months of Actual Expenses and 13 Months of Rate Base) | Q79: 75
D80: Actual | E80: Actual | F80: Actual | G80: Actual | H80: Actual | I80: Actual | J80: Actual | K80: Actual | L80: Actual | M80: Actual | N80: Actual | O80: Actual | Q80: 76
A81: Accounts | D81: =Expenses!F9 -> 00:00:00 | E81: =Expenses!G9 -> 2016-09-01 | F81: =Expenses!I9 -> 2016-11-01 | G81: =Expenses!J9 -> 2016-12-01 | H81: =Expenses!K9 -> 2017-01-01 | I81: =Expenses!L9 -> 2017-02-01 | J81: =Expenses!M9 -> 2017-03-01 | K81: =Expenses!N9 -> 2017-04-01 | L81: =Expenses!O9 -> 2017-05-01 | M81: =Expenses!P9 -> 2017-06-01 | N81: =Expenses!Q9 -> 2017-07-01 | O81: =Expenses!R9 -> 2017-08-01 | P81: =+'Monthly Inputs'!S3 -> Oct18 | Q81: 77
A82: EXPENSES | Q82: 78
B83: Gas Use In Dth (Acct 810 & 812) | D83: 0 | E83: 0 | F83: 0 | G83: 0 | H83: 0 | I83: 0 | J83: 0 | K83: 0 | L83: 0 | M83: 0 | N83: 0 | O83: 0 | P83: =SUM(D83:O83) -> 0 | Q83: 79
Q84: 80
B85: Other Revenue (Yearly) | Q85: 81
B86: Sales for Resale (account 483) | D86: =Expenses!J445 -> 145011.65 | E86: =Expenses!K445 -> 171844.18 | F86: =Expenses!L445 -> 237121.02 | G86: =Expenses!M445 -> 303728.1 | H86: =Expenses!N445 -> 143089.38 | I86: =Expenses!O445 -> 186990.68 | J86: =Expenses!P445 -> 121843.02 | K86: =Expenses!Q445 -> 48049.88 | L86: =Expenses!R445 -> 102062.51 | M86: =Expenses!G445 -> -41915.69 | N86: =Expenses!H445 -> 196399.97 | O86: =Expenses!I445 -> 187216.47 | P86: =SUM(D86:O86) -> 1801441.17 | Q86: 82
B87: Incidental Plant Prod Sales (Acct 490) | D87: =Expenses!J446 -> 362550.92 | E87: =Expenses!K446 -> 307112.9 | F87: =Expenses!L446 -> 629719.14 | G87: =Expenses!M446 -> 1667.23 | H87: =Expenses!N446 -> 434.78 | I87: =Expenses!O446 -> 411.79 | J87: =Expenses!P446 -> 1844712.89 | K87: =Expenses!Q446 -> 564.5 | L87: =Expenses!R446 -> 794828.26 | M87: =Expenses!G446 -> 642.2 | N87: =Expenses!H446 -> 561220.41 | O87: =Expenses!I446 -> 312700.71 | P87: =SUM(D87:O87) -> 4816565.73 | Q87: 83
B88: Gas Processed by Others (account 491) | D88: =Expenses!J461 -> 0 | E88: =Expenses!K461 -> 0 | F88: =Expenses!L461 -> 0 | G88: =Expenses!M461 -> 0 | H88: =Expenses!N461 -> 0 | I88: =Expenses!O461 -> 0 | J88: =Expenses!P461 -> 0 | K88: =Expenses!Q461 -> 0 | L88: =Expenses!R461 -> 0 | M88: =Expenses!G461 -> 0 | N88: =Expenses!H461 -> 0 | O88: =Expenses!I461 -> 0 | P88: =SUM(D88:O88) -> 0 | Q88: 84
B89: Gasoline - Oil Sales (account 492) | D89: =Expenses!J447 -> 159392.83 | E89: =Expenses!K447 -> 174768.06 | F89: =Expenses!L447 -> 164329.42 | G89: =Expenses!M447 -> 166812.68 | H89: =Expenses!N447 -> 111488.19 | I89: =Expenses!O447 -> 175984.67 | J89: =Expenses!P447 -> 173107.59 | K89: =Expenses!Q447 -> 199307.35 | L89: =Expenses!R447 -> 131012.4 | M89: =Expenses!G447 -> 128005.1 | N89: =Expenses!H447 -> 122116.68 | O89: =Expenses!I447 -> 126659.46 | P89: =SUM(D89:O89) -> 1832984.43 | Q89: 85
B90: Gasoline - Oil Cost (account 758.001) | D90: =-Expenses!J450 -> -29770.07 | E90: =-Expenses!K450 -> -31545.49 | F90: =-Expenses!L450 -> -31249.96 | G90: =-Expenses!M450 -> -31630.55 | H90: =-Expenses!N450 -> -20721.22 | I90: =-Expenses!O450 -> -32355.49 | J90: =-Expenses!P450 -> -26778.16 | K90: =-Expenses!Q450 -> -33343.26 | L90: =-Expenses!R450 -> -20897.51 | M90: =-Expenses!G450 -> -23750.56 | N90: =-Expenses!H450 -> -21659.09 | O90: =-Expenses!I450 -> -24114.06 | P90: =SUM(D90:O90) -> -327815.42 | Q90: 86
Q91: 87
Q92: 88
B93: Overriding Royalty (account 495-1) | D93: =Expenses!J448 -> 1025671.24 | E93: =Expenses!K448 -> 943825.71 | F93: =Expenses!L448 -> 1082240.62 | G93: =Expenses!M448 -> 1273399.62 | H93: =Expenses!N448 -> 967292.74 | I93: =Expenses!O448 -> 809200.96 | J93: =Expenses!P448 -> 843687.44 | K93: =Expenses!Q448 -> 828855.09 | L93: =Expenses!R448 -> 905412.15 | M93: =Expenses!G448 -> 888399.94 | N93: =Expenses!H448 -> 1074015.8 | O93: =Expenses!I448 -> 988323.81 | P93: =SUM(D93:O93) -> 11630325.12 | Q93: 89
B94: Wexpro Revenue Sharing (account 495-2) | D94: =Expenses!J449 -> 6244 | E94: =Expenses!K449 -> 7054 | F94: =Expenses!L449 -> 0 | G94: =Expenses!M449 -> 8471 | H94: =Expenses!N449 -> 6289 | I94: =Expenses!O449 -> 5961 | J94: =Expenses!P449 -> 4108 | K94: =Expenses!Q449 -> 5868 | L94: =Expenses!R449 -> 13631 | M94: =Expenses!G449 -> 0 | N94: =Expenses!H449 -> 0 | O94: =Expenses!I449 -> 0 | P94: =SUM(D94:O94) -> 57626 | Q94: 90
P95: Page 2 of 6 | Q95: 91
C96: Actual | D96: Actual | E96: Actual | F96: Actual | G96: Actual | H96: Actual | I96: Actual | J96: Actual | K96: Actual | L96: Actual | M96: Actual | N96: Actual | O96: Actual | P96: 13-Month | Q96: 92
A97: Accounts | C97: ='Rate Base'!H8 -> 2016-08-21 | D97: ='Rate Base'!I8 -> 2016-09-20 | E97: ='Rate Base'!J8 -> 2016-10-20 | F97: ='Rate Base'!K8 -> 2016-11-19 | G97: ='Rate Base'!L8 -> 2016-12-19 | H97: ='Rate Base'!M8 -> 2017-01-18 | I97: ='Rate Base'!N8 -> 2017-02-17 | J97: ='Rate Base'!O8 -> 2017-03-19 | K97: ='Rate Base'!P8 -> 2017-04-18 | L97: ='Rate Base'!Q8 -> 2017-05-18 | M97: ='Rate Base'!R8 -> 2017-06-17 | N97: ='Rate Base'!S8 -> 2017-07-17 | O97: ='Rate Base'!T8 -> 2017-08-16 | P97: Average | Q97: 93
A98: RATE BASE - PRODUCTION | Q98: 94
B99: Acct 164 (Working Gas) - Production | C99: ='Rate Base'!H206 -> 52516754.78 | D99: ='Rate Base'!I206 -> 67227540.26 | E99: ='Rate Base'!J206 -> 70093975.68 | F99: ='Rate Base'!K206 -> 72768412.53 | G99: ='Rate Base'!L206 -> 49333980.55 | H99: ='Rate Base'!M206 -> 33078465.64 | I99: ='Rate Base'!N206 -> 21745044.18 | J99: ='Rate Base'!O206 -> 8937825.64 | K99: ='Rate Base'!P206 -> 5265628.42 | L99: ='Rate Base'!Q206 -> 9895288.84 | M99: ='Rate Base'!R206 -> 21769885.13 | N99: ='Rate Base'!S206 -> 34448175.63 | O99: ='Rate Base'!T206 -> 48018857.41 | P99: =(((+C99+O99)/2)+SUM(D99:N99))/12 -> 37069335.72 | Q99: 95
B100: Acct 101 - Production | C100: ='Rate Base'!H148 -> 79968136 | D100: ='Rate Base'!I148 -> 79968136 | E100: ='Rate Base'!J148 -> 79968136 | F100: ='Rate Base'!K148 -> 79968136 | G100: ='Rate Base'!L148 -> 79968136 | H100: ='Rate Base'!M148 -> 79968136 | I100: ='Rate Base'!N148 -> 79968136 | J100: ='Rate Base'!O148 -> 79968136 | K100: ='Rate Base'!P148 -> 79968136 | L100: ='Rate Base'!Q148 -> 79968136 | M100: ='Rate Base'!R148 -> 79968136 | N100: ='Rate Base'!S148 -> 79968136 | O100: ='Rate Base'!T148 -> 79968136 | P100: 79968136 | Q100: 96
B101: Acct 108 - Production | C101: ='Rate Base'!H166 -> -68698903.88 | D101: ='Rate Base'!I166 -> -68752717.28 | E101: ='Rate Base'!J166 -> -68801832.29 | F101: ='Rate Base'!K166 -> -68860077.49 | G101: ='Rate Base'!L166 -> -68927265.53 | H101: ='Rate Base'!M166 -> -68992546.74 | I101: ='Rate Base'!N166 -> -69047109.87 | J101: ='Rate Base'!O166 -> -69092261.78 | K101: ='Rate Base'!P166 -> -69148875.27 | L101: ='Rate Base'!Q166 -> -69202397.18 | M101: ='Rate Base'!R166 -> -69256660.72 | N101: ='Rate Base'!S166 -> -69314119.85 | O101: ='Rate Base'!T166 -> -69367366.51 | P101: -69035749.93 | Q101: 97
B102: Acct 111 - Production | C102: ='Rate Base'!H173 -> -6127217.02 | D102: ='Rate Base'!I173 -> -6128619.63 | E102: ='Rate Base'!J173 -> -6129899.78 | F102: ='Rate Base'!K173 -> -6131417.89 | G102: ='Rate Base'!L173 -> -6133169.11 | H102: ='Rate Base'!M173 -> -6134870.62 | I102: ='Rate Base'!N173 -> -6136325.98 | J102: ='Rate Base'!O173 -> -6137515.35 | K102: ='Rate Base'!P173 -> -6139006.63 | L102: ='Rate Base'!Q173 -> -6140416.48 | M102: ='Rate Base'!R173 -> -6141845.87 | N102: ='Rate Base'!S173 -> -6143359.42 | O102: ='Rate Base'!T173 -> -6144762.02 | P102: -6136036.357 | Q102: 98
B103: Acct 2550 - Production | C103: ='Rate Base'!H241 -> -1252.15 | D103: ='Rate Base'!I241 -> -1220.31 | E103: ='Rate Base'!J241 -> -1188.47 | F103: ='Rate Base'!K241 -> -1156.63 | G103: ='Rate Base'!L241 -> -1124.79 | H103: ='Rate Base'!M241 -> -1140.29 | I103: ='Rate Base'!N241 -> -1155.79 | J103: ='Rate Base'!O241 -> -1171.29 | K103: ='Rate Base'!P241 -> -1186.79 | L103: ='Rate Base'!Q241 -> -1202.29 | M103: ='Rate Base'!R241 -> -1217.79 | N103: ='Rate Base'!S241 -> -1233.29 | O103: ='Rate Base'!T241 -> -1248.79 | P103: -1187.35 | Q103: 99
B104: Acct 2820 - Production | C104: ='Rate Base'!H248 -> -670309.83 | D104: ='Rate Base'!I248 -> -603250.09 | E104: ='Rate Base'!J248 -> -536537.85 | F104: ='Rate Base'!K248 -> -470134.26 | G104: ='Rate Base'!L248 -> -501863.93 | H104: ='Rate Base'!M248 -> -438066.81 | I104: ='Rate Base'!N248 -> -374397.71 | J104: ='Rate Base'!O248 -> -310747.4 | K104: ='Rate Base'!P248 -> -247869.66 | L104: ='Rate Base'!Q248 -> -184984.29 | M104: ='Rate Base'!R248 -> -121778.19 | N104: ='Rate Base'!S248 -> -58772.59 | O104: ='Rate Base'!T248 -> 3661.83 | P104: -348477.2317 | Q104: 100
B105: Acct 2821 - Production | C105: ='Rate Base'!H255 -> -700755.31 | D105: ='Rate Base'!I255 -> -700755.31 | E105: ='Rate Base'!J255 -> -700755.31 | F105: ='Rate Base'!K255 -> -700755.31 | G105: ='Rate Base'!L255 -> -700755.31 | H105: ='Rate Base'!M255 -> -700755.31 | I105: ='Rate Base'!N255 -> -700755.31 | J105: ='Rate Base'!O255 -> -700755.31 | K105: ='Rate Base'!P255 -> -700755.31 | L105: ='Rate Base'!Q255 -> -700755.31 | M105: ='Rate Base'!R255 -> -700755.31 | N105: ='Rate Base'!S255 -> -700755.31 | O105: ='Rate Base'!T255 -> -700755.31 | P105: -700755.31 | Q105: 101
Q106: 102
D107: Production | H107: Acct 101 | I107: Acct 108 | J107: Acct 111 | K107: Acct 2550 | L107: Acct 2820 | M107: Acct 2821 | N107: Total | Q107: 103
B108: Depreciation - Acct 403 | D108: =Expenses!S385 -> 668462.63 | F108: Thirteen month average | H108: =P100 -> 79968136 | I108: =P101 -> -69035749.93 | J108: =P102 -> -6136036.357 | K108: =P103 -> -1187.35 | L108: =P104 -> -348477.2317 | M108: =P105 -> -700755.31 | N108: =SUM(H108:M108) -> 3745929.819 | Q108: 104
B109: Amortization & Depletion - Acct 404 | D109: =Expenses!S392 -> 17545 | F109: =CONCATENATE("Wexpro Red. @ ",-'Other Inputs'!E310*100," %") -> Wexpro Red. @ 6.3 % | H109: =H108*'Other Inputs'!$E$310 -> -5037992.568 | I109: =I108*'Other Inputs'!$E$310 -> 4349252.246 | J109: =J108*'Other Inputs'!$E$310 -> 386570.2905 | N109: =SUM(H109:M109) -> -302170.0318 | Q109: 105
B110: Utah Pre-Tax Return on Production Assets | D110: =+N111 -> 371581.681 | M110: =SUM(N108:N109) -> 3443759.787 | Q110: 106
B111: Utah Production Cost | D111: =SUM(D108:D110) -> 1057589.311 | M111: ="Utah Pre-Tax Rate of Return on Production Assets ("&'Other Inputs'!E313&")" -> Utah Pre-Tax Rate of Return on Production Assets (0.1079) | N111: =M110*'Other Inputs'!E313 -> 371581.681 | Q111: 107
M112: ="Wyoming Pre-Tax Rate of Return on Production Assets ("&'Other Inputs'!E312&")" -> Wyoming Pre-Tax Rate of Return on Production Assets (0.1059) | N112: =M110*'Other Inputs'!E312 -> 364694.1614 | Q112: 108
Q113: 109
A114: TACTICAL PLAN INFORMATION (IRP) | P114: 12-Month | Q114: 110
D115: =D5 -> Nov17 | E115: =E5 -> Dec17 | F115: Jan18 | G115: Feb18 | H115: Mar18 | I115: Apr18 | J115: May18 | K115: Jun18 | L115: Jul18 | M115: Aug18 | N115: Sep18 | O115: Oct18 | P115: Total | Q115: 111
A116: COMPANY PRODUCTION | Q116: 112
B117: Prior Company | Q117: 113
B118: D24 Wells | Q118: 114
B119: Brady & Powel | Q119: 115
B120: Total Company Production Wexpro I & II | D120: ='Monthly Inputs'!G7+'Monthly Inputs'!G13 -> 6158001.725 | E120: ='Monthly Inputs'!H7+'Monthly Inputs'!H13 -> 6226583.005 | F120: ='Monthly Inputs'!I7+'Monthly Inputs'!I13 -> 6048619.214 | G120: ='Monthly Inputs'!J7+'Monthly Inputs'!J13 -> 5591466.055 | H120: ='Monthly Inputs'!K7+'Monthly Inputs'!K13 -> 6055051.329 | I120: ='Monthly Inputs'!L7+'Monthly Inputs'!L13 -> 5713645.589 | J120: ='Monthly Inputs'!M7+'Monthly Inputs'!M13 -> 5772345.137 | K120: ='Monthly Inputs'!N7+'Monthly Inputs'!N13 -> 5749729.596 | L120: ='Monthly Inputs'!O7+'Monthly Inputs'!O13 -> 5829414.503 | M120: ='Monthly Inputs'!P7+'Monthly Inputs'!P13 -> 5915437.67 | N120: ='Monthly Inputs'!Q7+'Monthly Inputs'!Q13 -> 6021287.244 | O120: ='Monthly Inputs'!R7+'Monthly Inputs'!R13 -> 8314650.23 | P120: =SUM(D120:O120) -> 73396231.3 | Q120: 116
Q121: 117
A122: STORAGE INJECTIONS | Q122: 118
B123: Chalk Creek | D123: ='Monthly Inputs'!G24 -> 151896.1945 | E123: ='Monthly Inputs'!H24 -> 95563.82751 | F123: ='Monthly Inputs'!I24 -> 56458.30536 | G123: ='Monthly Inputs'!J24 -> 0 | H123: ='Monthly Inputs'!K24 -> 0 | I123: ='Monthly Inputs'!L24 -> 0 | J123: ='Monthly Inputs'!M24 -> 0 | K123: ='Monthly Inputs'!N24 -> 0 | L123: ='Monthly Inputs'!O24 -> 0 | M123: ='Monthly Inputs'!P24 -> 0 | N123: ='Monthly Inputs'!Q24 -> 0 | O123: ='Monthly Inputs'!R24 -> 0 | P123: =SUM(D123:O123) -> 303918.3273 | Q123: 119
B124: Coalville | D124: ='Monthly Inputs'!G26 -> 121359.2224 | E124: ='Monthly Inputs'!H26 -> 49099.91837 | F124: ='Monthly Inputs'!I26 -> 0 | G124: ='Monthly Inputs'!J26 -> 0 | H124: ='Monthly Inputs'!K26 -> 0 | I124: ='Monthly Inputs'!L26 -> 0 | J124: ='Monthly Inputs'!M26 -> 0 | K124: ='Monthly Inputs'!N26 -> 0 | L124: ='Monthly Inputs'!O26 -> 0 | M124: ='Monthly Inputs'!P26 -> 0 | N124: ='Monthly Inputs'!Q26 -> 31957.92961 | O124: ='Monthly Inputs'!R26 -> 111245.9564 | P124: =SUM(D124:O124) -> 313663.0268 | Q124: 120
B125: Leroy | D125: ='Monthly Inputs'!G27 -> 238202.0874 | E125: ='Monthly Inputs'!H27 -> 0 | F125: ='Monthly Inputs'!I27 -> 0 | G125: ='Monthly Inputs'!J27 -> 0 | H125: ='Monthly Inputs'!K27 -> 0 | I125: ='Monthly Inputs'!L27 -> 0 | J125: ='Monthly Inputs'!M27 -> 0 | K125: ='Monthly Inputs'!N27 -> 0 | L125: ='Monthly Inputs'!O27 -> 0 | M125: ='Monthly Inputs'!P27 -> 0 | N125: ='Monthly Inputs'!Q27 -> 9424.08371 | O125: ='Monthly Inputs'!R27 -> 297382.2021 | P125: =SUM(D125:O125) -> 545008.3733 | Q125: 121
B126: Ryckman | D126: ='Monthly Inputs'!G28 -> 0 | E126: ='Monthly Inputs'!H28 -> 0 | F126: ='Monthly Inputs'!I28 -> 0 | G126: ='Monthly Inputs'!J28 -> 0 | H126: ='Monthly Inputs'!K28 -> 0 | I126: ='Monthly Inputs'!L28 -> 0 | J126: ='Monthly Inputs'!M28 -> 0 | K126: ='Monthly Inputs'!N28 -> 0 | L126: ='Monthly Inputs'!O28 -> 0 | M126: ='Monthly Inputs'!P28 -> 0 | N126: ='Monthly Inputs'!Q28 -> 0 | O126: ='Monthly Inputs'!R28 -> 0 | P126: =SUM(D126:O126) -> 0 | Q126: 122
B127: Total Peaking Storage | D127: =SUM(D123:D126) -> 511457.5043 | E127: =SUM(E123:E126) -> 144663.7459 | F127: 56458.30536 | G127: 0 | H127: 0 | I127: 0 | J127: 0 | K127: 0 | L127: 0 | M127: 0 | N127: 41382.01332 | O127: 408628.1586 | P127: 1162589.727 | Q127: 123
B128: Clay Basin | D128: ='Monthly Inputs'!G25 -> 0 | E128: ='Monthly Inputs'!H25 -> 0 | F128: ='Monthly Inputs'!I25 -> 0 | G128: ='Monthly Inputs'!J25 -> 0 | H128: ='Monthly Inputs'!K25 -> 0 | I128: ='Monthly Inputs'!L25 -> 0 | J128: ='Monthly Inputs'!M25 -> 222400.5585 | K128: ='Monthly Inputs'!N25 -> 2402097.351 | L128: ='Monthly Inputs'!O25 -> 2634037.964 | M128: ='Monthly Inputs'!P25 -> 2816996.586 | N128: ='Monthly Inputs'!Q25 -> 2656265.625 | O128: ='Monthly Inputs'!R25 -> 968916.7361 | P128: =SUM(D128:O128) -> 11700714.82 | Q128: 124
B129: Total Storage Injections | D129: =SUM(D127:D128) -> 511457.5043 | E129: =SUM(E127:E128) -> 144663.7459 | F129: 56458.30536 | G129: 0 | H129: 0 | I129: 0 | J129: 222400.5585 | K129: 2402097.351 | L129: 2634037.964 | M129: 2816996.586 | N129: 2697647.638 | O129: 1377544.895 | P129: 12863304.55 | Q129: 125
A130: STORAGE WITHDRAWLS | Q130: 126
B131: Chalk Creek | D131: ='Monthly Inputs'!G32 -> 0 | E131: ='Monthly Inputs'!H32 -> 0 | F131: ='Monthly Inputs'!I32 -> 0 | G131: ='Monthly Inputs'!J32 -> 0 | H131: ='Monthly Inputs'!K32 -> 257250 | I131: ='Monthly Inputs'!L32 -> 44875.19836 | J131: ='Monthly Inputs'!M32 -> 0 | K131: ='Monthly Inputs'!N32 -> 0 | L131: ='Monthly Inputs'!O32 -> 0 | M131: ='Monthly Inputs'!P32 -> 0 | N131: ='Monthly Inputs'!Q32 -> 0 | O131: ='Monthly Inputs'!R32 -> 0 | P131: =SUM(D131:O131) -> 302125.1984 | Q131: 127
B132: Coalville | D132: ='Monthly Inputs'!G34 -> 0 | E132: ='Monthly Inputs'!H34 -> 0 | F132: ='Monthly Inputs'!I34 -> 0 | G132: ='Monthly Inputs'!J34 -> 0 | H132: ='Monthly Inputs'!K34 -> 310000 | I132: ='Monthly Inputs'!L34 -> 0 | J132: ='Monthly Inputs'!M34 -> 0 | K132: ='Monthly Inputs'!N34 -> 0 | L132: ='Monthly Inputs'!O34 -> 0 | M132: ='Monthly Inputs'!P34 -> 0 | N132: ='Monthly Inputs'!Q34 -> 0 | O132: ='Monthly Inputs'!R34 -> 0 | P132: =SUM(D132:O132) -> 310000 | Q132: 128
B133: Leroy | D133: ='Monthly Inputs'!G35 -> 0 | E133: ='Monthly Inputs'!H35 -> 0 | F133: ='Monthly Inputs'!I35 -> 0 | G133: ='Monthly Inputs'!J35 -> 0 | H133: ='Monthly Inputs'!K35 -> 310000 | I133: ='Monthly Inputs'!L35 -> 0 | J133: ='Monthly Inputs'!M35 -> 0 | K133: ='Monthly Inputs'!N35 -> 0 | L133: ='Monthly Inputs'!O35 -> 0 | M133: ='Monthly Inputs'!P35 -> 0 | N133: ='Monthly Inputs'!Q35 -> 0 | O133: ='Monthly Inputs'!R35 -> 0 | P133: =SUM(D133:O133) -> 310000 | Q133: 129
B134: Ryckman | D134: ='Monthly Inputs'!G36 -> 0 | E134: ='Monthly Inputs'!H36 -> 0 | F134: ='Monthly Inputs'!I36 -> 0 | G134: ='Monthly Inputs'!J36 -> 0 | H134: ='Monthly Inputs'!K36 -> 0 | I134: ='Monthly Inputs'!L36 -> 0 | J134: ='Monthly Inputs'!M36 -> 0 | K134: ='Monthly Inputs'!N36 -> 0 | L134: ='Monthly Inputs'!O36 -> 0 | M134: ='Monthly Inputs'!P36 -> 0 | N134: ='Monthly Inputs'!Q36 -> 0 | O134: ='Monthly Inputs'!R36 -> 0 | P134: =SUM(D134:O134) -> 0 | Q134: 130
B135: Total Peaking Storage | D135: =SUM(D131:D134) -> 0 | E135: =SUM(E131:E134) -> 0 | F135: 0 | G135: 0 | H135: 877250 | I135: 44875.19836 | J135: 0 | K135: 0 | L135: 0 | M135: 0 | N135: 0 | O135: 0 | P135: 922125.1984 | Q135: 131
B136: Clay Basin | D136: ='Monthly Inputs'!G33 -> 43610.05211 | E136: ='Monthly Inputs'!H33 -> 3798000 | F136: ='Monthly Inputs'!I33 -> 3059000 | G136: ='Monthly Inputs'!J33 -> 2247000 | H136: ='Monthly Inputs'!K33 -> 1233907.059 | I136: ='Monthly Inputs'!L33 -> 543492.9504 | J136: ='Monthly Inputs'!M33 -> 0 | K136: ='Monthly Inputs'!N33 -> 0 | L136: ='Monthly Inputs'!O33 -> 0 | M136: ='Monthly Inputs'!P33 -> 0 | N136: ='Monthly Inputs'!Q33 -> 0 | O136: ='Monthly Inputs'!R33 -> 0 | P136: =SUM(D136:O136) -> 10925010.06 | Q136: 132
B137: Total Storage Withdrawls | D137: =SUM(D135:D136) -> 43610.05211 | E137: 3798000 | F137: 3059000 | G137: 2247000 | H137: 2111157.059 | I137: 588368.1488 | J137: 0 | K137: 0 | L137: 0 | M137: 0 | N137: 0 | O137: 0 | P137: 11847135.26 | Q137: 133
Q138: 134
Q139: 135
A140: Gas Supply and Demand | D140: =D4 -> Forecast | E140: Forecast | F140: Forecast | G140: Forecast | H140: Forecast | I140: Forecast | J140: Forecast | K140: Forecast | L140: Forecast | M140: Forecast | N140: Forecast | O140: Forecast | P140: 12-Month | Q140: 136
A141: Demand | D141: =D5 -> Nov17 | E141: Dec17 | F141: Jan18 | G141: Feb18 | H141: Mar18 | I141: Apr18 | J141: May18 | K141: Jun18 | L141: Jul18 | M141: Aug18 | N141: Sep18 | O141: Oct18 | P141: Total | Q141: 137
Q142: 138
A143: Utah Sales | D143: =+D20 -> 11991185 | E143: =+E20 -> 18732947 | F143: 19660803 | G143: 15922735 | H143: 12506171 | I143: 8355732 | J143: 5198663 | K143: 3226449 | L143: 2697828 | M143: 2559869 | N143: 2821070 | O143: 7039740 | P143: =SUM(D143:O143) -> 110713192 | Q143: 139
A144: Wyoming Sales | D144: =+D39 -> 447177 | E144: 658525 | F144: 685502 | G144: 621190 | H144: 525454 | I144: 373040 | J144: 246502 | K144: 135924 | L144: 87473 | M144: 85571 | N144: 122654 | O144: 250530 | P144: =SUM(D144:O144) -> 4239542 | Q144: 140
A145: Total Sales | D145: =+D143+D144 -> 12438362 | E145: 19391472 | F145: 20346305 | G145: 16543925 | H145: 13031625 | I145: 8728772 | J145: 5445165 | K145: 3362373 | L145: 2785301 | M145: 2645440 | N145: 2943724 | O145: 7290270 | P145: 114952734 | Q145: 141
Q146: 142
A147: Distribution Use (Offices) | C147: Check formulas for correct month | D147: =ROUND(O83,0) -> 0 | E147: =ROUND(D83,0) -> 0 | F147: =ROUND(E83,0) -> 0 | G147: 0 | H147: 0 | I147: 0 | J147: 0 | K147: 0 | L147: 0 | M147: 0 | N147: 0 | O147: 0 | P147: =SUM(D147:O147) -> 0 | Q147: 143
A148: Distribution Lost and Unaccounted for | D148: =+D150-D145-D147 -> 57481 | E148: =+E150-E145-E147 -> 89613 | F148: 94026 | G148: 76454 | H148: 60222 | I148: 40338 | J148: 25164 | K148: 15538 | L148: 12872 | M148: 12225 | N148: 13604 | O148: =+O150-O145-O147 -> 33690 | P148: =SUM(D148:O148) -> 531227 | Q148: 144
Q149: 145
A150: Total City Gate | D150: =ROUND((D145+D147)/(1-'Other Inputs'!$E$315),0) -> 12495843 | E150: =ROUND((E145+E147)/(1-'Other Inputs'!$E$315),0) -> 19481085 | F150: =ROUND((F145+F147)/(1-'Other Inputs'!$E$315),0) -> 20440331 | G150: =ROUND((G145+G147)/(1-'Other Inputs'!$E$315),0) -> 16620379 | H150: =ROUND((H145+H147)/(1-'Other Inputs'!$E$315),0) -> 13091847 | I150: =ROUND((I145+I147)/(1-'Other Inputs'!$E$315),0) -> 8769110 | J150: =ROUND((J145+J147)/(1-'Other Inputs'!$E$315),0) -> 5470329 | K150: =ROUND((K145+K147)/(1-'Other Inputs'!$E$315),0) -> 3377911 | L150: =ROUND((L145+L147)/(1-'Other Inputs'!$E$315),0) -> 2798173 | M150: =ROUND((M145+M147)/(1-'Other Inputs'!$E$315),0) -> 2657665 | N150: =ROUND((N145+N147)/(1-'Other Inputs'!$E$315),0) -> 2957328 | O150: =ROUND((O145+O147)/(1-'Other Inputs'!$E$315),0) -> 7323960 | P150: =SUM(D150:O150) -> 115483961 | Q150: 146
Q151: 147
A152: Peaking Injection | D152: =+D127 -> 511457.5043 | E152: 144663.7459 | F152: 56458.30536 | G152: 0 | H152: 0 | I152: 0 | J152: 0 | K152: 0 | L152: 0 | M152: 0 | N152: 41382.01332 | O152: 408628.1586 | P152: =SUM(D152:O152) -> 1162589.727 | Q152: 148
A153: Clay Basin Injection | D153: =+D128 -> 0 | E153: 0 | F153: 0 | G153: 0 | H153: 0 | I153: 0 | J153: 222400.5585 | K153: 2402097.351 | L153: 2634037.964 | M153: 2816996.586 | N153: 2656265.625 | O153: 968916.7361 | P153: =SUM(D153:O153) -> 11700714.82 | Q153: 149
A154: Storage Lost & Unaccounted For | D154: =-'Monthly Inputs'!G51 -> 12974.50477 | E154: =-'Monthly Inputs'!H51 -> 1113.745668 | F154: =-'Monthly Inputs'!I51 -> 333.1040016 | G154: =-'Monthly Inputs'!J51 -> 0 | H154: =-'Monthly Inputs'!K51 -> 0 | I154: =-'Monthly Inputs'!L51 -> 7320.284271 | J154: =-'Monthly Inputs'!M51 -> 16166.69496 | K154: =-'Monthly Inputs'!N51 -> 85581.32304 | L154: =-'Monthly Inputs'!O51 -> 93290.85919 | M154: =-'Monthly Inputs'!P51 -> 97130.46184 | N154: =-'Monthly Inputs'!Q51 -> 94491.63702 | O154: =-'Monthly Inputs'!R51 -> 45614.11103 | P154: =SUM(D154:O154) -> 454016.7258 | Q154: 150
A155: Total Demand | D155: =SUM(D150:D154) -> 13020275.01 | E155: =SUM(E150:E154) -> 19626862.49 | F155: 20497122.41 | G155: 16620379 | H155: =SUM(H150:H154) -> 13091847 | I155: 8776430.284 | J155: 5708896.253 | K155: 5865589.674 | L155: 5525501.823 | M155: 5571792.048 | N155: 5749467.275 | O155: =SUM(O150:O154) -> 8747119.006 | P155: =SUM(D155:O155) -> 128801282.3 | Q155: 151
Q156: 152
D157: Forecast | E157: Forecast | F157: Forecast | G157: Forecast | H157: Forecast | I157: Forecast | J157: Forecast | K157: Forecast | L157: Forecast | M157: Forecast | N157: Forecast | O157: Forecast | P157: 12-Month | Q157: 153
A158: Supply | D158: =D5 -> Nov17 | E158: Dec17 | F158: Jan18 | G158: Feb18 | H158: Mar18 | I158: Apr18 | J158: May18 | K158: Jun18 | L158: Jul18 | M158: Aug18 | N158: Sep18 | O158: Oct18 | P158: Total | Q158: 154
A159: Company Production | D159: =+D120 -> 6158001.725 | E159: =+E120 -> 6226583.005 | F159: 6048619.214 | G159: 5591466.055 | H159: 6055051.329 | I159: 5713645.589 | J159: 5772345.137 | K159: 5749729.596 | L159: 5829414.503 | M159: 5915437.67 | N159: 6021287.244 | O159: 8314650.23 | P159: =SUM(D159:O159) -> 73396231.3 | Q159: 155
A160: Co Prod Lost & Unaccounted For | D160: =ROUND(D159*(-'Other Inputs'!$E$317-'Other Inputs'!$E$318),0) -> -357737 | E160: =ROUND(E159*(-'Other Inputs'!$E$317-'Other Inputs'!$E$318),0) -> -361721 | F160: =ROUND(F159*(-'Other Inputs'!$E$317-'Other Inputs'!$E$318),0) -> -351382 | G160: =ROUND(G159*(-'Other Inputs'!$E$317-'Other Inputs'!$E$318),0) -> -324825 | H160: =ROUND(H159*(-'Other Inputs'!$E$317-'Other Inputs'!$E$318),0) -> -351756 | I160: =ROUND(I159*(-'Other Inputs'!$E$317-'Other Inputs'!$E$318),0) -> -331923 | J160: =ROUND(J159*(-'Other Inputs'!$E$317-'Other Inputs'!$E$318),0) -> -335333 | K160: =ROUND(K159*(-'Other Inputs'!$E$317-'Other Inputs'!$E$318),0) -> -334019 | L160: =ROUND(L159*(-'Other Inputs'!$E$317-'Other Inputs'!$E$318),0) -> -338648 | M160: =ROUND(M159*(-'Other Inputs'!$E$317-'Other Inputs'!$E$318),0) -> -343646 | N160: =ROUND(N159*(-'Other Inputs'!$E$317-'Other Inputs'!$E$318),0) -> -349795 | O160: =ROUND(O159*(-'Other Inputs'!$E$317-'Other Inputs'!$E$318),0) -> -483023 | P160: =SUM(D160:O160) -> -4263808 | Q160: 156
A161: Company Production @ City Gate | D161: =SUM(D159:D160) -> 5800264.725 | E161: =SUM(E159:E160) -> 5864862.005 | F161: 5697237.214 | G161: 5266641.055 | H161: 5703295.329 | I161: 5381722.589 | J161: 5437012.137 | K161: 5415710.596 | L161: 5490766.503 | M161: 5571791.67 | N161: 5671492.244 | O161: 7831627.23 | P161: =SUM(D161:O161) -> 69132423.3 | Q161: 157
Q162: 158
A163: Peaking Withdrawal | D163: =+D135 -> 0 | E163: 0 | F163: 0 | G163: 0 | H163: 877250 | I163: 44875.19836 | J163: 0 | K163: 0 | L163: 0 | M163: 0 | N163: 0 | O163: 0 | P163: =SUM(D163:O163) -> 922125.1984 | Q163: 159
A164: Clay Basin Withdrawal | D164: =+D136 -> 43610.05211 | E164: 3798000 | F164: 3059000 | G164: 2247000 | H164: 1233907.059 | I164: 543492.9504 | J164: 0 | K164: 0 | L164: 0 | M164: 0 | N164: 0 | O164: 0 | P164: =SUM(D164:O164) -> 10925010.06 | Q164: 160
A165: QPC Transportation Loss on Storage | D165: ='Monthly Inputs'!G67+'Monthly Inputs'!G59 -> -4396.28493 | E165: ='Monthly Inputs'!H67+'Monthly Inputs'!H59 -> -157668.9596 | F165: ='Monthly Inputs'!I67+'Monthly Inputs'!I59 -> -128552.3596 | G165: ='Monthly Inputs'!J67+'Monthly Inputs'!J59 -> -95782.67981 | H165: ='Monthly Inputs'!K67+'Monthly Inputs'!K59 -> -82704.76311 | I165: ='Monthly Inputs'!L67+'Monthly Inputs'!L59 -> -29457.53584 | J165: ='Monthly Inputs'!M67+'Monthly Inputs'!M59 -> 0 | K165: ='Monthly Inputs'!N67+'Monthly Inputs'!N59 -> 0 | L165: ='Monthly Inputs'!O67+'Monthly Inputs'!O59 -> 0 | M165: ='Monthly Inputs'!P67+'Monthly Inputs'!P59 -> 0 | N165: ='Monthly Inputs'!Q67+'Monthly Inputs'!Q59 -> 0 | O165: ='Monthly Inputs'!R67+'Monthly Inputs'!R59 -> 0 | P165: =SUM(D165:O165) -> -498562.5829 | Q165: 161 | R165: =4761675+168421 -> 4930096
A166: Storage Lost & Unaccounted For | D166: ='Monthly Inputs'!G51 -> -12974.50477 | E166: ='Monthly Inputs'!H51 -> -1113.745668 | F166: ='Monthly Inputs'!I51 -> -333.1040016 | G166: ='Monthly Inputs'!J51 -> 0 | H166: ='Monthly Inputs'!K51 -> 0 | I166: ='Monthly Inputs'!L51 -> -7320.284271 | J166: ='Monthly Inputs'!M51 -> -16166.69496 | K166: ='Monthly Inputs'!N51 -> -85581.32304 | L166: ='Monthly Inputs'!O51 -> -93290.85919 | M166: ='Monthly Inputs'!P51 -> -97130.46184 | N166: ='Monthly Inputs'!Q51 -> -94491.63702 | O166: ='Monthly Inputs'!R51 -> -45614.11103 | P166: =SUM(D166:O166) -> -454016.7258 | Q166: 162
A167: Storage Supply @ City Gate | D167: =SUM(D163:D166) -> 26239.26241 | E167: =SUM(E163:E166) -> 3639217.295 | F167: 2930114.536 | G167: 2151217.32 | H167: 2028452.296 | I167: 551590.3287 | J167: -16166.69496 | K167: -85581.32304 | L167: -93290.85919 | M167: -97130.46184 | N167: -94491.63702 | O167: -45614.11103 | P167: 10894555.95 | Q167: 163
Q168: 164
A169: Gas Purchased @ City Gate | D169: =D155-D161-D167-D154 -> 7180796.517 | E169: =E155-E161-E167-E154 -> 10121669.45 | F169: 11869437.56 | G169: 9202520.625 | H169: 5360099.375 | I169: 2835797.082 | J169: 271884.1169 | K169: 449879.0777 | L169: 34735.31957 | M169: 0.3777172295 | N169: 77975.03094 | O169: 915491.7754 | P169: =SUM(D169:O169) -> 48320286.3 | Q169: 165
A170: Gas Reimbursement | D170: =+D171-D169 -> 113795.4833 | E170: =+E171-E169 -> 160400.5536 | F170: 188097.4448 | G170: 145834.3754 | H170: 84942.62467 | I170: 44939.9176 | J170: 4308.883109 | K170: 7128.922312 | L170: 550.6804312 | M170: -0.3777172295 | N170: 1235.96906 | O170: 14508.22465 | P170: =SUM(D170:O170) -> 765742.7013 | Q170: 166
A171: Gas Purchased - Dth ( /.98) | D171: =ROUND(D169/(1-'Other Inputs'!$E$318),0) -> 7294592 | E171: =ROUND(E169/(1-'Other Inputs'!$E$318),0) -> 10282070 | F171: =ROUND(F169/(1-'Other Inputs'!$E$318),0) -> 12057535 | G171: =ROUND(G169/(1-'Other Inputs'!$E$318),0) -> 9348355 | H171: =ROUND(H169/(1-'Other Inputs'!$E$318),0) -> 5445042 | I171: =ROUND(I169/(1-'Other Inputs'!$E$318),0) -> 2880737 | J171: =ROUND(J169/(1-'Other Inputs'!$E$318),0) -> 276193 | K171: =ROUND(K169/(1-'Other Inputs'!$E$318),0) -> 457008 | L171: =ROUND(L169/(1-'Other Inputs'!$E$318),0) -> 35286 | M171: =ROUND(M169/(1-'Other Inputs'!$E$318),0) -> 0 | N171: =ROUND(N169/(1-'Other Inputs'!$E$318),0) -> 79211 | O171: =ROUND(O169/(1-'Other Inputs'!$E$318),0) -> 930000 | P171: =SUM(D171:O171) -> 49086029 | Q171: 167
Q172: 168
A173: Transported Volumes - total | D173: =+D161+D169+D137+D165 -> 13020275.01 | E173: =+E161+E169+E137+E165 -> 19626862.49 | F173: =+F161+F169+F137+F165 -> 20497122.41 | G173: 16620379 | H173: =+H161+H169+H137+H165 -> 13091847 | I173: 8776430.284 | J173: 5708896.253 | K173: 5865589.674 | L173: 5525501.823 | M173: 5571792.048 | N173: 5749467.275 | O173: 8747119.006 | P173: =+P161+P169+P137+P165 -> 128801282.3 | Q173: 169
A174: Kern transported volumes | D174: =HLOOKUP(MONTH(D5),kernrivertrans,6,FALSE) -> 142074.6611 | E174: =HLOOKUP(MONTH(E5),kernrivertrans,6,FALSE) -> 137491.6075 | F174: 142074.6611 | G174: 142074.6611 | H174: =HLOOKUP(MONTH(H5),kernrivertrans,6,FALSE) -> 916404.3151 | I174: 3428550.956 | J174: =HLOOKUP(MONTH(J5),kernrivertrans,6,FALSE) -> 4751270.883 | K174: 4909646.579 | L174: 4751270.883 | M174: 3428550.956 | N174: 1014590.492 | O174: 981861.7662 | Q174: 170
A175: Storage Fuel % | C175: =(P154-P166)/(P163+P164+P152+P153) -> 0.03674695629 | Q175: 171
Q176: 172
A177: Company Production as % of Total Supply / Demand | D177: =D159/(D171+D159) -> 0.4577557199 | E177: 0.3771708693 | F177: =F159/(F171+F159) -> 0.3340642713 | G177: 0.3742659323 | H177: =H159/(H171+H159) -> 0.5265219295 | I177: 0.6648116406 | J177: 0.954337231 | K177: 0.9263690477 | L177: 0.9939833245 | M177: 1 | N177: 0.9870156507 | O177: =O159/(O171+O159) -> 0.8994012778 | P177: =P159/(P171+P159) -> 0.5992396868 | Q177: 173
Q178: 174
A179: Peak Hour Service | D179: =IF(OR(D6=11,D6=12,D6=1),('Other Inputs'!$D$20*'Other Inputs'!$F$21+'Other Inputs'!$D$23*'Other Inputs'!$F$24)*16,0) -> 410750.4348 | E179: =IF(OR(E6=11,E6=12,E6=1),('Other Inputs'!$D$20*'Other Inputs'!$F$21+'Other Inputs'!$D$23*'Other Inputs'!$F$24)*31,0) -> 795828.9674 | F179: =IF(OR(F6=11,F6=12,F6=1),('Other Inputs'!$D$20*'Other Inputs'!$F$21+'Other Inputs'!$D$23*'Other Inputs'!$F$24)*31,0) -> 795828.9674 | G179: =IF(OR(G6=11,G6=12,G6=1, G6=2),('Other Inputs'!$D$20*'Other Inputs'!$F$21+'Other Inputs'!$D$23*'Other Inputs'!$F$24)*14,0) -> 359406.6304 | H179: =IF(OR(H6=11,H6=12,H6=1,H6=2),('Other Inputs'!$D$20*'Other Inputs'!$F$21+'Other Inputs'!$D$23*'Other Inputs'!$F$24)*14,0) -> 0 | I179: =IF(OR(I6=11,I6=12,I6=1,I6=2),'Other Inputs'!$D$20*14*'Other Inputs'!$F$21,0) -> 0 | J179: =IF(OR(J6=11,J6=12,J6=1,J6=2),'Other Inputs'!$D$20*14*'Other Inputs'!$F$21,0) -> 0 | K179: =IF(OR(K6=11,K6=12,K6=1,K6=2),'Other Inputs'!$D$20*14*'Other Inputs'!$F$21,0) -> 0 | L179: =IF(OR(L6=11,L6=12,L6=1,L6=2),'Other Inputs'!$D$20*14*'Other Inputs'!$F$21,0) -> 0 | M179: =IF(OR(M6=11,M6=12,M6=1,M6=2),'Other Inputs'!$D$20*14*'Other Inputs'!$F$21,0) -> 0 | N179: =IF(OR(N6=11,N6=12,N6=1,N6=2),'Other Inputs'!$D$20*14*'Other Inputs'!$F$21,0) -> 0 | O179: =IF(OR(O6=11,O6=12,O6=1,O6=2),'Other Inputs'!$D$20*14*'Other Inputs'!$F$21,0) -> 0 | P179: =SUM(D179:O179) -> 2361815 | Q179: 175
Q180: 176
A181: PURCHASES BREAKDOWN | Q181: 177
A182: Spot Market Purchases | D182: ='Monthly Inputs'!G83 -> 4944591.809 | E182: ='Monthly Inputs'!H83 -> 3865619.875 | F182: ='Monthly Inputs'!I83 -> 4641085.238 | G182: ='Monthly Inputs'!J83 -> 4165754.747 | H182: ='Monthly Inputs'!K83 -> 4515041.85 | I182: ='Monthly Inputs'!L83 -> 1980737.263 | J182: ='Monthly Inputs'!M83 -> 276192.9927 | K182: ='Monthly Inputs'!N83 -> 439650.0092 | L182: ='Monthly Inputs'!O83 -> 0 | M182: ='Monthly Inputs'!P83 -> 0 | N182: ='Monthly Inputs'!Q83 -> 79210.75667 | O182: ='Monthly Inputs'!R83 -> 0 | P182: =SUM(D182:O182) -> 24907884.54 | Q182: 178
A183: Spot Market Purchases Cost | D183: ='Monthly Inputs'!G84 -> 14734883.59 | E183: ='Monthly Inputs'!H84 -> 12524608.4 | F183: ='Monthly Inputs'!I84 -> 15315581.29 | G183: ='Monthly Inputs'!J84 -> 13622018.02 | H183: ='Monthly Inputs'!K84 -> 13951479.32 | I183: ='Monthly Inputs'!L84 -> 5466834.846 | J183: ='Monthly Inputs'!M84 -> 751244.9401 | K183: ='Monthly Inputs'!N84 -> 1209037.525 | L183: ='Monthly Inputs'!O84 -> 0 | M183: ='Monthly Inputs'!P84 -> 0 | N183: ='Monthly Inputs'!Q84 -> 217829.5808 | O183: ='Monthly Inputs'!R84 -> 0 | P183: =SUM(D183:O183) -> 77793517.51 | Q183: 179
Q184: 180
A185: Contract Purchases (Dth) | D185: ='Monthly Inputs'!G92 -> 1350000 | E185: ='Monthly Inputs'!H92 -> 2416450 | F185: ='Monthly Inputs'!I92 -> 2416450 | G185: ='Monthly Inputs'!J92 -> 2182600 | H185: ='Monthly Inputs'!K92 -> 930000 | I185: ='Monthly Inputs'!L92 -> 900000 | J185: ='Monthly Inputs'!M92 -> 0 | K185: ='Monthly Inputs'!N92 -> 0 | L185: ='Monthly Inputs'!O92 -> 0 | M185: ='Monthly Inputs'!P92 -> 0 | N185: ='Monthly Inputs'!Q92 -> 0 | O185: ='Monthly Inputs'!R92 -> 930000 | P185: =SUM(D185:O185) -> 11125500 | Q185: 181
A186: Contract Purchases Cost Including Stabalization Costs | D186: ='Monthly Inputs'!G93+'Monthly Inputs'!G94 -> 4312416.748 | E186: ='Monthly Inputs'!H93+'Monthly Inputs'!H94 -> 8204388.474 | F186: ='Monthly Inputs'!I93+'Monthly Inputs'!I94 -> 8352338.381 | G186: ='Monthly Inputs'!J93+'Monthly Inputs'!J94 -> 7477231.483 | H186: ='Monthly Inputs'!K93+'Monthly Inputs'!K94 -> 3126859.977 | I186: ='Monthly Inputs'!L93+'Monthly Inputs'!L94 -> 2724484.217 | J186: ='Monthly Inputs'!M93+'Monthly Inputs'!M94 -> 0 | K186: ='Monthly Inputs'!N93+'Monthly Inputs'!N94 -> 0 | L186: ='Monthly Inputs'!O93+'Monthly Inputs'!O94 -> 0 | M186: ='Monthly Inputs'!P93+'Monthly Inputs'!P94 -> 0 | N186: ='Monthly Inputs'!Q93+'Monthly Inputs'!Q94 -> 0 | O186: ='Monthly Inputs'!R93+'Monthly Inputs'!R94 -> 2771452.08 | P186: =SUM(D186:O186) -> 36969171.36 | Q186: 182
Q187: 183
A188: Peak Purchases (Dth) | D188: ='Monthly Inputs'!G89 -> 1000000 | E188: ='Monthly Inputs'!H89 -> 4000000 | F188: ='Monthly Inputs'!I89 -> 5000000 | G188: ='Monthly Inputs'!J89 -> 3000000 | H188: ='Monthly Inputs'!K89 -> 0 | I188: ='Monthly Inputs'!L89 -> 0 | J188: ='Monthly Inputs'!M89 -> 0 | K188: ='Monthly Inputs'!N89 -> 0 | L188: ='Monthly Inputs'!O89 -> 0 | M188: ='Monthly Inputs'!P89 -> 0 | N188: ='Monthly Inputs'!Q89 -> 0 | O188: ='Monthly Inputs'!R89 -> 0 | P188: =SUM(D188:O188) -> 13000000 | Q188: 184
A189: Peak Purchases Cost | D189: ='Monthly Inputs'!G90 -> 3080424.764 | E189: ='Monthly Inputs'!H90 -> 13393647.21 | F189: ='Monthly Inputs'!I90 -> 17039625.86 | G189: ='Monthly Inputs'!J90 -> 10150400.8 | H189: ='Monthly Inputs'!K90 -> 0 | I189: ='Monthly Inputs'!L90 -> 0 | J189: ='Monthly Inputs'!M90 -> 0 | K189: ='Monthly Inputs'!N90 -> 0 | L189: ='Monthly Inputs'!O90 -> 0 | M189: ='Monthly Inputs'!P90 -> 0 | N189: ='Monthly Inputs'!Q90 -> 0 | O189: ='Monthly Inputs'!R90 -> 0 | P189: =SUM(D189:O189) -> 43664098.64 | Q189: 185
Q190: 186
A191: Future Purchases | D191: =+D171-D182-D185-D188 -> 0.19067383 | E191: =+E171-E182-E185-E188 -> 0.1246337909 | F191: =+F171-F182-F185-F188 -> -0.2381591992 | G191: =+G171-G182-G185-G188 -> 0.2529907208 | H191: =+H171-H182-H185-H188 -> 0.14990234 | I191: =+I171-I182-I185-I188 -> -0.2630615197 | J191: =+J171-J182-J185-J188 -> 0.007324218925 | K191: =+K171-K182-K185-K188 -> 17357.99084 | L191: 35286 | M191: =+M171-M182-M185-M188 -> 0 | N191: 0.243331909 | O191: 0 | P191: =SUM(D191:O191) -> 52644.45848 | Q191: 187
A192: Future Purchases Cost | D192: =ROUND(D191*D199,0) -> 1 | E192: =ROUND(E191*E199,0) -> 0 | F192: =ROUND(F191*F199,0) -> -1 | G192: =ROUND(G191*G199,0) -> 1 | H192: =ROUND(H191*H199,0) -> 0 | I192: -1 | J192: 0 | K192: 48082 | L192: 100212 | M192: 0 | N192: 1 | O192: 0 | P192: =SUM(D192:O192) -> 148295 | Q192: 188
Q193: 189
A194: Total Purchases Cost | D194: =+D183+D186+D189+D192 -> 22127726.1 | E194: =+E183+E186+E189+E192 -> 34122644.08 | F194: =+F183+F186+F189+F192 -> 40707544.53 | G194: =+G183+G186+G189+G192 -> 31249651.31 | H194: =+H183+H186+H189+H192 -> 17078339.29 | I194: 8191318.063 | J194: =+J183+J186+J189+J192 -> 751244.9401 | K194: 1257119.525 | L194: 100212 | M194: 0 | N194: 217830.5808 | O194: =+O183+O186+O189+O192 -> 2771452.08 | P194: 158575082.5 | Q194: 190
Q195: 191
A196: Gas Cost | Q196: 192
A197: Gas Cost Purchases | D197: =IF(D171=0,0,ROUND(D194/D171,5)) -> 3.03344 | E197: =IF(E171=0,0,ROUND(E194/E171,5)) -> 3.31866 | F197: 3.37611 | G197: 3.3428 | H197: 3.13649 | I197: 2.84348 | J197: 2.72 | K197: 2.75076 | L197: 2.83999 | M197: 0 | N197: 2.75 | O197: 2.98006 | Q197: 193
A198: Gas Cost Injection Rate | D198: ='Ut Storage'!K27 -> 4.701335992 | E198: =+D198 -> 4.701335992 | F198: 4.701335992 | G198: 4.701335992 | H198: 4.701335992 | I198: 4.701335992 | J198: 4.701335992 | K198: 4.701335992 | L198: 4.701335992 | M198: 4.701335992 | N198: 4.701335992 | O198: 4.701335992 | Q198: 194
A199: =CONCATENATE("'Future Contract Price (spot + $",'Other Inputs'!E201,")") -> 'Future Contract Price (spot + $0.02) | D199: =+D231+'Other Inputs'!$E$201 -> 3 | E199: =+E231+'Other Inputs'!$E$201 -> 3.26 | F199: =+F231+'Other Inputs'!$E$201 -> 3.32 | G199: =+G231+'Other Inputs'!$E$201 -> 3.29 | H199: =+H231+'Other Inputs'!$E$201 -> 3.11 | I199: =+I231+'Other Inputs'!$E$201 -> 2.78 | J199: =+J231+'Other Inputs'!$E$201 -> 2.74 | K199: =+K231+'Other Inputs'!$E$201 -> 2.77 | L199: =+L231+'Other Inputs'!$E$201 -> 2.84 | M199: =+M231+'Other Inputs'!$E$201 -> 2.85 | N199: =+N231+'Other Inputs'!$E$201 -> 2.77 | O199: =+O231+'Other Inputs'!$E$201 -> 2.82 | Q199: 195
Q200: 196
A201: System Production | D201: =+D161 -> 5800264.725 | E201: 5864862.005 | F201: 5697237.214 | G201: 5266641.055 | H201: 5703295.329 | I201: 5381722.589 | J201: 5437012.137 | K201: 5415710.596 | L201: 5490766.503 | M201: 5571791.67 | N201: 5671492.244 | O201: 7831627.23 | P201: =SUM(D201:O201) -> 69132423.3 | Q201: 197
... 38 more rows

Sheet CET & DSM (hidden)
A1: Rate Caclulation for the CET and DSM Amortizations
P3: Solver Cells
A4: CET Amortization % Calculation | P4: % Change | Q4: Difference
B5: Balance | C5: Date | D5: GS Dth | H5: Amortization per Dth | P5: =J20/D20 -> -0.01009266391 | Q5: =J20-B11 -> 0 | S5: -> Difference should be at 0 (Use Goal Seek to Get Difference to Equal 0.
A6: DSM Balance | B6: ='Other Inputs'!$E$282 -> 42000000 | C6: ='Other Inputs'!$F$282 -> 2011-03-31 | D6: =B20 -> 95293167 | H6: =ROUND(B6/D6,5) -> 0.44075
S8: Typical Bill Rates
A9: CET Amortization Calculation
B10: Balance | C10: Date | D10: DNG Rev | H10: New DNG | L10: % Change | S10: Current | T10: Proposed
A11: CET Balance | B11: ='Other Inputs'!$E$281 -> -1886289.514 | C11: ='Other Inputs'!$F$281 -> 2011-07-31 | D11: =D20 -> 186897089.9 | H11: =D11+B11 -> 185010800.4 | L11: =P5 -> -0.01009266391 | S11: Effective | V11: SNG & | W11: CET, DSM
S12: ='Other Inputs'!$J$118 -> 2017-10-01 | T12: CET Only | U12: DSM Only | V12: Commodity | W12: Commodity
S13: BSF | T13: BSF | U13: BSF | V13: BSF | W13: BSF
B14: Revenue Calculation | H14: CET Amortization | L14: Total DNG | P14: REVRUN Calculation | S14: ='Other Inputs'!$G$122 -> 6.75 | T14: ='Other Inputs'!$G$122 -> 6.75 | U14: ='Other Inputs'!$G$122 -> 6.75 | V14: ='Other Inputs'!$G$122 -> 6.75 | W14: ='Ut 1.8'!$C$12 -> 6.75
A15: Utah GS | B15: Dth | C15: Base DNG | D15: DNG Revenue | H15: CET Rate | J15: Revenue | L15: DNG Rate | N15: Revenue | P15: CET Rate | Q15: CET Amort
A16: Block 1 Summer | B16: ='Other Inputs'!E286 -> 23076373 | C16: ='Other Inputs'!E271 -> 1.7267 | D16: =B16*C16 -> 39845973.26 | H16: =ROUND((J16/B16),5) -> -0.01743 | J16: =D16*$P$5 -> -402152.0163 | L16: =C16+H16 -> 1.70927 | N16: =L16*B16 -> 39443752.08 | P16: =ROUND(H16,5) -> -0.01743 | Q16: =B16*P16 -> -402221.1814 | S16: ='Other Inputs'!$G$118 -> 6.74613 | T16: =N24 -> 7.11823 | U16: =N31 -> 7.07547 | V16: =N38 -> 6.977328801 | W16: =N45 -> 7.598738801
A17: Block 2 Summer | B17: ='Other Inputs'!E287 -> 4705902 | C17: ='Other Inputs'!E272 -> 0.7267 | D17: =B17*C17 -> 3419778.983 | H17: =ROUND((J17/B17),5) -> -0.00733 | J17: =D17*$P$5 -> -34514.67993 | L17: =C17+H17 -> 0.71937 | N17: =L17*B17 -> 3385284.722 | P17: =ROUND(H17,5) -> -0.00733 | Q17: =B17*P17 -> -34494.26166
A18: Block 1 Winter | B18: ='Other Inputs'!E284 -> 52526064 | C18: ='Other Inputs'!E273 -> 2.34949 | D18: =B18*C18 -> 123409462.1 | H18: =ROUND((J18/B18),5) -> -0.02371 | J18: =D18*$P$5 -> -1245530.224 | L18: =C18+H18 -> 2.32578 | N18: =L18*B18 -> 122164069.1 | P18: =ROUND(H18,5) -> -0.02371 | Q18: =B18*P18 -> -1245392.977 | S18: ='Other Inputs'!$G$120 -> 8.10705 | T18: =N26 -> 8.38376 | U18: =N33 -> 8.33606 | V18: =N40 -> 8.275588801 | W18: =N47 -> 9.556388801
A19: Block 2 Winter | B19: ='Other Inputs'!E285 -> 14984828 | C19: ='Other Inputs'!E274 -> 1.34949 | D19: =B19*C19 -> 20221875.54 | H19: =ROUND((J19/B19),5) -> -0.01362 | J19: =D19*$P$5 -> -204092.5934 | L19: =C19+H19 -> 1.33587 | N19: =L19*B19 -> 20017782.18 | P19: =ROUND(H19,5) -> -0.01362 | Q19: =B19*P19 -> -204093.3574
A20: GS-1 Block Rev | B20: =SUM(B16:B19) -> 95293167 | D20: =SUM(D16:D19) -> 186897089.9 | J20: =B11 -> -1886289.514 | N20: =SUM(N16:N19) -> 185010888.1 | Q20: =SUM(Q16:Q19) -> -1886201.778
A22: Total Rate Calculation With CET Amortization Only | N22: ='Control Panel'!E8 -> 2017-11-01 | P22: ='Other Inputs'!$J$118 -> 2017-10-01
A23: Utah GS | B23: Base DNG | C23: CET | D23: DSM | E23: Energy Assist | F23: Infrastructure | H23: Total DNG | I23: Base SNG | J23: SNG Amort | L23: Base Gas Cost | M23: 191 Amort | N23: Total Rate | P23: Total Rate
A24: Block 1 Summer | B24: =$C$16 -> 1.7267 | C24: =$H$16 -> -0.01743 | D24: 0.44104 | E24: 0.01519 | F24: 0.02908 | H24: =SUM(B24:F24) -> 2.19458 | I24: 0.55715 | J24: 0.01244 | L24: 4.21339 | M24: 0.14067 | N24: =SUM(H24:M24) -> 7.11823 | P24: ='Other Inputs'!$G$118 -> 6.74613 | Q24: =N24-P24 -> 0.3721
A25: Block 2 Summer | B25: =$C$17 -> 0.7267 | C25: =$H$17 -> -0.00733 | D25: =$D$24 -> 0.44104 | E25: =$E$24 -> 0.01519 | F25: 0.0108 | H25: =SUM(B25:F25) -> 1.1864 | I25: =I24 -> 0.55715 | J25: =J24 -> 0.01244 | L25: =L24 -> 4.21339 | M25: =$M$24 -> 0.14067 | N25: =SUM(H25:M25) -> 6.11005 | P25: ='Other Inputs'!$G$119 -> 5.63557 | Q25: =N25-P25 -> 0.47448
A26: Block 1 Winter | B26: =$C$18 -> 2.34949 | C26: =$H$18 -> -0.02371 | D26: =$D$24 -> 0.44104 | E26: =$E$24 -> 0.01519 | F26: 0.03453 | H26: =SUM(B26:F26) -> 2.81654 | I26: 1.18665 | J26: 0.02651 | L26: =L24 -> 4.21339 | M26: =$M$24 -> 0.14067 | N26: =SUM(H26:M26) -> 8.38376 | P26: ='Other Inputs'!$G$120 -> 8.10705 | Q26: =N26-P26 -> 0.27671
A27: Block 2 Winter | B27: =$C$19 -> 1.34949 | C27: =$H$19 -> -0.01362 | D27: =$D$24 -> 0.44104 | E27: =$E$24 -> 0.01519 | F27: 0.01434 | H27: =SUM(B27:F27) -> 1.80644 | I27: =I26 -> 1.18665 | J27: =J26 -> 0.02651 | L27: =L24 -> 4.21339 | M27: =$M$24 -> 0.14067 | N27: =SUM(H27:M27) -> 7.37366 | P27: ='Other Inputs'!$G$121 -> 6.99649 | Q27: =N27-P27 -> 0.37717
A29: Total Rate Calculation With DSM Amortization Only | N29: =N22 -> 2017-11-01 | P29: ='Other Inputs'!$J$118 -> 2017-10-01
A30: Utah GS | B30: Base DNG | C30: CET | D30: DSM | E30: Energy Assist | F30: Infrastructure | H30: Total DNG | I30: Base SNG | J30: SNG Amort | L30: Commodity | M30: 191 Amort | N30: Total Rate | P30: Total Rate
A31: Block 1 Summer | B31: =$C$16 -> 1.7267 | C31: -0.0599 | D31: =$H$6 -> 0.44075 | E31: =$E$24 -> 0.01519 | F31: =F24 -> 0.02908 | H31: =SUM(B31:F31) -> 2.15182 | I31: =$I$24 -> 0.55715 | J31: =J24 -> 0.01244 | L31: =$L$24 -> 4.21339 | M31: =$M$24 -> 0.14067 | N31: =SUM(H31:M31) -> 7.07547 | P31: ='Other Inputs'!$G$118 -> 6.74613 | Q31: =N31-P31 -> 0.32934
A32: Block 2 Summer | B32: =$C$17 -> 0.7267 | C32: -0.02224 | D32: =$H$6 -> 0.44075 | E32: =$E$24 -> 0.01519 | F32: =F25 -> 0.0108 | H32: =SUM(B32:F32) -> 1.1712 | I32: =$I$24 -> 0.55715 | J32: =J25 -> 0.01244 | L32: =$L$24 -> 4.21339 | M32: =$M$24 -> 0.14067 | N32: =SUM(H32:M32) -> 6.09485 | P32: ='Other Inputs'!$G$119 -> 5.63557 | Q32: =N32-P32 -> 0.45928
A33: Block 1 Winter | B33: =$C$18 -> 2.34949 | C33: -0.07112 | D33: =$H$6 -> 0.44075 | E33: =$E$24 -> 0.01519 | F33: =F26 -> 0.03453 | H33: =SUM(B33:F33) -> 2.76884 | I33: =$I$26 -> 1.18665 | J33: =J26 -> 0.02651 | L33: =$L$24 -> 4.21339 | M33: =$M$24 -> 0.14067 | N33: =SUM(H33:M33) -> 8.33606 | P33: ='Other Inputs'!$G$120 -> 8.10705 | Q33: =N33-P33 -> 0.22901
A34: Block 2 Winter | B34: =$C$19 -> 1.34949 | C34: -0.02953 | D34: =$H$6 -> 0.44075 | E34: =$E$24 -> 0.01519 | F34: =F27 -> 0.01434 | H34: =SUM(B34:F34) -> 1.79024 | I34: =$I$26 -> 1.18665 | J34: =J27 -> 0.02651 | L34: =$L$24 -> 4.21339 | M34: =$M$24 -> 0.14067 | N34: =SUM(H34:M34) -> 7.35746 | P34: ='Other Inputs'!$G$121 -> 6.99649 | Q34: =N34-P34 -> 0.36097
A36: Total Rate Calculation With SNG and Commodity Changes Only | N36: =N22 -> 2017-11-01 | P36: ='Other Inputs'!$J$118 -> 2017-10-01
A37: Utah GS | B37: Base DNG | C37: CET | D37: DSM | E37: Energy Assist | F37: Infrastructure | H37: Total DNG | I37: Base SNG | J37: SNG | L37: Commodity | M37: 191 Amort | N37: Total Rate | P37: Total Rate
A38: Block 1 Summer | B38: =$C$16 -> 1.7267 | C38: =C31 -> -0.0599 | D38: =D24 -> 0.44104 | E38: =$E$24 -> 0.01519 | F38: =F24 -> 0.02908 | H38: =SUM(B38:F38) -> 2.15211 | I38: ='Ut 1.6 p3'!G17 -> 0.57923 | J38: ='Ut 1.6 p3'!$H$17 -> 0.02371 | L38: ='Ut 1.6 p1'!$F$31 -> 4.08676 | M38: ='Ut 1.6 p1'!$F$32 -> 0.1355188007 | N38: =SUM(H38:M38) -> 6.977328801 | P38: ='Other Inputs'!$G$118 -> 6.74613 | Q38: =N38-P38 -> 0.2311988007
A39: Block 2 Summer | B39: =$C$17 -> 0.7267 | C39: =C32 -> -0.02224 | D39: =D25 -> 0.44104 | E39: =$E$24 -> 0.01519 | F39: =F25 -> 0.0108 | H39: =SUM(B39:F39) -> 1.17149 | I39: ='Ut 1.6 p3'!G17 -> 0.57923 | J39: ='Ut 1.6 p3'!$H$17 -> 0.02371 | L39: ='Ut 1.6 p1'!$F$31 -> 4.08676 | M39: ='Ut 1.6 p1'!$F$32 -> 0.1355188007 | N39: =SUM(H39:M39) -> 5.996708801 | P39: ='Other Inputs'!$G$119 -> 5.63557 | Q39: =N39-P39 -> 0.3611388007
A40: Block 1 Winter | B40: =$C$18 -> 2.34949 | C40: =C33 -> -0.07112 | D40: =D26 -> 0.44104 | E40: =$E$24 -> 0.01519 | F40: =F26 -> 0.03453 | H40: =SUM(B40:F40) -> 2.76913 | I40: ='Ut 1.6 p3'!G16 -> 1.23368 | J40: ='Ut 1.6 p3'!$H$16 -> 0.0505 | L40: ='Ut 1.6 p1'!$F$31 -> 4.08676 | M40: ='Ut 1.6 p1'!$F$32 -> 0.1355188007 | N40: =SUM(H40:M40) -> 8.275588801 | P40: ='Other Inputs'!$G$120 -> 8.10705 | Q40: =N40-P40 -> 0.1685388007
A41: Block 2 Winter | B41: =$C$19 -> 1.34949 | C41: =C34 -> -0.02953 | D41: =D27 -> 0.44104 | E41: =$E$24 -> 0.01519 | F41: =F27 -> 0.01434 | H41: =SUM(B41:F41) -> 1.79053 | I41: ='Ut 1.6 p3'!G16 -> 1.23368 | J41: ='Ut 1.6 p3'!$H$16 -> 0.0505 | L41: ='Ut 1.6 p1'!$F$31 -> 4.08676 | M41: ='Ut 1.6 p1'!$F$32 -> 0.1355188007 | N41: =SUM(H41:M41) -> 7.296988801 | P41: ='Other Inputs'!$G$121 -> 6.99649 | Q41: =N41-P41 -> 0.3004988007
A43: Total Rate Calculation | N43: =N29 -> 2017-11-01 | P43: ='Other Inputs'!$J$118 -> 2017-10-01
A44: Utah GS | B44: Base DNG | C44: CET | D44: DSM | E44: Energy Assist | F44: Infrastructure | H44: Total DNG | I44: Base SNG | J44: SNG | L44: Commodity | N44: Total Rate | P44: Total Rate
A45: Block 1 Summer | B45: =$C$16 -> 1.7267 | C45: =$H$16 -> -0.01743 | D45: =$H$6 -> 0.44075 | E45: =$E$24 -> 0.01519 | F45: =F38 -> 0.02908 | H45: =SUM(B45:F45) -> 2.19429 | I45: =I38 -> 0.57923 | J45: ='Ut 1.6 p3'!$I$17 -> 0.60294 | L45: ='Ut 1.6 p1'!$F$33 -> 4.222278801 | N45: =SUM(H45:L45) -> 7.598738801 | P45: ='Other Inputs'!$G$118 -> 6.74613 | Q45: =N45-P45 -> 0.8526088007
A46: Block 2 Summer | B46: =$C$17 -> 0.7267 | C46: =$H$17 -> -0.00733 | D46: =$H$6 -> 0.44075 | E46: =$E$24 -> 0.01519 | F46: =F39 -> 0.0108 | H46: =SUM(B46:F46) -> 1.18611 | I46: =I39 -> 0.57923 | J46: ='Ut 1.6 p3'!$I$17 -> 0.60294 | L46: =$L$45 -> 4.222278801 | N46: =SUM(H46:L46) -> 6.590558801 | P46: ='Other Inputs'!$G$119 -> 5.63557 | Q46: =N46-P46 -> 0.9549888007
A47: Block 1 Winter | B47: =$C$18 -> 2.34949 | C47: =$H$18 -> -0.02371 | D47: =$H$6 -> 0.44075 | E47: =$E$24 -> 0.01519 | F47: =F40 -> 0.03453 | H47: =SUM(B47:F47) -> 2.81625 | I47: =I40 -> 1.23368 | J47: ='Ut 1.6 p3'!$I$16 -> 1.28418 | L47: =$L$45 -> 4.222278801 | N47: =SUM(H47:L47) -> 9.556388801 | P47: ='Other Inputs'!$G$120 -> 8.10705 | Q47: =N47-P47 -> 1.449338801
A48: Block 2 Winter | B48: =$C$19 -> 1.34949 | C48: =$H$19 -> -0.01362 | D48: =$H$6 -> 0.44075 | E48: =$E$24 -> 0.01519 | F48: =F41 -> 0.01434 | H48: =SUM(B48:F48) -> 1.80615 | I48: =I41 -> 1.23368 | J48: ='Ut 1.6 p3'!$I$16 -> 1.28418 | L48: =$L$45 -> 4.222278801 | N48: =SUM(H48:L48) -> 8.546288801 | P48: ='Other Inputs'!$G$121 -> 6.99649 | Q48: =N48-P48 -> 1.549798801
A50: Typical Customer Difference - CET Amortization Only
B51: Typical
A52: GS | B52: Dth | C52: =S12 -> 2017-10-01 | D52: =N43 -> 2017-11-01 | H52: Change | J52: % Change
A53: January | B53: 14.9 | C53: =ROUND($S$14+(B53*$S$18),2) -> 127.55 | D53: =ROUND($T$14+(B53*$T$18),2) -> 131.67 | H53: =D53-C53 -> 4.12
A54: February | B54: 12.5 | C54: =ROUND($S$14+(B54*$S$18),2) -> 108.09 | D54: =ROUND($T$14+(B54*$T$18),2) -> 111.55 | H54: 3.46
A55: March | B55: 10.1 | C55: =ROUND($S$14+(B55*$S$18),2) -> 88.63 | D55: =ROUND($T$14+(B55*$T$18),2) -> 91.43 | H55: 2.8
A56: April | B56: 8.3 | C56: =ROUND($S$14+(B56*$S$16),2) -> 62.74 | D56: =ROUND($T$14+(B56*$T$16),2) -> 65.83 | H56: 3.09
A57: May | B57: 4.4 | C57: 36.43 | D57: =ROUND($T$14+(B57*$T$16),2) -> 38.07 | H57: 1.64
A58: June | B58: 3.1 | C58: 27.66 | D58: 28.82 | H58: 1.16
A59: July | B59: 2 | C59: 20.24 | D59: 20.99 | H59: 0.75
A60: August | B60: 1.8 | C60: 18.89 | D60: 19.56 | H60: 0.67
A61: September | B61: 2 | C61: 20.24 | D61: 20.99 | H61: 0.75
A62: October | B62: 3.1 | C62: 27.66 | D62: 28.82 | H62: 1.16
A63: November | B63: 6.3 | C63: =ROUND($S$14+(B63*$S$18),2) -> 57.82 | D63: =ROUND($T$14+(B63*$T$18),2) -> 59.57 | H63: 1.75
A64: December | B64: 11.5 | C64: =ROUND($S$14+(B64*$S$18),2) -> 99.98 | D64: =ROUND($T$14+(B64*$T$18),2) -> 103.16 | H64: 3.18
B65: =SUM(B53:B64) -> 80 | C65: =SUM(C53:C64) -> 695.93 | D65: =SUM(D53:D64) -> 720.46 | H65: =SUM(H53:H64) -> 24.53 | J65: =H65/C65 -> 0.03524779791
A68: Typical Customer Difference - DSM Amortization Only
B69: Typical
A70: GS | B70: Dth | C70: =C52 -> 2017-10-01 | D70: =D52 -> 2017-11-01 | H70: Change | J70: % Change
A71: January | B71: 14.9 | C71: =ROUND($S$14+(B71*$S$18),2) -> 127.55 | D71: =ROUND($U$14+(B71*$U$18),2) -> 130.96 | H71: =D71-C71 -> 3.41
A72: February | B72: 12.5 | C72: =ROUND($S$14+(B72*$S$18),2) -> 108.09 | D72: =ROUND($U$14+(B72*$U$18),2) -> 110.95 | H72: 2.86
A73: March | B73: 10.1 | C73: =ROUND($S$14+(B73*$S$18),2) -> 88.63 | D73: =ROUND($U$14+(B73*$U$18),2) -> 90.94 | H73: 2.31
A74: April | B74: 8.3 | C74: =ROUND($S$14+(B74*$S$16),2) -> 62.74 | D74: =ROUND($U$14+(B74*$U$16),2) -> 65.48 | H74: 2.74
A75: May | B75: 4.4 | C75: 36.43 | D75: 37.88 | H75: 1.45
A76: June | B76: 3.1 | C76: 27.66 | D76: 28.68 | H76: 1.02
A77: July | B77: 2 | C77: 20.24 | D77: 20.9 | H77: 0.66
A78: August | B78: 1.8 | C78: 18.89 | D78: 19.49 | H78: 0.6
A79: September | B79: 2 | C79: 20.24 | D79: 20.9 | H79: 0.66
A80: October | B80: 3.1 | C80: 27.66 | D80: 28.68 | H80: 1.02
A81: November | B81: 6.3 | C81: =ROUND($S$14+(B81*$S$18),2) -> 57.82 | D81: =ROUND($U$14+(B81*$U$18),2) -> 59.27 | H81: 1.45
A82: December | B82: 11.5 | C82: =ROUND($S$14+(B82*$S$18),2) -> 99.98 | D82: =ROUND($U$14+(B82*$U$18),2) -> 102.61 | H82: 2.63
B83: =SUM(B71:B82) -> 80 | C83: =SUM(C71:C82) -> 695.93 | D83: =SUM(D71:D82) -> 716.74 | H83: =SUM(H71:H82) -> 20.81 | J83: =H83/C83 -> 0.02990243272
A86: Typical Customer Difference - SNG and Commodity Changes Only
B87: Typical
A88: GS-1 | B88: Dth | C88: =C70 -> 2017-10-01 | D88: =D70 -> 2017-11-01 | H88: Change | J88: % Change
A89: January | B89: 14.9 | C89: =ROUND($S$14+(B89*$S$18),2) -> 127.55 | D89: =ROUND($V$14+(B89*$V$18),2) -> 130.06 | H89: =D89-C89 -> 2.51
A90: February | B90: 12.5 | C90: =ROUND($S$14+(B90*$S$18),2) -> 108.09 | D90: =ROUND($V$14+(B90*$V$18),2) -> 110.19 | H90: 2.1
A91: March | B91: 10.1 | C91: =ROUND($S$14+(B91*$S$18),2) -> 88.63 | D91: =ROUND($V$14+(B91*$V$18),2) -> 90.33 | H91: 1.7
A92: April | B92: 8.3 | C92: =ROUND($S$14+(B92*$S$16),2) -> 62.74 | D92: =ROUND($V$14+(B92*$V$16),2) -> 64.66 | H92: 1.92
A93: May | B93: 4.4 | C93: 36.43 | D93: 37.45 | H93: 1.02
A94: June | B94: 3.1 | C94: 27.66 | D94: 28.38 | H94: 0.72
A95: July | B95: 2 | C95: 20.24 | D95: 20.7 | H95: 0.46
A96: August | B96: 1.8 | C96: 18.89 | D96: 19.31 | H96: 0.42
A97: September | B97: 2 | C97: 20.24 | D97: 20.7 | H97: 0.46
A98: October | B98: 3.1 | C98: 27.66 | D98: 28.38 | H98: 0.72
A99: November | B99: 6.3 | C99: =ROUND($S$14+(B99*$S$18),2) -> 57.82 | D99: =ROUND($V$14+(B99*$V$18),2) -> 58.89 | H99: 1.07
A100: December | B100: 11.5 | C100: =ROUND($S$14+(B100*$S$18),2) -> 99.98 | D100: =ROUND($V$14+(B100*$V$18),2) -> 101.92 | H100: 1.94
B101: =SUM(B89:B100) -> 80 | C101: =SUM(C89:C100) -> 695.93 | D101: =SUM(D89:D100) -> 710.97 | H101: =SUM(H89:H100) -> 15.04 | J101: =H101/C101 -> 0.02161136896
A104: Typical Customer Difference - CET & DSM Amort, SNG and Commodity Changes
B105: Typical
A106: GS-1 | B106: Dth | C106: =C52 -> 2017-10-01 | D106: =D52 -> 2017-11-01 | H106: Change | J106: % Change
A107: January | B107: 14.9 | C107: =ROUND($S$14+(B107*$S$18),2) -> 127.55 | D107: =ROUND($W$14+(B107*$W$18),2) -> 149.14 | H107: =D107-C107 -> 21.59
A108: February | B108: 12.5 | C108: =ROUND($S$14+(B108*$S$18),2) -> 108.09 | D108: =ROUND($W$14+(B108*$W$18),2) -> 126.2 | H108: 18.11
A109: March | B109: 10.1 | C109: =ROUND($S$14+(B109*$S$18),2) -> 88.63 | D109: =ROUND($W$14+(B109*$W$18),2) -> 103.27 | H109: 14.64
A110: April | B110: 8.3 | C110: =ROUND($S$14+(B110*$S$16),2) -> 62.74 | D110: =ROUND($W$14+(B110*$W$16),2) -> 69.82 | H110: 7.08
A111: May | B111: 4.4 | C111: 36.43 | D111: 40.18 | H111: 3.75
A112: June | B112: 3.1 | C112: 27.66 | D112: 30.31 | H112: 2.65
A113: July | B113: 2 | C113: 20.24 | D113: 21.95 | H113: 1.71
A114: August | B114: 1.8 | C114: 18.89 | D114: 20.43 | H114: 1.54
A115: September | B115: 2 | C115: 20.24 | D115: 21.95 | H115: 1.71
A116: October | B116: 3.1 | C116: 27.66 | D116: 30.31 | H116: 2.65
A117: November | B117: 6.3 | C117: =ROUND($S$14+(B117*$S$18),2) -> 57.82 | D117: =ROUND($W$14+(B117*$W$18),2) -> 66.96 | H117: 9.14
A118: December | B118: 11.5 | C118: =ROUND($S$14+(B118*$S$18),2) -> 99.98 | D118: =ROUND($W$14+(B118*$W$18),2) -> 116.65 | H118: 16.67
B119: =SUM(B107:B118) -> 80 | C119: =SUM(C107:C118) -> 695.93 | D119: =SUM(D107:D118) -> 797.17 | H119: =SUM(H107:H118) -> 101.24 | J119: =H119/C119 -> 0.1454744012

Sheet UT Tariff Sheets PT (hidden)
B2: 2.02 GS Rate Schedule | J2: 2.03 FS Rate Schedule | AB2: 4.03 ES Rate Schedule | AI2: 2.05 NGV Rate Schedule
C3: Rates Per Dth Used Each Month | M3: Rates Per Dth Used Each Month | T3: 4.02 IS Rate Schedule | AB3: ES Volumetric Rates | AI3: NGV Volumetric Rate
C4: Summer Rates: Apr. 1 - Oct. 31 | E4: Winter Rates: Nov. 1 - Mar. 31 | M4: Dth = decatherm = 10 therms = 1,000,000 BTU | T4: IS Volumetric Rates
C5: First 45 Dth | D5: All Over 45 Dth | E5: First 45 Dth | F5: All Over 45 Dth | K5: Summer Rates: Apr. 1 - Oct. 31 | N5: Winter Rates: Nov. 1 - Mar. 31 | U5: Rates Per Dth Used Each Month | AE5: Rates Per Dth Used Each Month | AM5: Rates Per Dth Used Each Month
B6: Base DNG | C6: ='CET & DSM'!B38 -> 1.7267 | D6: ='CET & DSM'!B39 -> 0.7267 | E6: ='CET & DSM'!B40 -> 2.34949 | F6: ='CET & DSM'!B41 -> 1.34949 | K6: First | L6: Next | M6: All Over | N6: First | O6: Next | P6: All Over | U6: Dth = decatherm = 10 therms = 1,000,000 BTU | AE6: Dth = decatherm = 10 therms = 1,000,000 BTU | AM6: Dth = decatherm = 10 therms = 1,000,000 BTU
B7: CET Amortization | C7: ='CET & DSM'!C38 -> -0.0599 | D7: ='CET & DSM'!C39 -> -0.02224 | E7: ='CET & DSM'!C40 -> -0.07112 | F7: ='CET & DSM'!C41 -> -0.02953 | K7: 200 | L7: 1800 | M7: 2000 | N7: 200 | O7: 1800 | P7: 2000 | U7: First | V7: Next | W7: All Over | AB7: Distribution Non-Gas Rate | AC7: ='Ut 1.8'!#REF! ->  | AI7: Base DNG | AK7: ='Ut 1.8'!C52 -> 6.54794
B8: DSM Amortization | C8: =ROUND('CET & DSM'!D38,5) -> 0.44104 | D8: =ROUND('CET & DSM'!D39,5) -> 0.44104 | E8: =ROUND('CET & DSM'!D40,5) -> 0.44104 | F8: =ROUND('CET & DSM'!D41,5) -> 0.44104 | J8: Base DNG | K8: ='Ut 1.8'!C19 -> 0.9209 | L8: ='Ut 1.8'!D19 -> 0.49853 | M8: ='Ut 1.8'!E19 -> 0.05392 | N8: ='Ut 1.8'!F19 -> 1.3948 | O8: ='Ut 1.8'!G19 -> 0.97242 | P8: ='Ut 1.8'!H19 -> 0.52782 | U8: 2000 | V8: 18000 | W8: 20000 | AI8: Energy Assistance | AK8: ='Other Inputs'!$E$279 -> 0.2679
B9: Energy Assistance | C9: ='Other Inputs'!$E$276 -> 0.01419 | D9: ='Other Inputs'!$E$276 -> 0.01419 | E9: ='Other Inputs'!$E$276 -> 0.01419 | F9: ='Other Inputs'!$E$276 -> 0.01419 | J9: Energy Assistance | K9: ='Other Inputs'!$E$277 -> 0.01174 | L9: ='Other Inputs'!$E$277 -> 0.01174 | M9: ='Other Inputs'!$E$277 -> 0.01174 | N9: ='Other Inputs'!$E$277 -> 0.01174 | O9: ='Other Inputs'!$E$277 -> 0.01174 | P9: ='Other Inputs'!$E$277 -> 0.01174 | T9: Base DNG | U9: ='Ut 1.8'!C60 -> 0.64584 | V9: ='Ut 1.8'!D60 -> 0.10683 | W9: ='Ut 1.8'!E60 -> 0.06739 | AB9: Base SNG | AC9: =ROUND('Ut 1.6 p3'!#REF!,5) ->  | AI9: Distribution Non-Gas Rate | AK9: =SUM(AK7:AM8) -> 6.81584
B10: Distribution Non-Gas Rate | C10: =SUM(C6:C9) -> 2.12203 | D10: =SUM(D6:D9) -> 1.15969 | E10: =SUM(E6:E9) -> 2.7336 | F10: =SUM(F6:F9) -> 1.77519 | J10: Distribution Non-Gas Rate | K10: =SUM(K8:K9) -> 0.93264 | L10: 0.51027 | M10: 0.06566 | N10: 1.40654 | O10: 0.98416 | P10: 0.53956 | T10: Energy Assistance | U10: ='Other Inputs'!$E$278 -> 0.00657 | V10: ='Other Inputs'!$E$278 -> 0.00657 | W10: ='Other Inputs'!$E$278 -> 0.00657 | AB10: SNG Amortization | AC10: =ROUND('Ut 1.6 p3'!#REF!,5) -> 
T11: Distribution Non-Gas Rate | U11: =SUM(U9:U10) -> 0.65241 | V11: =SUM(V9:V10) -> 0.1134 | W11: =SUM(W9:W10) -> 0.07396 | AB11: Supplier Non-Gas Rate | AC11: =SUM(AC9:AF10) ->  | AI11: Base SNG | AK11: =ROUND('Ut 1.6 p3'!G$22,5) -> 0.89024
B12: Base SNG | C12: ='CET & DSM'!I38 -> 0.57923 | D12: ='CET & DSM'!I39 -> 0.57923 | E12: ='CET & DSM'!I40 -> 1.23368 | F12: ='CET & DSM'!I41 -> 1.23368 | J12: Base SNG | K12: =ROUND('Ut 1.6 p3'!G$20,5) -> 0.57923 | L12: =ROUND('Ut 1.6 p3'!G$20,5) -> 0.57923 | M12: =ROUND('Ut 1.6 p3'!G$20,5) -> 0.57923 | N12: =ROUND('Ut 1.6 p3'!G$19,5) -> 1.20155 | O12: =ROUND('Ut 1.6 p3'!G$19,5) -> 1.20155 | P12: =ROUND('Ut 1.6 p3'!G$19,5) -> 1.20155 | T12: Supplier Non-Gas Rate | U12: =ROUND('Ut 1.6 p3'!$G$24/(1-'Other Inputs'!$E$326),5) -> 0.17909 | V12: =ROUND('Ut 1.6 p3'!$G$24/(1-'Other Inputs'!$E$326),5) -> 0.17909 | W12: =ROUND('Ut 1.6 p3'!$G$24/(1-'Other Inputs'!$E$326),5) -> 0.17909 | AI12: SNG Amortization | AK12: =ROUND('Ut 1.6 p3'!H$22,5) -> 0.03645
B13: SNG Amortization | C13: ='CET & DSM'!J38 -> 0.02371 | D13: ='CET & DSM'!J39 -> 0.02371 | E13: ='CET & DSM'!J40 -> 0.0505 | F13: ='CET & DSM'!J41 -> 0.0505 | J13: SNG Amortization | K13: =ROUND('Ut 1.6 p3'!H$20,5) -> 0.02371 | L13: =ROUND('Ut 1.6 p3'!H$20,5) -> 0.02371 | M13: =ROUND('Ut 1.6 p3'!H$20,5) -> 0.02371 | N13: =ROUND('Ut 1.6 p3'!H$19,5) -> 0.04919 | O13: =ROUND('Ut 1.6 p3'!H$19,5) -> 0.04919 | P13: =ROUND('Ut 1.6 p3'!H$19,5) -> 0.04919 | AB13: Commodity Rate | AC13: Highest Gas Cost | AI13: Supplier Non-Gas Rate | AK13: =SUM(AK11:AM12) -> 0.92669
B14: Supplier Non-Gas Rate | C14: =SUM(C12:C13) -> 0.60294 | D14: =SUM(D12:D13) -> 0.60294 | E14: =SUM(E12:E13) -> 1.28418 | F14: =SUM(F12:F13) -> 1.28418 | J14: Supplier Non-Gas Rate | K14: =SUM(K12:K13) -> 0.60294 | L14: 0.60294 | M14: 0.60294 | N14: 1.25074 | O14: 1.25074 | P14: 1.25074 | AB14: Total Rate | AC14: $
AI15: Base Gas Cost | AK15: =ROUND('Ut 1.6 p1'!$F$31,5) -> 4.08676
B16: Base Gas Cost | C16: ='Ut 1.6 p1'!$F$31 -> 4.08676 | D16: ='Ut 1.6 p1'!$F$31 -> 4.08676 | E16: ='Ut 1.6 p1'!$F$31 -> 4.08676 | F16: ='Ut 1.6 p1'!$F$31 -> 4.08676 | J16: Base Gas Cost | K16: =ROUND('Ut 1.6 p1'!$F$31,5) -> 4.08676 | L16: =ROUND('Ut 1.6 p1'!$F$31,5) -> 4.08676 | M16: =ROUND('Ut 1.6 p1'!$F$31,5) -> 4.08676 | N16: =ROUND('Ut 1.6 p1'!$F$31,5) -> 4.08676 | O16: =ROUND('Ut 1.6 p1'!$F$31,5) -> 4.08676 | P16: =ROUND('Ut 1.6 p1'!$F$31,5) -> 4.08676 | AB16: Penalty for failure to interrupt or limit usage when requested by the Company. See See § 3.02 | AI16: Commodity Amortization | AK16: =ROUND('Ut 1.6 p1'!$F$32,5) -> 0.13552
B17: 191 Amortization | C17: ='Ut 1.6 p1'!$F$32 -> 0.1355188007 | D17: ='Ut 1.6 p1'!$F$32 -> 0.1355188007 | E17: ='Ut 1.6 p1'!$F$32 -> 0.1355188007 | F17: ='Ut 1.6 p1'!$F$32 -> 0.1355188007 | J17: 191 Amortization | K17: =ROUND('Ut 1.6 p1'!$F$32,5) -> 0.13552 | L17: =ROUND('Ut 1.6 p1'!$F$32,5) -> 0.13552 | M17: =ROUND('Ut 1.6 p1'!$F$32,5) -> 0.13552 | N17: =ROUND('Ut 1.6 p1'!$F$32,5) -> 0.13552 | O17: =ROUND('Ut 1.6 p1'!$F$32,5) -> 0.13552 | P17: =ROUND('Ut 1.6 p1'!$F$32,5) -> 0.13552 | AI17: Commodity Rate | AK17: =SUM(AK15:AM16) -> 4.22228
B18: Commodity Rate | C18: =SUM(C16:C17) -> 4.222278801 | D18: =SUM(D16:D17) -> 4.222278801 | E18: =SUM(E16:E17) -> 4.222278801 | F18: =SUM(F16:F17) -> 4.222278801 | J18: Commodity Rate | K18: =SUM(K16:K17) -> 4.22228 | L18: 4.22228 | M18: 4.22228 | N18: 4.22228 | O18: 4.22228 | P18: 4.22228 | T18: Total Rate | U18: $ | V18: $ | W18: $
AI19: Total Rate | AK19: =SUM(AK9,AK13,AK17) -> 11.96481
B20: Total Rate | C20: =SUM(C18,C14,C10) -> 6.947248801 | D20: =SUM(D18,D14,D10) -> 5.984908801 | E20: =SUM(E18,E14,E10) -> 8.240058801 | F20: =SUM(F18,F14,F10) -> 7.281648801 | J20: Total Rate | K20: =SUM(K18,K14,K10) -> 5.75786 | L20: 5.33549 | M20: 4.89088 | N20: 6.87956 | O20: 6.45718 | P20: 6.01258 | T20: Minimum Monthly Distribution Non-Gas Charge
AI21: Penalty for failure to interrupt or limit usage when requested by the Company. See See § 3.02
E22: BSF Category 1 | F22: ='Ut 1.8'!C12 -> 6.75 | J22: Minimum Monthly Distribution Non-Gas Charge | O22: Summer | P22: =ROUND(K8*175,0) -> 161
E23: BSF Category 2 | F23: ='Ut 1.8'!C13 -> 18.25 | O23: Winter | P23: =ROUND(N8*175,0) -> 244
E24: BSF Category 3 | F24: ='Ut 1.8'!C14 -> 63.5 | V24: BSF Category 1 | W24: 5
E25: BSF Category 4 | F25: ='Ut 1.8'!C15 -> 420.25 | V25: BSF Category 2 | W25: 29
N26: BSF Category 1 | P26: 5 | V26: BSF Category 3 | W26: 67
N27: BSF Category 2 | P27: 21 | V27: BSF Category 4 | W27: 274
N28: BSF Category 3 | P28: 55
N29: BSF Category 4 | P29: 244
AI30: =B44 -> Issued by R. W. Jibson, President | AL30: Advice No | AM30: Section Revision No.
AB39: =B44 -> Issued by R. W. Jibson, President | AE39: Advice No | AF39: Section Revision No.
AB42: New Pass Through Values
B44: Issued by R. W. Jibson, President | D44: Advice No | E44: Section Revision No. | F44: Effective Date
T47: =B44 -> Issued by R. W. Jibson, President | W47: Advice No
B48: Pass Through Changes | J48: =B44 -> Issued by R. W. Jibson, President | M48: Advice No | N48: Section Revision No. | P48: Effective Date
T50: New Pass Through Values
J51: New Pass Through Values

Sheet UT Tariff Sheets (hidden)
B2: 2.02 GS Rate Schedule | I2: 2.02 GS Rate Schedule
C3: Rates Per Dth Used Each Month | J3: Rates Per Dth Used Each Month
C4: Summer Rates: Apr. 1 - Oct. 31 | E4: Winter Rates: Nov. 1 - Mar. 31 | J4: Summer Rates: Apr. 1 - Oct. 31 | L4: Winter Rates: Nov. 1 - Mar. 31
C5: First 45 Dth | D5: All Over 45 Dth | E5: First 45 Dth | F5: All Over 45 Dth | J5: First 45 Dth | K5: All Over 45 Dth | L5: First 45 Dth | M5: All Over 45 Dth
B6: Base DNG | C6: ='CET & DSM'!B24 -> 1.7267 | D6: ='CET & DSM'!B25 -> 0.7267 | E6: ='CET & DSM'!B26 -> 2.34949 | F6: ='CET & DSM'!B27 -> 1.34949 | I6: Base DNG | J6: ='CET & DSM'!B31 -> 1.7267 | K6: ='CET & DSM'!B32 -> 0.7267 | L6: ='CET & DSM'!B33 -> 2.34949 | M6: ='CET & DSM'!B34 -> 1.34949
B7: CET Amortization | C7: ='CET & DSM'!H16 -> -0.01743 | D7: ='CET & DSM'!H17 -> -0.00733 | E7: ='CET & DSM'!H18 -> -0.02371 | F7: ='CET & DSM'!H19 -> -0.01362 | I7: CET Amortization | J7: ='CET & DSM'!C31 -> -0.0599 | K7: ='CET & DSM'!C32 -> -0.02224 | L7: ='CET & DSM'!C33 -> -0.07112 | M7: ='CET & DSM'!C34 -> -0.02953
B8: DSM Amortization | C8: ='CET & DSM'!D24 -> 0.44104 | D8: ='CET & DSM'!D25 -> 0.44104 | E8: ='CET & DSM'!D26 -> 0.44104 | F8: ='CET & DSM'!D27 -> 0.44104 | I8: DSM Amortization | J8: =ROUND('CET & DSM'!D31,5) -> 0.44075 | K8: =ROUND('CET & DSM'!D32,5) -> 0.44075 | L8: =ROUND('CET & DSM'!D33,5) -> 0.44075 | M8: =ROUND('CET & DSM'!D34,5) -> 0.44075
B9: Energy Assistance | C9: ='Other Inputs'!$E$276 -> 0.01419 | D9: ='Other Inputs'!$E$276 -> 0.01419 | E9: ='Other Inputs'!$E$276 -> 0.01419 | F9: ='Other Inputs'!$E$276 -> 0.01419 | I9: Energy Assistance | J9: ='Other Inputs'!$E$276 -> 0.01419 | K9: ='Other Inputs'!$E$276 -> 0.01419 | L9: ='Other Inputs'!$E$276 -> 0.01419 | M9: ='Other Inputs'!$E$276 -> 0.01419
B10: Distribution Non-Gas Rate | C10: =SUM(C6:C9) -> 2.1645 | D10: =SUM(D6:D9) -> 1.1746 | E10: =SUM(E6:E9) -> 2.78101 | F10: =SUM(F6:F9) -> 1.7911 | I10: Distribution Non-Gas Rate | J10: =SUM(J6:J9) -> 2.12174 | K10: =SUM(K6:K9) -> 1.1594 | L10: =SUM(L6:L9) -> 2.73331 | M10: =SUM(M6:M9) -> 1.7749
B12: Base SNG | C12: ='CET & DSM'!I24 -> 0.55715 | D12: ='CET & DSM'!I25 -> 0.55715 | E12: ='CET & DSM'!I26 -> 1.18665 | F12: ='CET & DSM'!I27 -> 1.18665 | I12: Base SNG | J12: ='CET & DSM'!I31 -> 0.55715 | K12: ='CET & DSM'!I32 -> 0.55715 | L12: ='CET & DSM'!I33 -> 1.18665 | M12: ='CET & DSM'!I34 -> 1.18665
B13: SNG Amortization | C13: ='CET & DSM'!J24 -> 0.01244 | D13: ='CET & DSM'!J25 -> 0.01244 | E13: ='CET & DSM'!J26 -> 0.02651 | F13: ='CET & DSM'!J27 -> 0.02651 | I13: SNG Amortization | J13: ='CET & DSM'!J31 -> 0.01244 | K13: ='CET & DSM'!J32 -> 0.01244 | L13: ='CET & DSM'!J33 -> 0.02651 | M13: ='CET & DSM'!J34 -> 0.02651
B14: Supplier Non-Gas Rate | C14: =SUM(C12:C13) -> 0.56959 | D14: =SUM(D12:D13) -> 0.56959 | E14: =SUM(E12:E13) -> 1.21316 | F14: =SUM(F12:F13) -> 1.21316 | I14: Supplier Non-Gas Rate | J14: =SUM(J12:J13) -> 0.56959 | K14: =SUM(K12:K13) -> 0.56959 | L14: =SUM(L12:L13) -> 1.21316 | M14: =SUM(M12:M13) -> 1.21316
B16: Base Gas Cost | C16: ='CET & DSM'!L24 -> 4.21339 | D16: ='CET & DSM'!L25 -> 4.21339 | E16: ='CET & DSM'!L26 -> 4.21339 | F16: ='CET & DSM'!L27 -> 4.21339 | I16: Base Gas Cost | J16: ='CET & DSM'!L31 -> 4.21339 | K16: ='CET & DSM'!L32 -> 4.21339 | L16: ='CET & DSM'!L33 -> 4.21339 | M16: ='CET & DSM'!L34 -> 4.21339
B17: 191 Amortization | C17: ='CET & DSM'!M24 -> 0.14067 | D17: ='CET & DSM'!M25 -> 0.14067 | E17: ='CET & DSM'!M26 -> 0.14067 | F17: ='CET & DSM'!M27 -> 0.14067 | I17: 191 Amortization | J17: ='CET & DSM'!M31 -> 0.14067 | K17: ='CET & DSM'!M32 -> 0.14067 | L17: ='CET & DSM'!M33 -> 0.14067 | M17: ='CET & DSM'!M34 -> 0.14067
B18: Commodity Rate | C18: =SUM(C16:C17) -> 4.35406 | D18: =SUM(D16:D17) -> 4.35406 | E18: =SUM(E16:E17) -> 4.35406 | F18: =SUM(F16:F17) -> 4.35406 | I18: Commodity Rate | J18: =SUM(J16:J17) -> 4.35406 | K18: =SUM(K16:K17) -> 4.35406 | L18: =SUM(L16:L17) -> 4.35406 | M18: =SUM(M16:M17) -> 4.35406
B20: Total Rate | C20: =SUM(C18,C14,C10) -> 7.08815 | D20: =SUM(D18,D14,D10) -> 6.09825 | E20: =SUM(E18,E14,E10) -> 8.34823 | F20: =SUM(F18,F14,F10) -> 7.35832 | I20: Total Rate | J20: =SUM(J18,J14,J10) -> 7.04539 | K20: =SUM(K18,K14,K10) -> 6.08305 | L20: =SUM(L18,L14,L10) -> 8.30053 | M20: =SUM(M18,M14,M10) -> 7.34212
E23: BSF Category 1 | F23: ='Ut 1.8'!C12 -> 6.75 | L23: BSF Category 1 | M23: ='Ut 1.8'!C12 -> 6.75
E24: BSF Category 2 | F24: ='Ut 1.8'!C13 -> 18.25 | L24: BSF Category 2 | M24: ='Ut 1.8'!C13 -> 18.25
E25: BSF Category 3 | F25: ='Ut 1.8'!C14 -> 63.5 | L25: BSF Category 3 | M25: ='Ut 1.8'!C14 -> 63.5
E26: BSF Category 4 | F26: ='Ut 1.8'!C15 -> 420.25 | L26: BSF Category 4 | M26: ='Ut 1.8'!C15 -> 420.25
B45: Issued by R. W. Jibson, President | D45: Advice No | E45: Section Revision No. | F45: Effective Date | I45: Issued by R. W. Jibson, President | K45: Advice No | L45: Section Revision No. | M45: Effective Date
B49: New CET Only | I49: NEW DSM ONLY

Sheet Utah Summary-by class
A1: UTAH SUMMARY
B2: NOT AN EXHIBIT !!!
A3: NEEDS TO BE UPDATED FOR GSR AND GSC RATES | Q3: Sub Total
C4: COMMODITY | J4: SNG | Q4: TOTAL
C5: Current | D5: Proposed | E5: Current | F5: Proposed | G5: Revenue | H5: % | J5: Current | K5: Proposed | L5: Current | M5: Proposed | N5: Revenue | O5: % | Q5: Revenue | R5: %
A6: RATE | B6: Dth Sales | C6: Rates | D6: Rates | E6: Revenue | F6: Revenue | G6: Difference | H6: Change | J6: Rates | K6: Rates | L6: Revenue | M6: Revenue | N6: Difference | O6: Change | Q6: Difference | R6: Change
A8: GS (W) | B8: =Calculations!P52 -> 76423554 | C8: ='Ut 1.6 p1'!$H$33 -> 4.01936 | D8: =ROUND('Ut 1.6 p1'!$F$33,5) -> 4.22228 | E8: =ROUND(B8*C8,0) -> 307173776 | F8: =ROUND(B8*D8,0) -> 322681644 | G8: =(F8-E8) -> 15507868 | J8: ='Ut 1.6 p3'!E16 -> 1.26164 | K8: ='Ut 1.6 p3'!I16 -> 1.28418 | L8: =ROUND(B8*J8,0) -> 96419013 | M8: =B8*K8 -> 98141599.58 | N8: =(M8-L8) -> 1722586.576 | Q8: =G8+N8 -> 17230454.58
A9: GS (S) | B9: =Calculations!P53 -> 29471729 | C9: ='Ut 1.6 p1'!$H$33 -> 4.01936 | D9: =D8 -> 4.22228 | E9: =ROUND(B9*C9,0) -> 118457489 | F9: =ROUND(B9*D9,0) -> 124437892 | G9: =(F9-E9) -> 5980403 | J9: ='Ut 1.6 p3'!E17 -> 0.59236 | K9: ='Ut 1.6 p3'!I17 -> 0.60294 | L9: =ROUND(B9*J9,0) -> 17457873 | M9: =B9*K9 -> 17769684.28 | N9: =(M9-L9) -> 311811.2833 | Q9: =G9+N9 -> 6292214.283
A10: Total | B10: =SUM(B8:B9) -> 105895283 | E10: =SUM(E8:E9) -> 425631265 | F10: =SUM(F8:F9) -> 447119536 | G10: =SUM(G8:G9) -> 21488271 | H10: =IF(G10=0,0,G10/E10) -> 0.05048564983 | L10: =SUM(L8:L9) -> 113876886 | M10: =SUM(M8:M9) -> 115911283.9 | N10: =SUM(N8:N9) -> 2034397.859 | O10: =IF(N10=0,0,N10/L10) -> 0.01786488839 | Q10: =SUM(Q8:Q9) -> 23522668.86 | R10: =IF(Q10=0,0,Q10/(E10+L10)) -> 0.04360021033
A13: FS (W) | B13: =Calculations!P58 -> 2041865 | C13: ='Ut 1.6 p1'!$H$33 -> 4.01936 | D13: =D8 -> 4.22228 | E13: =ROUND(B13*C13,0) -> 8206991 | F13: =ROUND(B13*D13,0) -> 8621326 | G13: =(F13-E13) -> 414335 | J13: ='Ut 1.6 p3'!E19 -> 1.22878 | K13: ='Ut 1.6 p3'!I19 -> 1.25074 | L13: =ROUND(B13*J13,0) -> 2509003 | M13: =B13*K13 -> 2553842.23 | N13: =(M13-L13) -> 44839.2301 | Q13: =G13+N13 -> 459174.2301
A14: FS (S) | B14: =Calculations!P59 -> 1929101 | C14: ='Ut 1.6 p1'!$H$33 -> 4.01936 | D14: =D9 -> 4.22228 | E14: =ROUND(B14*C14,0) -> 7753751 | F14: =ROUND(B14*D14,0) -> 8145205 | G14: =(F14-E14) -> 391454 | J14: ='Ut 1.6 p3'!E20 -> 0.59236 | K14: ='Ut 1.6 p3'!I20 -> 0.60294 | L14: =ROUND(B14*J14,0) -> 1142722 | M14: =B14*K14 -> 1163132.157 | N14: =(M14-L14) -> 20410.15694 | Q14: =G14+N14 -> 411864.1569
A15: Total | B15: =SUM(B13:B14) -> 3970966 | E15: =SUM(E13:E14) -> 15960742 | F15: =SUM(F13:F14) -> 16766531 | G15: =SUM(G13:G14) -> 805789 | H15: =IF(G15=0,0,G15/E15) -> 0.05048568544 | L15: =SUM(L13:L14) -> 3651725 | M15: =SUM(M13:M14) -> 3716974.387 | N15: =SUM(N13:N14) -> 65249.38704 | O15: =IF(N15=0,0,N15/L15) -> 0.01786809988 | Q15: =SUM(Q13:Q14) -> 871038.387 | R15: =IF(Q15=0,0,Q15/(E15+L15)) -> 0.04441248452
A18: NGV | B18: =Calculations!P12 -> 281652 | C18: ='Ut 1.6 p1'!$H$33 -> 4.01936 | D18: =D8 -> 4.22228 | E18: =ROUND(B18*C18,0) -> 1132061 | F18: =ROUND(B18*D18,0) -> 1189214 | G18: =(F18-E18) -> 57153 | H18: =IF(G18=0,0,G18/E18) -> 0.05048579538 | J18: ='Ut 1.6 p3'!E22 -> 0.91042 | K18: ='Ut 1.6 p3'!I22 -> 0.92669 | L18: =ROUND(B18*J18,0) -> 256422 | M18: =ROUND(B18*K18,0) -> 261004 | N18: =(M18-L18) -> 4582 | O18: =IF(N18=0,0,N18/L18) -> 0.0178689816 | Q18: =G18+N18 -> 61735 | R18: =IF(Q18=0,0,Q18/(E18+L18)) -> 0.04446219363
A21: IS | B21: =Calculations!P17 -> 565291 | C21: ='Ut 1.6 p1'!$H$33 -> 4.01936 | D21: =D8 -> 4.22228 | E21: =ROUND(B21*C21,0) -> 2272108 | F21: =ROUND(B21*D21,0) -> 2386817 | G21: =(F21-E21) -> 114709 | H21: =IF(G21=0,0,G21/E21) -> 0.05048571635 | J21: ='Ut 1.6 p3'!E24 -> 0.17877 | K21: ='Ut 1.6 p3'!I24 -> 0.17864 | L21: =ROUND(B21*J21,0) -> 101057 | M21: =ROUND(B21*K21,0) -> 100984 | N21: =(M21-L21) -> -73 | O21: =IF(N21=0,0,N21/L21) -> -0.0007223646061 | Q21: =G21+N21 -> 114636 | R21: =IF(Q21=0,0,Q21/(E21+L21)) -> 0.04830511153
B23: - | E23: - | F23: - | G23: - | L23: ------------------- | M23: ------------------- | N23: ------------------- | Q23: -------------------
B24: =B10+B15+B18+B21 -> 110713192 | E24: =E10+E15+E18+E21 -> 444996176 | F24: =F10+F15+F18+F21 -> 467462098 | G24: =G10+G15+G18+G21 -> 22465922 | H24: =IF(G24=0,0,G24/E24) -> 0.05048565181 | L24: =L10+L15+L18+L21 -> 117886090 | M24: =M10+M15+M18+M21 -> 119990246.2 | N24: =N10+N15+N18+N21 -> 2104156.246 | O24: =IF(N24=0,0,N24/L24) -> 0.01784906299 | Q24: =Q10+Q15+Q18+Q21 -> 24570078.25 | R24: =IF(Q24=0,0,Q24/(E24+L24)) -> 0.04365047494
G25: =IF(G24>0,"Commodity Increase","Commodity Decrease") -> Commodity Increase | N25: =IF(N24>0,"Increase to SNG","Decrease to SNG") -> Increase to SNG
B26: NOT AN EXHIBIT !!!
G27: =ROUND(G24,-3) -> 22466000 | N27: =ROUND(N24,-3) -> 2104000 | Q27: =ROUND(Q24,-3) -> 24570000
G28: Rounded | N28: Rounded | Q28: Rounded

Sheet UT Summary - by cost (hidden)

Sheet WY Summary - by cost (hidden)

Sheet Model Checks
B2: Model Checks
B3: If the total of all checks is not zero, or very close to zero, find the checks below that are out of balance and follow the calculations
B4: back through the model and correct any errors.
D6: Total of all Checks
D7: =ABS(SUM(D10:D1992)) -> 2.235774502
B9: Forecasted Demand
C10: Utah | D10: =Calculations!P25-'RevRun Fcst'!T205 -> 0
C11: Total System | D11: =Calculations!P47-'RevRun Fcst'!T370 -> 0
B12: Forecasted Utah Demand Check by Month
C13: 1 | D13: =Calculations!D25-'RevRun Fcst'!H205 -> 0
C14: 2 | D14: =Calculations!E25-'RevRun Fcst'!I205 -> 0
C15: 3 | D15: =Calculations!F25-'RevRun Fcst'!J205 -> 0
C16: 4 | D16: =Calculations!G25-'RevRun Fcst'!K205 -> 0
C17: 5 | D17: =Calculations!H25-'RevRun Fcst'!L205 -> 0
C18: 6 | D18: =Calculations!I25-'RevRun Fcst'!M205 -> 0
C19: 7 | D19: =Calculations!J25-'RevRun Fcst'!N205 -> 0
C20: 8 | D20: =Calculations!K25-'RevRun Fcst'!O205 -> 0
C21: 9 | D21: =Calculations!L25-'RevRun Fcst'!P205 -> 0
C22: 10 | D22: =Calculations!M25-'RevRun Fcst'!Q205 -> 0
C23: 11 | D23: =Calculations!N25-'RevRun Fcst'!R205 -> 0
C24: 12 | D24: =Calculations!O25-'RevRun Fcst'!S205 -> 0
C25: Wyoming I-2 and I-4 Revenues | D25: =('RevRun Fcst'!T273+'RevRun Fcst'!T282)-Calculations!P65 -> 0
C26: System Sales Volumes | D26: =Calculations!H76-'RevRun Fcst'!T368 -> 0
C27: Utah Sales Volumes | D27: =Calculations!P20-'Utah Summary-by class'!B24 -> 0
B28: Company Production | D28: =Calculations!P120-'Monthly Inputs'!S7-'Monthly Inputs'!S13 -> 0
B29: Injections | D29: ='Monthly Inputs'!S29-SUM('Monthly Inputs'!S23:S28) -> 0
B30: Withdrawls | D30: ='Monthly Inputs'!S37-SUM('Monthly Inputs'!S32:S36) -> 0
B31: Injections & Withdrawls | D31: =SUM('Ut 1.3 p2'!D23:D28)-'Monthly Inputs'!S29-'Monthly Inputs'!S37 -> 0
B32: Injections | D32: =Calculations!P129-'Monthly Inputs'!S29 -> 0
B33: Withdrawls | D33: =Calculations!P137-'Monthly Inputs'!S37 -> 0
B34: Sales for Resale | D34: =Expenses!S445-Calculations!P86 -> 0
B35: Incidental Plant Prod Sales | D35: =Expenses!S446-Calculations!P87 -> 0
B36: Incidental Gas & Oil Sales | D36: =Expenses!S447-Calculations!P89 -> 0
B37: Gasoline and Oil Costs | D37: =Expenses!S450+Calculations!P90 -> 0
B38: Wexpro Revenue Sharing | D38: =Expenses!S449-Calculations!P94 -> 0
B39: Storage Gas | D39: ='Rate Base'!U206-Calculations!P99 -> 0
B40: 101 Production | D40: ='Rate Base'!U148-Calculations!P100 -> 0
B41: 108 Production | D41: ='Rate Base'!U166-Calculations!P101 -> 0
B42: 111 Production | D42: ='Rate Base'!U173-Calculations!P102 -> 0
B43: 255 Production | D43: ='Rate Base'!U241-Calculations!P103 -> 0
B44: 282 Production | D44: ='Rate Base'!U248-Calculations!P104 -> 0
B45: 282.1 Production | D45: ='Rate Base'!U255-Calculations!P105 -> 0
B46: Production Rate Base | D46: =SUM(Calculations!P99:P105)-'Rate Base'!U275 -> 0
B47: Purchased Gas Cost | D47: ='Ut 1.2'!G24-Calculations!P194 -> 0.4982824922
B48: Working Gas Rate Base | D48: =Calculations!P99-'Ut 1.3 p2'!D53 -> 0
B49: Allocations | D49: ='Ut 1.5'!E43-'Ut 1.5'!F43-'Ut 1.5'!G43+'Ut 1.5'!G41 -> 0
B51: System Sales | D51: ='SDR#1'!C10-'RevRun Fcst'!T368 -> 0
B52: Lost & Unaccounted For | D52: ='SDR#1'!C15-(('SDR#1'!C10+'SDR#1'!C11)/(1-'Other Inputs'!E315)) -> 0.7830017954
B53: Supply / Demand | D53: ='SDR#1'!C36-'SDR#1'!C15 -> 0.3840711713
B54: System Sales | D54: ='SDR#3'!H36-'SDR#1'!C10 -> 0
B55: SNG Revenue | D55: ='SDR#4'!G23-'Utah Summary-by class'!L24 -> -0.1120299846
B56: Utah Sales | D56: ='SDR#3'!D36-'SDR#4'!E23 -> 0
B57: Utah Sales | D57: ='SDR#2'!G76+'Ut 1.6 p1'!J22 -> 0.6824490279
B58: Seasonal Volumes | D58: =Calculations!P52+Calculations!P53-Calculations!P7-Calculations!P8 -> 0
B59: Seasonal Volumes | D59: =Calculations!P55+Calculations!P56-Calculations!P9 -> 0
B60: Seasonal Volumes | D60: =Calculations!P58+Calculations!P59-Calculations!P10 -> 0

Sheet SDR#1
E1: ='Control Panel'!E32 -> Dominion Energy Utah
E2: ='Control Panel'!E33 -> Docket No. 17-057-20
B4: Standard Data Request #1
B5: Summary of Sources of Supply and Demand
A8: 1 | B8: DEMAND | C8: Total | D8: Utah | E8: Wyoming
A10: =A8+1 -> 2 | B10: SALES IN DTHS | C10: =D10+E10 -> 114952734 | D10: =Calculations!P20 -> 110713192 | E10: =Calculations!P39 -> 4239542
A11: =A10+1 -> 3 | B11: DIST. CO. USE & | C11: 0
A12: =A11+1 -> 4 | B12: DIST. LOST & UNACCT. (0.49%) | C12: =Calculations!P148 -> 531227
A15: =A12+1 -> 5 | B15: TOTAL | C15: =SUM(C10:C12) -> 115483961
A19: =A15+1 -> 6 | B19: SUPPLY | C19: Total | D19: Utah | E19: Wyoming
A21: =A19+1 -> 7 | B21: COMPANY PRODUCTION | C21: ='Ut 1.1'!F1416+'Ut 1.1'!F1632 -> 73396231.3 | D21: =$D$10/$C$10*C21 -> 70689323.91 | E21: =$E$10/$C$10*C21 -> 2706907.391
A22: =A21+1 -> 8 | B22: GAS REIMBURSEMENT | C22: =C21*-'Other Inputs'!$E$319 -> -4263807.265 | D22: =D21*-'Other Inputs'!$E$319 -> -4106554.894 | E22: =E21*-'Other Inputs'!$E$319 -> -157252.371
A25: =A22+1 -> 9 | B25: CONTRACT GAS | C25: ='Ut 1.2'!E24 -> 49086029 | D25: =$D$10/$C$10*C25 -> 47275699.88 | E25: =$E$10/$C$10*C25 -> 1810329.118
A26: =A25+1 -> 10 | B26: GAS REIMBURSEMENT | C26: =C25*-'Other Inputs'!$E$318 -> -765742.0524 | D26: =D25*-'Other Inputs'!$E$318 -> -737500.9182 | E26: =E25*-'Other Inputs'!$E$318 -> -28241.13424
A28: =A26+1 -> 11 | B28: STORAGE
A29: =A28+1 -> 12 | B29: INJECTIONS | C29: ='Ut 1.4 p2'!E22 -> -12863304.55 | D29: =$D$10/$C$10*C29 -> -12388896.35 | E29: =$E$10/$C$10*C29 -> -474408.2023
A30: =A29+1 -> 13 | B30: WITHDRAWALS | C30: ='Ut 1.4 p2'!E21 -> 11847135.26 | D30: =$D$10/$C$10*C30 -> 11410204.13 | E30: =$E$10/$C$10*C30 -> 436931.1261
A31: =A30+1 -> 14 | B31: NET (INJECTIONS) WITHDRAWALS | C31: =C29+C30 -> -1016169.288 | D31: =D29+D30 -> -978692.212 | E31: =E29+E30 -> -37477.07624
A33: =A31+1 -> 15 | B33: Storage Fuel | C33: =Calculations!P165+Calculations!P166-1 -> -952580.3087 | D33: =D10/C10*C33 -> -917448.4412 | E33: =E10/C10*C33 -> -35131.86757
A36: =A33+1 -> 16 | B36: TOTAL SUPPLY | C36: =C21+C22+C25+C26+C29+C30+C33 -> 115483961.4 | D36: =SUM(D21:D30)+D33 -> 111224827.3 | E36: =SUM(E21:E30)+E33 -> 4259134.06
A38: =A36+1 -> 17 | B38: Company Use & Loss % | C38: =(+C36-C10)/C36 -> 0.004600010059 | D38: =(+D36-D10)/D36 -> 0.004600010059 | E38: =(+E36-E10)/E36 -> 0.004600010059
B41: Difference | C41: =C15-C36 -> -0.3840711713

Sheet SDR#2
H1: ='Control Panel'!E32 -> Dominion Energy Utah
H2: ='Control Panel'!E33 -> Docket No. 17-057-20
A5: Standard Data Request #2
A6: Supplier Non-Gas Costs
B8: (A) | C8: (B) | D8: (C) | E8: (D) | F8: (E) | G8: (F) | T8: withdraw
A9: I. Transportation (QPC T-1) | C9: Volume (Dth) | G9: Utah Total | J9: Utah gas | K9: Utah Co. | L9: Utah gas | M9: Wyo gas | N9: Wyo Co. | O9: Wyo gas | Q9: @city gate | R9: @city gate | T9: loss | U9: Kern River
B10: Month | C10: Utah | D10: Wyoming | E10: $/dth | F10: Demand | G10: b*d+e*(Ut %) | J10: purchased | K10: production | L10: withdrawn | M10: purchased | N10: production | O10: withdrawn | P10: Total | Q10: purchased | R10: co production | S10: withdrawls | T10: =-Calculations!P165/Calculations!P137 -> 0.04208296538 | U10: Transportation
B12: =#REF! ->  | C12: =J12+K12+L12-(T12+$B$51*U12)*$J$39 -> 9346960.221 | D12: =M12+N12+O12-(T12+$B$51*U12)*$K$39 -> 357923.2945 | E12: ='Other Inputs'!$F$44 -> 0.00267 | F12: =('Other Inputs'!$D$28)*('Other Inputs'!$F$28)-('Other Inputs'!$E$323/12)+('Other Inputs'!$D$36*'Other Inputs'!$F$36) -> 4397829.873 | G12: =(+C12)*E12+F12*$J$33/$L$33 -> 4300845.039 | J12: =Q12*$J$39 -> 6915963.421 | K12: =R12*$J$39 -> 5586346.665 | L12: =S12*$J$39 -> 42001.68108 | M12: =Q12-J12 -> 264833.0959 | N12: =R12-K12 -> 213918.0606 | O12: =S12-L12 -> 1608.371033 | P12: =SUM(J12:O12)-U12 -> 9488121.294 | Q12: =Calculations!D169 -> 7180796.517 | R12: =Calculations!D161 -> 5800264.725 | S12: =Calculations!D163+Calculations!D164 -> 43610.05211 | T12: =S12*$T$10 -> 1835.240313 | U12: =V12*W12 -> 3536550 | V12: 117885 | W12: 30 | X12: =B12 -> 
B13: =#REF! ->  | C13: 14172351.68 | D13: 542702.0856 | E13: ='Other Inputs'!$F$44 -> 0.00267 | F13: =('Other Inputs'!$D$28)*('Other Inputs'!$F$28)-('Other Inputs'!$E$323/12)+('Other Inputs'!$D$36*'Other Inputs'!$F$36) -> 4397829.873 | G13: =(+C13)*E13+F13*$J$33/$L$33 -> 4313728.834 | J13: =Q13*$J$39 -> 9748374.778 | K13: 5648561.549 | L13: 3657926.946 | M13: 373294.6685 | N13: 216300.4561 | O13: 140073.054 | P13: =SUM(J13:O13)-U13 -> 14551421.45 | Q13: =Calculations!E169 -> 10121669.45 | R13: =Calculations!E161 -> 5864862.005 | S13: =Calculations!E163+Calculations!E164 -> 3798000 | T13: =S13*$T$10 -> 159831.1025 | U13: =V13*W13 -> 5233110 | V13: 168810 | W13: 31 | X13: =B13 -> 
B14: =#REF! ->  | C14: 15012425.36 | D14: 574871.04 | E14: ='Other Inputs'!$F$44 -> 0.00267 | F14: =('Other Inputs'!$D$28)*('Other Inputs'!$F$28)-('Other Inputs'!$E$323/12)+('Other Inputs'!$D$36*'Other Inputs'!$F$36) -> 4397829.873 | G14: 4315971.83 | J14: =Q14*$J$39 -> 11431683.9 | K14: 5487118.884 | L14: 2946181.814 | M14: 437753.6513 | N14: 210118.3296 | O14: 112818.1865 | P14: 15392564.77 | Q14: =Calculations!F169 -> 11869437.56 | R14: =Calculations!F161 -> 5697237.214 | S14: =Calculations!F163+Calculations!F164 -> 3059000 | T14: 128731.7911 | U14: =V14*W14 -> 5233110 | V14: 168810 | W14: 31
B15: =#REF! ->  | C15: 11737613.16 | D15: 449468.6051 | E15: ='Other Inputs'!$F$44 -> 0.00267 | F15: =('Other Inputs'!$D$28)*('Other Inputs'!$F$28)-('Other Inputs'!$E$323/12)+('Other Inputs'!$D$36*'Other Inputs'!$F$36) -> 4397829.873 | G15: 4307228.082 | J15: =Q15*$J$39 -> 8863124.846 | K15: 5072403.431 | L15: 2164128.975 | M15: 339395.7789 | N15: 194237.6242 | O15: 82871.02483 | P15: 11989481.68 | Q15: =Calculations!G169 -> 9202520.625 | R15: =Calculations!G161 -> 5266641.055 | S15: =Calculations!G163+Calculations!G164 -> 2247000 | T15: 94560.4232 | U15: 4726680 | V15: 168810 | W15: 28
B16: =#REF! ->  | C16: 9300993.95 | D16: 356163.1074 | E16: ='Other Inputs'!$F$44 -> 0.00267 | F16: =('Other Inputs'!$D$28)*('Other Inputs'!$F$28)-('Other Inputs'!$E$323/12)+('Other Inputs'!$D$36*'Other Inputs'!$F$36) -> 4397829.873 | G16: 4300722.309 | J16: 5162414.939 | K16: 5492953.572 | L16: 2033296.022 | M16: 197684.4363 | N16: 210341.7574 | O16: 77861.03651 | P16: 9520116.763 | Q16: =Calculations!H169 -> 5360099.375 | R16: =Calculations!H161 -> 5703295.329 | S16: =Calculations!H163+Calculations!H164 -> 2111157.059 | T16: 88843.7494 | U16: 3654435 | V16: 117885 | W16: 31
B17: =#REF! ->  | C17: 7511623.077 | D17: 287642.7005 | E17: ='Other Inputs'!$F$44 -> 0.00267 | F17: =('Other Inputs'!$D$28)*('Other Inputs'!$F$28)-('Other Inputs'!$E$323/12)+('Other Inputs'!$D$36*'Other Inputs'!$F$36) -> 4397829.873 | G17: 4295944.688 | J17: 2731210.785 | K17: 5183240.672 | L17: 566668.6955 | M17: 104586.2975 | N17: 198481.9165 | O17: 21699.45326 | P17: 7759337.82 | Q17: =Calculations!I169 -> 2835797.082 | R17: =Calculations!I161 -> 5381722.589 | S17: =Calculations!I163+Calculations!I164 -> 588368.1488 | T17: 24760.27643 | U17: 1046550 | V17: 34885 | W17: 30
B18: =#REF! ->  | C18: 4521176.287 | D18: 173129.4746 | E18: ='Other Inputs'!$F$44 -> 0.00267 | F18: =('Other Inputs'!$D$28)*('Other Inputs'!$F$28)-('Other Inputs'!$E$323/12)+('Other Inputs'!$D$36*'Other Inputs'!$F$36) -> 4397829.873 | G18: =(+C18)*E18+F18*$J$33/$L$33 -> 4287960.195 | J18: 261856.8292 | K18: 5236491.101 | L18: 0 | M18: 10027.28767 | N18: 200521.036 | O18: 0 | P18: 4627461.253 | Q18: =Calculations!J169 -> 271884.1169 | R18: =Calculations!J161 -> 5437012.137 | S18: =Calculations!J163+Calculations!J164 -> 0 | T18: 0 | U18: 1081435 | V18: 34885 | W18: 31
B19: =#REF! ->  | C19: 5516841.566 | D19: 211256.5007 | E19: ='Other Inputs'!$F$44 -> 0.00267 | F19: =('Other Inputs'!$D$28)*('Other Inputs'!$F$28)-('Other Inputs'!$E$323/12)+('Other Inputs'!$D$36*'Other Inputs'!$F$36) -> 4397829.873 | G19: 4290618.622 | J19: 433287.204 | K19: 5215975.177 | L19: 0 | M19: 16591.87371 | N19: 199735.4194 | O19: 0 | P19: 5719039.674 | Q19: =Calculations!K169 -> 449879.0777 | R19: =Calculations!K161 -> 5415710.596 | S19: =Calculations!K163+Calculations!K164 -> 0 | T19: 0 | U19: 146550 | V19: 4885 | W19: 30
B20: =#REF! ->  | C20: 5184882.38 | D20: 198544.7824 | E20: ='Other Inputs'!$F$44 -> 0.00267 | F20: =('Other Inputs'!$D$28)*('Other Inputs'!$F$28)-('Other Inputs'!$E$323/12)+('Other Inputs'!$D$36*'Other Inputs'!$F$36) -> 4397829.873 | G20: =(+C20)*E20+F20*$J$33/$L$33 -> 4289732.291 | J20: 33454.25525 | K20: 5288262.967 | L20: 0 | M20: 1281.064322 | N20: 202503.5368 | O20: 0 | P20: 5374066.823 | Q20: =Calculations!L169 -> 34735.31957 | R20: =Calculations!L161 -> 5490766.503 | S20: =Calculations!L163+Calculations!L164 -> 0 | T20: 0 | U20: 151435 | V20: 4885 | W20: 31
B21: =#REF! ->  | C21: 5229465.387 | D21: 200252.0002 | E21: ='Other Inputs'!$F$44 -> 0.00267 | F21: =('Other Inputs'!$D$28)*('Other Inputs'!$F$28)-('Other Inputs'!$E$323/12)+('Other Inputs'!$D$36*'Other Inputs'!$F$36) -> 4397829.873 | G21: =(+C21)*E21+F21*$J$33/$L$33 -> 4289851.327 | J21: 0.3637867383 | K21: 5366299.865 | L21: 0 | M21: 0.01393049128 | N21: 205491.805 | O21: 0 | P21: 5420357.048 | Q21: =Calculations!M169 -> 0.3777172295 | R21: =Calculations!M161 -> 5571791.67 | S21: =Calculations!M163+Calculations!M164 -> 0 | T21: 0 | U21: 151435 | V21: 4885 | W21: 31
B22: =#REF! ->  | C22: 5405001.847 | D22: 206973.8206 | E22: ='Other Inputs'!$F$44 -> 0.00267 | F22: =('Other Inputs'!$D$28)*('Other Inputs'!$F$28)-('Other Inputs'!$E$323/12)+('Other Inputs'!$D$36*'Other Inputs'!$F$36) -> 4397829.873 | G22: =(+C22)*E22+F22*$J$33/$L$33 -> 4290320.01 | J22: 75099.25403 | K22: 5462323.408 | L22: 0 | M22: 2875.776914 | N22: 209168.8361 | O22: 0 | P22: 5602917.275 | Q22: =Calculations!N169 -> 77975.03094 | R22: =Calculations!N161 -> 5671492.244 | S22: =Calculations!N163+Calculations!N164 -> 0 | T22: 0 | U22: 146550 | V22: 4885 | W22: 30
B23: =#REF! ->  | C23: 7447347.133 | D23: 285181.3807 | E23: ='Other Inputs'!$F$44 -> 0.00267 | F23: =('Other Inputs'!$D$28)*('Other Inputs'!$F$28)-('Other Inputs'!$E$323/12)+('Other Inputs'!$D$36*'Other Inputs'!$F$36) -> 4397829.873 | G23: =(+C23)*E23+F23*$J$33/$L$33 -> 4295773.072 | J23: 881727.7604 | K23: 7542791.015 | L23: 0 | M23: 33764.01498 | N23: 288836.2148 | O23: 0 | P23: 7665684.006 | Q23: =Calculations!O169 -> 915491.7754 | R23: =Calculations!O161 -> 7831627.23 | S23: =Calculations!O163+Calculations!O164 -> 0 | T23: 0 | U23: 1081435 | V23: 34885 | W23: 31
C26: =SUM(C12:C23) -> 100386682.1 | D26: =SUM(D12:D23) -> 3844108.792 | G26: =SUM(G12:G23) -> 51578696.3 | J26: =SUM(J12:J25) -> 46538198.34 | K26: 66582768.31 | L26: 11410204.13 | M26: 1782087.96 | N26: 2549654.992 | O26: 436931.1261 | P26: =SUM(P12:P23) -> 103110569.9 | Q26: 48320286.3 | R26: 69132423.3 | S26: 11847135.26 | T26: 498562.5829 | U26: 26189275
C29: Months | F29: System | G29: Utah | J29: Allocation Factors
C30: or Days | D30: Dth | E30: Rate | F30: Total | G30: Total
J31: Peak Demand Allocation Base
A32: II. Transportation (ML 104 demand) | C32: ='Other Inputs'!E29 -> 12 | D32: ='Other Inputs'!D29 -> 30000 | E32: ='Other Inputs'!F29 -> 5.28804 | F32: =C32*D32*E32 -> 1903694.4 | G32: =F32*J34 -> 1850909.545 | J32: Utah | K32: Wyo | L32: Total
J33: ='Other Inputs'!E161 -> 1300103.223 | K33: ='Other Inputs'!E162 -> 37076.77713 | L33: =J33+K33 -> 1337180
J34: =J33/L33 -> 0.9722724112 | K34: =K33/L33 -> 0.02772758875
A36: III. Transportation (TL 112 demand) | C36: ='Other Inputs'!E30 -> 12 | D36: ='Other Inputs'!D30 -> 12000 | E36: ='Other Inputs'!F30 -> 5.28804 | F36: =C36*D36*E36 -> 761477.76 | G36: =F36*J34 -> 740363.8178 | J36: Dth Sales Allocation Base
C37: ='Other Inputs'!E31 -> 5 | D37: ='Other Inputs'!D31 -> 75000 | E37: ='Other Inputs'!F31 -> 6.80887 | F37: =C37*D37*E37 -> 2553326.25 | G37: =F37*J34 -> 2482528.67 | J37: Utah | K37: Wyo | L37: Total
J38: =Calculations!P20 -> 110713192 | K38: =Calculations!P39 -> 4239542 | L38: =J38+K38 -> 114952734
A39: IV. Transportation (KR 2003 Expansion) | C39: ='Other Inputs'!E60 -> 7 | D39: ='Other Inputs'!D60 -> 3000 | E39: ='Other Inputs'!F60 -> 14.28577143 | F39: =C39*D39*E39 -> 300001.2 | J39: =J38/L38 -> 0.9631192591 | K39: =K38/L38 -> 0.03688074091
C40: ='Other Inputs'!E61 -> 5 | D40: ='Other Inputs'!D61 -> 50000 | E40: ='Other Inputs'!F61 -> 14.28577143 | F40: =C40*D40*E40 -> 3571442.857 | G40: =(F39+F40+F41+F42)*J34 -> 4244353.356
C41: ='Other Inputs'!E62 -> 12 | D41: ='Other Inputs'!D62 -> 1885 | E41: ='Other Inputs'!F62 -> 17.74204167 | F41: =C41*D41*E41 -> 401324.9825
C42: =+'Other Inputs'!E65 -> 5 | D42: =+'Other Inputs'!D65 -> 3000 | E42: =+'Other Inputs'!F65 -> 6.17508 | F42: =C42*D42*E42 -> 92626.2
A44: V. Transportation (KR #20024) | C44: =+'Other Inputs'!E73 -> 5 | D44: =+'Other Inputs'!D73 -> 27000 | E44: =+'Other Inputs'!F73 -> 8.758 | F44: =C44*D44*E44 -> 1182330 | G44: =F44*J34 -> 1149546.84
A46: VI. Transportation (KR #20017) | C46: =+'Other Inputs'!E69 -> 3 | D46: =+'Other Inputs'!D69 -> 56925 | E46: =+'Other Inputs'!F69 -> 8.7 | F46: 1485742.5 | G46: =F46*J34 -> 1444546.443
C47: =+'Other Inputs'!E71 -> 2 | D47: =+'Other Inputs'!D71 -> 6000 | E47: =+'Other Inputs'!F71 -> 8.845 | F47: 106140 | G47: =F47*J34 -> 103196.9937
A49: VII. Transportation (Sequent) | C49: =+'Other Inputs'!E76 -> 8 | D49: =+'Other Inputs'!D76 -> 30000 | E49: =+'Other Inputs'!F76 -> 14.27625 | F49: =C49*D49*E49 -> 3426300 | G49: =F49*J34 -> 3331296.963
A51: VIII. Trans (KR 2003 Expansion) | B51: ='Other Inputs'!C83 -> 0.9381890652 | C51: ='Other Inputs'!E82 -> 365 | D51: ='Other Inputs'!D82 -> 4885 | E51: ='Other Inputs'!F82 -> 0.0044 | F51: =B51*C51*D51*E51 -> 7360.384055
B52: ='Other Inputs'!C82 -> 0.9381890652 | C52: ='Other Inputs'!E83 -> 151 | D52: ='Other Inputs'!D83 -> 50000 | E52: ='Other Inputs'!F83 -> 0.0044 | F52: =B52*C52*D52*E52 -> 31166.64075 | G52: =(F51+F52)*J39 -> 37106.11958
A54: IX. Transportation (KR #20024) | B54: =+'Other Inputs'!C89 -> 0.9381890652 | C54: =+'Other Inputs'!E89 -> 151 | D54: =+'Other Inputs'!D89 -> 27000 | E54: =+'Other Inputs'!F89 -> 0.0044 | F54: =B54*C54*D54*E54 -> 16829.986 | G54: =+F54*J39 -> 16209.28365
A56: X. Trans (KR #20017) | B56: =+'Other Inputs'!C86 -> 0.9381890652 | C56: =+'Other Inputs'!E86 -> 90 | D56: =+'Other Inputs'!D86 -> 56925 | E56: =+'Other Inputs'!F86 -> 0.0044 | F56: =B56*C56*D56*E56 -> 21148.93936
B57: =+'Other Inputs'!C87 -> 0.9381890652 | C57: =+'Other Inputs'!E87 -> 61 | D57: =+'Other Inputs'!D87 -> 6000 | E57: =+'Other Inputs'!F87 -> 0.0044 | F57: =B57*C57*D57*E57 -> 1510.859671 | G57: =(F56+F57)*J39 -> 21824.08886
A59: XI. Transportation (Sequent) | B59: =+'Other Inputs'!C92 -> 0.9381890652 | C59: =+'Other Inputs'!E92 -> 243 | D59: =+'Other Inputs'!D92 -> 30000 | E59: =+'Other Inputs'!F92 -> 0.0044 | F59: =B59*C59*D59*E59 -> 30093.35245 | G59: =+F59*J39 -> 28983.48732
A61: XII. Other Trans, Gathering & Processing | F61: ='Other Inputs'!$D$197+'Other Inputs'!$D$199 -> 5402789.636 | G61: =F61*$J$39 -> 5203530.752
A63: XIII. Gathering Wexpro I | B63: Demand | F63: =+'Other Inputs'!E205 -> 12245844
A64: Wexpro I | B64: Commodity | F64: =+'Other Inputs'!D205 -> 5958489.514 | G64: =(F63)*'Ut 1.5'!G53+(F64)*'Ut 1.5'!G56 -> 17645032.28
A65: Wexpro II | B65: Commodity | F65: =+'Other Inputs'!D208 -> 7101910.329 | G65: =(F65)*'Ut 1.5'!G56 -> 6839986.614
A67: XIV. Storage Demand | C67: 12 | D67: ='Other Inputs'!E183 -> 184625 | E67: ='Other Inputs'!E14 -> 2.87375 | F67: =C67*D67*E67 -> 6366793.125
C68: 12 | D68: =+'Other Inputs'!E184 -> 2500000 | E68: =+'Other Inputs'!E15 -> 0.09 | F68: =C68*D68*E68 -> 2700000
C69: 12 | D69: ='Other Inputs'!E185 -> 111827 | E69: ='Other Inputs'!E16 -> 2.85338 | F69: =C69*D69*E69 -> 3829019.103
C70: 12 | D70: ='Other Inputs'!E186 -> 13419000 | E70: ='Other Inputs'!E17 -> 0.02378 | F70: =C70*D70*E70 -> 3829245.84 | G70: =SUM(F67:F70)*J34 -> 16261312.54
A72: XV. Peak Hour Service | C72: =+'Other Inputs'!E20 -> 3 | D72: =+'Other Inputs'!D20 -> 25000 | E72: =+'Other Inputs'!F20 -> 11.65333333 | F72: =C72*D72*E72 -> 874000 | G72: =F72*J34 -> 849766.0874
C73: =+'Other Inputs'!E23 -> 3 | D73: =+'Other Inputs'!D23 -> 83333 | E73: =+'Other Inputs'!F23 -> 5.951283805 | F73: =C73*D73*E73 -> 1487815 | G73: =F73*J34 -> 1446561.478
A76: Total Supplier Non-Gas Costs | G76: =G26+G32+G36+G37+G40+G52+G61+G65+G70+G64+G44+G46+G47+G54+G57+G59+G49+G72+G73 -> 115275751.7

Sheet SDR#3
I1: ='Control Panel'!E32 -> Dominion Energy Utah
I2: ='Control Panel'!E33 -> Docket No. 17-057-20
C5: Standard Data Request #3
C6: Monthly Forecasted Sales
D8: Utah Sales | F8: Wyoming Sales | H8: System Total
C9: Month | D9: Dth | F9: Dth | H9: Dth
B11: 1 | C11: =Calculations!D141 -> Nov17 | D11: =Calculations!D20 -> 11991185 | F11: =Calculations!D39 -> 447177 | H11: =SUM(D11:F11) -> 12438362
B13: =B11+1 -> 2 | C13: =Calculations!E141 -> Dec17 | D13: =Calculations!E20 -> 18732947 | F13: =Calculations!E39 -> 658525 | H13: =SUM(D13:F13) -> 19391472
B15: =B13+1 -> 3 | C15: =Calculations!F141 -> Jan18 | D15: =Calculations!F20 -> 19660803 | F15: =Calculations!F39 -> 685502 | H15: 20346305
B17: =B15+1 -> 4 | C17: =Calculations!G141 -> Feb18 | D17: =Calculations!G20 -> 15922735 | F17: =Calculations!G39 -> 621190 | H17: 16543925
B19: =B17+1 -> 5 | C19: =Calculations!H141 -> Mar18 | D19: =Calculations!H20 -> 12506171 | F19: =Calculations!H39 -> 525454 | H19: 13031625
B21: =B19+1 -> 6 | C21: =Calculations!I141 -> Apr18 | D21: =Calculations!I20 -> 8355732 | F21: =Calculations!I39 -> 373040 | H21: 8728772
B23: =B21+1 -> 7 | C23: =Calculations!J141 -> May18 | D23: =Calculations!J20 -> 5198663 | F23: =Calculations!J39 -> 246502 | H23: 5445165
B25: =B23+1 -> 8 | C25: =Calculations!K141 -> Jun18 | D25: =Calculations!K20 -> 3226449 | F25: =Calculations!K39 -> 135924 | H25: 3362373
B27: =B25+1 -> 9 | C27: =Calculations!L141 -> Jul18 | D27: =Calculations!L20 -> 2697828 | F27: =Calculations!L39 -> 87473 | H27: 2785301
B29: =B27+1 -> 10 | C29: =Calculations!M141 -> Aug18 | D29: =Calculations!M20 -> 2559869 | F29: =Calculations!M39 -> 85571 | H29: 2645440
B31: =B29+1 -> 11 | C31: =Calculations!N141 -> Sep18 | D31: =Calculations!N20 -> 2821070 | F31: =Calculations!N39 -> 122654 | H31: 2943724
B33: =B31+1 -> 12 | C33: =Calculations!O141 -> Oct18 | D33: =Calculations!O20 -> 7039740 | F33: =Calculations!O39 -> 250530 | H33: 7290270
B36: =B33+1 -> 13 | C36: Total Sales (Dth) | D36: =SUM(D11:D33) -> 110713192 | F36: =SUM(F11:F33) -> 4239542 | H36: =SUM(H11:H33) -> 114952734

Sheet SDR#4
H1: ='Control Panel'!E32 -> Dominion Energy Utah
H2: ='Control Panel'!E33 -> Docket No. 17-057-20
C5: Standard Data Request #4
C6: Supplier Non-Gas Costs Recovered at Current Rates
C9: (A) | D9: (B) | E9: (C) | F9: (D) | G9: (E)
B10: 1 | C10: Rate Schedule | D10: Season | E10: Sales Dth | F10: SNG Rate | G10: SNG Revenue
B12: =B10+1 -> 2 | C12: GS | D12: winter | E12: ='Utah Summary-by class'!B8 -> 76423554 | F12: ='Utah Summary-by class'!J8 -> 1.26164 | G12: =E12*F12 -> 96419012.67
B13: =B12+1 -> 3 | D13: summer | E13: ='Utah Summary-by class'!B9 -> 29471729 | F13: ='Utah Summary-by class'!J9 -> 0.59236 | G13: =E13*F13 -> 17457873.39
B15: =B13+1 -> 4 | C15: FS | D15: winter | E15: ='Utah Summary-by class'!B13 -> 2041865 | F15: ='Utah Summary-by class'!J13 -> 1.22878 | G15: =E15*F15 -> 2509002.875
B16: =B15+1 -> 5 | D16: summer | E16: ='Utah Summary-by class'!B14 -> 1929101 | F16: ='Utah Summary-by class'!J14 -> 0.59236 | G16: =E16*F16 -> 1142722.268
B18: =B16+1 -> 6 | C18: NGV | D18: annual | E18: ='Utah Summary-by class'!B18 -> 281652 | F18: ='Utah Summary-by class'!J18 -> 0.91042 | G18: =E18*F18 -> 256421.6138
B20: =B18+1 -> 7 | C20: IS | D20: annual | E20: ='Utah Summary-by class'!B21 -> 565291 | F20: ='Utah Summary-by class'!J21 -> 0.17877 | G20: =E20*F20 -> 101057.0721
B23: =B20+1 -> 8 | C23: Total Supplier Non-Gas Costs | E23: =SUM(E12:E20) -> 110713192 | G23: =SUM(G12:G20) -> 117886089.9

Sheet Wy SDR#1 (hidden)
A1: Wyoming Standard Data Request #1
A2: Global Insights Forecast

Sheet Ut 1.1
I1: Dominion Energy Utah
I2: ='Control Panel'!$E$33 -> Docket No. 17-057-20
I3: Exhibit 1.1
D4: Test Year Cost of Dominion Energy's Production
D5: November 2017 through October 2018
B7: WEXPRO I
B8: (A) | C8: (B) | D8: (C) | E8: (D) | F8: (E) | G8: (F) | H8: (G) | I8: (H)
F9: Base Year | G9: Market | H9: Royalty | I9: Test Year
B10: Field Name | C10: Well Name | D10: Formation | E10: Price $ | F10: Dth | G10: Value $ | H10: Rate % | I10: Royalty $
A12: 1 | B12: ACE UNIT (CO) | C12: ACE UNIT 10 FT UN | D12: MESAVERDE | E12: 2.845996889 | F12: 52476.369 | G12: =E12*F12 -> 149347.5829 | H12: 0.1268519763 | I12: =G12*H12 -> 18945.03605
A13: =A12+1 -> 2 | C13: ACE UNIT 11 FT UN | D13: FORT UNION | E13: 2.845996889 | F13: 47386.982 | G13: 134863.2034 | H13: 0.1268519763 | I13: =G13*H13 -> 17107.66388
A14: =A13+1 -> 3 | C14: ACE UNIT 12 FT UN | D14: FORT UNION | E14: 2.845996889 | F14: 96304.38 | G14: 274081.9659 | H14: 0.1268519763 | I14: 34767.83904
A15: =A14+1 -> 4 | C15: ACE UNIT 13 FT UN | D15: FORT UNION | E15: 2.845996889 | F15: 38407.83 | G15: 109308.5647 | H15: 0.1268519763 | I15: 13866.00746
A16: 5 | C16: ACE UNIT 2 FT UN | D16: FORT UNION | E16: 2.845996889 | F16: 57234.057 | G16: 162887.9482 | H16: 0.1268519763 | I16: 20662.65814
A17: 6 | B17: BIRCH CR (WY) | C17: BIRCH CREEK UNIT 1 BR | D17: BEAR RIVER | E17: 2.845996889 | F17: 7731.631 | G17: 22004.19777 | H17: 0.1331519628 | I17: 2929.902123
A18: 7 | C18: BIRCH CREEK UNIT 1 BR - D24 | D18: BEAR RIVER | E18: 2.845996889 | F18: 2308.722 | G18: 6570.61563 | H18: 0.1331519628 | I18: 874.8903677
A19: 8 | C19: BIRCH CREEK UNIT 1 FR | D19: FRONTIER | E19: 2.845996889 | F19: 7725.831 | G19: 21987.69099 | H19: 0.1331519628 | I19: 2927.704212
A20: 9 | C20: BIRCH CREEK UNIT 1 FR - D24 | D20: FRONTIER | E20: 2.845996889 | F20: 2307.777 | G20: 6567.926163 | H20: 0.1331519628 | I20: 874.5322599
A21: 10 | C21: BIRCH CREEK UNIT 100 FR | D21: FRONTIER | E21: 2.845996889 | F21: 7861.478 | G21: 22373.74193 | H21: 0.1331519628 | I21: 2979.107653
A22: 11 | C22: BIRCH CREEK UNIT 101 BR | D22: BEAR RIVER | E22: 2.845996889 | F22: 707.008 | G22: 2012.142569 | H22: 0.1331519628 | I22: 267.9207324
A23: 12 | C23: BIRCH CREEK UNIT 101 FR | D23: FRONTIER | E23: 2.845996889 | F23: 13407.087 | G23: 38156.52789 | H23: 0.1331519628 | I23: 5080.616582
A24: 13 | C24: BIRCH CREEK UNIT 103 BR | D24: BEAR RIVER | E24: 2.845996889 | F24: 1108.072 | G24: 3153.569465 | H24: 0.1331519628 | I24: 419.903964
A25: 14 | C25: BIRCH CREEK UNIT 103 FR | D25: FRONTIER | E25: 2.845996889 | F25: 9962.474 | G25: 28353.17001 | H25: 0.1331519628 | I25: 3775.280238
A26: 15 | C26: BIRCH CREEK UNIT 104 BR | D26: BEAR RIVER | E26: 2.845996889 | F26: 3224.141 | G26: 9175.895256 | H26: 0.1331519628 | I26: 1221.788463
A27: 16 | C27: BIRCH CREEK UNIT 104 FR | D27: FRONTIER | E27: 2.845996889 | F27: 13735.27 | G27: 39090.53569 | H27: 0.1331519628 | I27: 5204.981553
A28: 17 | C28: BIRCH CREEK UNIT 105 BR | D28: BEAR RIVER | E28: 2.845996889 | F28: 9018.831 | G28: 25667.56497 | H28: 0.1331519628 | I28: 3417.686655
A29: 18 | C29: BIRCH CREEK UNIT 105 FR | D29: FRONTIER | E29: 2.845996889 | F29: 10161.34 | G29: 28919.14203 | H29: 0.1331519628 | I29: 3850.640523
A30: 19 | C30: BIRCH CREEK UNIT 106 BR | D30: BEAR RIVER | E30: 2.845996889 | F30: 6088.016 | G30: 17326.4746 | H30: 0.1331519628 | I30: 2307.0541
A31: 20 | C31: BIRCH CREEK UNIT 106 FR | D31: FRONTIER | E31: 2.845996889 | F31: 21596.088 | G31: 61462.39927 | H31: 0.1331519628 | I31: 8183.839099
A32: 21 | C32: BIRCH CREEK UNIT 107 BR | D32: BEAR RIVER | E32: 2.845996889 | F32: 3231.777 | G32: 9197.627288 | H32: 0.1331519628 | I32: 1224.682126
A33: 22 | C33: BIRCH CREEK UNIT 107 FR | D33: FRONTIER | E33: 2.845996889 | F33: 3109.804 | G33: 8850.49251 | H33: 0.1331519628 | I33: 1178.460449
A34: 23 | C34: BIRCH CREEK UNIT 108 BR | D34: BEAR RIVER | E34: 2.845996889 | F34: 1998.003 | G34: 5686.310322 | H34: 0.1331519628 | I34: 757.1433803
A35: 24 | C35: BIRCH CREEK UNIT 108 FR | D35: FRONTIER | E35: 2.845996889 | F35: 9763.723 | G35: 27787.52528 | H35: 0.1331519628 | I35: 3699.963532
A36: 25 | C36: BIRCH CREEK UNIT 109 BAX | D36: BAXTER | E36: 2.845996889 | F36: 4227.396 | G36: 12031.15587 | H36: 0.13375 | I36: 1609.167097
A37: 26 | C37: BIRCH CREEK UNIT 109 BR | D37: BEAR RIVER | E37: 2.845996889 | F37: 10148.433 | G37: 28882.40875 | H37: 0.1331519628 | I37: 3845.749414
A38: 27 | C38: BIRCH CREEK UNIT 109 FR | D38: FRONTIER | E38: 2.845996889 | F38: 9223.463 | G38: 26249.947 | H38: 0.1331519628 | I38: 3495.231966
A39: 28 | C39: BIRCH CREEK UNIT 110 BR | D39: BEAR RIVER | E39: 2.845996889 | F39: 11756.412 | G39: 33458.71198 | H39: 0.1331519628 | I39: 4455.093172
A40: 29 | C40: BIRCH CREEK UNIT 110 FR | D40: FRONTIER | E40: 2.845996889 | F40: 10854.306 | G40: 30891.32111 | H40: 0.1331519628 | I40: 4113.240038
A41: 30 | C41: BIRCH CREEK UNIT 111 BR | D41: BEAR RIVER | E41: 2.845996889 | F41: 11715.831 | G41: 33343.21858 | H41: 0.1331519628 | I41: 4439.714999
A42: 31 | C42: BIRCH CREEK UNIT 111 FR | D42: FRONTIER | E42: 2.845996889 | F42: 4333.793 | G42: 12333.9614 | H42: 0.1331519628 | I42: 1642.291169
A43: 32 | C43: BIRCH CREEK UNIT 112 BR | D43: BEAR RIVER | E43: 2.845996889 | F43: 5238.038 | G43: 14907.43985 | H43: 0.1331519628 | I43: 1984.954876
A44: 33 | C44: BIRCH CREEK UNIT 112 FR | D44: FRONTIER | E44: 2.845996889 | F44: 14153.508 | G44: 40280.83974 | H44: 0.1331519628 | I44: 5363.472873
A45: 34 | C45: BIRCH CREEK UNIT 113 BR | D45: BEAR RIVER | E45: 2.845996889 | F45: 15022.572 | G45: 42754.19318 | H45: 0.1331519628 | I45: 5692.804738
A46: 35 | C46: BIRCH CREEK UNIT 113 FR | D46: FRONTIER | E46: 2.845996889 | F46: 4491.065 | G46: 12781.55702 | H46: 0.1331519628 | I46: 1701.889404
A47: 36 | C47: BIRCH CREEK UNIT 114 BR | D47: BEAR RIVER | E47: 2.845996889 | F47: 17801.522 | G47: 50663.07623 | H47: 0.1331519628 | I47: 6745.88804
A48: 37 | C48: BIRCH CREEK UNIT 114 FR | D48: FRONTIER | E48: 2.845996889 | F48: 4172.633 | G48: 11875.30054 | H48: 0.1331519628 | I48: 1581.219575
A49: 38 | C49: BIRCH CREEK UNIT 115 BR | D49: BEAR RIVER | E49: 2.845996889 | F49: 4227.176 | G49: 12030.52975 | H49: 0.1331519628 | I49: 1601.888649
A50: 39 | C50: BIRCH CREEK UNIT 115 FR | D50: FRONTIER | E50: 2.845996889 | F50: 14147.235 | G50: 40262.9868 | H50: 0.1331519628 | I50: 5361.095719
A51: 40 | C51: BIRCH CREEK UNIT 116 BR | D51: BEAR RIVER | E51: 2.845996889 | F51: 8545.281 | G51: 24319.84314 | H51: 0.1331519628 | I51: 3238.234849
A52: 41 | C52: BIRCH CREEK UNIT 116 FR | D52: FRONTIER | E52: 2.845996889 | F52: 2998.918 | G52: 8534.911299 | H52: 0.1331519628 | I52: 1136.440191
A53: 42 | C53: BIRCH CREEK UNIT 117 BAX | D53: BAXTER | E53: 2.845996889 | F53: 972.916 | G53: 2768.915909 | H53: 0.13375 | I53: 370.3425029
A54: 43 | C54: BIRCH CREEK UNIT 117 BR | D54: BEAR RIVER | E54: 2.845996889 | F54: 647.097 | G54: 1841.636049 | H54: 0.1331519628 | I54: 245.2174546
A55: 44 | C55: BIRCH CREEK UNIT 117 FR | D55: FRONTIER | E55: 2.845996889 | F55: 6478.792 | G55: 18438.62188 | H55: 0.1331519628 | I55: 2455.138694
A56: 45 | C56: BIRCH CREEK UNIT 118 BR | D56: BEAR RIVER | E56: 2.845996889 | F56: 1157.025 | G56: 3292.889551 | H56: 0.1331519628 | I56: 438.4547068
A57: 46 | C57: BIRCH CREEK UNIT 118 FR | D57: FRONTIER | E57: 2.845996889 | F57: 10377.911 | G57: 29535.50242 | H57: 0.1331519628 | I57: 3932.710119
A58: 47 | C58: BIRCH CREEK UNIT 119 BR | D58: BEAR RIVER | E58: 2.845996889 | F58: 4665.392 | G58: 13277.69112 | H58: 0.1331519628 | I58: 1767.950633
A59: 48 | C59: BIRCH CREEK UNIT 119 FR | D59: FRONTIER | E59: 2.845996889 | F59: 18654.752 | G59: 53091.36616 | H59: 0.1331519628 | I59: 7069.21961
A60: 49 | C60: BIRCH CREEK UNIT 121 BR | D60: BEAR RIVER | E60: 2.845996889 | F60: 19299.8 | G60: 54927.17076 | H60: 0.1331519628 | I60: 7313.660596
A61: 50 | C61: BIRCH CREEK UNIT 121 FR | D61: FRONTIER | E61: 2.845996889 | F61: 3952.159 | G61: 11247.83222 | H61: 0.1331519628 | I61: 1497.670937
A62: 51 | C62: BIRCH CREEK UNIT 122 BR | D62: BEAR RIVER | E62: 2.845996889 | F62: 3386.874 | G62: 9639.032868 | H62: 0.1331519628 | I62: 1283.456146
A63: 52 | C63: BIRCH CREEK UNIT 122 FR | D63: FRONTIER | E63: 2.845996889 | F63: 11660.14 | G63: 33184.72217 | H63: 0.1331519628 | I63: 4418.61089
A64: 53 | C64: BIRCH CREEK UNIT 123 BR | D64: BEAR RIVER | E64: 2.845996889 | F64: 4884.42 | G64: 13901.04413 | H64: 0.1331519628 | I64: 1850.95131
A65: 54 | C65: BIRCH CREEK UNIT 123 FR | D65: FRONTIER | E65: 2.845996889 | F65: 14638.598 | G65: 41661.40437 | H65: 0.1331519628 | I65: 5547.297763
A66: 55 | C66: BIRCH CREEK UNIT 124 BR | D66: BEAR RIVER | E66: 2.845996889 | F66: 4201.696 | G66: 11958.01375 | H66: 0.1331519628 | I66: 1592.233001
A67: 56 | C67: BIRCH CREEK UNIT 124 FR | D67: FRONTIER | E67: 2.845996889 | F67: 16786.702 | G67: 47774.90167 | H67: 0.1331519628 | I67: 6361.321928
A68: 57 | C68: BIRCH CREEK UNIT 126 BR | D68: BEAR RIVER | E68: 2.845996889 | F68: 9252.144 | G68: 26331.57304 | H68: 0.1331519628 | I68: 3506.100633
A69: 58 | C69: BIRCH CREEK UNIT 126 FR | D69: FRONTIER | E69: 2.845996889 | F69: 13870.737 | G69: 39476.07435 | H69: 0.1331519628 | I69: 5256.316782
A70: 59 | C70: BIRCH CREEK UNIT 127 BR | D70: DAKOTA | E70: 2.845996889 | F70: 8290.134 | G70: 23593.69557 | H70: 0.1331519628 | I70: 3141.546875
A71: 60 | C71: BIRCH CREEK UNIT 127 FR | D71: FRONTIER | E71: 2.845996889 | F71: 2073.887 | G71: 5902.27595 | H71: 0.1331519628 | I71: 785.8996276
A72: 61 | C72: BIRCH CREEK UNIT 128 FR | D72: FRONTIER | E72: 2.845996889 | F72: 28420.226 | G72: 80883.87478 | H72: 0.1331519628 | I72: 10769.84668
A73: 62 | C73: BIRCH CREEK UNIT 129 BR | D73: BEAR RIVER | E73: 2.845996889 | F73: 667.984 | G73: 1901.080386 | H73: 0.1331519628 | I73: 253.1325848
A74: 63 | C74: BIRCH CREEK UNIT 129 FR | D74: FRONTIER | E74: 2.845996889 | F74: 12731.563 | G74: 36233.98869 | H74: 0.1331519628 | I74: 4824.626713
A75: 64 | C75: BIRCH CREEK UNIT 130 BR | D75: BEAR RIVER | E75: 2.845996889 | F75: 11946.88 | G75: 34000.78331 | H75: 0.1331519628 | I75: 4527.271034
A76: 65 | C76: BIRCH CREEK UNIT 130 FR | D76: FRONTIER | E76: 2.845996889 | F76: 14598.564 | G76: 41547.46773 | H76: 0.1331519628 | I76: 5532.126876
A77: 66 | C77: BIRCH CREEK UNIT 131 FR | D77: FRONTIER | E77: 2.845996889 | F77: 16689.743 | G77: 47498.95666 | H77: 0.1331519628 | I77: =G77*H77 -> 6324.579308
A78: 67 | C78: BIRCH CREEK UNIT 132 BR | D78: BEAR RIVER | E78: 2.845996889 | F78: 3247.321 | G78: 9241.865464 | H78: 0.1331519628 | I78: 1230.572526
A79: =A78+1 -> 68 | C79: BIRCH CREEK UNIT 132 FR | D79: FRONTIER | E79: 2.845996889 | F79: 18350.374 | G79: 52225.10732 | H79: 0.1331519628 | I79: 6953.875545
A80: 69 | C80: BIRCH CREEK UNIT 133 BR | D80: BEAR RIVER | E80: 2.845996889 | F80: 6223.99 | G80: 17713.45618 | H80: 0.1331519628 | I80: 2358.581457
A81: 70 | C81: BIRCH CREEK UNIT 133 FR | D81: FRONTIER | E81: 2.845996889 | F81: 24902.916 | G81: 70873.62147 | H81: 0.1331519628 | I81: 9436.961807
A82: 71 | C82: BIRCH CREEK UNIT 134 BR | D82: BEAR RIVER | E82: 2.845996889 | F82: 16277.452 | G82: 46325.57775 | H82: 0.1331519628 | I82: 6168.341604
A83: 72 | C83: BIRCH CREEK UNIT 134 FR | D83: FRONTIER | E83: 2.845996889 | F83: 22479.177 | G83: 63975.66781 | H83: 0.1331519628 | I83: 8518.485739
A84: 73 | C84: BIRCH CREEK UNIT 135 BR | D84: BEAR RIVER | E84: 2.845996889 | F84: 2712.755 | G84: 7720.492291 | H84: 0.1331519628 | I84: 1027.998702
A85: 74 | C85: BIRCH CREEK UNIT 135 FR | D85: FRONTIER | E85: 2.845996889 | F85: 4064.541 | G85: 11567.67104 | H85: 0.1331519628 | I85: 1540.258104
A86: 75 | C86: BIRCH CREEK UNIT 137 BR | D86: BEAR RIVER | E86: 2.845996889 | F86: 5153.989 | G86: 14668.23666 | H86: 0.1331519628 | I86: 1953.104502
A87: 76 | C87: BIRCH CREEK UNIT 137 FR | D87: FRONTIER | E87: 2.845996889 | F87: 8403.694 | G87: 23916.88698 | H87: 0.1331519628 | I87: 3184.580445
A88: 77 | C88: BIRCH CREEK UNIT 138 BR | D88: BEAR RIVER | E88: 2.845996889 | F88: 841.94 | G88: 2396.158621 | H88: 0.1331519628 | I88: 319.0532235
A89: 78 | C89: BIRCH CREEK UNIT 138 FR | D89: FRONTIER | E89: 2.845996889 | F89: 20166.532 | G89: 57393.88734 | H89: 0.1331519628 | I89: 7642.10875
A90: 79 | C90: BIRCH CREEK UNIT 139 BR | D90: BEAR RIVER | E90: 2.845996889 | F90: 6523.956 | G90: 18567.15848 | H90: 0.1331519628 | I90: 2472.253595
A91: 80 | C91: BIRCH CREEK UNIT 139 FR | D91: FRONTIER | E91: 2.845996889 | F91: 4685.771 | G91: 13335.68969 | H91: 0.1331519628 | I91: 1775.673257
A92: 81 | C92: BIRCH CREEK UNIT 13A BR | D92: BEAR RIVER | E92: 2.845996889 | F92: 9078.921 | G92: 25838.58092 | H92: 0.1331519628 | I92: 3440.457765
A93: 82 | C93: BIRCH CREEK UNIT 13A FR | D93: FRONTIER | E93: 2.845996889 | F93: 9073.839 | G93: 25824.11757 | H93: 0.1331519628 | I93: 3438.531941
A94: 83 | C94: BIRCH CREEK UNIT 140 BR | D94: BEAR RIVER | E94: 2.845996889 | F94: 3721.221 | G94: 10590.58339 | H94: 0.1331519628 | I94: 1410.156965
A95: 84 | C95: BIRCH CREEK UNIT 140 FR | D95: FRONTIER | E95: 2.845996889 | F95: 21080.09 | G95: 59993.87056 | H95: 0.1331519628 | I95: 7988.301619
A96: 85 | C96: BIRCH CREEK UNIT 141 BR | D96: BEAR RIVER | E96: 2.845996889 | F96: 16161.619 | G96: 45995.9174 | H96: 0.1331519628 | I96: 6124.446681
A97: 86 | C97: BIRCH CREEK UNIT 141 FR | D97: FRONTIER | E97: 2.845996889 | F97: 5388.476 | G97: 15335.58593 | H97: 0.1331519628 | I97: 2041.963367
A98: 87 | C98: BIRCH CREEK UNIT 142 BR | D98: BEAR RIVER | E98: 2.845996889 | F98: 3216.17 | G98: 9153.209815 | H98: 0.1331519628 | I98: 1218.767852
A99: 88 | C99: BIRCH CREEK UNIT 142 FR | D99: FRONTIER | E99: 2.845996889 | F99: 7503.075 | G99: 21353.72811 | H99: 0.1331519628 | I99: 2843.29081
A100: 89 | C100: BIRCH CREEK UNIT 144 BR | D100: BEAR RIVER | E100: 2.845996889 | F100: 722.953 | G100: 2057.521989 | H100: 0.1331519628 | I100: 273.9630913
A101: 90 | C101: BIRCH CREEK UNIT 144 FR | D101: FRONTIER | E101: 2.845996889 | F101: 11321.302 | G101: 32220.39027 | H101: 0.1331519628 | I101: 4290.208206
A102: 91 | C102: BIRCH CREEK UNIT 145 BR | D102: BEAR RIVER | E102: 2.845996889 | F102: 1229.062 | G102: 3497.906629 | H102: 0.1331519628 | I102: 465.7531332
A103: 92 | C103: BIRCH CREEK UNIT 145 FR | D103: FRONTIER | E103: 2.845996889 | F103: 8997.858 | G103: =E103*F103 -> 25607.87588 | H103: 0.1331519628 | I103: 3409.738935
A104: 93 | C104: BIRCH CREEK UNIT 146 BR | D104: BEAR RIVER | E104: 2.845996889 | F104: 15230.346 | G104: 43345.51734 | H104: 0.1331519628 | I104: 5771.540711
A105: 94 | C105: BIRCH CREEK UNIT 146 FR | D105: FRONTIER | E105: 2.845996889 | F105: 5078.495 | G105: 14453.38097 | H105: 0.1331519628 | I105: 1924.496045
A106: 95 | C106: BIRCH CREEK UNIT 148 BR | D106: BEAR RIVER | E106: 2.845996889 | F106: 266.95 | G106: 759.7388695 | H106: 0.1331519628 | I106: 101.1607217
A107: 96 | C107: BIRCH CREEK UNIT 148 FR | D107: FRONTIER | E107: 2.845996889 | F107: 26029.132 | G107: 74078.8287 | H107: 0.1331519628 | I107: 9863.741441
A108: 97 | C108: BIRCH CREEK UNIT 149 BR | D108: BEAR RIVER | E108: 2.845996889 | F108: 5373.413 | G108: 15292.71668 | H108: 0.1331519628 | I108: 2036.255242
A109: 98 | C109: BIRCH CREEK UNIT 149 FR | D109: FRONTIER | E109: 2.845996889 | F109: 19042.563 | G109: 54195.07506 | H109: 0.1331519628 | I109: 7216.180616
A110: 99 | C110: BIRCH CREEK UNIT 151 BR | D110: BEAR RIVER | E110: 2.845996889 | F110: 6177.305 | G110: 17580.59081 | H110: 0.1331519628 | I110: 2340.890173
A111: 100 | C111: BIRCH CREEK UNIT 151 FR | D111: FRONTIER | E111: 2.845996889 | F111: 8528.73 | G111: 24272.73905 | H111: 0.1331519628 | I111: 3231.962846
A112: 101 | C112: BIRCH CREEK UNIT 153 ALMY | D112: ALMY | E112: 2.845996889 | F112: 1285.996 | G112: 3659.940615 | H112: 0.13375 | I112: 489.5170573
A113: 102 | C113: BIRCH CREEK UNIT 157 MESA | D113: MESAVERDE | E113: 2.845996889 | F113: 2924.403 | G113: 8322.841841 | H113: 0.13375 | I113: 1113.180096
A114: 103 | C114: BIRCH CREEK UNIT 159 MESA | D114: MESAVERDE | E114: 2.845996889 | F114: 9865.189 | G114: 28076.2972 | H114: 0.13375 | I114: 3755.204751
A115: 104 | C115: BIRCH CREEK UNIT 164 FR | D115: FRONTIER | E115: 2.845996889 | F115: 22944.893 | G115: 65301.0941 | H115: 0.1331519628 | I115: 8694.96885
A116: 105 | C116: BIRCH CREEK UNIT 166 BR | D116: BEAR RIVER | E116: 2.845996889 | F116: 5747.21 | G116: 16356.54178 | H116: 0.1331519628 | I116: 2177.905642
A117: 106 | C117: BIRCH CREEK UNIT 166 FR | D117: FRONTIER | E117: 2.845996889 | F117: 1435.037 | G117: 4084.110838 | H117: 0.1331519628 | I117: 543.8073742
A118: 107 | C118: BIRCH CREEK UNIT 167 BR | D118: BEAR RIVER | E118: 2.845996889 | F118: 1766.184 | G118: 5026.55417 | H118: 0.1331519628 | I118: 669.2955536
A119: 108 | C119: BIRCH CREEK UNIT 167 FR | D119: FRONTIER | E119: 2.845996889 | F119: 7061.976 | G119: 20098.36173 | H119: 0.1331519628 | I119: 2676.136312
A120: 109 | C120: BIRCH CREEK UNIT 168 BR | D120: BEAR RIVER | E120: 2.845996889 | F120: 1115.036 | G120: 3173.388987 | H120: 0.1331519628 | I120: 422.5429723
A121: 110 | C121: BIRCH CREEK UNIT 168 RECOM BAX | D121: BAXTER | E121: 2.845996889 | F121: 3354.301 | G121: 9546.330211 | H121: 0.13375 | I121: 1276.821666
A122: 111 | C122: BIRCH CREEK UNIT 168 RECOM FR | D122: FRONTIER | E122: 2.845996889 | F122: 4552.01 | G122: 12955.0063 | H122: 0.1331519628 | I122: 1724.984516
A123: 112 | C123: BIRCH CREEK UNIT 169 BR | D123: BEAR RIVER | E123: 2.845996889 | F123: 3791.776 | G123: 10791.3827 | H123: 0.1331519628 | I123: 1436.893788
A124: 113 | C124: BIRCH CREEK UNIT 169 FR | D124: FRONTIER | E124: 2.845996889 | F124: 15150.496 | G124: 43118.26448 | H124: 0.1331519628 | I124: 5741.281547
A125: 114 | C125: BIRCH CREEK UNIT 173 BR | D125: BEAR RIVER | E125: 2.845996889 | F125: 8066.541 | G125: 22957.35059 | H125: 0.1331519628 | I125: 3056.816291
A126: 115 | C126: BIRCH CREEK UNIT 173 FR | D126: FRONTIER | E126: 2.845996889 | F126: 22954.668 | G126: 65328.91372 | H126: 0.1331519628 | I126: 8698.673087
A127: 116 | C127: BIRCH CREEK UNIT 174 BR | D127: BEAR RIVER | E127: 2.845996889 | F127: 12643.397 | G127: 35983.06853 | H127: 0.1331519628 | I127: 4791.216201
A128: 117 | C128: BIRCH CREEK UNIT 174 FR | D128: FRONTIER | E128: 2.845996889 | F128: 12504.882 | G128: 35588.85527 | H128: 0.1331519628 | I128: 4738.725932
A129: 118 | C129: BIRCH CREEK UNIT 177 BR | D129: BEAR RIVER | E129: 2.845996889 | F129: 4075.142 | G129: 11597.84145 | H129: 0.1331519628 | I129: 1544.275354
A130: 119 | C130: BIRCH CREEK UNIT 177 FR | D130: FRONTIER | E130: 2.845996889 | F130: 16308.652 | G130: 46414.37286 | H130: 0.1331519628 | I130: 6180.164847
A131: 120 | C131: BIRCH CREEK UNIT 178 BR | D131: BEAR RIVER | E131: 2.845996889 | F131: 5483.915 | G131: 15607.20503 | H131: 0.1331519628 | I131: 2078.129983
A132: 121 | C132: BIRCH CREEK UNIT 178 FR | D132: FRONTIER | E132: 2.845996889 | F132: 21936.739 | G132: 62431.89095 | H132: 0.1331519628 | I132: 8312.928819
A133: 122 | C133: BIRCH CREEK UNIT 179 BR | D133: BEAR RIVER | E133: 2.845996889 | F133: 6525.386 | G133: 18571.22826 | H133: 0.1331519628 | I133: 2472.795493
A134: 123 | C134: BIRCH CREEK UNIT 179 FR | D134: FRONTIER | E134: 2.845996889 | F134: 4355.693 | G134: 12396.28873 | H134: 0.1331519628 | I134: 1650.590175
A135: 124 | C135: BIRCH CREEK UNIT 180 FR | D135: FRONTIER | E135: 2.845996889 | F135: 15983.093 | G135: 45487.83296 | H135: 0.1331519628 | I135: 6056.79424
A136: 125 | C136: BIRCH CREEK UNIT 181 BR | D136: BEAR RIVER | E136: 2.845996889 | F136: 3627.048 | G136: 10322.56732 | H136: 0.1331519628 | I136: 1374.4701
A137: 126 | C137: BIRCH CREEK UNIT 181 FR | D137: FRONTIER | E137: 2.845996889 | F137: 14494.138 | G137: 41250.27166 | H137: 0.1331519628 | I137: 5492.554636
A138: 127 | C138: BIRCH CREEK UNIT 182 BR | D138: BEAR RIVER | E138: 2.845996889 | F138: 3952.791 | G138: 11249.63089 | H138: 0.1331519628 | I138: 1497.910433
A139: 128 | C139: BIRCH CREEK UNIT 182 FR | D139: FRONTIER | E139: 2.845996889 | F139: 5924.175 | G139: 16860.18362 | H139: 0.1331519628 | I139: 2244.966542
A140: 129 | C140: BIRCH CREEK UNIT 183 BR | D140: BEAR RIVER | E140: 2.845996889 | F140: 7867.994 | G140: 22392.28645 | H140: 0.1331519628 | I140: 2981.576891
A141: 130 | C141: BIRCH CREEK UNIT 183 FR | D141: FRONTIER | E141: 2.845996889 | F141: 11794.545 | G141: 33567.23838 | H141: 0.1331519628 | I141: =G141*H141 -> 4469.543675
A142: 131 | C142: BIRCH CREEK UNIT 184 BR | D142: BEAR RIVER | E142: 2.845996889 | F142: 2305.866 | G142: 6562.487463 | H142: 0.1331519628 | I142: 873.8080863
A143: =A142+1 -> 132 | C143: BIRCH CREEK UNIT 184 FR | D143: FRONTIER | E143: 2.845996889 | F143: 20790.526 | G143: 59169.77232 | H143: 0.1331519628 | I143: 7878.571321
A144: 133 | C144: BIRCH CREEK UNIT 185 BR | D144: BEAR RIVER | E144: 2.845996889 | F144: 6283.318 | G144: 17882.30348 | H144: 0.1331519628 | I144: 2381.063807
A145: 134 | C145: BIRCH CREEK UNIT 185 FR | D145: FRONTIER | E145: 2.845996889 | F145: 14649.423 | G145: 41692.21229 | H145: 0.1331519628 | I145: 5551.399898
A146: 135 | C146: BIRCH CREEK UNIT 187 BR | D146: BEAR RIVER | E146: 2.845996889 | F146: 8316.457 | G146: 23668.61075 | H146: 0.1331519628 | I146: 3151.521977
A147: 136 | C147: BIRCH CREEK UNIT 187 FR | D147: FRONTIER | E147: 2.845996889 | F147: 14780.753 | G147: 42065.97706 | H147: 0.1331519628 | I147: 5601.167411
A148: 137 | C148: BIRCH CREEK UNIT 188 FR | D148: FRONTIER | E148: 2.845996889 | F148: 21220.447 | G148: 60393.32615 | H148: 0.1331519628 | I148: 8041.489915
A149: 138 | C149: BIRCH CREEK UNIT 189 BR | D149: BEAR RIVER | E149: 2.845996889 | F149: 7598.303 | G149: 21624.7467 | H149: 0.1331519628 | I149: 2879.377468
A150: 139 | C150: BIRCH CREEK UNIT 189 FR | D150: FRONTIER | E150: 2.845996889 | F150: 10936.66 | G150: 31125.70034 | H150: 0.1331519628 | I150: 4144.448092
A151: 140 | C151: BIRCH CREEK UNIT 190 BR | D151: BEAR RIVER | E151: 2.845996889 | F151: 2682.234 | G151: 7633.62962 | H151: 0.1331519628 | I151: 1016.432767
A152: 141 | C152: BIRCH CREEK UNIT 190 FR | D152: FRONTIER | E152: 2.845996889 | F152: 24124.474 | G152: 68658.17796 | H152: 0.1331519628 | I152: 9141.971155
A153: 142 | C153: BIRCH CREEK UNIT 191 BR | D153: BEAR RIVER | E153: 2.845996889 | F153: 3747.039 | G153: 10664.06134 | H153: 0.1331519628 | I153: 1419.940698
A154: 143 | C154: BIRCH CREEK UNIT 191 FR | D154: FRONTIER | E154: 2.845996889 | F154: 15973.992 | G154: 45461.93154 | H154: 0.1331519628 | I154: 6053.345416
A155: 144 | C155: BIRCH CREEK UNIT 192 BR | D155: BEAR RIVER | E155: 2.845996889 | F155: 1904.852 | G155: 5421.202866 | H155: 0.1331519628 | I155: 721.8438022
A156: 145 | C156: BIRCH CREEK UNIT 192 FR | D156: FRONTIER | E156: 2.845996889 | F156: 29875.081 | G156: 85024.38759 | H156: 0.1331519628 | I156: 11321.16409
A157: 146 | C157: BIRCH CREEK UNIT 193 BR | D157: BEAR RIVER | E157: 2.845996889 | F157: 990.933 | G157: 2820.192235 | H157: 0.1331519628 | I157: 375.5141315
A158: 147 | C158: BIRCH CREEK UNIT 193 FR | D158: FRONTIER | E158: 2.845996889 | F158: 18879.598 | G158: 53731.27718 | H158: 0.1331519628 | I158: 7154.425018
A159: 148 | C159: BIRCH CREEK UNIT 194 BR | D159: BEAR RIVER | E159: 2.845996889 | F159: 1872.17 | G159: 5328.189996 | H159: 0.1331519628 | I159: 709.458956
A160: 149 | C160: BIRCH CREEK UNIT 194 FR | D160: FRONTIER | E160: 2.845996889 | F160: 29382.834 | G160: 83623.45416 | H160: 0.1331519628 | I160: 11134.62705
A161: 150 | C161: BIRCH CREEK UNIT 195 BR | D161: BEAR RIVER | E161: 2.845996889 | F161: 4426.509 | G161: 12597.83084 | H161: 0.1331519628 | I161: 1677.425903
A162: 151 | C162: BIRCH CREEK UNIT 195 FR | D162: FRONTIER | E162: 2.845996889 | F162: 32449.254 | G162: 92350.47594 | H162: 0.1331519628 | I162: 12296.64713
A163: 152 | C163: BIRCH CREEK UNIT 196 BR | D163: BEAR RIVER | E163: 2.845996889 | F163: 490.99 | G163: 1397.356013 | H163: 0.1331519628 | I163: 186.0606958
A164: 153 | C164: BIRCH CREEK UNIT 196 FR | D164: FRONTIER | E164: 2.845996889 | F164: 23960.514 | G164: 68191.54831 | H164: 0.1331519628 | I164: 9079.838501
A165: 154 | C165: BIRCH CREEK UNIT 198 BR | D165: BEAR RIVER | E165: 2.845996889 | F165: 3977.015 | G165: 11318.57232 | H165: 0.1331519628 | I165: 1507.09012
A166: 155 | C166: BIRCH CREEK UNIT 198 FR | D166: FRONTIER | E166: 2.845996889 | F166: 2343.223 | G166: 6668.805369 | H166: 0.1331519628 | I166: 887.9645241
A167: 156 | C167: BIRCH CREEK UNIT 199 BR | D167: BEAR RIVER | E167: 2.845996889 | F167: 1430.252 | G167: =E167*F167 -> 4070.492743 | H167: 0.1331519628 | I167: 541.9940981
A168: 157 | C168: BIRCH CREEK UNIT 199 FR | D168: FRONTIER | E168: 2.845996889 | F168: 14441.34 | G168: 41100.00871 | H168: 0.1331519628 | I168: 5472.54683
A169: 158 | C169: BIRCH CREEK UNIT 2 BR | D169: BEAR RIVER | E169: 2.845996889 | F169: 4515.166 | G169: 12850.14839 | H169: 0.1331519628 | I169: 1711.02248
A170: 159 | C170: BIRCH CREEK UNIT 2 FR | D170: FRONTIER | E170: 2.845996889 | F170: 7369.218 | G170: 20972.7715 | H170: 0.1331519628 | I170: 2792.56569
A171: 160 | C171: BIRCH CREEK UNIT 200 BR | D171: BEAR RIVER | E171: 2.845996889 | F171: 2774.115 | G171: 7895.12266 | H171: 0.1331519628 | I171: 1051.251078
A172: 161 | C172: BIRCH CREEK UNIT 200 FR | D172: FRONTIER | E172: 2.845996889 | F172: 8329.529 | G172: 23705.81362 | H172: 0.1331519628 | I172: 3156.475613
A173: 162 | C173: BIRCH CREEK UNIT 201-25 BR | D173: BEAR RIVER | E173: 2.845996889 | F173: 3173.383 | G173: 9031.438146 | H173: 0.1331519628 | I173: 1202.553716
A174: 163 | C174: BIRCH CREEK UNIT 201-25 FR | D174: FRONTIER | E174: 2.845996889 | F174: 7411.367 | G174: 21092.72743 | H174: 0.1331519628 | I174: 2808.538057
A175: 164 | C175: BIRCH CREEK UNIT 202-25 BR | D175: BEAR RIVER | E175: 2.845996889 | F175: 5706.252 | G175: 16239.97544 | H175: 0.1331519628 | I175: 2162.384605
A176: 165 | C176: BIRCH CREEK UNIT 202-25 FR | D176: FRONTIER | E176: 2.845996889 | F176: 13307.629 | G176: 37873.47074 | H176: 0.1331519628 | I176: 5042.926965
A177: 166 | C177: BIRCH CREEK UNIT 203-25 BR | D177: BEAR RIVER | E177: 2.845996889 | F177: 8376.654 | G177: 23839.93123 | H177: 0.1331519628 | I177: 3174.333635
A178: 167 | C178: BIRCH CREEK UNIT 203-25 FR | D178: FRONTIER | E178: 2.845996889 | F178: 19538.539 | G178: 55606.62121 | H178: 0.1331519628 | I178: 7404.130757
A179: 168 | C179: BIRCH CREEK UNIT 26 FR | D179: FRONTIER | E179: 2.845996889 | F179: 11126.8 | G179: 31666.83819 | H179: 0.1331519628 | I179: 4216.501659
A180: 169 | C180: BIRCH CREEK UNIT 28 ALMY | D180: ALMY | E180: 2.845996889 | F180: 5325.035 | G180: 15155.03304 | H180: 0.13375 | I180: 2026.98567
A181: 170 | C181: BIRCH CREEK UNIT 3 FFR | D181: 1ST FRONTIER | E181: 2.845996889 | F181: 17400.855 | G181: 49522.7792 | H181: 0.1331519628 | I181: 6594.055252
A182: 171 | C182: BIRCH CREEK UNIT 33 ALMY | D182: ALMY | E182: 2.845996889 | F182: 4321.25 | G182: 12298.26406 | H182: 0.13375 | I182: 1644.892818
A183: 172 | C183: BIRCH CREEK UNIT 34 ALMY | D183: ALMY | E183: 2.845996889 | F183: 281.966 | G183: 802.4743588 | H183: 0.13375 | I183: 107.3309455
A184: 173 | C184: BIRCH CREEK UNIT 36 ALMY | D184: ALMY | E184: 2.845996889 | F184: 1989.258 | G184: 5661.42208 | H184: 0.13375 | I184: 757.2152032
A185: 174 | C185: BIRCH CREEK UNIT 40 ALMY | D185: ALMY | E185: 2.845996889 | F185: 3693.47 | G185: 10511.60413 | H185: 0.13375 | I185: 1405.927052
A186: 175 | C186: BIRCH CREEK UNIT 43A BR | D186: BEAR RIVER | E186: 2.845996889 | F186: 1274.237 | G186: 3626.474538 | H186: 0.1331519628 | I186: 482.8722027
A187: 176 | C187: BIRCH CREEK UNIT 43A FR | D187: FRONTIER | E187: 2.845996889 | F187: 11436.421 | G187: 32548.01859 | H187: 0.1331519628 | I187: 4333.832559
A188: 177 | C188: BIRCH CREEK UNIT 48 ALMY | D188: ALMY | E188: 2.845996889 | F188: 363.92 | G188: 1035.715188 | H188: 0.13375 | I188: 138.5269064
A189: 178 | C189: BIRCH CREEK UNIT 5 2ND FR | D189: FRONTIER | E189: 2.845996889 | F189: 3758.455 | G189: 10696.55124 | H189: 0.1331519628 | I189: 1424.266792
A190: 179 | C190: BIRCH CREEK UNIT 5 FR | D190: FORT UNION | E190: 2.845996889 | F190: 4072.296 | G190: 11589.74175 | H190: 0.1331519628 | I190: 1543.196862
A191: 180 | C191: BIRCH CREEK UNIT 52 ALMY | D191: ALMY | E191: 2.845996889 | F191: 104.008 | G191: 296.0064444 | H191: 0.13375 | I191: 39.59086194
A192: 181 | C192: BIRCH CREEK UNIT 56 2ND FR | D192: FRONTIER | E192: 2.845996889 | F192: 6199.837 | G192: 17644.71682 | H192: 0.1331519628 | I192: 2349.428676
A193: 182 | C193: BIRCH CREEK UNIT 58 MESA | D193: MESAVERDE | E193: 2.845996889 | F193: 942.989 | G193: 2683.74376 | H193: 0.1337500665 | I193: 358.9509064
A194: 183 | C194: BIRCH CREEK UNIT 6 FR | D194: FRONTIER | E194: 2.845996889 | F194: 12075.57 | G194: 34367.03465 | H194: 0.1331519628 | I194: 4576.038119
A195: 184 | C195: BIRCH CREEK UNIT 61 BR | D195: BEAR RIVER | E195: 2.845996889 | F195: 2656.965 | G195: 7561.714124 | H195: 0.1331519628 | I195: 1006.857078
A196: 185 | C196: BIRCH CREEK UNIT 61 FR | D196: FRONTIER | E196: 2.845996889 | F196: 10596.106 | G196: 30156.48471 | H196: 0.1331519628 | I196: 4015.39513
A197: 186 | C197: BIRCH CREEK UNIT 62 MESA | D197: MESAVERDE | E197: 2.845996889 | F197: 514.042 | G197: 1462.961933 | H197: 0.1337500665 | I197: 195.6712558
A198: 187 | C198: BIRCH CREEK UNIT 66 MESA | D198: ALMY | E198: 2.845996889 | F198: 2987.395 | G198: 8502.116877 | H198: 0.13375 | I198: 1137.158132
A199: 188 | C199: BIRCH CREEK UNIT 67 MESA | D199: MESAVERDE | E199: 2.845996889 | F199: 1296.031 | G199: 3688.500194 | H199: 0.13375 | I199: 493.336901
A200: 189 | C200: BIRCH CREEK UNIT 69 MESA | D200: MESAVERDE | E200: 2.845996889 | F200: 1513.223 | G200: 4306.627951 | H200: 0.1337500665 | I200: 576.0117748
A201: 190 | C201: BIRCH CREEK UNIT 7 FR | D201: FRONTIER | E201: 2.845996889 | F201: 6398.214 | G201: 18209.29714 | H201: 0.1331519628 | I201: 2424.603655
A202: 191 | C202: BIRCH CREEK UNIT 74 ALMY | D202: ALMY | E202: 2.845996889 | F202: 2438.042 | G202: 6938.659948 | H202: 0.1337500665 | I202: 928.0462294
... 1417 more rows

Sheet Ut 1.2
H1: ='Control Panel'!$E$32 -> Dominion Energy Utah
H2: ='Control Panel'!$E$33 -> Docket No. 17-057-20
H3: Exhibit 1.2
B8: TEST YEAR PURCHASED GAS COSTS
D11: (A) | E11: (B) | F11: (C) | G11: (D)
F12: Cost
C13: Component | E13: Dth | F13: per Dth | G13: Total Cost
B15: 1 | C15: Current Contracts | G15: =ROUND(Calculations!$P$186+Calculations!$P$189-G16,0) -> 80633270
B16: =B15+1 -> 2 | C16: Stabilization Costs | G16: ='Monthly Inputs'!S94 -> 0
B17: =B16+1 -> 3 | D17: Total Current Contracts | E17: =Calculations!$P$185+Calculations!$P$188 -> 24125500 | F17: =G17/E17 -> 3.342242441 | G17: =G15+G16 -> 80633270
B19: =B17+1 -> 4 | C19: Forecast Spot | E19: =Calculations!$P$182 -> 24907884.54 | F19: =G19/E19 -> 3.123248699 | G19: =ROUND(Calculations!P183,0) -> 77793518
B21: =B19+1 -> 5 | C21: Future Contracts | E21: =Calculations!P191 -> 52644.45848 | F21: =G21/E21 -> 2.816915669 | G21: =ROUND(Calculations!P192,0) -> 148295
B24: =B21+1 -> 6 | C24: Total Gas Purchased | E24: =E17+E19+E21 -> 49086029 | F24: =G24/E24 -> 3.230554319 | G24: =G17+G19+G21 -> 158575083

Sheet Ut 1.3 p1
N1: ='Control Panel'!$E$32 -> Dominion Energy Utah
N2: ='Control Panel'!$E$33 -> Docket No. 17-057-20
N3: Exhibit 1.3
N4: Page 1 of 2
B8: TEST YEAR TRANSPORTATION, GATHERING & PROCESSING CHARGES
B11: (A) | D11: (B) | F11: (C) | H11: (D) | J11: (E) | L11: (F) | M11: (G)
D12: Fctr | F12: Dth | H12: Months/Days | J12: Rate | M12: Total Costs
B14: TRANSPORTATION DEMAND
B16: QPC Demand
A17: 1 | B17: T-1 Transportation - Yearly | F17: ='Other Inputs'!D28+'Other Inputs'!D29+'Other Inputs'!D30 -> 840902 | G17: x | H17: ='Other Inputs'!E28 -> 12 | I17: x | J17: ='Other Inputs'!F28 -> 5.28804 | K17: = | L17: =ROUND(F17*H17*J17,0) -> 53360681
A18: =A17+1 -> 2 | B18: T-1 Transportation Nov-Mar | F18: ='Other Inputs'!D31 -> 75000 | G18: x | H18: ='Other Inputs'!E31 -> 5 | I18: x | J18: ='Other Inputs'!F31 -> 6.80887 | K18: = | L18: =ROUND(F18*H18*J18,0) -> 2553326
A19: =A18+1 -> 3 | B19: No-Notice Transportation | F19: ='Other Inputs'!D36 -> 203542 | G19: x | H19: ='Other Inputs'!E36 -> 12 | I19: x | J19: ='Other Inputs'!F36 -> 0.86753 | K19: = | L19: =ROUND(F19*H19*J19,0) -> 2118945
A20: =A19+1 -> 4 | B20: Capacity Release Credits | L20: =-ROUND('Other Inputs'!E323,0) -> -40496
A21: =A20+1 -> 5 | C21: Total | L21: =SUM(L17:L20) -> 57992456
B23: Kern River Demand
A24: =A21+1 -> 6 | B24: January - December | F24: ='Other Inputs'!D62 -> 1885 | G24: x | H24: ='Other Inputs'!E62 -> 12 | I24: x | J24: ='Other Inputs'!F62 -> 17.74204167 | K24: = | L24: =ROUND(F24*H24*J24,0) -> 401325
A25: =A24+1 -> 7 | B25: October - April | F25: ='Other Inputs'!D60 -> 3000 | G25: x | H25: ='Other Inputs'!E60 -> 7 | I25: x | J25: ='Other Inputs'!F60 -> 14.28577143 | K25: = | L25: =ROUND(F25*H25*J25,0) -> 300001
A26: =A25+1 -> 8 | B26: May - September | F26: 3000 | G26: x | H26: ='Other Inputs'!E65 -> 5 | I26: x | J26: ='Other Inputs'!F65 -> 6.17508 | K26: = | L26: =ROUND(F26*H26*J26,0) -> 92626
A27: 9 | B27: November - March | F27: ='Other Inputs'!D61 -> 50000 | G27: x | H27: ='Other Inputs'!E61 -> 5 | I27: x | J27: =J25 -> 14.28577143 | K27: = | L27: =ROUND(F27*H27*J27,0) -> 3571443
A28: 10 | B28: December - February | F28: ='Other Inputs'!D69 -> 56925 | G28: x | H28: ='Other Inputs'!E69 -> 3 | I28: x | J28: ='Other Inputs'!F69 -> 8.7 | K28: = | L28: =ROUND(F28*H28*J28,0) -> 1485743
A29: 11 | B29: November & March | F29: ='Other Inputs'!D71 -> 6000 | G29: x | H29: ='Other Inputs'!E71 -> 2 | I29: x | J29: ='Other Inputs'!F71 -> 8.845 | K29: = | L29: 106140
A30: 12 | B30: November - March | F30: ='Other Inputs'!D73 -> 27000 | G30: x | H30: ='Other Inputs'!E73 -> 5 | I30: x | J30: ='Other Inputs'!F73 -> 8.758 | K30: = | L30: 1182330
A31: 13 | B31: October - May | F31: ='Other Inputs'!D76 -> 30000 | G31: x | H31: ='Other Inputs'!E76 -> 8 | I31: x | J31: ='Other Inputs'!F76 -> 14.27625 | K31: = | L31: 3426300
A32: 14 | C32: Total | L32: =SUM(L24:L31) -> 10565908
A34: =A32+1 -> 15 | B34: Total Transportation Demand (SNG) | M34: =L21+L32 -> 68558364
B37: TRANSPORTATION COMMODITY
A39: =A34+1 -> 16 | B39: QPC Commodity (SNG) | F39: =F41-(D44*F44*H44)-(D45*F45*H45)-(D46*F46*H46)-(D47*F47*H47)-(D48*F48*H48)-(D49*F49*H49) -> 104230790.8 | I39: x | J39: ='Other Inputs'!F44 -> 0.00267 | K39: = | L39: =ROUND(F39*J39,0) -> 278296
A41: =A39+1 -> 17 | B41: Total ACA | F41: =Calculations!$P$173 -> 128801282.3 | I41: x | J41: ='Other Inputs'!F45 -> 0.0013 | K41: = | L41: =ROUND(F41*J41,0) -> 167442
B43: Kern River Commodity
A44: =A41+1 -> 18 | B44: January - December | D44: ='Other Inputs'!C82 -> 0.9381890652 | E44: x | F44: ='Other Inputs'!D82 -> 4885 | G44: x | H44: ='Other Inputs'!E82 -> 365 | I44: x | J44: ='Other Inputs'!F82 -> 0.0044 | K44: = | L44: =ROUND(D44*F44*H44*J44,0) -> 7360
A45: =A44+1 -> 19 | B45: November - March | D45: ='Other Inputs'!C83 -> 0.9381890652 | E45: x | F45: ='Other Inputs'!D83 -> 50000 | G45: x | H45: ='Other Inputs'!E83 -> 151 | I45: x | J45: ='Other Inputs'!F83 -> 0.0044 | K45: = | L45: =ROUND(D45*F45*H45*J45,0) -> 31167
A46: =A45+1 -> 20 | B46: November & March | D46: ='Other Inputs'!C87 -> 0.9381890652 | E46: x | F46: ='Other Inputs'!D87 -> 6000 | G46: x | H46: ='Other Inputs'!E87 -> 61 | I46: x | J46: ='Other Inputs'!F87 -> 0.0044 | K46: = | L46: =ROUND(D46*F46*H46*J46,0) -> 1511
A47: =A46+1 -> 21 | B47: December - February | D47: ='Other Inputs'!C86 -> 0.9381890652 | E47: x | F47: ='Other Inputs'!D86 -> 56925 | G47: x | H47: ='Other Inputs'!E86 -> 90 | I47: x | J47: ='Other Inputs'!F86 -> 0.0044 | K47: = | L47: 21149
A48: 22 | B48: November - March | D48: ='Other Inputs'!C87 -> 0.9381890652 | E48: x | F48: ='Other Inputs'!D89 -> 27000 | G48: x | H48: ='Other Inputs'!E89 -> 151 | I48: x | J48: ='Other Inputs'!F89 -> 0.0044 | K48: = | L48: 16830
A49: 23 | B49: December - February | D49: ='Other Inputs'!C92 -> 0.9381890652 | E49: x | F49: ='Other Inputs'!D92 -> 30000 | G49: x | H49: ='Other Inputs'!E92 -> 243 | I49: x | J49: ='Other Inputs'!F92 -> 0.0044 | K49: = | L49: 30093
A50: =A49+1 -> 24 | C50: Total (SNG) | L50: =SUM(L44:L49) -> 108110
A52: =A50+1 -> 25 | B52: Total Transportation Commodity | M52: =L41+L50+L39 -> 553848
B55: OTHER CHARGES
A57: =A52+1 -> 26 | B57: QEPFS/Tesoro Field Services Demand | L57: ='Other Inputs'!E205 -> 12245844
A58: =A57+1 -> 27 | B58: QEPFS/Tesoro Field Services Commodity | L58: ='Other Inputs'!D205 -> 5958489.514
A59: =A58+1 -> 28 | C59: Total QEPFS/Tesoro Field Services (SNG) | M59: =L57+L58 -> 18204333.51 | N59: 1/
A61: =A59+1 -> 29 | B61: Wexpro II Gathering | J61: ='Other Inputs'!D208 -> 7101910.329 | L61: ='Other Inputs'!D208 -> 7101910.329
A62: =A61+1 -> 30 | B62: Other Wexpro I Gathering Charges | L62: =ROUND('Other Inputs'!D197,0) -> 1902464
A63: =A62+1 -> 31 | B63: Other Transportation Charges | L63: =ROUND('Other Inputs'!$D$199,0) -> 3500326
A64: =A63+1 -> 32 | C64: Total Wexpro II Gathering, Other Gathering & Transportation | M64: =SUM(L61:L63) -> 12504700.33
B68: PEAK HOUR SERVICE
A69: =A64+1 -> 33 | B69: Mid November - Mid February | F69: ='Other Inputs'!D20 -> 25000 | G69: x | H69: ='Other Inputs'!E20 -> 3 | I69: x | J69: ='Other Inputs'!F20 -> 11.65333333 | K69: = | L69: =ROUND(F69*H69*J69,0) -> 874000
A70: =A69+1 -> 34 | B70: Mid November - Mid February | F70: ='Other Inputs'!D23 -> 83333 | G70: x | H70: ='Other Inputs'!E23 -> 3 | I70: x | J70: ='Other Inputs'!F23 -> 5.951283805 | K70: = | L70: =ROUND(F70*H70*J70,0) -> 1487815
A71: =A70+1 -> 35 | C71: Total Peak Hour Service | M71: =SUM(L69:L70) -> 2361815
A74: =A71+1 -> 36 | B74: TOTAL TRANSPORTATION AND OTHER CHARGES | M74: =SUM(M13:M72) -> 102183060.8
A79: 1/ | B79: See paragraph 7c in application.

Sheet Ut 1.3 p2
L1: ='Control Panel'!$E$32 -> Dominion Energy Utah
L2: ='Control Panel'!$E$33 -> Docket No. 17-057-20
L3: Exhibit 1.3
L4: Page 2 of 2
B7: TEST YEAR STORAGE AND WORKING GAS CHARGES
B10: (A) | D10: (B) | F10: (C) | H10: (D) | J10: (E) | K10: (F)
B12: STORAGE CHARGES 1/
B14: Component | D14: Dth | F14: Months | H14: Rate | K14: Total Costs
B15: Storage Demand
A16: 1 | B16: Aquifer Peaking Demand | D16: ='Other Inputs'!E183 -> 184625 | E16: x | F16: 12 | G16: x | H16: ='Other Inputs'!E14 -> 2.87375 | I16: = | J16: =ROUND(D16*F16*H16,0) -> 6366793
A17: =A16+1 -> 2 | B17: Ryckman Demand | D17: ='Other Inputs'!E184 -> 2500000 | E17: x | F17: 12 | G17: x | H17: ='Other Inputs'!E15 -> 0.09 | I17: = | J17: =ROUND(D17*F17*H17,0) -> 2700000
A18: =A17+1 -> 3 | B18: Clay Basin Demand | D18: ='Other Inputs'!E185 -> 111827 | E18: x | F18: 12 | G18: x | H18: ='Other Inputs'!E16 -> 2.85338 | I18: = | J18: =ROUND(D18*F18*H18,0) -> 3829019
A19: 4 | B19: Clay Basin Capacity | D19: ='Other Inputs'!E186 -> 13419000 | E19: x | F19: 12 | G19: x | H19: ='Other Inputs'!E17 -> 0.02378 | I19: = | J19: =ROUND(D19*F19*H19,0) -> 3829246
A20: 5 | C20: Total Demand Charges (SNG) | J20: =SUM(J16:J19) -> 16725058
B22: Storage Commodity 2/
A23: =A20+1 -> 6 | B23: Aquifer Peaking Injections | D23: =(+'Monthly Inputs'!S24+'Monthly Inputs'!S26+'Monthly Inputs'!S27) -> 1162589.727 | F23: x | H23: ='Other Inputs'!E6 -> 0.03872 | I23: = | J23: =ROUND(D23*H23,0) -> 45015
A24: =A23+1 -> 7 | B24: Aquifer Peaking Withdrawals | D24: =(+'Monthly Inputs'!S32+'Monthly Inputs'!S34+'Monthly Inputs'!S35) -> 922125.1984 | F24: x | H24: ='Other Inputs'!E7 -> 0.03872 | I24: = | J24: =ROUND(D24*H24,0) -> 35705
A25: =A24+1 -> 8 | B25: Ryckman Injections | D25: ='Monthly Inputs'!S28 -> 0 | F25: x | H25: ='Other Inputs'!E8 -> 0.015 | I25: = | J25: =ROUND(D25*H25,0) -> 0
A26: =A25+1 -> 9 | B26: Ryckman Withdrawals | D26: ='Monthly Inputs'!S36 -> 0 | F26: x | H26: ='Other Inputs'!E9 -> 0.01 | I26: = | J26: 0
A27: 10 | B27: Clay Basin Injections | D27: ='Monthly Inputs'!S25 -> 11700714.82 | F27: x | H27: ='Other Inputs'!E10 -> 0.01049 | I27: = | J27: =ROUND(D27*H27,0) -> 122740
A28: =A27+1 -> 11 | B28: Clay Basin Withdrawals | D28: ='Monthly Inputs'!S33 -> 10925010.06 | F28: x | H28: ='Other Inputs'!E11 -> 0.01781 | I28: = | J28: =ROUND(D28*H28,0) -> 194574
A29: =A28+1 -> 12 | C29: Total Commodity Charges | J29: =SUM(J23:J28) -> 398034
A31: =A29+1 -> 13 | B31: Total Storage Charges | K31: =J20+J29 -> 17123092
B34: WORKING GAS CHARGES - QGC Account 164
C36: Month | D36: Amount | H36: Pre-Tax Return %
A38: =A31+1 -> 14 | C38: =+'Rate Base'!H8 -> 2016-08-21 | D38: =+'Rate Base'!H206 -> 52516754.78
A39: =A38+1 -> 15 | C39: =+'Rate Base'!I8 -> 2016-09-20 | D39: =+'Rate Base'!I206 -> 67227540.26
A40: 16 | C40: =+'Rate Base'!J8 -> 2016-10-20 | D40: =+'Rate Base'!J206 -> 70093975.68
A41: 17 | C41: =+'Rate Base'!K8 -> 2016-11-19 | D41: =+'Rate Base'!K206 -> 72768412.53
A42: 18 | C42: =+'Rate Base'!L8 -> 2016-12-19 | D42: =+'Rate Base'!L206 -> 49333980.55
A43: 19 | C43: =+'Rate Base'!M8 -> 2017-01-18 | D43: =+'Rate Base'!M206 -> 33078465.64
A44: 20 | C44: =+'Rate Base'!N8 -> 2017-02-17 | D44: =+'Rate Base'!N206 -> 21745044.18
A45: 21 | C45: =+'Rate Base'!O8 -> 2017-03-19 | D45: =+'Rate Base'!O206 -> 8937825.64
A46: 22 | C46: =+'Rate Base'!P8 -> 2017-04-18 | D46: =+'Rate Base'!P206 -> 5265628.42
A47: 23 | C47: =+'Rate Base'!Q8 -> 2017-05-18 | D47: =+'Rate Base'!Q206 -> 9895288.84
A48: 24 | C48: =+'Rate Base'!R8 -> 2017-06-17 | D48: =+'Rate Base'!R206 -> 21769885.13
A49: 25 | C49: =+'Rate Base'!S8 -> 2017-07-17 | D49: =+'Rate Base'!S206 -> 34448175.63
A50: 26 | C50: =+'Rate Base'!T8 -> 2017-08-16 | D50: =+'Rate Base'!T206 -> 48018857.41
A53: =A50+1 -> 27 | B53: 12-Month Average 3/ | D53: =(SUM(D39:D49)+D38/2+D50/2)/12 -> 37069335.72 | F53: x | H53: ='Other Inputs'!E313 -> 0.1079 | J53: = | K53: =D53*H53 -> 3999781.324
A56: =A53+1 -> 28 | B56: TOTAL FIRM STORAGE AND WORKING GAS CHARGES | K56: =K53+K31 -> 21122873.32
A60: 1/ | B60: Dominion Energy Questar Pipeline, LLC Tariff included in Exhibit 1.9.
A61: 2/ | B61: Dominion Energy planned volumes.
A62: 3/ | B62: (½ of Line 14 + sum of Lines 15 through 25 + ½ of Line 26) / 12

Sheet Ut 1.4 p1
G1: ='Control Panel'!$E$32 -> Dominion Energy Utah
G2: ='Control Panel'!$E$33 -> Docket No. 17-057-20
G3: Exhibit 1.4
G4: Page 1 of 3
B8: SUMMARY OF TEST-YEAR GAS RELATED COSTS AND REVENUES CREDITS
B11: (A) | E11: (B) | F11: (C) | G11: (D)
B12: Component | E12: Costs | F12: Dth 1/ | G12: $ per Dth
B14: WEXPRO I
A15: 1 | C15: Dominion Energy Production 2/ | E15: ='Other Inputs'!D216 -> 279225919.1
A16: =A15+1 -> 2 | C16: Wexpro I Revenue Sharing Credits 3/ | E16: =-'Ut 1.4 p3'!H28 -> -19051641.19
A17: =A16+1 -> 3 | D17: Net Dominion Energy Production Costs | E17: =E15+E16 -> 260174277.9 | F17: =F22 -> 54657851.65 | G17: =E17/F22 -> 4.760053131
A19: =A17+1 -> 4 | D19: Gathering 4/ | E19: ='Ut 1.3 p1'!L62+'Ut 1.3 p1'!M59 -> 20106797.51
A22: =A19+1 -> 5 | B22: Total Wexpro I Cost of Production | E22: =SUM(E17:E19) -> 280281075.4 | F22: ='Monthly Inputs'!S7*(1-'Other Inputs'!E317) -> 54657851.65 | G22: =E22/F22 -> 5.127919722
B24: WEXPRO II
A25: =A22+1 -> 6 | C25: Wexpro II Production 5/ | E25: ='Other Inputs'!D237 -> 53384679.05
A26: =A25+1 -> 7 | C26: Wexpro II Revenue Sharing Credits 6/ | E26: =-'Ut 1.4 p3'!H44 -> -2584351.859
A27: =A26+1 -> 8 | D27: Net Cost of Wexpro II Production | E27: =E25+E26 -> 50800327.19 | F27: =F32 -> 15619553.6 | G27: =E27/F32 -> 3.252354613
A29: =A27+1 -> 9 | D29: Gathering 7/ | E29: ='Ut 1.3 p1'!L61 -> 7101910.329
A32: =A29+1 -> 10 | B32: Total Wexpro II Cost of Production | E32: =SUM(E27:E29) -> 57902237.52 | F32: ='Monthly Inputs'!S13*(1-'Other Inputs'!E317) -> 15619553.6 | G32: =E32/F32 -> 3.707035362
A34: =A32+1 -> 11 | B34: Sales of Cost-of-Service Gas 8/ | E34: =-'Other Inputs'!E255 -> 0 | F34: ='Other Inputs'!F255 -> 0 | G34: ='Other Inputs'!G255 -> 0
A37: =A34+1 -> 12 | B37: Total Cost-of-Service Production | E37: =E22+E32+E34 -> 338183312.9 | F37: =F22+F32 -> 70277405.24 | G37: =E37/F37 -> 4.81212008
A39: =A37+1 -> 13 | B39: Dominion Energy Contract Gas 9/ | E39: ='Ut 1.2'!G24 -> 158575083 | F39: ='Ut 1.2'!E24 -> 49086029 | G39: =E39/F39 -> 3.230554319
A41: =A39+1 -> 14 | B41: Injection / Withdrawal Adjustment 10/ | E41: ='Ut 1.4 p2'!H23 -> -4330716.293
A43: =A41+1 -> 15 | B43: Transportation, Other Costs & Peak Hour Service 11/ | E43: ='Ut 1.3 p1'!M34+'Ut 1.3 p1'!M52+'Ut 1.3 p1'!L63+'Ut 1.3 p1'!M71 -> 74974353 | F43: ='Ut 1.3 p1'!F41 -> 128801282.3 | G43: =E43/F43 -> 0.5820932189
A45: =A43+1 -> 16 | B45: Storage and Working Gas 12/ | E45: ='Ut 1.3 p2'!K56 -> 21122873.32
B47: Gas Management Costs | E47: ='Ut 1.3 p1'!M66 -> 0
A50: =A45+1 -> 17 | B50: Dominion Energy - Related Gas Costs for Rate Purposes 13/ | E50: =E37+E39+E41+E43+E45+E47 -> 588524905.9 | F50: ='Ut 1.6 p1'!H20 -> 114952734 | G50: =E50/F50 -> 5.119712124
A53: 1/ | B53: Estimated into-pipe volumes used for Wexpro dths.
A54: 2/ | B54: Exhibit 1.1, Page 18, Line 1398, Column H.
A55: 3/ | B55: Exhibit 1.4, Page 3, Line 8.
A56: 4/ | B56: Exhibit 1.3, Page 1, Lines 28 + 30.
A57: 5/ | B57: Exhibit 1.1, Page 21, Line 1600, Column H.
A58: 6/ | B58: Exhibit 1.4, Page 3, Line 16.
A59: 7/ | B59: Exhibit 1.3, Page 1, Line 29.
A60: 8/ | B60: Exhibit 1.4, Page 3, Line 17.
A61: 9/ | B61: Exhibit 1.2, Line 6.
A62: 10/ | B62: Exhibit 1.4, Page 2, Line 6.
A63: 11/ | B63: Exhibit 1.3, Page 1, Lines 15 + 25 + 31 +35.
A64: 12/ | B64: Exhibit 1.3, Page 2, Line 28.
A65: 13/ | B65: Exhibit 1.6, Page 1, Line 4.

Sheet Ut 1.4 p2
J1: ='Control Panel'!$E$32 -> Dominion Energy Utah
J2: ='Control Panel'!$E$33 -> Docket No. 17-057-20
J3: Exhibit 1.4
J4: Page 2 of 3
B8: ANNUALIZED UNIT COST OF STORAGE GAS
C11: (A) | E11: (B) | F11: (C) | H11: (D)
F12: Average
E13: Dth | F13: Rate | H13: Total Costs
B15: 1 | C15: Company Production 1/ | E15: ='Ut 1.4 p1'!F37 -> 70277405.24 | F15: =H15/E15 -> 4.81212008 | H15: ='Ut 1.4 p1'!E37 -> 338183312.9
B16: =B15+1 -> 2 | C16: Purchased Gas 2/ | E16: ='Ut 1.2'!E24 -> 49086029 | F16: =H16/E16 -> 3.230554319 | H16: ='Ut 1.2'!G24 -> 158575083
B17: =B16+1 -> 3 | C17: Average Price | E17: =SUM(E15:E16) -> 119363434.2 | F17: =(+H15+H16)/(+E15+E16) -> 4.16173009 | H17: =SUM(H15:H16) -> 496758395.9
C20: Storage 3/
B21: =B17+1 -> 4 | C21: Withdrawals | E21: ='Monthly Inputs'!S37 -> 11847135.26 | F21: ='Ut Storage'!L27 -> 4.739035988 | H21: =E21*F21 -> 56144000.35
B22: =B21+1 -> 5 | C22: Injections | E22: =-'Monthly Inputs'!S29 -> -12863304.55 | F22: ='Ut Storage'!K27 -> 4.701335992 | H22: =E22*F22 -> -60474716.65
B23: =B22+1 -> 6 | C23: Storage Adjustment | H23: =H21+H22 -> -4330716.293
B29: 1/ | C29: Exhibit 1.4, Page 1, Line 12.
B30: 2/ | C30: Exhibit 1.2, Line 6.
B31: 3/ | C31: Dominion Energy planned volumes.

Sheet Ut 1.4 p3
K1: ='Control Panel'!$E$32 -> Dominion Energy Utah
K2: ='Control Panel'!$E$33 -> Docket No. 17-057-20
K3: Exhibit 1.4
K4: Page 3 of 3
D8: OTHER REVENUES 1/
C11: (A) | E11: (B) | F11: (C) | G11: (D)
C12: Account | G12: =Expenses!S8 -> 12 Months Ending
C13: Number | E13: Account Name | G13: ='Control Panel'!E7 -> 2018-10-31
C14: WEXPRO I
B15: 1 | D15: 483 | E15: Sales for Resale | H15: ='Other Inputs'!F223 -> 2864257.6
B17: =B15+1 -> 2 | D17: 490 | E17: Plant By-Product | H17: ='Other Inputs'!F224 -> 3053673
B19: =B17+1 -> 3 | D19: 492 | E19: Gasoline and Oil Sales | F19: ='Other Inputs'!F225 -> 468514.6156
B20: =B19+1 -> 4 | D20: 758-1 | E20: Gasoline and Oil Cost | F20: ='Other Inputs'!F228 -> -77258.06012
B21: =B20+1 -> 5 | E21: Net Gasoline and Oil Sales | H21: =F19+F20 -> 391256.5555
B23: =B21+1 -> 6 | D23: 495-1 | E23: Overriding Royalty Revenue | H23: ='Other Inputs'!F226 -> 12742454.03
B25: =B23+1 -> 7 | D25: 495-2 | E25: Oil Revenue Received from Wexpro | H25: ='Other Inputs'!F227 -> 0
B28: =B25+1 -> 8 | E28: Total Wexpro I | H28: =SUM(H15:H25) -> 19051641.19
C30: WEXPRO II
B31: =B28+1 -> 9 | D31: 483 | E31: Sales for Resale | H31: ='Other Inputs'!E244 -> 0
B33: =B31+1 -> 10 | D33: 490 | E33: Plant By-Product | H33: ='Other Inputs'!E245 -> 562982.7086
B35: =B33+1 -> 11 | D35: 492 | E35: Gasoline and Oil Sales | F35: ='Other Inputs'!E246 -> 1537181.285
B36: =B35+1 -> 12 | D36: 758-1 | E36: Gasoline and Oil Cost | F36: ='Other Inputs'!E249 -> -258355.5957
B37: =B36+1 -> 13 | E37: Net Gasoline and Oil Sales | H37: =F35+F36 -> 1278825.689
B39: =B37+1 -> 14 | D39: 495-1 | E39: Overriding Royalty Revenue | H39: ='Other Inputs'!E247 -> 522369.6115
B41: =B39+1 -> 15 | D41: 495-2 | E41: Oil Revenue Received from Wexpro | H41: ='Other Inputs'!E248 -> 220173.8498
B44: =B41+1 -> 16 | E44: Total Wexpro II | H44: =SUM(H31:H41) -> 2584351.859
B46: 17 | E46: Sales of Cost-of-Service Gas | H46: ='Other Inputs'!E255 -> 0
B49: 18 | E49: Grand Total (Line 8 + Line 16 + Line 17) | H49: =H28+H44+H46 -> 21635993.04
B53: 1/ | D53: Forecasted 12-month test year.

Sheet Ut 1.5
H1: ='Control Panel'!$E$32 -> Dominion Energy Utah
H2: ='Control Panel'!$E$33 -> Docket No. 17-057-20
H3: Exhibit 1.5
B8: TEST-YEAR GAS COST ALLOCATION
B11: (A) | D11: (B) | E11: (C) | F11: (D) | G11: (E)
D12: Allocation
D13: Factor 1/ | E13: System | F13: Wyoming | G13: Utah
A15: 1 | B15: Dominion Energy Production (Exhibit 1.1) | D15: 2 | E15: ='Ut 1.4 p1'!E15+'Ut 1.4 p1'!E25 -> 332610598.1 | F15: =CHOOSE($D15,F$53,F$56)*$E15 -> 12266925.29 | G15: 320343672.8
A16: =A15+1 -> 2 | B16: Other Revenue's Credit (Exhibit 1.4, p 3) | D16: 2 | E16: ='Ut 1.4 p1'!E16+'Ut 1.4 p1'!E26+'Ut 1.4 p1'!E34 -> -21635993.04 | F16: -797951.4539 | G16: -20838041.59
A17: =A16+1 -> 3 | B17: Gathering (Exhibit 1.3, p 1) | C17: - Demand | D17: 1 | E17: ='Ut 1.3 p1'!L57 -> 12245844 | F17: 339547.7263 | G17: 11906296.27
A18: =A17+1 -> 4 | B18: Gathering | C18: - Commodity | D18: 2 | E18: ='Ut 1.3 p1'!L62+'Ut 1.3 p1'!L58+'Ut 1.3 p1'!L61 -> 14962863.84 | F18: 551841.5047 | G18: 14411022.34
A19: =A18+1 -> 5 | B19: Net Cost of Dominion Energy Production | E19: =SUM(E15:E18) -> 338183312.9 | F19: =SUM(F15:F18) -> 12360363.07 | G19: =SUM(G15:G18) -> 325822949.8
A21: =A19+1 -> 6 | B21: Dominion Energy Contract Gas (Exhibit 1.2) | D21: 2 | E21: ='Ut 1.4 p1'!E39 -> 158575083 | F21: =CHOOSE($D21,F$53,F$56)*$E21 -> 5848366.552 | G21: =CHOOSE($D21,G$53,G$56)*$E21 -> 152726716.4
A24: =A21+1 -> 7 | B24: Injection / Withdrawal Adjustment (Exhibit 1.4, p 1) | D24: 2 | E24: ='Ut 1.4 p1'!E41 -> -4330716.293 | F24: =CHOOSE($D24,F$53,F$56)*$E24 -> -159720.0256 | G24: =CHOOSE($D24,G$53,G$56)*$E24 -> -4170996.267
A27: =A24+1 -> 8 | B27: Transportation (Exhibit 1.3, p 1) | C27: - Demand | D27: 1 | E27: ='Ut 1.3 p1'!M34 -> 68558364 | F27: =CHOOSE($D27,F$53,F$56)*$E27 -> 1900958.122 | G27: =CHOOSE($D27,G$53,G$56)*$E27 -> 66657405.88
A28: =A27+1 -> 9 | B28: Transportation | C28: - Commodity | D28: 2 | E28: ='Ut 1.3 p1'!M52 -> 553848 | F28: =CHOOSE($D28,F$53,F$56)*$E28 -> 20426.32459 | G28: =CHOOSE($D28,G$53,G$56)*$E28 -> 533421.6754
A31: =A28+1 -> 10 | B31: Storage (Exhibit 1.3, p 2) | C31: - Demand | D31: 1 | E31: ='Ut 1.3 p2'!J20 -> 16725058 | F31: =CHOOSE($D31,F$53,F$56)*$E31 -> 463745.5301 | G31: =CHOOSE($D31,G$53,G$56)*$E31 -> 16261312.47
A32: =A31+1 -> 11 | B32: Storage | C32: - Commodity | D32: 2 | E32: ='Ut 1.3 p2'!J29 -> 398034 | F32: =CHOOSE($D32,F$53,F$56)*$E32 -> 14679.78883 | G32: =CHOOSE($D32,G$53,G$56)*$E32 -> 383354.2112
A35: =A32+1 -> 12 | B35: Other Transportation - Commodity (Exhibit 1.3, p 1) | D35: 2 | E35: ='Ut 1.3 p1'!L63 -> 3500326 | F35: =CHOOSE($D35,F$53,F$56)*$E35 -> 129094.6163 | G35: =CHOOSE($D35,G$53,G$56)*$E35 -> 3371231.384
A38: =A35+1 -> 13 | B38: Working Gas Costs (Exhibit 1.3, p 2) | D38: 2 | E38: ='Ut 1.3 p2'!K53 -> 3999781.324 | F38: =CHOOSE($D38,F$53,F$56)*$E38 -> 147514.8987 | G38: =CHOOSE($D38,G$53,G$56)*$E38 -> 3852266.425
A40: =A38+1 -> 14 | B40: Peak Hour Service (Exhibit 1.3, p 1) | D40: 1 | E40: ='Ut 1.3 p1'!M71 -> 2361815 | F40: =CHOOSE($D40,F$53,F$56)*$E40 -> 65487.43503 | G40: =CHOOSE($D40,G$53,G$56)*$E40 -> 2296327.565
A43: =A40+1 -> 15 | B43: Totals | E43: =SUM(E19:E40) -> 588524905.9 | F43: =SUM(F19:F40) -> 20790916.31 | G43: 567733989.6
A50: 1/ | B50: Allocation Factors | E50: Total | F50: Wyoming | G50: Utah
B52: #1 Peak Day Demand | D52: Dth- | E52: =SUM(F52:G52) -> 1337180 | F52: ='Other Inputs'!$E$162 -> 37076.77713 | G52: ='Other Inputs'!$E$161 -> 1300103.223
D53: Percent- | E53: =F53+G53 -> 1 | F53: =F52/E52 -> 0.02772758875 | G53: =G52/E52 -> 0.9722724112
B55: #2 Commodity Sales - All | D55: Dth- | E55: =F55+G55 -> 114952734 | F55: ='Ut 1.6 p1'!H19 -> 4239542 | G55: ='Ut 1.6 p1'!H18 -> 110713192
D56: Percent- | E56: =F56+G56 -> 1 | F56: =F55/E55 -> 0.03688074091 | G56: =G55/E55 -> 0.9631192591

Sheet Ut 1.6 p1
J1: ='Control Panel'!$E$32 -> Dominion Energy Utah
J2: ='Control Panel'!$E$33 -> Docket No. 17-057-20
J3: Exhibit 1.6
J4: Page 1 of 3
B8: TEST-YEAR GAS COST CHANGE
B11: (A) | C11: (B) | D11: (C) | F11: (D) | H11: (E) | J11: (F)
F12: Average Rate | H12: x Dth | I12: = | J12: Total
A13: 1 | B13: Utah Allocation of Dominion Energy - Related Gas Costs (Exhibit 1.5) 1/ | J13: ='Ut 1.5'!G43 -> 567733989.6
H15: Total
B16: Test-Year Sales: | D16: Firm | F16: + Interruptible | H16: = Sales Dth
A18: =A13+1 -> 2 | B18: Utah | D18: =Calculations!P13 -> 110147901 | F18: =Calculations!P17 -> 565291 | H18: =D18+F18 -> 110713192
A19: =A18+1 -> 3 | B19: Wyoming | D19: =Calculations!P32 -> 4095952 | F19: =Calculations!P36 -> 143590 | H19: =D19+F19 -> 4239542
A20: =A19+1 -> 4 | B20: Total Dth | H20: =SUM(H18:H19) -> 114952734
A22: =A20+1 -> 5 | B22: Supplier Non-Gas Costs 2/ | J22: =(-'Ut 1.6 p2'!F14) -> -115275751
A25: =A22+1 -> 6 | B25: Commodity Portion of Test-Year Gas Cost (Lines 1 + 5) | J25: =J13+J22 -> 452458238.7
F28: Current Case | H28: Prior Case
B29: FIRM CUSTOMER RATES | F29: ='Control Panel'!E5 -> 17-057-20 | H29: ='Control Panel'!E9 -> 17-057-07 | J29: Difference
A31: =A25+1 -> 7 | B31: Gas Cost (line 6/Total Sales Dth, line 4) | F31: =ROUND((J25)/H18,5) -> 4.08676 | H31: ='Other Inputs'!F137 -> 4.0683 | J31: =F31-H31 -> 0.01846
A32: =A31+1 -> 8 | B32: 191 Account Amortization (Commodity Portion) 3/ | F32: =D49/H18 -> 0.1355188007 | H32: ='Other Inputs'!F138 -> -0.04894 | J32: =F32-H32 -> 0.1844588007
A33: =A32+1 -> 9 | B33: Total Sales Unit Commodity Cost (Lines 7 + 8) | F33: =F31+F32 -> 4.222278801 | H33: =H31+H32 -> 4.01936 | J33: =J31+J32 -> 0.2029188007
A43: 1/ | B43: Exhibit 1.5, Line 15, Column E.
A45: 2/ | B45: Test Year Estimate of Transportation, Gathering, and Storage billings.
A47: 3/ | B47: 191 Account (August 2017) actual | D47: ='Other Inputs'!E155 -> 27904274
B48: Less: Supplier Non-Gas balance actual | D48: ='Other Inputs'!E156 -> 12900555
B49: 191 Account Commodity Portion | D49: =(D47-D48) -> 15003719 | F49: =H18 -> 110713192 | H49: =D49/F49 -> 0.1355188007
B50: See Application, paragraph 11.

Sheet Ut 1.6 p2
G1: ='Control Panel'!$E$32 -> Dominion Energy Utah
G2: ='Control Panel'!$E$33 -> Docket No. 17-057-20
G3: Exhibit 1.6
G4: Page 2 of 3
C8: TEST-YEAR SUPPLIER NON-GAS COST CHANGE
C11: (A) | D11: (B) | E11: (C) | F11: (D)
D12: Dth | E12: Average Rate | F12: Total
B14: 1 | C14: Supplier Non-Gas (SNG) Costs 1/ | F14: ='Ut 1.5'!G27+'Ut 1.5'!G31+'Ut 1.5'!G17+'Ut 1.5'!G40+(+'Ut 1.3 p1'!L39+'Ut 1.3 p1'!L50+'Ut 1.3 p1'!L62+'Ut 1.3 p1'!L63+'Ut 1.3 p1'!L58+'Ut 1.3 p1'!L61)*'Ut 1.5'!G56 -> 115275751
B15: =B14+1 -> 2 | C15: 191 Account Balance for SNG Costs 2/ | F15: =E44 -> 4714987
B16: =1+B15 -> 3 | C16: Total | F16: =SUM(F14:F15) -> 119990738
B19: =B16+1 -> 4 | C19: SNG Costs Recovered at Current Rates 3/ | F19: ='Other Inputs'!E261-(D29*('Other Inputs'!G113-'Other Inputs'!F262)) -> 117886089.9
B22: =1+B19 -> 5 | C22: SNG Costs Adjustment to Current Rates (Line 3 - Line 4) | F22: =F16-F19 -> 2104648.089
B28: 6a | C28: Adjustment for SNG contributions from:
B29: 6b | C29: IS SNG current rate | D29: ='RevRun Fcst'!T102+'RevRun Fcst'!T93 -> 565291 | E29: ='Ut 1.6 p3'!E24 -> 0.17877 | F29: =D29*E29 -> 101057.0721
B30: 6c | C30: IS SNG new rate | D30: ='RevRun Fcst'!T102+'RevRun Fcst'!T93 -> 565291 | E30: ='Ut 1.6 p3'!I24 -> 0.17864 | F30: =D30*E30 -> 100983.5842
B35: =2+B22 -> 7 | C35: Percent Change to Current Rates | F35: =(((+F16-F30)-(F19-F29))/(F19-F29))*100 -> 1.786917681 | G35: %
C36: ((ln 3-ln 6c)-(ln 4-ln 6b))/(ln 4-ln 6b)
B42: 1/ | C42: Exhibit 1.6, Page 1, Line 5.
B44: 2/ | C44: Spring pass through SNG amortization from Docket No. 17-057-07 | E44: 4714987
C45: Amortization will be adjusted in the 2018 spring pass-through.
B47: 3/ | C47: ="Output of Revrun.Exe computer program dated "&'RevRun Fcst'!D4 -> Output of Revrun.Exe computer program dated 9/11/2017

Sheet Ut 1.6 p3
I1: ='Control Panel'!$E$32 -> Dominion Energy Utah
I2: ='Control Panel'!$E$33 -> Docket No. 17-057-20
I3: Exhibit 1.6
I4: Page 3 of 3
F8: TEST YEAR CHANGE IN SUPPLIER NON-GAS COSTS
F9: BY RATE CLASS
C12: (A) | D12: (B) | E12: (C) | F12: (D) | G12: (E) | H12: (F) | I12: (G)
G13: Rate per Dth
C14: Rate Class | D14: Season | E14: Current total 1/ | F14: Curr. Base 1/ | G14: Calc. Base 2/ | H14: Amortization 3/ | I14: Total 4/ | K14: CHECK !!
B16: 1 | C16: GS | D16: Winter | E16: ='Other Inputs'!G105 -> 1.26164 | F16: ='Other Inputs'!E105 -> 1.21114 | G16: =ROUND(E16*('Ut 1.6 p2'!$F$14-'Ut 1.6 p2'!$F$30)/('Ut 1.6 p2'!$F$19-'Ut 1.6 p2'!$F$29),5) -> 1.23368 | H16: =I16-G16 -> 0.0505 | I16: =ROUND(E16*ROUND(1+'Ut 1.6 p2'!$F$35/100,7),5)+M16 -> 1.28418 | K16: =ROUND(G16*('Ut 1.6 p2'!$F$15)/('Ut 1.6 p2'!$F$14-'Ut 1.6 p2'!$F$30),5)-H16 -> 0
B17: =B16+1 -> 2 | D17: Summer | E17: ='Other Inputs'!G106 -> 0.59236 | F17: ='Other Inputs'!E106 -> 0.56865 | G17: =ROUND(E17*('Ut 1.6 p2'!$F$14-'Ut 1.6 p2'!$F$30)/('Ut 1.6 p2'!$F$19-'Ut 1.6 p2'!$F$29),5) -> 0.57923 | H17: =I17-G17 -> 0.02371 | I17: =ROUND(E17*ROUND(1+'Ut 1.6 p2'!$F$35/100,7),5)+M17 -> 0.60294 | K17: =ROUND(G17*('Ut 1.6 p2'!$F$15)/('Ut 1.6 p2'!$F$14-'Ut 1.6 p2'!$F$30),5)-H17 -> 0
B19: =B17+1 -> 3 | C19: FS | D19: Winter | E19: ='Other Inputs'!G108 -> 1.22878 | F19: ='Other Inputs'!E108 -> 1.17959 | G19: =ROUND(E19*('Ut 1.6 p2'!$F$14-'Ut 1.6 p2'!$F$30)/('Ut 1.6 p2'!$F$19-'Ut 1.6 p2'!$F$29),5) -> 1.20155 | H19: =I19-G19 -> 0.04919 | I19: =ROUND(E19*ROUND(1+'Ut 1.6 p2'!$F$35/100,7),5)+M19 -> 1.25074 | K19: =ROUND(G19*('Ut 1.6 p2'!$F$15)/('Ut 1.6 p2'!$F$14-'Ut 1.6 p2'!$F$30),5)-H19 -> -6.938893904e-17
B20: =B19+1 -> 4 | D20: Summer | E20: ='Other Inputs'!G109 -> 0.59236 | F20: ='Other Inputs'!E109 -> 0.56865 | G20: =ROUND(E20*('Ut 1.6 p2'!$F$14-'Ut 1.6 p2'!$F$30)/('Ut 1.6 p2'!$F$19-'Ut 1.6 p2'!$F$29),5) -> 0.57923 | H20: =I20-G20 -> 0.02371 | I20: =ROUND(E20*ROUND(1+'Ut 1.6 p2'!$F$35/100,7),5)+M20 -> 0.60294 | K20: =ROUND(G20*('Ut 1.6 p2'!$F$15)/('Ut 1.6 p2'!$F$14-'Ut 1.6 p2'!$F$30),5)-H20 -> 0
B22: =B20+1 -> 5 | C22: NGV | E22: ='Other Inputs'!G111 -> 0.91042 | F22: ='Other Inputs'!E111 -> 0.87398 | G22: =ROUND(E22*('Ut 1.6 p2'!$F$14-'Ut 1.6 p2'!$F$30)/('Ut 1.6 p2'!$F$19-'Ut 1.6 p2'!$F$29),5) -> 0.89024 | H22: =I22-G22 -> 0.03645 | I22: =ROUND(E22*ROUND(1+'Ut 1.6 p2'!$F$35/100,7),5)+M22 -> 0.92669 | K22: =ROUND(G22*('Ut 1.6 p2'!$F$15)/('Ut 1.6 p2'!$F$14-'Ut 1.6 p2'!$F$30),5)-H22 -> -1e-05
B24: =B22+1 -> 6 | C24: IS 5/ | E24: ='Other Inputs'!F262 -> 0.17877 | F24: ='Other Inputs'!F262 -> 0.17877 | G24: ='Other Inputs'!$F$54 -> 0.17864 | H24: =I24-G24 -> 0 | I24: ='Other Inputs'!$F$54 -> 0.17864
B31: 1/ | C31: Current Dominon Energy Utah Tariff (excluding bad debt surcharge).
B33: 2/ | C33: Exhibit 1.6 page 2 (line 1 - line 6c)/(line 4 - line 6b)*Exhibit 1.6 page 3 column C. (N.A. to line 6)
B35: 3/ | C35: Column G - Column E
B37: 4/ | C37: (Current Dominion Energy Utah rates) x (1+Exhibit 1.6, Page 2, Line 7, % change).
C38: ="(except ln. 6, which is calculated by adding QPC T-2 and ACA rates, then adjusting for distr. loss of "&TEXT('Other Inputs'!E315,"0.000%") -> (except ln. 6, which is calculated by adding QPC T-2 and ACA rates, then adjusting for distr. loss of 0.460%
C39: ="= ("&TEXT('Other Inputs'!$F$48,"$0.00000")&" + "&TEXT('Other Inputs'!$F$50,"$0.00000")&") / ( 1 - "&TEXT('Other Inputs'!$E$315,"0.00000")&" ) = "&TEXT(('Other Inputs'!F48+'Other Inputs'!F50)/(1-('Other Inputs'!$E$315)),("$0.00000")) -> = ($0.17652 + $0.00130) / ( 1 - 0.00460 ) = $0.17864
B41: 5/ | C41: ="IS Tariff rate has an adjustment for bad debt of "&TEXT('Other Inputs'!$E$326,"0.00%")&" = "&TEXT($I$24,"$0.00000")&" / ( 1 - "&TEXT('Other Inputs'!$E$326,"0.00000")&" ) = "&TEXT($I$24/(1-('Other Inputs'!$E$326)),("$0.00000")) -> IS Tariff rate has an adjustment for bad debt of 0.25% = $0.17864 / ( 1 - 0.00250 ) = $0.17909

Sheet Ut 1.7
L1: ='Control Panel'!$E$32 -> Dominion Energy Utah
L2: ='Control Panel'!$E$33 -> Docket No. 17-057-20
L3: Exhibit 1.7
C7: EFFECT ON GS TYPICAL CUSTOMER
C8: 80 DTHS - ANNUAL CONSUMPTION
C11: (A) | D11: (B) | E11: (C) | F11: (D) | H11: (E) | J11: (F)
F12: Billed at Current | H12: Billed at
C13: Rate | E13: Usage | F13: Rates Effective | H13: Proposed Rates
C14: Schedule | D14: Month | E14: In Dth | F14: ='Other Inputs'!J118 -> 2017-10-01 | H14: ='Control Panel'!E5 -> 17-057-20 | J14: Change
B16: 1 | C16: GS | D16: Jan | E16: ='Monthly Inputs'!G116 -> 14.9 | F16: =ROUND((+E16*'Other Inputs'!$G$120)+'Other Inputs'!$G$122,2) -> 127.55 | H16: =ROUND((+E16*'Ut 1.8'!$F$10)+'Ut 1.8'!$C$12,2) -> 130.9 | J16: =H16-F16 -> 3.35
B17: =B16+1 -> 2 | D17: Feb | E17: ='Monthly Inputs'!G117 -> 12.5 | F17: =ROUND((+E17*'Other Inputs'!$G$120)+'Other Inputs'!$G$122,2) -> 108.09 | H17: =ROUND((+E17*'Ut 1.8'!$F$10)+'Ut 1.8'!$C$12,2) -> 110.91 | J17: 2.82
B18: =B17+1 -> 3 | D18: Mar | E18: ='Monthly Inputs'!G118 -> 10.1 | F18: =ROUND((+E18*'Other Inputs'!$G$120)+'Other Inputs'!$G$122,2) -> 88.63 | H18: =ROUND((+E18*'Ut 1.8'!$F$10)+'Ut 1.8'!$C$12,2) -> 90.91 | J18: 2.28
B19: 4 | D19: Apr | E19: ='Monthly Inputs'!G119 -> 8.3 | F19: =ROUND((+E19*'Other Inputs'!$G$118)+'Other Inputs'!$G$122,2) -> 62.74 | H19: =ROUND((+E19*'Ut 1.8'!$C$10)+'Ut 1.8'!$C$12,2) -> 64.51 | J19: 1.77
B20: 5 | D20: May | E20: ='Monthly Inputs'!G120 -> 4.4 | F20: =ROUND((+E20*'Other Inputs'!$G$118)+'Other Inputs'!$G$122,2) -> 36.43 | H20: =ROUND((+E20*'Ut 1.8'!$C$10)+'Ut 1.8'!$C$12,2) -> 37.37 | J20: 0.94
B21: 6 | D21: Jun | E21: ='Monthly Inputs'!G121 -> 3.1 | F21: =ROUND((+E21*'Other Inputs'!$G$118)+'Other Inputs'!$G$122,2) -> 27.66 | H21: =ROUND((+E21*'Ut 1.8'!$C$10)+'Ut 1.8'!$C$12,2) -> 28.32 | J21: 0.66
B22: 7 | D22: Jul | E22: ='Monthly Inputs'!G122 -> 2 | F22: =ROUND((+E22*'Other Inputs'!$G$118)+'Other Inputs'!$G$122,2) -> 20.24 | H22: =ROUND((+E22*'Ut 1.8'!$C$10)+'Ut 1.8'!$C$12,2) -> 20.67 | J22: 0.43
B23: 8 | D23: Aug | E23: ='Monthly Inputs'!G123 -> 1.8 | F23: =ROUND((+E23*'Other Inputs'!$G$118)+'Other Inputs'!$G$122,2) -> 18.89 | H23: =ROUND((+E23*'Ut 1.8'!$C$10)+'Ut 1.8'!$C$12,2) -> 19.28 | J23: 0.39
B24: 9 | D24: Sep | E24: ='Monthly Inputs'!G124 -> 2 | F24: =ROUND((+E24*'Other Inputs'!$G$118)+'Other Inputs'!$G$122,2) -> 20.24 | H24: =ROUND((+E24*'Ut 1.8'!$C$10)+'Ut 1.8'!$C$12,2) -> 20.67 | J24: 0.43
B25: 10 | D25: Oct | E25: ='Monthly Inputs'!G125 -> 3.1 | F25: =ROUND((+E25*'Other Inputs'!$G$118)+'Other Inputs'!$G$122,2) -> 27.66 | H25: =ROUND((+E25*'Ut 1.8'!$C$10)+'Ut 1.8'!$C$12,2) -> 28.32 | J25: 0.66
B26: 11 | D26: Nov | E26: ='Monthly Inputs'!G126 -> 6.3 | F26: =ROUND((+E26*'Other Inputs'!$G$120)+'Other Inputs'!$G$122,2) -> 57.82 | H26: =ROUND((+E26*'Ut 1.8'!$F$10)+'Ut 1.8'!$C$12,2) -> 59.24 | J26: 1.42
B27: 12 | D27: Dec | E27: ='Monthly Inputs'!G127 -> 11.5 | F27: =ROUND((+E27*'Other Inputs'!$G$120)+'Other Inputs'!$G$122,2) -> 99.98 | H27: =ROUND((+E27*'Ut 1.8'!$F$10)+'Ut 1.8'!$C$12,2) -> 102.57 | J27: 2.59
B30: =B27+1 -> 13 | D30: Total | E30: =SUM(E16:E27) -> 80 | F30: =SUM(F16:F27) -> 695.93 | H30: =SUM(H16:H27) -> 713.67 | J30: =H30-F30 -> 17.74
B32: =B30+1 -> 14 | H32: Percent Change: | J32: =ROUND(J30/F30,4)*100 -> 2.55 | K32: %

Sheet Ut 1.7 Tot (hidden)
L1: ='Control Panel'!$E$32 -> Dominion Energy Utah
L2: Docket Nos. 08-057-15, 08-057-16 & 08-057-17
L3: Hearing Exhibit 2
A5: NOT USED
C7: EFFECT ON GS-1 TYPICAL CUSTOMER
B8: OF PROPOSED COMMODITY AND SNG RATES AND CET AND DSM AMORTIZATIONS
C9: 80 DTHS - ANNUAL CONSUMPTION
C12: (A) | D12: (B) | E12: (C) | F12: (D) | H12: (E) | J12: (F)
F13: Billed at Current | H13: Billed at
C14: Rate | E14: Usage | F14: Rates Effective | H14: Proposed
C15: Schedule | D15: Month | E15: In Dth | F15: ='Other Inputs'!J118 -> 2017-10-01 | H15: Rates | J15: Change
B17: 1 | C17: GS | D17: Jan | E17: ='Monthly Inputs'!G116 -> 14.9 | F17: =ROUND((+E17*'Other Inputs'!$G$120)+'Other Inputs'!$G$122,2) -> 127.55 | H17: ='CET & DSM'!D107 -> 149.14 | J17: =H17-F17 -> 21.59
B18: =B17+1 -> 2 | D18: Feb | E18: ='Monthly Inputs'!G117 -> 12.5 | F18: =ROUND((+E18*'Other Inputs'!$G$120)+'Other Inputs'!$G$122,2) -> 108.09 | H18: ='CET & DSM'!D108 -> 126.2 | J18: 18.11
B19: 3 | D19: Mar | E19: ='Monthly Inputs'!G118 -> 10.1 | F19: =ROUND((+E19*'Other Inputs'!$G$120)+'Other Inputs'!$G$122,2) -> 88.63 | H19: ='CET & DSM'!D109 -> 103.27 | J19: 14.64
B20: 4 | D20: Apr | E20: ='Monthly Inputs'!G119 -> 8.3 | F20: =ROUND((+E20*'Other Inputs'!$G$118)+'Other Inputs'!$G$122,2) -> 62.74 | H20: ='CET & DSM'!D110 -> 69.82 | J20: 7.08
B21: 5 | D21: May | E21: ='Monthly Inputs'!G120 -> 4.4 | F21: =ROUND((+E21*'Other Inputs'!$G$118)+'Other Inputs'!$G$122,2) -> 36.43 | H21: ='CET & DSM'!D111 -> 40.18 | J21: 3.75
B22: 6 | D22: Jun | E22: ='Monthly Inputs'!G121 -> 3.1 | F22: =ROUND((+E22*'Other Inputs'!$G$118)+'Other Inputs'!$G$122,2) -> 27.66 | H22: ='CET & DSM'!D112 -> 30.31 | J22: 2.65
B23: 7 | D23: Jul | E23: ='Monthly Inputs'!G122 -> 2 | F23: =ROUND((+E23*'Other Inputs'!$G$118)+'Other Inputs'!$G$122,2) -> 20.24 | H23: ='CET & DSM'!D113 -> 21.95 | J23: 1.71
B24: 8 | D24: Aug | E24: ='Monthly Inputs'!G123 -> 1.8 | F24: =ROUND((+E24*'Other Inputs'!$G$118)+'Other Inputs'!$G$122,2) -> 18.89 | H24: ='CET & DSM'!D114 -> 20.43 | J24: 1.54
B25: 9 | D25: Sep | E25: ='Monthly Inputs'!G124 -> 2 | F25: =ROUND((+E25*'Other Inputs'!$G$118)+'Other Inputs'!$G$122,2) -> 20.24 | H25: ='CET & DSM'!D115 -> 21.95 | J25: 1.71
B26: 10 | D26: Oct | E26: ='Monthly Inputs'!G125 -> 3.1 | F26: =ROUND((+E26*'Other Inputs'!$G$118)+'Other Inputs'!$G$122,2) -> 27.66 | H26: ='CET & DSM'!D116 -> 30.31 | J26: 2.65
B27: 11 | D27: Nov | E27: ='Monthly Inputs'!G126 -> 6.3 | F27: =ROUND((+E27*'Other Inputs'!$G$120)+'Other Inputs'!$G$122,2) -> 57.82 | H27: ='CET & DSM'!D117 -> 66.96 | J27: 9.14
B28: 12 | D28: Dec | E28: ='Monthly Inputs'!G127 -> 11.5 | F28: =ROUND((+E28*'Other Inputs'!$G$120)+'Other Inputs'!$G$122,2) -> 99.98 | H28: ='CET & DSM'!D118 -> 116.65 | J28: 16.67
B31: =B28+1 -> 13 | D31: Total | E31: =SUM(E17:E28) -> 80 | F31: =SUM(F17:F28) -> 695.93 | H31: =SUM(H17:H28) -> 797.17 | J31: =H31-F31 -> 101.24
H33: Percent Change: | J33: =ROUND(J31/F31,4)*100 -> 14.55 | K33: %

Sheet Ut 1.8 p1
F1: ='Control Panel'!E32 -> Dominion Energy Utah
F2: ='Control Panel'!E33 -> Docket No. 17-057-20
F3: Exhibit 1.8
F4: Page 1 of 17
A15: DOMINION ENERGY UTAH
A16: 333 South State Street
A17: P.O. Box 45433
A18: Salt Lake City, Utah 84145-0433
A29: LEGISLATIVE/PROPOSED RATE SCHEDULES
A31: P.S.C. Utah No. 500
A32: Affecting All Firm Sales Rate Schedules
A33: and Classes of Service In
A34: Dominion Energy
A35: Utah Service Area
A39: Date Issued: October 2, 2017
A40: To Become Effective November 1, 2017

Sheet LEG - PR
A2: LEGISLATIVE TARIFF
A3: SHEETS
A6: PROPOSED TARIFF
A7: SHEETS

Sheet Ut 1.8
A1: SUMMARY OF PROPOSED RATES
A3: UTAH RATE CLASSES | C3: Rates per Dth Used Each Month
C4: All Season Rates or Summer Rates: Apr. 1 - Oct. 31 | F4: Winter Rates: Nov. 1 - Mar. 31
A5: UT GS | C5: First 45 Dth | D5: All Over 45 Dth | F5: First 45 Dth | G5: All Over 45 Dth
B6: Distribution Non-Gas Cost | C6: 2.13441 | D6: 1.02385 | F6: 2.82605 | G6: 1.71549
B7: Supplier Non-Gas Cost | C7: ='Ut 1.6 p3'!I17 -> 0.60294 | D7: =C7 -> 0.60294 | F7: ='Ut 1.6 p3'!I16 -> 1.28418 | G7: =F7 -> 1.28418
B8: Commodity Cost | C8: =('Ut 1.6 p1'!$F$33) -> 4.222278801 | D8: =C8 -> 4.222278801 | F8: =D8 -> 4.222278801 | G8: =F8 -> 4.222278801
B10: Total Rate | C10: =SUM(C6:C9) -> 6.959628801 | D10: =SUM(D6:D9) -> 5.849068801 | F10: =SUM(F6:F9) -> 8.332508801 | G10: =SUM(G6:G9) -> 7.221948801
B12: BSF Category 1 | C12: 6.75
B13: BSF Category 2 | C13: 18.25
B14: BSF Category 3 | C14: 63.5
B15: BSF Category 4 | C15: 420.25
A18: UT FS | C18: First 200 Dth | D18: Next 1,800 Dth | E18: All Over 2,000 Dth | F18: First 200 Dth | G18: Next 1,800 Dth | H18: All Over 2,000 Dth
B19: Distribution Non-Gas Cost | C19: 0.9209 | D19: 0.49853 | E19: 0.05392 | F19: 1.3948 | G19: 0.97242 | H19: 0.52782
B20: Supplier Non-Gas Cost | C20: ='Ut 1.6 p3'!$I$20 -> 0.60294 | D20: =C20 -> 0.60294 | E20: =D20 -> 0.60294 | F20: ='Ut 1.6 p3'!$I$19 -> 1.25074 | G20: =F20 -> 1.25074 | H20: =G20 -> 1.25074
B21: Commodity Cost | C21: =('Ut 1.6 p1'!$F$33) -> 4.222278801 | D21: =C21 -> 4.222278801 | E21: =D21 -> 4.222278801 | F21: =E21 -> 4.222278801 | G21: =F21 -> 4.222278801 | H21: =G21 -> 4.222278801
B23: Total Rate | C23: =SUM(C19:C22) -> 5.746118801 | D23: =SUM(D19:D22) -> 5.323748801 | E23: 4.879138801 | F23: 6.867818801 | G23: 6.445438801 | H23: 6.000838801
B25: Minimum Monthly DNG Charge: | C25: 143 | F25: 218
B27: BSF Category 1 | C27: =C12 -> 6.75
B28: BSF Category 2 | C28: =C13 -> 18.25
B29: BSF Category 3 | C29: =C14 -> 63.5
B30: BSF Category 4 | C30: =C15 -> 420.25
A33: UT Future Rate Class
C34: First 10,000 Dth | D34: All Over 10,000 Dth
B35: Distribution Non-Gas Cost
B36: Supplier Non-Gas Cost
B37: Commodity Cost
B39: Total Rate | C39: =SUM(C35:C38) -> 0 | D39: =SUM(D35:D38) -> 0
B41: Minimum Yearly Distribution Non-Gas Charge | D41: =ROUND(((10000*C35))*12,-2) -> 0
B44: BSF Category 1 | C44: =C12 -> 6.75
B45: BSF Category 2 | C45: =C13 -> 18.25
B46: BSF Category 3 | C46: =C14 -> 63.5
B47: BSF Category 4 | C47: =C15 -> 420.25
A51: UT NGV
B52: Distribution Non-Gas Cost | C52: 6.54794
B53: Supplier Non-Gas Cost | C53: ='Ut 1.6 p3'!I22 -> 0.92669
B54: Commodity Cost | C54: ='Ut 1.6 p1'!F33 -> 4.222278801
B56: Total Rate | C56: =SUM(C52:C55) -> 11.6969088
A59: UT IS | C59: First 2,000 Dth | D59: Next 18,000 Dth | E59: All Over 20,000
B60: Distribution Non-Gas Cost | C60: 0.64584 | D60: 0.10683 | E60: 0.06739
B61: Supplier Non-Gas Cost | C61: ='Ut 1.6 p3'!$I$24/(1-'Other Inputs'!$E$326) -> 0.1790877193 | D61: =C61 -> 0.1790877193 | E61: =D61 -> 0.1790877193
B62: Commodity Cost | C62: =('Ut 1.6 p1'!$F$33) -> 4.222278801 | D62: =('Ut 1.6 p1'!$F$33) -> 4.222278801 | E62: =('Ut 1.6 p1'!$F$33) -> 4.222278801
B64: Total Rate | C64: =SUM(C60:C62) -> 5.04720652 | D64: =SUM(D60:D62) -> 4.50819652 | E64: 4.46875652
B66: BSF Category 1 | C66: =C12 -> 6.75
B67: BSF Category 2 | C67: =C13 -> 18.25
B68: BSF Category 3 | C68: 63.5
B69: BSF Category 4 | C69: 420.25

Sheet Ut 1.9
D1: ='Control Panel'!$E$32 -> Dominion Energy Utah
D2: ='Control Panel'!$E$33 -> Docket No. 17-057-20
D3: Exhibit 1.9
D4: Page 1 of 2
D6: ='Control Panel'!$E$32 -> Dominion Energy Utah
D7: ='Control Panel'!$E$33 -> Docket No. 17-057-20
D8: Exhibit 1.9
D9: Page 2 of 2

Sheet Ut 1.10
P17: Exhibit 1.10 | Q17: =CONCATENATE("Docket No. ",'Control Panel'!E5) -> Docket No. 17-057-20 | R17: Dominion Energy Utah

Sheet Ut 1.11 (hidden)
F1: ='Control Panel'!#REF! -> 
F2: ='Control Panel'!E33 -> Docket No. 17-057-20
F3: Exhibit 1.11
F4: Page 1 of 7
A17: DOMINION ENERGY UTAH
A18: 333 South State Street
A19: P.O. Box 45433
A20: Salt Lake City, Utah 84145-0433
A31: LEGISLATIVE/PROPOSED RATE SCHEDULES
A32: P.S.C. Utah Tariff

Sheet Ut Storage
A1: Storage Injection / Withdrawal adjustment
C3: (A) | D3: (B) | E3: (C) | F3: (D) | G3: (E) | H3: (F) | I3: (G) | K3: (H) | L3: (I) | M3: (J)
G4: Injections | I4: (J) / (C)
E5: Storage | G5: ------------------------------------------------------------- | I5: Storage | M5: Storage
C6: Injection Dth | D6: Withdrawal Dth | E6: Inventory Dth | F6: % that is | G6: Co. Prod. | H6: Purchased | I6: Inventory | M6: Inventory
A7: Line | B7: Month | C7: Per IRPs | D7: Per IRPs | E7: Balance | F7: Co. Prod. (1) | G7: $/Dth (2) | H7: $/Dth (3) | I7: Average $/Dth | K7: Injection (4) | L7: Withdrawal (5) | M7: Balance
B8: =+Expenses!S9 -> 2017-08-01 | E8: =-1*'Other Inputs'!D266 -> 9940657 | I8: =M8/E8 -> 4.830551684 | M8: ='Other Inputs'!E266 -> 48018857.41
B9: ='Monthly Inputs'!E3 -> Sep17 | C9: ='Monthly Inputs'!E29 -> 1847664.642 | D9: =-'Monthly Inputs'!E37 -> 0 | E9: =E8+C9+D9 -> 11788321.64 | F9: =F21 -> 0.9870156507 | G9: ='Other Inputs'!F134 -> 4.67557 | H9: ='Monthly Inputs'!E79 -> 2.64 | I9: =M9/E9 -> 4.802117698 | K9: =(+F9*C9*G9)+((1-F9)*C9*H9) -> 8590050.576 | L9: =D9*I8 -> 0 | M9: =M8+L9+K9 -> 56608907.99
B10: ='Monthly Inputs'!F3 -> Oct17 | C10: ='Monthly Inputs'!F29 -> 412273.7474 | D10: =-'Monthly Inputs'!F37 -> -262822.114 | E10: =E9+C10+D10 -> 11937773.28 | F10: =F22 -> 0.8994012778 | G10: =G9 -> 4.67557 | H10: ='Monthly Inputs'!F79 -> 2.77 | I10: =M10/E10 -> 4.791127013 | K10: =(+F10*C10*G10)+((1-F10)*C10*H10) -> 1848582.751 | L10: =D10*I9 -> -1262102.725 | M10: =M9+L10+K10 -> 57195388.01
A11: 1. | B11: ='Monthly Inputs'!G3 -> Nov17 | C11: ='Monthly Inputs'!G29 -> 511457.5043 | D11: =-'Monthly Inputs'!G37 -> -43610.05211 | E11: =E10+C11+D11 -> 12405620.73 | F11: =Calculations!D177 -> 0.4577557199 | G11: ='Ut 1.4 p2'!$F$15 -> 4.81212008 | H11: =Calculations!D197 -> 3.03344 | I11: =M11/E11 -> 4.752229079 | K11: 1967904.853 | L11: =D11*I10 -> -208941.2987 | M11: =M10+L11+K11 -> 58954351.57
A12: 2. | B12: ='Monthly Inputs'!H3 -> Dec17 | C12: ='Monthly Inputs'!H29 -> 144663.7459 | D12: =-'Monthly Inputs'!H37 -> -3798000 | E12: 8752284.474 | F12: =Calculations!E177 -> 0.3771708693 | G12: ='Ut 1.4 p2'!$F$15 -> 4.81212008 | H12: =Calculations!E197 -> 3.31866 | I12: =M12/E12 -> 4.737844505 | K12: 561577.3757 | L12: =D12*I11 -> -18048966.04 | M12: =M11+L12+K12 -> 41466962.9
A13: 3. | B13: ='Monthly Inputs'!I3 -> Jan18 | C13: ='Monthly Inputs'!I29 -> 56458.30536 | D13: =-'Monthly Inputs'!I37 -> -3059000 | E13: =E12+C13+D13 -> 5749742.779 | F13: =Calculations!F177 -> 0.3340642713 | G13: ='Ut 1.4 p2'!$F$15 -> 4.81212008 | H13: =Calculations!F197 -> 3.37611 | I13: =M13/E13 -> 4.729183759 | K13: 217693.6084 | L13: =D13*I12 -> -14493066.34 | M13: 27191590.17
A14: 4. | B14: ='Monthly Inputs'!J3 -> Feb18 | C14: ='Monthly Inputs'!J29 -> 0 | D14: =-'Monthly Inputs'!J37 -> -2247000 | E14: 3502742.779 | F14: =Calculations!G177 -> 0.3742659323 | G14: ='Ut 1.4 p2'!$F$15 -> 4.81212008 | H14: =Calculations!G197 -> 3.3428 | I14: =M14/E14 -> 4.729183759 | K14: 0 | L14: =D14*I13 -> -10626475.91 | M14: 16565114.26
A15: 5. | B15: ='Monthly Inputs'!K3 -> Mar18 | C15: ='Monthly Inputs'!K29 -> 0 | D15: =-'Monthly Inputs'!K37 -> -2111157.059 | E15: 1391585.72 | F15: =Calculations!H177 -> 0.5265219295 | G15: ='Ut 1.4 p2'!$F$15 -> 4.81212008 | H15: =Calculations!H197 -> 3.13649 | I15: =M15/E15 -> 4.729183759 | K15: 0 | L15: -9984049.674 | M15: 6581064.588
A16: 6. | B16: ='Monthly Inputs'!L3 -> Apr18 | C16: ='Monthly Inputs'!L29 -> 0 | D16: =-'Monthly Inputs'!L37 -> -588368.1488 | E16: =E15+C16+D16 -> 803217.5717 | F16: =Calculations!I177 -> 0.6648116406 | G16: ='Ut 1.4 p2'!$F$15 -> 4.81212008 | H16: =Calculations!I197 -> 2.84348 | I16: 4.729183759 | K16: 0 | L16: -2782501.093 | M16: 3798563.495
A17: 7. | B17: ='Monthly Inputs'!M3 -> May18 | C17: ='Monthly Inputs'!M29 -> 222400.5585 | D17: =-'Monthly Inputs'!M37 -> 0 | E17: 1025618.13 | F17: =Calculations!J177 -> 0.954337231 | G17: ='Ut 1.4 p2'!$F$15 -> 4.81212008 | H17: =Calculations!J197 -> 2.72 | I17: =M17/E17 -> 4.726452445 | K17: 1048971.824 | L17: 0 | M17: 4847535.318
A18: 8. | B18: ='Monthly Inputs'!N3 -> Jun18 | C18: ='Monthly Inputs'!N29 -> 2402097.351 | D18: =-'Monthly Inputs'!N37 -> 0 | E18: 3427715.481 | F18: =Calculations!K177 -> 0.9263690477 | G18: ='Ut 1.4 p2'!$F$15 -> 4.81212008 | H18: =Calculations!K197 -> 2.75076 | I18: 4.680121846 | K18: 11194590.79 | L18: =D18*I17 -> 0 | M18: 16042126.11
A19: 9. | B19: ='Monthly Inputs'!O3 -> Jul18 | C19: ='Monthly Inputs'!O29 -> 2634037.964 | D19: =-'Monthly Inputs'!O37 -> 0 | E19: 6061753.445 | F19: =Calculations!L177 -> 0.9939833245 | G19: ='Ut 1.4 p2'!$F$15 -> 4.81212008 | H19: =Calculations!L197 -> 2.83999 | I19: 4.732323531 | K19: 12644052.36 | L19: 0 | M19: =M18+L19+K19 -> 28686178.47
A20: 10. | B20: ='Monthly Inputs'!P3 -> Aug18 | C20: ='Monthly Inputs'!P29 -> 2816996.586 | D20: =-'Monthly Inputs'!P37 -> 0 | E20: 8878750.031 | F20: =Calculations!M177 -> 1 | G20: ='Ut 1.4 p2'!$F$15 -> 4.81212008 | H20: =Calculations!M197 -> 0 | I20: 4.757640901 | K20: 13555725.84 | L20: 0 | M20: =M19+L20+K20 -> 42241904.3
A21: 11. | B21: ='Monthly Inputs'!Q3 -> Sep18 | C21: ='Monthly Inputs'!Q29 -> 2697647.638 | D21: =-'Monthly Inputs'!Q37 -> 0 | E21: 11576397.67 | F21: =Calculations!N177 -> 0.9870156507 | G21: ='Ut 1.4 p2'!$F$15 -> 4.81212008 | H21: =Calculations!N197 -> 2.75 | I21: 4.764096738 | K21: 12909174.08 | L21: 0 | M21: =M20+L21+K21 -> 55151078.38
A22: 12. | B22: ='Monthly Inputs'!R3 -> Oct18 | C22: ='Monthly Inputs'!R29 -> 1377544.895 | D22: =-'Monthly Inputs'!R37 -> 0 | E22: 12953942.56 | F22: =Calculations!O177 -> 0.8994012778 | G22: ='Ut 1.4 p2'!$F$15 -> 4.81212008 | H22: =Calculations!O197 -> 2.98006 | I22: 4.749604532 | K22: 6375025.925 | L22: 0 | M22: =M21+L22+K22 -> 61526104.3
M25: Inj./With. Adj.
A26: 14. | B26: Total | C26: =SUM(C11:C22) -> 12863304.55 | D26: =SUM(D11:D22) -> -11847135.26 | K26: =SUM(K11:K22) -> 60474716.65 | L26: =SUM(L11:L22) -> -56144000.35 | M26: =L26+K26 -> 4330716.293
A27: 15. | B27: Average $ /Dth | K27: =K26/C26 -> 4.701335992 | L27: =L26/D26 -> 4.739035988
A31: ___________________________________________________________________

Sheet Ex 1.1 Data
A1: QEPFS gathered | B1: 36394732.37 | C1: Adjusted test year-> | D1: -0.001534064643 | E1: 36338900.49 | H1: Samson Gathered | I1: 9652071.18 | J1: Adjusted test year-> | K1: 0.6900756476 | L1: 16312730.45
A2: Birch Creek | B2: 1787793.876 | C2: Adjusted test year-> | D2: -0.001534064643 | E2: 1785051.285
A3: Other | B3: 18988678.93
C4: WEXPRO I | J4: WEXPRO II
A5: Input Operator Service Fee > | C5: ='Monthly Inputs'!S107 -> 251843348 | H5: Input Operator Service Fee > | J5: ='Monthly Inputs'!S109 -> 45384241.33
A7: do not change the order of the months below!!!!! | H7: do not change the order of the months below!!!!!
A8: \/ | C8: 2017-08-31 | H8: \/ | J8: 2017-08-31
A9: \/ | B9: Company | C9: Average Index | D9: Church Buttes | H9: \/ | I9: Company | J9: Average Index | K9: Church Buttes
A10: \/ | B10: Production | C10: Spot Prices | D10: & Canyon Cr | H10: \/ | I10: Production | J10: Spot Prices | K10: & Canyon Cr
A11: January | B11: 4944637.909 | C11: 3.3 | D11: =C11+0.1 -> 3.4 | E11: =B11*D11 -> 16811768.89 | H11: January | I11: 1103981.305 | J11: 3.3 | K11: =J11+0.1 -> 3.4 | L11: =I11*K11 -> 3753536.436
A12: February | B12: 4424291.653 | C12: 3.27 | D12: =C12+0.1 -> 3.37 | E12: =B12*D12 -> 14909862.87 | H12: February | I12: 1167174.402 | J12: 3.27 | K12: =J12+0.1 -> 3.37 | L12: =I12*K12 -> 3933377.736
A13: March | B13: 4798884.833 | C13: 3.09 | D13: =C13+0.1 -> 3.19 | E13: 15308442.62 | H13: March | I13: 1256166.496 | J13: 3.09 | K13: 3.19 | L13: 4007171.122
A14: April | B14: 4545112.581 | C14: 2.76 | D14: 2.86 | E14: 12999021.98 | H14: April | I14: 1168533.008 | J14: 2.76 | K14: 2.86 | L14: 3342004.403
A15: May | B15: 4604872.719 | C15: 2.72 | D15: =C15+0.1 -> 2.82 | E15: 12985741.07 | H15: May | I15: 1167472.417 | J15: 2.72 | K15: 2.82 | L15: 3292272.217
A16: June | B16: 4374904.58 | C16: 2.75 | D16: 2.85 | E16: 12468478.05 | H16: June | I16: 1374825.016 | J16: 2.75 | K16: 2.85 | L16: 3918251.296
A17: July | B17: 4443113.092 | C17: 2.82 | D17: 2.92 | E17: 12973890.23 | H17: July | I17: 1386301.412 | J17: 2.82 | K17: 2.92 | L17: 4048000.122
A18: August | B18: 4368342.299 | C18: 2.83 | D18: 2.93 | E18: 12799242.94 | H18: August | I18: 1547095.371 | J18: 2.83 | K18: 2.93 | L18: 4532989.436
A19: September | B19: 4162288.802 | C19: 2.75 | D19: 2.85 | E19: 11862523.08 | H19: September | I19: 1858998.443 | J19: 2.75 | K19: 2.85 | L19: 5298145.562
A20: October | B20: 6274592.932 | C20: 2.8 | D20: 2.9 | E20: 18196319.5 | H20: October | I20: 2040057.299 | J20: 2.8 | K20: 2.9 | L20: 5916166.166
A21: November | B21: 5057460.721 | C21: 2.98 | D21: 3.08 | E21: 15576979.02 | H21: November | I21: 1100541.005 | J21: 2.98 | K21: 3.08 | L21: 3389666.294
A22: December | B22: 5084998.727 | C22: 3.24 | D22: 3.34 | E22: 16983895.75 | H22: December | I22: 1141584.278 | J22: 3.24 | K22: 3.34 | L22: 3812891.489
B24: =SUM(B11:B22) -> 57083500.85 | C24: CANYON CREEK | D24: =E24/B24 -> 3.045996889 | E24: =SUM(E11:E22) -> 173876166 | I24: =SUM(I11:I22) -> 16312730.45 | J24: CANYON CREEK | K24: =L24/I24 -> 3.018775577 | L24: =SUM(L11:L22) -> 49244472.28
C25: CHURCH BUTTES | J25: CHURCH BUTTES
C26: All Others -> | D26: =D24-0.2 -> 2.845996889 | J26: All Others -> | K26: =K24-0.2 -> 2.818775577

Sheet Expenses
A1: %,LACTUALS
S7: Historical
S8: 12 Months Ending
C9: FERC Acct | E9: Description | G9: 2016-09-01 | H9: 2016-10-01 | I9: 2016-11-01 | J9: 2016-12-01 | K9: 2017-01-01 | L9: 2017-02-01 | M9: 2017-03-01 | N9: 2017-04-01 | O9: 2017-05-01 | P9: 2017-06-01 | Q9: 2017-07-01 | R9: 2017-08-01 | S9: 2017-08-01
B11: 497 | C11: UTILITY OPERATING EXPENSES
B12: 498 | C12: GAS PURCHASE EXPENSES
B13: 499
B14: 500 | D14: Utah % of Sales Dth from 191 Acct ===> | G14: 0.95792 | H14: 0.95823 | I14: 0.95741 | J14: 0.96726 | K14: 0.9673 | L14: 0.96545 | M14: 0.96154 | N14: 0.95935 | O14: 0.95456 | P14: 0.97494 | Q14: 0.96862 | R14: 0.97204
B15: 501
A16: %,FACCOUNT,TQGCACCTS,V758000 | B16: 502 | C16: 758 | D16: Gas Well Royalties
B17: 503 | E17: Utah | G17: 2358446.582 | H17: 1978292.196 | I17: 5169897.665 | J17: 2675093.652 | K17: 2313097.999 | L17: -4770576.753 | M17: 3155118.394 | N17: 1841781.082 | O17: 1970901.806 | P17: 1944763.885 | Q17: 2222731.659 | R17: 2389591.613 | S17: 23249139.78
B18: 504 | E18: Wyoming | G18: 103603.0484 | H18: 86235.31409 | I18: 229980.8249 | J18: 90547.0775 | K18: 78195.29058 | L18: -170721.8673 | M18: 126199.4857 | N18: 78040.7578 | O18: 93821.00449 | P18: 49988.49464 | Q18: 72008.96066 | R18: 68734.8067 | S18: 906633.1981
B19: 505 | E19: Total | G19: 2462049.63 | H19: 2064527.51 | I19: 5399878.49 | J19: 2765640.73 | K19: 2391293.29 | L19: -4941298.62 | M19: 3281317.88 | N19: 1919821.84 | O19: 2064722.81 | P19: 1994752.38 | Q19: 2294740.62 | R19: 2458326.42 | S19: 24155772.98
B20: 506
A21: %,FACCOUNT,TQGCACCTS,V758001,V758002,V758003,V758004 | B21: 507 | C21: 758.1 | D21: Gas Well Royalties - Other
B22: 508 | E22: Utah | G22: 23750.56 | H22: 21659.09 | I22: 24114.06 | J22: 29770.07 | K22: 31545.49 | L22: 31249.96 | M22: 31630.55 | N22: 20721.22 | O22: 32355.49 | P22: 26778.16 | Q22: 33343.26 | R22: 20897.51 | S22: 327815.42
B23: 509 | E23: Wyoming | G23: 0 | H23: 0 | I23: 0 | J23: 0 | K23: 0 | L23: 0 | M23: 0 | N23: 0 | O23: 0 | P23: 0 | Q23: 0 | R23: 0 | S23: 0
B24: 510 | E24: Total | G24: 23750.56 | H24: 21659.09 | I24: 24114.06 | J24: 29770.07 | K24: 31545.49 | L24: 31249.96 | M24: 31630.55 | N24: 20721.22 | O24: 32355.49 | P24: 26778.16 | Q24: 33343.26 | R24: 20897.51 | S24: 327815.42
B25: 511
A26: %,FACCOUNT,TQGCACCTS,V759000,V759001,V759002,V759003,V759004 | B26: 512 | C26: 759 | D26: Gathering by Others, GRI & ACA - Gas Cost
B27: 513 | E27: Utah | G27: 1987201.49 | H27: 2076209.75 | I27: 2222788.99 | J27: 1955326.51 | K27: 2056137.76 | L27: 1941090.61 | M27: 1962342.05 | N27: 2038774.28 | O27: 2087577.14 | P27: 2205794.59 | Q27: 1843923.98 | R27: 1880747.4 | S27: 24257914.55
B28: 514 | E28: Wyoming | G28: 0 | H28: 0 | I28: 0 | J28: 0 | K28: 0 | L28: 0 | M28: 0 | N28: 0 | O28: 0 | P28: 0 | Q28: 0 | R28: 0 | S28: 0
B29: 515 | E29: Total | G29: 1987201.49 | H29: 2076209.75 | I29: 2222788.99 | J29: 1955326.51 | K29: 2056137.76 | L29: 1941090.61 | M29: 1962342.05 | N29: 2038774.28 | O29: 2087577.14 | P29: 2205794.59 | Q29: 1843923.98 | R29: 1880747.4 | S29: 24257914.55
B30: 516
A31: %,FACCOUNT,TQGCACCTS,V759005 | B31: 517 | C31: 759 | D31: Gathering by Others - SNG Cost
B32: 518 | E32: Utah | G32: 0 | H32: 0 | I32: 0 | J32: 0 | K32: 0 | L32: 0 | M32: 0 | N32: 0 | O32: 0 | P32: 0 | Q32: 0 | R32: 0 | S32: 0
B33: 519 | E33: Wyoming | G33: 0 | H33: 0 | I33: 0 | J33: 0 | K33: 0 | L33: 0 | M33: 0 | N33: 0 | O33: 0 | P33: 0 | Q33: 0 | R33: 0 | S33: 0
B34: 520 | E34: Total | G34: 0 | H34: 0 | I34: 0 | J34: 0 | K34: 0 | L34: 0 | M34: 0 | N34: 0 | O34: 0 | P34: 0 | Q34: 0 | R34: 0 | S34: 0
B35: 521
A36: %,FACCOUNT,TQGCACCTS,V800000,V800005,V800002 | B36: 522 | C36: 800 | D36: Natural Gas Well Head Purchases
B37: 523 | E37: Utah | G37: 2697.330294 | H37: 248.8331664 | I37: 0 | J37: 0 | K37: 0 | L37: 0 | M37: 0 | N37: 226.483348 | O37: 0 | P37: 274.8453354 | Q37: 0 | R37: 0 | S37: 3447.492144
B38: 524 | E38: Wyoming | G38: 118.4897056 | H38: 10.8468336 | I38: 0 | J38: 0 | K38: 0 | L38: 0 | M38: 0 | N38: 9.596652 | O38: 0 | P38: 7.0646646 | Q38: 0 | R38: 0 | S38: 145.9978558
B39: 525 | E39: Total | G39: 2815.82 | H39: 259.68 | I39: 0 | J39: 0 | K39: 0 | L39: 0 | M39: 0 | N39: 236.08 | O39: 0 | P39: 281.91 | Q39: 0 | R39: 0 | S39: 3593.49
B40: 526
A41: %,FACCOUNT,TQGCACCTS,V801000 | B41: 527 | C41: 801 | D41: Natural Gas Field Line Purchases
B42: 528 | E42: Utah | G42: 0 | H42: 0 | I42: 0 | J42: 0 | K42: 0 | L42: 0 | M42: 0 | N42: 0 | O42: 0 | P42: 0 | Q42: 0 | R42: 0 | S42: 0
B43: 529 | E43: Wyoming | G43: 0 | H43: 0 | I43: 0 | J43: 0 | K43: 0 | L43: 0 | M43: 0 | N43: 0 | O43: 0 | P43: 0 | Q43: 0 | R43: 0 | S43: 0
B44: 530 | E44: Total | G44: 0 | H44: 0 | I44: 0 | J44: 0 | K44: 0 | L44: 0 | M44: 0 | N44: 0 | O44: 0 | P44: 0 | Q44: 0 | R44: 0 | S44: 0
B45: 531
A46: %,FACCOUNT,TQGCACCTS,V802000 | B46: 532 | C46: 802 | D46: Natural Gas Gasoline Plant Outlet Purchase
B47: 533 | E47: Utah | G47: 0 | H47: 0 | I47: 0 | J47: 0 | K47: 0 | L47: 0 | M47: 0 | N47: 0 | O47: 0 | P47: 0 | Q47: 0 | R47: 0 | S47: 0
B48: 534 | E48: Wyoming | G48: 0 | H48: 0 | I48: 0 | J48: 0 | K48: 0 | L48: 0 | M48: 0 | N48: 0 | O48: 0 | P48: 0 | Q48: 0 | R48: 0 | S48: 0
B49: 535 | E49: Total | G49: 0 | H49: 0 | I49: 0 | J49: 0 | K49: 0 | L49: 0 | M49: 0 | N49: 0 | O49: 0 | P49: 0 | Q49: 0 | R49: 0 | S49: 0
B50: 536
A51: %,FACCOUNT,TQGCACCTS,V803000,V803002 | B51: 537 | C51: 803 | D51: Natural Gas Transmission Line - Purchases
B52: 538 | E52: Utah | G52: 1940745.92 | H52: 1948488.838 | I52: 12446330 | J52: 33732922.63 | K52: 44629270.04 | L52: 17521413.16 | M52: 4806681.143 | N52: 6328601.706 | O52: 1338902.607 | P52: 0 | Q52: 0 | R52: 0 | S52: 124693356
B53: 539 | E53: Wyoming | G53: 85254.08 | H53: 84936.16225 | I53: 553670 | J53: 1141798.366 | K53: 1508712.013 | L53: 627028.6652 | M53: 192259.2474 | N53: 268158.294 | O53: 63735.89344 | P53: 0 | Q53: 0 | R53: 0 | S53: 4525552.721
B54: 540 | E54: Total | G54: 2026000 | H54: 2033425 | I54: 13000000 | J54: 34874721 | K54: 46137982.05 | L54: 18148441.83 | M54: 4998940.39 | N54: 6596760 | O54: 1402638.5 | P54: 0 | Q54: 0 | R54: 0 | S54: 129218908.8
B55: 541
A56: %,FACCOUNT,V804000,FAFFILIATE,V09 | B56: 542 | C56: 804 | D56: Natural Gas City Gate Purchases - Resources
B57: 543 | E57: Utah | G57: 0 | H57: 0 | I57: 0 | J57: 0 | K57: 0 | L57: 0 | M57: 0 | N57: 0 | O57: 0 | P57: 0 | Q57: 0 | R57: 0 | S57: 0
B58: 544 | E58: Wyoming | G58: 0 | H58: 0 | I58: 0 | J58: 0 | K58: 0 | L58: 0 | M58: 0 | N58: 0 | O58: 0 | P58: 0 | Q58: 0 | R58: 0 | S58: 0
B59: 545 | E59: Total | G59: 0 | H59: 0 | I59: 0 | J59: 0 | K59: 0 | L59: 0 | M59: 0 | N59: 0 | O59: 0 | P59: 0 | Q59: 0 | R59: 0 | S59: 0
B60: 546
A61: %,FACCOUNT,V804000,FAFFILIATE,V | B61: 547 | C61: 804.1 | D61: Natural Gas City Gate Purchases - Other
B62: 548 | E62: Utah | G62: 0 | H62: 0 | I62: 0 | J62: 976232.5939 | K62: -373.47453 | L62: 1085312.066 | M62: 125488.6623 | N62: 0 | O62: 70240.34304 | P62: 0 | Q62: 0 | R62: 0 | S62: 2256900.19
B63: 549 | E63: Wyoming | G63: 0 | H63: 0 | I63: 0 | J63: 33043.70606 | K63: -12.62547 | L63: 38839.43433 | M63: 5019.33768 | N63: 0 | O63: 3343.65696 | P63: 0 | Q63: 0 | R63: 0 | S63: 80233.50956
B64: 550 | E64: Total | G64: 0 | H64: 0 | I64: 0 | J64: 1009276.3 | K64: -386.1 | L64: 1124151.5 | M64: 130508 | N64: 0 | O64: 73584 | P64: 0 | Q64: 0 | R64: 0 | S64: 2337133.7
B65: 551
B66: 552 | C66: 805 | D66: Purchased Gas Cost Adjustments - Other
B67: 553 | E67: Utah | G67: 0 | H67: 0 | I67: 0 | J67: 0 | K67: 0 | L67: 0 | M67: 0 | N67: 0 | O67: 0 | P67: 0 | Q67: 0 | R67: 0 | S67: 0
B68: 554 | E68: Wyoming | G68: 0 | H68: 0 | I68: 0 | J68: 0 | K68: 0 | L68: 0 | M68: 0 | N68: 0 | O68: 0 | P68: 0 | Q68: 0 | R68: 0 | S68: 0
B69: 555 | E69: Total | G69: 0 | H69: 0 | I69: 0 | J69: 0 | K69: 0 | L69: 0 | M69: 0 | N69: 0 | O69: 0 | P69: 0 | Q69: 0 | R69: 0 | S69: 0
B70: 556
A71: %,FACCOUNT,TQGCACCTS,V805100 | B71: 557 | C71: 805.1 | D71: Purchased Gas Cost Adjustments - Utah
B72: 558 | E72: Utah | G72: -10229486.87 | H72: -8168644.362 | I72: -1809283.738 | J72: 4234609.146 | K72: 9229402.024 | L72: 16384202.05 | M72: -3077400.116 | N72: -6947856.375 | O72: -10552461.3 | P72: -12471449.05 | Q72: -10242545.3 | R72: -7819161.691 | S72: -41470075.58
B73: 559 | E73: Wyoming | G73: -449366.1342 | H73: -356077.6379 | I73: -80485.26171 | J73: 143333.8538 | K73: 312003.9762 | L73: 586331.9497 | M73: -123090.8839 | N73: -294397.6251 | O73: -502329.703 | P73: -320567.946 | Q73: -331823.6992 | R73: -224912.309 | S73: -1641381.42
B74: 560 | E74: Total | G74: -10678853 | H74: -8524722 | I74: -1889769 | J74: 4377943 | K74: 9541406 | L74: 16970534 | M74: -3200491 | N74: -7242254 | O74: -11054791 | P74: -12792017 | Q74: -10574369 | R74: -8044074 | S74: -43111457
B75: 561
A76: %,FACCOUNT,TQGCACCTS,V806000 | B76: 562 | C76: 806 | D76: Exchange Gas
B77: 563 | E77: Utah | G77: 0 | H77: 0 | I77: 0 | J77: 0 | K77: 0 | L77: 0 | M77: 0 | N77: 0 | O77: 0 | P77: 0 | Q77: 0 | R77: 0 | S77: 0
B78: 564 | E78: Wyoming | G78: 0 | H78: 0 | I78: 0 | J78: 0 | K78: 0 | L78: 0 | M78: 0 | N78: 0 | O78: 0 | P78: 0 | Q78: 0 | R78: 0 | S78: 0
B79: 565 | E79: Total | G79: 0 | H79: 0 | I79: 0 | J79: 0 | K79: 0 | L79: 0 | M79: 0 | N79: 0 | O79: 0 | P79: 0 | Q79: 0 | R79: 0 | S79: 0
B80: 566
A81: %,FACCOUNT,TQGCACCTS,V808100 | B81: 567 | C81: 808.1 | D81: Gas Withdrawn from Underground Storage
B82: 568 | E82: Utah | G82: 632.6199472 | H82: 2221192.405 | I82: 2170782.597 | J82: 22877610.15 | K82: 16949533.5 | L82: 11878773.35 | M82: 13548647.81 | N82: 5558115.727 | O82: 912107.4045 | P82: -46897.9288 | Q82: 4754580.579 | R82: 792.8055444 | S82: 80825871.02
B83: 569 | E83: Wyoming | G83: 27.7900528 | H83: 96823.5254 | I83: 96566.39348 | J83: 774365.689 | K83: 572986.4007 | L83: 425098.7821 | M83: 541923.3676 | N83: 235510.9233 | O83: 43419.12552 | P83: -1205.471204 | Q83: 154032.2712 | R83: 22.8044556 | S83: 2939571.602
B84: 570 | E84: Total | G84: 660.41 | H84: 2318015.93 | I84: 2267348.99 | J84: 23651975.84 | K84: 17522519.9 | L84: 12303872.13 | M84: 14090571.18 | N84: 5793626.65 | O84: 955526.53 | P84: -48103.4 | Q84: 4908612.85 | R84: 815.61 | S84: 83765442.62
B85: 571
A86: %,FACCOUNT,TQGCACCTS,V808200 | B86: 572 | C86: 808.2 | D86: Gas Delivered to Underground Storage
B87: 573 | E87: Utah | G87: -14092388.25 | H87: -4967896.817 | I87: -4731315.181 | J87: -210421.474 | K87: -1225573.927 | L87: -936921.5994 | M87: -1233994.897 | N87: -2035193.324 | O87: -5331396.055 | P87: -11530120.98 | Q87: -17035026.32 | R87: -13192038.32 | S87: -76522287.15
B88: 574 | E88: Wyoming | G88: -619057.6431 | H88: -216554.5329 | I88: -210470.6589 | J88: -7122.385976 | K88: -41431.06317 | L88: -33529.07065 | M88: -49357.74253 | N88: -86236.10633 | O88: -253790.895 | P88: -296371.9118 | Q88: -551877.0271 | R88: -379459.067 | S88: -2745258.105
B89: 575 | E89: Total | G89: -14711445.89 | H89: -5184451.35 | I89: -4941785.84 | J89: -217543.86 | K89: -1267004.99 | L89: -970450.67 | M89: -1283352.64 | N89: -2121429.43 | O89: -5585186.95 | P89: -11826492.89 | Q89: -17586903.35 | R89: -13571497.39 | S89: -79267545.25
B90: 576
A91: %,FACCOUNT,TQGCACCTS,V808300 | B91: 577 | C91: 808.3 | D91: Exchange Gas
B92: 578 | E92: Utah | G92: 301304.1568 | H92: 301509.9442 | I92: 309800.6426 | J92: 322953.6051 | K92: 325509.9922 | L92: 325638.5614 | M92: 325138.0202 | N92: 325672.4632 | O92: 324216.304 | P92: 330341.845 | Q92: 325999.7158 | R92: 323828.3217 | S92: 3841913.572
B93: 579 | E93: Wyoming | G93: 13235.8432 | H93: 13143.05581 | I93: 13781.35738 | J93: 10931.3949 | K93: 11004.0078 | L93: 11653.4386 | M93: 13004.97978 | N93: 13799.5368 | O93: 15433.696 | P93: 8491.15498 | Q93: 10561.28418 | R93: 9314.67828 | S93: 144354.4277
B94: 580 | E94: Total | G94: 314540 | H94: 314653 | I94: 323582 | J94: 333885 | K94: 336514 | L94: 337292 | M94: 338143 | N94: 339472 | O94: 339650 | P94: 338833 | Q94: 336561 | R94: 333143 | S94: 3986268
B95: 581
A96: %,FACCOUNT,TQGCACCTS,V813000,V813001,V813002,V813003,V813004 | B96: 582 | C96: 813 | D96: Other Gas Supply Expenses - Gas Cost
B97: 583 | E97: Utah | G97: 26464999.77 | H97: 24566355.78 | I97: 25441097.11 | J97: 26183753.92 | K97: 26006869.73 | L97: 24538741.89 | M97: 26315587.3 | N97: 25647248.83 | O97: 25491583.51 | P97: 30062203.39 | Q97: 26611087.18 | R97: 24771566.35 | S97: 312101094.7
B98: 584 | E98: Wyoming | G98: 1162568.054 | H98: 1070866.787 | I98: 1131737.005 | J98: 886272.6706 | K98: 879173.6175 | L98: 878153.744 | M98: 1052579.703 | N98: 1086736.504 | O98: 1213477.995 | P98: 772723.2618 | Q98: 862108.8927 | R98: 712535.4874 | S98: 11708933.72
B99: 585 | E99: Total | G99: 27627567.82 | H99: 25637222.57 | I99: 26572834.12 | J99: 27070026.59 | K99: 26886043.35 | L99: 25416895.63 | M99: 27368167 | N99: 26733985.33 | O99: 26705061.5 | P99: 30834926.65 | Q99: 27473196.07 | R99: 25484101.84 | S99: 323810028.5
B100: 586
B101: 587 | C101: 813 | D101: Other Gas Supply Expenses - SNG Cost
B102: 588 | E102: Utah | S102: 0
B103: 589 | E103: Wyoming | S103: 0
B104: 590 | E104: Total | G104: 0 | H104: 0 | I104: 0 | J104: 0 | K104: 0 | L104: 0 | M104: 0 | N104: 0 | O104: 0 | P104: 0 | Q104: 0 | R104: 0 | S104: 0
B105: 591
B106: 592 | C106: 813.5 | D106: CO2 Processing Expenses
A107: %,FACCOUNT,TQGCACCTS,V813005,V813007,V813008 | B107: 593 | E107: Utah | G107: 0 | H107: 0 | I107: 0 | J107: 0 | K107: 0 | L107: 0 | M107: 0 | N107: 0 | O107: 0 | P107: 0 | Q107: 0 | R107: 0 | S107: 0
A108: %,FACCOUNT,TQGCACCTS,V813006 | B108: 594 | E108: Wyoming | G108: 0 | H108: 0 | I108: 0 | J108: 0 | K108: 0 | L108: 0 | M108: 0 | N108: 0 | O108: 0 | P108: 0 | Q108: 0 | R108: 0 | S108: 0
B109: 595 | E109: Total | G109: 0 | H109: 0 | I109: 0 | J109: 0 | K109: 0 | L109: 0 | M109: 0 | N109: 0 | O109: 0 | P109: 0 | Q109: 0 | R109: 0 | S109: 0
B110: 596
A111: %,FACCOUNT,TQGCACCTS,V858000 | B111: 597 | C111: 858 | D111: Transportation GRI & ACA - Gas Cost
B112: 598 | E112: Utah | G112: 4585988.289 | H112: 4563953.705 | I112: 6120439.34 | J112: 6682806.217 | K112: 6588456.223 | L112: 6312626.192 | M112: 5989750.459 | N112: 4647481.021 | O112: 4612196.483 | P112: 4651881.899 | Q112: 4631232.314 | R112: 4634523.923 | S112: 64021336.06
B113: 599 | E113: Wyoming | G113: 201455.6406 | H113: 198946.3347 | I113: 272265.2902 | J113: 226200.8928 | K113: 222725.6471 | L113: 225906.2975 | M113: 239580.0514 | N113: 196925.1092 | O113: 219554.7773 | P113: 119572.651 | Q113: 150036.2062 | R113: 133308.5973 | S113: 2406477.495
B114: 600 | E114: Total | G114: 4787443.93 | H114: 4762900.04 | I114: 6392704.63 | J114: 6909007.11 | K114: 6811181.87 | L114: 6538532.49 | M114: 6229330.51 | N114: 4844406.13 | O114: 4831751.26 | P114: 4771454.55 | Q114: 4781268.52 | R114: 4767832.52 | S114: 66427813.56
B115: 601
A116: %,FACCOUNT,TQGCACCTS,V858001 | B116: 602 | C116: 858 | D116: Trans & Comp of Gas by Others - SNG Cost
B117: 603 | E117: Utah | G117: 0 | H117: 0 | I117: 0 | J117: 0 | K117: 0 | L117: 0 | M117: 0 | N117: 0 | O117: 0 | P117: 0 | Q117: 0 | R117: 0 | S117: 0
B118: 604 | E118: Wyoming | G118: 0 | H118: 0 | I118: 0 | J118: 0 | K118: 0 | L118: 0 | M118: 0 | N118: 0 | O118: 0 | P118: 0 | Q118: 0 | R118: 0 | S118: 0
B119: 605 | E119: Total | G119: 0 | H119: 0 | I119: 0 | J119: 0 | K119: 0 | L119: 0 | M119: 0 | N119: 0 | O119: 0 | P119: 0 | Q119: 0 | R119: 0 | S119: 0
B120: 606
B121: 607 | C121: System Total Gas Purchase Expenses
B122: 608 | D122: Utah Gas Purchase Expenses | G122: 13343891.6 | H122: 24541369.37 | I122: 47364651.49 | J122: 99460657.03 | K122: 106903875.4 | L122: 74311549.49 | M122: 51948989.37 | N122: 37425573.11 | O122: 20956223.73 | P122: 15173570.65 | Q122: 13145327.06 | R122: 13010747.91 | S122: 517586426.2
B123: 609 | D123: Wyoming Gas Purchase Expenses | G123: 497839.1685 | H123: 978329.855 | I123: 2007044.95 | J123: 3299371.264 | K123: 3543357.264 | L123: 2588761.374 | M123: 1998117.546 | N123: 1498546.99 | O123: 896665.5502 | P123: 332637.2981 | Q123: 365046.8886 | R123: 319544.9981 | S123: 18325263.15
B124: 610
B125: 611
B126: 612 | D126: System Total Gas Purchase Expenses | G126: 13841730.77 | H126: 25519699.22 | I126: 49371696.44 | J126: 102760028.3 | K126: 110447232.6 | L126: 76900310.86 | M126: 53947106.92 | N126: 38924120.1 | O126: 21852889.28 | P126: 15506207.95 | Q126: 13510373.95 | R126: 13330292.91 | S126: 535911689.3
B127: 613
B128: 614
B129: 615 | C129: OPERATION AND MAINTENANCE EXPENSES
B130: 616
B131: 617 | C131: Production Expenses
B132: 618
A133: %,FACCOUNT,TQGCACCTS,V810000,V810001 | B133: 619 | C133: 810 | D133: Gas Used for Compressor Station Fuel | G133: -2247 | H133: -697 | I133: -1437 | J133: -4254 | K133: -3059 | L133: -620 | M133: -1026 | N133: -666 | O133: -2201 | P133: -517 | Q133: -2920 | R133: -344 | S133: -19988
A134: %,FACCOUNT,TQGCACCTS,V812000,V812001 | B134: 620 | C134: 812 | D134: Gas Used for Other Utility Operations | G134: -58429.53 | H134: -64127.94 | I134: -68607.92 | J134: -95473.91 | K134: -119129.07 | L134: -85342.02 | M134: -91810.39 | N134: -76634.57 | O134: -65162.96 | P134: -63495.32 | Q134: -55982.46 | R134: -57654.82 | S134: -901850.91
B135: 621
B136: 622 | D136: Total Production Expenses | G136: -60676.53 | H136: -64824.94 | I136: -70044.92 | J136: -99727.91 | K136: -122188.07 | L136: -85962.02 | M136: -92836.39 | N136: -77300.57 | O136: -67363.96 | P136: -64012.32 | Q136: -58902.46 | R136: -57998.82 | S136: -921838.91
B137: 623 | G137: -2553.268382 | H137: -2707.737744 | I137: -2983.213143 | J137: -3265.091773 | K137: -3995.549889 | L137: -2969.987791 | M137: -3570.487559 | N137: -3142.26817 | O137: -3061.018342 | P137: -1604.148739 | Q137: -1848.359195 | R137: -1621.647007 | S137: -33322.77774
B138: 624 | C138: Distribution Operations & Maintenance Expenses
B139: 625
B140: 626 | C140: 870 | D140: Operation Supervision & Engineering
B141: 627 | E141: Utah | G141: 1059270.98 | H141: 924984.4 | I141: 918469.24 | J141: -202256.13 | K141: 2750487.5 | L141: 413356.81 | M141: 961605.27 | N141: 658383.09 | O141: 633813.13 | P141: 957297.87 | Q141: 818280.21 | R141: 935578.86 | S141: 10829271.23
B142: 628 | E142: Wyoming | G142: 62806.17 | H142: 54745.7 | I142: 59625.76 | J142: 63164.76 | K142: 104798.89 | L142: 31269.78 | M142: 57621.86 | N142: 49464.83 | O142: 42184.75 | P142: 53793.18 | Q142: 40972.77 | R142: 53331.78 | S142: 673780.23
A143: %,FACCOUNT,TQGCACCTS,N870 | B143: 629 | E143: Total | G143: 1122077.15 | H143: 979730.1 | I143: 978095 | J143: -139091.37 | K143: 2855286.39 | L143: 444626.59 | M143: 1019227.13 | N143: 707847.92 | O143: 675997.88 | P143: 1011091.05 | Q143: 859252.98 | R143: 988910.64 | S143: 11503051.46
B144: 630
B145: 631 | C145: 871 | D145: Distribution Load Dispatching
B146: 632 | E146: Utah | G146: 143051.13 | H146: 155636.1 | I146: 185774.23 | J146: 207612.75 | K146: 177916.23 | L146: 152345.06 | M146: 174551.69 | N146: 131648.77 | O146: 156206.44 | P146: 160492.58 | Q146: 144422.67 | R146: 163885.92 | S146: 1953543.57
B147: 633 | E147: Wyoming | G147: 2730.5 | H147: 2805.6 | I147: 3924.28 | J147: 3840.34 | K147: 2086.41 | L147: 2372.39 | M147: 2724.17 | N147: 2406.37 | O147: 3003.53 | P147: 2900.08 | Q147: 2214.49 | R147: 2981.02 | S147: 33989.18
A148: %,FACCOUNT,TQGCACCTS,N871 | B148: 634 | E148: Total | G148: 145781.63 | H148: 158441.7 | I148: 189698.51 | J148: 211453.09 | K148: 180002.64 | L148: 154717.45 | M148: 177275.86 | N148: 134055.14 | O148: 159209.97 | P148: 163392.66 | Q148: 146637.16 | R148: 166866.94 | S148: 1987532.75
B149: 635
B150: 636 | C150: 872 | D150: Compressor Station Labor & Expenses
B151: 637 | E151: Utah | G151: 0 | H151: 0 | I151: 0 | J151: 0 | K151: 0 | L151: 0 | M151: 0 | N151: 0 | O151: 0 | P151: 0 | Q151: 0 | R151: 0 | S151: 0
B152: 638 | E152: Wyoming | G152: 0 | H152: 0 | I152: 0 | J152: 0 | K152: 0 | L152: 0 | M152: 0 | N152: 0 | O152: 0 | P152: 0 | Q152: 0 | R152: 0 | S152: 0
A153: %,FACCOUNT,TQGCACCTS,N872 | B153: 639 | E153: Total | G153: 0 | H153: 0 | I153: 0 | J153: 0 | K153: 0 | L153: 0 | M153: 0 | N153: 0 | O153: 0 | P153: 0 | Q153: 0 | R153: 0 | S153: 0
B154: 640
B155: 641 | C155: 873 | D155: Compressor Station Fuel & Power
B156: 642 | E156: Utah | G156: 2247 | H156: 697 | I156: 1437 | J156: 4254 | K156: 3059 | L156: 620 | M156: 1026 | N156: 666 | O156: 2201 | P156: 517 | Q156: 2920 | R156: 344 | S156: 19988
B157: 643 | E157: Wyoming | G157: 0 | H157: 0 | I157: 0 | J157: 0 | K157: 0 | L157: 0 | M157: 0 | N157: 0 | O157: 0 | P157: 0 | Q157: 0 | R157: 0 | S157: 0
A158: %,FACCOUNT,TQGCACCTS,N873 | B158: 644 | E158: Total | G158: 2247 | H158: 697 | I158: 1437 | J158: 4254 | K158: 3059 | L158: 620 | M158: 1026 | N158: 666 | O158: 2201 | P158: 517 | Q158: 2920 | R158: 344 | S158: 19988
B159: 645
B160: 646 | C160: 874 | D160: Mains & Service Expenses
B161: 647 | E161: Utah | G161: 1242165.2 | H161: 1036186 | I161: 1026877.39 | J161: 1004920.88 | K161: 680600.99 | L161: 715701.25 | M161: 957067.53 | N161: 1090244.17 | O161: 1165098.93 | P161: 1294194.98 | Q161: 850340.36 | R161: 1115787.83 | S161: 12179185.51
B162: 648 | E162: Wyoming | G162: 46983.82 | H162: 33096.39 | I162: 32068.82 | J162: 26300.71 | K162: 29022.1 | L162: 16317.15 | M162: 24715.3 | N162: 31605.65 | O162: 45910.86 | P162: 47290.45 | Q162: 42581.41 | R162: 42671.03 | S162: 418563.69
A163: %,FACCOUNT,TQGCACCTS,N874 | B163: 649 | E163: Total | G163: 1289149.02 | H163: 1069282.39 | I163: 1058946.21 | J163: 1031221.59 | K163: 709623.09 | L163: 732018.4 | M163: 981782.83 | N163: 1121849.82 | O163: 1211009.79 | P163: 1341485.43 | Q163: 892921.77 | R163: 1158458.86 | S163: 12597749.2
B164: 650
B165: 651 | C165: 875 | D165: Measuring & Regulating Station Expenses
B166: 652 | E166: Utah | G166: 295542.85 | H166: 171488.61 | I166: 197749.12 | J166: 272437.88 | K166: 175821.3 | L166: 170807.42 | M166: 170216.5 | N166: 252562.53 | O166: 154728.83 | P166: 130631.61 | Q166: 167896.18 | R166: 146718.04 | S166: 2306600.87
B167: 653 | E167: Wyoming | G167: 12608.72 | H167: 8512.81 | I167: 11663.35 | J167: 18222.42 | K167: 11604.56 | L167: 10149.23 | M167: 12453.46 | N167: 12420.64 | O167: 6840.52 | P167: 11924.86 | Q167: 9725.85 | R167: 8223.62 | S167: 134350.04
A168: %,FACCOUNT,TQGCACCTS,N875 | B168: 654 | E168: Total | G168: 308151.57 | H168: 180001.42 | I168: 209412.47 | J168: 290660.3 | K168: 187425.86 | L168: 180956.65 | M168: 182669.96 | N168: 264983.17 | O168: 161569.35 | P168: 142556.47 | Q168: 177622.03 | R168: 154941.66 | S168: 2440950.91
B169: 655
B170: 656 | C170: 878 | D170: Meter & House Regulator Expenses
B171: 657 | E171: Utah | G171: 269578.26 | H171: 318647.15 | I171: 308246.91 | J171: 322536.98 | K171: 220914.59 | L171: 206673.35 | M171: 213380.29 | N171: 193153.77 | O171: 215599.54 | P171: 209860.4 | Q171: 193053.77 | R171: 227680.95 | S171: 2899325.96
B172: 658 | E172: Wyoming | G172: 12842.04 | H172: 9750.04 | I172: 9477.57 | J172: 12242.67 | K172: 9296.21 | L172: 13372.47 | M172: 18614.54 | N172: 22679.29 | O172: 14885.46 | P172: 13067.68 | Q172: 22499.22 | R172: 18396.34 | S172: 177123.53
A173: %,FACCOUNT,TQGCACCTS,N878 | B173: 659 | E173: Total | G173: 282420.3 | H173: 328397.19 | I173: 317724.48 | J173: 334779.65 | K173: 230210.8 | L173: 220045.82 | M173: 231994.83 | N173: 215833.06 | O173: 230485 | P173: 222928.08 | Q173: 215552.99 | R173: 246077.29 | S173: 3076449.49
B174: 660
B175: 661 | C175: 879 | D175: Customer Installations Expenses
B176: 662 | E176: Utah | G176: 213612.65 | H176: 259943.49 | I176: 307612.2 | J176: 391560.06 | K176: 310376.46 | L176: 258580.47 | M176: 225455.46 | N176: 222558.62 | O176: 223818.91 | P176: 198600.32 | Q176: 222723.23 | R176: 207922.47 | S176: 3042764.34
B177: 663 | E177: Wyoming | G177: 8998.75 | H177: 12226.95 | I177: 14705.46 | J177: 17578.26 | K177: 14868.18 | L177: 11885.34 | M177: 13245.99 | N177: 8427.58 | O177: 6097.85 | P177: 5055.71 | Q177: 5574.3 | R177: 6657.49 | S177: 125321.86
A178: %,FACCOUNT,TQGCACCTS,N879 | B178: 664 | E178: Total | G178: 222611.4 | H178: 272170.44 | I178: 322317.66 | J178: 409138.32 | K178: 325244.64 | L178: 270465.81 | M178: 238701.45 | N178: 230986.2 | O178: 229916.76 | P178: 203656.03 | Q178: 228297.53 | R178: 214579.96 | S178: 3168086.2
B179: 665
B180: 666 | C180: 880 | D180: Other Expenses
B181: 667 | E181: Utah | G181: 517574.89 | H181: 667426.34 | I181: 868267.06 | J181: 345958.54 | K181: 839009.65 | L181: 617360.21 | M181: 778968.74 | N181: 667466.77 | O181: 698510.72 | P181: 556582.19 | Q181: 529540.93 | R181: 613819.55 | S181: 7700485.59
B182: 668 | E182: Wyoming | G182: 35161.78 | H182: 42316.75 | I182: 62613.54 | J182: 58464 | K182: 51691.14 | L182: 62229.46 | M182: 64319.66 | N182: 68472.31 | O182: 69541.65 | P182: 45667.83 | Q182: 33841.11 | R182: 41708.17 | S182: 636027.4
A183: %,FACCOUNT,TQGCACCTS,N880 | B183: 669 | E183: Total | G183: 552736.67 | H183: 709743.09 | I183: 930880.6 | J183: 404422.54 | K183: 890700.79 | L183: 679589.67 | M183: 843288.4 | N183: 735939.08 | O183: 768052.37 | P183: 602250.02 | Q183: 563382.04 | R183: 655527.72 | S183: 8336512.99
B184: 670
B185: 671 | C185: 881 | D185: Rents
B186: 672 | E186: Utah | G186: 18587.86 | H186: 3489.34 | I186: 27619.01 | J186: 19634.5 | K186: 3553.83 | L186: 8868.35 | M186: 3613.41 | N186: 3507.7 | O186: 3907.53 | P186: 3733.54 | Q186: 3275.5 | R186: 3399.89 | S186: 103190.46
B187: 673 | E187: Wyoming | G187: 630.36 | H187: 112.37 | I187: 886.52 | J187: 632.33 | K187: 114.07 | L187: 286.55 | M187: 121 | N187: 117.08 | O187: 129.59 | P187: 123.82 | Q187: 108.28 | R187: 111.31 | S187: 3373.28
A188: %,FACCOUNT,TQGCACCTS,N881 | B188: 674 | E188: Total | G188: 19218.22 | H188: 3601.71 | I188: 28505.53 | J188: 20266.83 | K188: 3667.9 | L188: 9154.9 | M188: 3734.41 | N188: 3624.78 | O188: 4037.12 | P188: 3857.36 | Q188: 3383.78 | R188: 3511.2 | S188: 106563.74
B189: 675
B190: 676 | C190: 885 | D190: Maintenance Supervision & Engineering
B191: 677 | E191: Utah | G191: 81377.78 | H191: 52845.99 | I191: 29858.32 | J191: 52215.54 | K191: 45283.62 | L191: 77746.06 | M191: 29485.1 | N191: 49130.71 | O191: 42078.01 | P191: 40285.67 | Q191: 37656.51 | R191: 40846.8 | S191: 578810.11
B192: 678 | E192: Wyoming | G192: 2597.38 | H192: 1600.68 | I192: 886.01 | J192: 1584.02 | K192: 1327.91 | L192: 2355 | M192: 887.64 | N192: 1515.49 | O192: 1291.16 | P192: 1189.04 | Q192: 1131.13 | R192: 1224.61 | S192: 17590.07
A193: %,FACCOUNT,TQGCACCTS,N885 | B193: 679 | E193: Total | G193: 83975.16 | H193: 54446.67 | I193: 30744.33 | J193: 53799.56 | K193: 46611.53 | L193: 80101.06 | M193: 30372.74 | N193: 50646.2 | O193: 43369.17 | P193: 41474.71 | Q193: 38787.64 | R193: 42071.41 | S193: 596400.18
B194: 680
B195: 681 | C195: 886 | D195: Maintenance of Structures & Improvements
B196: 682 | E196: Utah | G196: 6206.16 | H196: 6335.6 | I196: 6493.03 | J196: 7227.2 | K196: 6724.75 | L196: 7103.33 | M196: 6825.66 | N196: 7075.21 | O196: 6941.82 | P196: 6732.58 | Q196: 6739.88 | R196: 6902.93 | S196: 81308.15
B197: 683 | E197: Wyoming | G197: 208.86 | H197: 200.65 | I197: 201.15 | J197: 205.37 | K197: 205.09 | L197: 211.39 | M197: 218.73 | N197: 211.37 | O197: 216.77 | P197: 216.18 | Q197: 216.36 | R197: 388.39 | S197: 2700.31
A198: %,FACCOUNT,TQGCACCTS,N886 | B198: 684 | E198: Total | G198: 6415.02 | H198: 6536.25 | I198: 6694.18 | J198: 7432.57 | K198: 6929.84 | L198: 7314.72 | M198: 7044.39 | N198: 7286.58 | O198: 7158.59 | P198: 6948.76 | Q198: 6956.24 | R198: 7291.32 | S198: 84008.46
B199: 685
B200: 686 | C200: 887 | D200: Maintenance of Mains
B201: 687 | E201: Utah | G201: 711030.12 | H201: 769463.85 | I201: 677933.05 | J201: 740300.37 | K201: 751104.42 | L201: 756653.34 | M201: 707952.4 | N201: 784718.4 | O201: 685739.81 | P201: 696087.04 | Q201: 666493.45 | R201: 681255.97 | S201: 8628732.22
B202: 688 | E202: Wyoming | G202: 10838.23 | H202: 12244.73 | I202: 10992.6 | J202: 19490.02 | K202: 17807.16 | L202: 10332.39 | M202: 9372.33 | N202: 15876.86 | O202: 12511.52 | P202: 9690.03 | Q202: 10985.28 | R202: 15552.44 | S202: 155693.59
A203: %,FACCOUNT,TQGCACCTS,N887 | B203: 689 | E203: Total | G203: 721868.35 | H203: 781708.58 | I203: 688925.65 | J203: 759790.39 | K203: 768911.58 | L203: 766985.73 | M203: 717324.73 | N203: 800595.26 | O203: 698251.33 | P203: 705777.07 | Q203: 677478.73 | R203: 696808.41 | S203: 8784425.81
B204: 690
B205: 691 | C205: 888 | D205: Maint of Compressor Station Equipment
B206: 692 | E206: Utah | G206: 67971.83 | H206: 99041.95 | I206: 128187.29 | J206: 27719.03 | K206: 68492.69 | L206: 74082.98 | M206: 80516.22 | N206: 107011.17 | O206: 73327.15 | P206: 86888.33 | Q206: 93700.1 | R206: 75567.16 | S206: 982505.9
... 843 more rows

Sheet Rate Base
A1: %,LACTUALS
C2: Company: | F2: Company:
C3: Period Ended: | F3: Period Ended:
C4: Date,Time, Stamp: | F4: Date,Time, Stamp:
U5: Historical
U6: 13-Month Avg
U7: Period Ended
G8: =+H8-30 -> 2016-07-22 | H8: 2016-08-21 | I8: 2016-09-20 | J8: 2016-10-20 | K8: 2016-11-19 | L8: 2016-12-19 | M8: 2017-01-18 | N8: 2017-02-17 | O8: 2017-03-19 | P8: 2017-04-18 | Q8: 2017-05-18 | R8: 2017-06-17 | S8: 2017-07-17 | T8: 2017-08-16 | U8: 2017-08-31
C10: UTILITY RATE BASE
D11: NET UTILITY PLANT
D13: Intangible Plant
C14: 101 | D14: Gas Plant In Service
E15: Intangible Plant
B16: 1 | D16: 302 | E16: Franchises & Consents
B17: =+B16+1 -> 2 | E17: Distribution - Wyoming | H17: 10883.08 | I17: 10883.08 | J17: 10883.08 | K17: 10883.08 | L17: 10883.08 | M17: 10883.08 | N17: 10883.08 | O17: 10883.08 | P17: 10883.08 | Q17: 10883.08 | R17: 10883.08 | S17: 10883.08 | T17: 10883.08 | U17: 10883.08
B18: 3 | E18: Distribution - Utah | H18: 58742.88 | I18: 58742.88 | J18: 58742.88 | K18: 58742.88 | L18: 58742.88 | M18: 58742.88 | N18: 58742.88 | O18: 58742.88 | P18: 58742.88 | Q18: 58742.88 | R18: 58742.88 | S18: 58742.88 | T18: 58742.88 | U18: 58742.88
B19: 4
A20: ="%,FACCOUNT,TQGCACCTS,N"&(D16) -> %,FACCOUNT,TQGCACCTS,N302 | B20: 5 | E20: Total Intangible Plant | H20: 69625.96 | I20: 69625.96 | J20: 69625.96 | K20: 69625.96 | L20: 69625.96 | M20: 69625.96 | N20: 69625.96 | O20: 69625.96 | P20: 69625.96 | Q20: 69625.96 | R20: 69625.96 | S20: 69625.96 | T20: 69625.96 | U20: 69625.96
B21: 6
B22: 7 | E22: Production & Gathering Plant
A23: ="%,FACCOUNT,TQGCACCTS,N"&(D23) -> %,FACCOUNT,TQGCACCTS,N325 | B23: 8 | D23: 325 | E23: Land & Land Rights | H23: 6266900.69 | I23: 6266900.69 | J23: 6266900.69 | K23: 6266900.69 | L23: 6266900.69 | M23: 6266900.69 | N23: 6266900.69 | O23: 6266900.69 | P23: 6266900.69 | Q23: 6266900.69 | R23: 6266900.69 | S23: 6266900.69 | T23: 6266900.69 | U23: 6266900.69
A24: %,FACCOUNT,TQGCACCTS,N326,N327,N328,N329 | B24: 9 | D24: 326...9 | E24: Structures | H24: 1437567.99 | I24: 1437567.99 | J24: 1437567.99 | K24: 1437567.99 | L24: 1437567.99 | M24: 1437567.99 | N24: 1437567.99 | O24: 1437567.99 | P24: 1437567.99 | Q24: 1437567.99 | R24: 1437567.99 | S24: 1437567.99 | T24: 1437567.99 | U24: 1437567.99
A25: ="%,FACCOUNT,TQGCACCTS,N"&(D25) -> %,FACCOUNT,TQGCACCTS,N330 | B25: 10 | D25: 330 | E25: Gas Wells - Construction | H25: 52175293.81 | I25: 52175293.81 | J25: 52175293.81 | K25: 52175293.81 | L25: 52175293.81 | M25: 52175293.81 | N25: 52175293.81 | O25: 52175293.81 | P25: 52175293.81 | Q25: 52175293.81 | R25: 52175293.81 | S25: 52175293.81 | T25: 52175293.81 | U25: 52175293.81
A26: ="%,FACCOUNT,TQGCACCTS,N"&(D26) -> %,FACCOUNT,TQGCACCTS,N331 | B26: 11 | D26: 331 | E26: Gas Wells - Equipment | H26: 17216356.05 | I26: 17216356.05 | J26: 17216356.05 | K26: 17216356.05 | L26: 17216356.05 | M26: 17216356.05 | N26: 17216356.05 | O26: 17216356.05 | P26: 17216356.05 | Q26: 17216356.05 | R26: 17216356.05 | S26: 17216356.05 | T26: 17216356.05 | U26: 17216356.05
A27: %,FACCOUNT,TQGCACCTS,N332,N333,N334 | B27: 12 | D27: 332...4 | E27: Field Lines & Comp, Meas & Reg St Eqpt | H27: 2693816.12 | I27: 2693816.12 | J27: 2693816.12 | K27: 2693816.12 | L27: 2693816.12 | M27: 2693816.12 | N27: 2693816.12 | O27: 2693816.12 | P27: 2693816.12 | Q27: 2693816.12 | R27: 2693816.12 | S27: 2693816.12 | T27: 2693816.12 | U27: 2693816.12
A28: ="%,FACCOUNT,TQGCACCTS,N"&(D28) -> %,FACCOUNT,TQGCACCTS,N336 | B28: 13 | D28: 336 | E28: Purification Equipment | H28: 57014.71 | I28: 57014.71 | J28: 57014.71 | K28: 57014.71 | L28: 57014.71 | M28: 57014.71 | N28: 57014.71 | O28: 57014.71 | P28: 57014.71 | Q28: 57014.71 | R28: 57014.71 | S28: 57014.71 | T28: 57014.71 | U28: 57014.71
A29: ="%,FACCOUNT,TQGCACCTS,N"&(D29) -> %,FACCOUNT,TQGCACCTS,N337 | B29: 14 | D29: 337 | E29: Other Equipment | H29: 121186.63 | I29: 121186.63 | J29: 121186.63 | K29: 121186.63 | L29: 121186.63 | M29: 121186.63 | N29: 121186.63 | O29: 121186.63 | P29: 121186.63 | Q29: 121186.63 | R29: 121186.63 | S29: 121186.63 | T29: 121186.63 | U29: 121186.63
B30: 15
B31: 16 | E31: Total Production & Gathering Plant | H31: 79968136 | I31: 79968136 | J31: 79968136 | K31: 79968136 | L31: 79968136 | M31: 79968136 | N31: 79968136 | O31: 79968136 | P31: 79968136 | Q31: 79968136 | R31: 79968136 | S31: 79968136 | T31: 79968136 | U31: 79968136
B32: 17
B33: 18 | E33: Distribution Plant
B34: 19 | D34: 374 | E34: Land & Land Rights
B35: 20 | F35: Wyoming | H35: 400188.28 | I35: 400188.28 | J35: 400188.28 | K35: 400188.28 | L35: 400188.28 | M35: 400188.28 | N35: 400188.28 | O35: 400188.28 | P35: 434507.8 | Q35: 434507.8 | R35: 434507.8 | S35: 434507.8 | T35: 434507.8 | U35: 413058.1
A36: ="%,FACCOUNT,TQGCACCTS,N"&(D34) -> %,FACCOUNT,TQGCACCTS,N374 | B36: 21 | F36: Utah | H36: 18294430.88 | I36: 18418181.01 | J36: 18418181.01 | K36: 18418031.01 | L36: 18477460.7 | M36: 18477460.7 | N36: 18477460.7 | O36: 19326879.5 | P36: 20027866.07 | Q36: 20028667.97 | R36: 20028996.87 | S36: 20028996.87 | T36: 20034792.79 | U36: 19107732.85
B37: 22 | F37: Total | H37: 18694619.16 | I37: 18818369.29 | J37: 18818369.29 | K37: 18818219.29 | L37: 18877648.98 | M37: 18877648.98 | N37: 18877648.98 | O37: 19727067.78 | P37: 20462373.87 | Q37: 20463175.77 | R37: 20463504.67 | S37: 20463504.67 | T37: 20469300.59 | U37: 19520790.95
B38: 23
B39: 24 | D39: 375 | E39: Structures & Improvements
B40: 25 | F40: Wyoming | H40: 982959.23 | I40: 982959.23 | J40: 982959.23 | K40: 982959.23 | L40: 982959.23 | M40: 982959.23 | N40: 1006934.23 | O40: 1006934.23 | P40: 1006934.23 | Q40: 1006934.23 | R40: 1006934.23 | S40: 1006934.23 | T40: 1006934.23 | U40: 995945.6883
A41: ="%,FACCOUNT,TQGCACCTS,N"&(D39) -> %,FACCOUNT,TQGCACCTS,N375 | B41: 26 | F41: Utah | H41: 15308202.85 | I41: 15682663.45 | J41: 15720786.76 | K41: 15719204.08 | L41: 15717299.49 | M41: 15717299.49 | N41: 15963930.39 | O41: 15376216.3 | P41: 15404847.8 | Q41: 15421744.87 | R41: 15421744.87 | S41: 15421744.87 | T41: 15420355.25 | U41: 15577646.79
B42: 27 | F42: Total | H42: 16291162.08 | I42: 16665622.68 | J42: 16703745.99 | K42: 16702163.31 | L42: 16700258.72 | M42: 16700258.72 | N42: 16970864.62 | O42: 16383150.53 | P42: 16411782.03 | Q42: 16428679.1 | R42: 16428679.1 | S42: 16428679.1 | T42: 16427289.48 | U42: 16573592.47
B43: 28
B44: 29 | D44: 376 | E44: Mains
B45: 30 | F45: Dist - Wy - Mains - SD
B46: 31 | F46: Dist - Wy - Mains - LD
B47: 32 | F47: Dist - Wy - Mains - Feeders
B48: 33 | F48: Wyoming | H48: 37816474.77 | I48: 37827950.85 | J48: 37934373.75 | K48: 38402677.7 | L48: 39044359.8 | M48: 39090198.48 | N48: 39250212.11 | O48: 39192146.39 | P48: 39229270.78 | Q48: 39231919.19 | R48: 39235900.38 | S48: 39238064.98 | T48: 39357142.27 | U48: 38855323.58
B49: 34 | F49: Dist - Ut - Mains - SD
B50: 35 | F50: Dist - Ut - Mains - LD
B51: 36 | F51: Dist - Ut - Mains - Feeders
A52: ="%,FACCOUNT,TQGCACCTS,N"&(D44) -> %,FACCOUNT,TQGCACCTS,N376 | B52: 37 | F52: Utah | H52: 1362940252 | I52: 1412065208 | J52: 1434797261 | K52: 1439989573 | L52: 1447530589 | M52: 1449459877 | N52: 1450999383 | O52: 1461271902 | P52: 1475408775 | Q52: 1476524364 | R52: 1480318382 | S52: 1480556611 | T52: 1522276861 | U52: 1454294207
B53: 38 | F53: Total | H53: 1400756727 | I53: 1449893159 | J53: 1472731635 | K53: 1478392251 | L53: 1486574949 | M53: 1488550075 | N53: 1490249595 | O53: 1500464048 | P53: 1514638045 | Q53: 1515756283 | R53: 1519554282 | S53: 1519794676 | T53: 1561634004 | U53: 1493149530
B54: 39
B55: 40 | D55: 377 | E55: Compressor Station Equipment
B56: 41 | F56: Wyoming | H56: 0 | I56: 0 | J56: 0 | K56: 0 | L56: 0 | M56: 0 | N56: 0 | O56: 0 | P56: 0 | Q56: 0 | R56: 0 | S56: 0 | T56: 0 | U56: 0
A57: ="%,FACCOUNT,TQGCACCTS,N"&(D55) -> %,FACCOUNT,TQGCACCTS,N377 | B57: 42 | F57: Utah | H57: 18299037.55 | I57: 18299037.55 | J57: 18299037.55 | K57: 18299037.55 | L57: 18299037.55 | M57: 18299037.55 | N57: 18299037.55 | O57: 14286566.04 | P57: 14286566.04 | Q57: 14286566.04 | R57: 14286566.04 | S57: 14286566.04 | T57: 14286566.04 | U57: 16459988.11
B58: 43 | F58: Total | H58: 18299037.55 | I58: 18299037.55 | J58: 18299037.55 | K58: 18299037.55 | L58: 18299037.55 | M58: 18299037.55 | N58: 18299037.55 | O58: 14286566.04 | P58: 14286566.04 | Q58: 14286566.04 | R58: 14286566.04 | S58: 14286566.04 | T58: 14286566.04 | U58: 16459988.11
B59: 44
B60: 45 | D60: 378 | E60: Measuring & Regulation Station Equip
B61: 46 | F61: Wyoming | H61: 6952282.32 | I61: 6952282.32 | J61: 7247108.57 | K61: 7409635.59 | L61: 7415821.61 | M61: 7415821.61 | N61: 7610196.48 | O61: 7652724.22 | P61: 7657526.37 | Q61: 7657526.37 | R61: 7657526.37 | S61: 7657526.37 | T61: 7657082.81 | U61: 7469864.87
A62: ="%,FACCOUNT,TQGCACCTS,N"&(D60) -> %,FACCOUNT,TQGCACCTS,N378 | B62: 47 | F62: Utah | H62: 87291009.36 | I62: 88313327.06 | J62: 88231416.19 | K62: 88640085.13 | L62: 93390624.24 | M62: 94192625.21 | N62: 95777520.84 | O62: 96119085.32 | P62: 96486034.22 | Q62: 96749881.66 | R62: 96905219.44 | S62: 96905219.44 | T62: 97518669.98 | U62: 93676323.2
B63: 48 | F63: Total | H63: 94243291.68 | I63: 95265609.38 | J63: 95478524.76 | K63: 96049720.72 | L63: 100806445.8 | M63: 101608446.8 | N63: 103387717.3 | O63: 103771809.5 | P63: 104143560.6 | Q63: 104407408 | R63: 104562745.8 | S63: 104562745.8 | T63: 105175752.8 | U63: 101146188.1
B64: 49
B65: 50 | D65: 380 | E65: Services
B66: 51 | F66: Wyoming | H66: 18369697.89 | I66: 18403908.26 | J66: 18453966.59 | K66: 18485667.21 | L66: 18560613.77 | M66: 18615215.96 | N66: 18615281.23 | O66: 18704577.07 | P66: 18761099.13 | Q66: 18761510.43 | R66: 18814962.66 | S66: 18975847.97 | T66: 19365906.03 | U66: 18668371.02
A67: ="%,FACCOUNT,TQGCACCTS,N"&(D65) -> %,FACCOUNT,TQGCACCTS,N380 | B67: 52 | F67: Utah | H67: 368134610.1 | I67: 369704194.3 | J67: 370916976 | K67: 372168730.1 | L67: 372177276.2 | M67: 375791949.8 | N67: 375812269.9 | O67: 381276386.1 | P67: 382741454.2 | Q67: 383336380.8 | R67: 384402788.8 | S67: 385396869.4 | T67: 386742438.7 | U67: 377596983.3
B68: 53 | F68: Total | H68: 386504308 | I68: 388108102.5 | J68: 389370942.6 | K68: 390654397.3 | L68: 390737890 | M68: 394407165.8 | N68: 394427551.1 | O68: 399980963.2 | P68: 401502553.4 | Q68: 402097891.3 | R68: 403217751.4 | S68: 404372717.4 | T68: 406108344.7 | U68: 396265354.4
B69: 54
B70: 55 | D70: 381...2 | E70: Meters & Meter Installation
B71: 56 | F71: Wyoming | H71: 9228368.074 | I71: 9238832.494 | J71: 9402561.164 | K71: 9683422.664 | L71: 9680436.614 | M71: 9728463.67 | N71: 9742610.554 | O71: 9790277.074 | P71: 9815017.614 | Q71: 9826048.454 | R71: 9804010.214 | S71: 9190454.194 | T71: 10744765.4 | U71: 9657391.787
A72: %,FACCOUNT,TQGCACCTS,N381,N382 | B72: 57 | F72: Utah | H72: 297975146.4 | I72: 300844765.2 | J72: 301291237.4 | K72: 302880516.6 | L72: 302623091.5 | M72: 305777058.4 | N72: 307526144.4 | O72: 309189993.4 | P72: 310696462.9 | Q72: 314409978.9 | R72: 315385351.4 | S72: 319532399.6 | T72: 320756390.4 | U72: 308293564
B73: 58 | F73: Total | H73: 307203514.5 | I73: 310083597.7 | J73: 310693798.6 | K73: 312563939.3 | L73: 312303528.1 | M73: 315505522.1 | N73: 317268755 | O73: 318980270.5 | P73: 320511480.5 | Q73: 324236027.4 | R73: 325189361.6 | S73: 328722853.8 | T73: 331501155.8 | U73: 317950955.8
B74: 59
B75: 60 | D75: 383...4 | E75: House Regulators & Reg Installations
B76: 61 | F76: Wyoming | H76: 786219.69 | I76: 786002.98 | J76: 785461.19 | K76: 777817.98 | L76: 777059.48 | M76: 776409.34 | N76: 776300.98 | O76: 772616.83 | P76: 768390.89 | Q76: 765194.35 | R76: 764869.28 | S76: 763894.06 | T76: 762593.77 | U76: 774035.3408
A77: %,FACCOUNT,TQGCACCTS,N383,N384 | B77: 62 | F77: Utah | H77: 13897326.07 | I77: 13895619.47 | J77: 13893098.05 | K77: 13879873.39 | L77: 13940732.08 | M77: 13937991.46 | N77: 13935872.58 | O77: 13931237.05 | P77: 13926092.82 | Q77: 13918862.92 | R77: 13913305.38 | S77: 13908129.36 | T77: 13904015.25 | U77: 13915123.77
B78: 63 | F78: Total | H78: 14683545.76 | I78: 14681622.45 | J78: 14678559.24 | K78: 14657691.37 | L78: 14717791.56 | M78: 14714400.8 | N78: 14712173.56 | O78: 14703853.88 | P78: 14694483.71 | Q78: 14684057.27 | R78: 14678174.66 | S78: 14672023.42 | T78: 14666609.02 | U78: 14689159.11
B79: 64
B80: 65 | D80: 387 | E80: Other Equipment
B81: =+B80+1 -> 66 | F81: Wyoming | H81: 68977.44 | I81: 68977.44 | J81: 68977.44 | K81: 68977.44 | L81: 68977.44 | M81: 68977.44 | N81: 68977.44 | O81: 68977.44 | P81: 68977.44 | Q81: 68977.44 | R81: 68977.44 | S81: 68977.44 | T81: 68977.44 | U81: 68977.44
A82: ="%,FACCOUNT,TQGCACCTS,N"&(D80) -> %,FACCOUNT,TQGCACCTS,N387 | B82: 67 | F82: Utah | H82: 1965336.42 | I82: 2261975.04 | J82: 2229062.54 | K82: 2231447.98 | L82: 2231447.98 | M82: 2231447.98 | N82: 2236827.67 | O82: 2237018.35 | P82: 2237018.35 | Q82: 2237018.35 | R82: 2237018.35 | S82: 2237018.35 | T82: 2237018.35 | U82: 2225706.527
B83: 68 | F83: Total | H83: 2034313.86 | I83: 2330952.48 | J83: 2298039.98 | K83: 2300425.42 | L83: 2300425.42 | M83: 2300425.42 | N83: 2305805.11 | O83: 2305995.79 | P83: 2305995.79 | Q83: 2305995.79 | R83: 2305995.79 | S83: 2305995.79 | T83: 2305995.79 | U83: 2294683.967
B84: 69
B85: 70 | E85: Total Distribution Plant | H85: 2258710519 | I85: 2314146073 | J85: 2339072653 | K85: 2348437845 | L85: 2361317975 | M85: 2370962981 | N85: 2376499148 | O85: 2390603725 | P85: 2408956841 | Q85: 2414666084 | R85: 2420687061 | S85: 2425609761 | T85: 2472575018 | U85: 2378050243
B86: 71
B87: 72 | C87: General Plant
B88: 73 | D88: 389 | E88: Land & Land Rights
B89: 74 | F89: Distribution - Wyoming | H89: 11584.02 | I89: 11584.02 | J89: 11584.02 | K89: 11584.02 | L89: 11584.02 | M89: 11584.02 | N89: 11584.02 | O89: 11584.02 | P89: 11584.02 | Q89: 11584.02 | R89: 11584.02 | S89: 11584.02 | T89: 11584.02 | U89: 11584.02
A90: ="%,FACCOUNT,TQGCACCTS,N"&(D88) -> %,FACCOUNT,TQGCACCTS,N389 | B90: 75 | F90: Distribution - Utah | H90: 3899703.98 | I90: 3775953.85 | J90: 3775953.85 | K90: 3775953.85 | L90: 3775953.85 | M90: 3775953.85 | N90: 3775953.85 | O90: 3775953.85 | P90: 3775953.85 | Q90: 3775953.85 | R90: 3775953.85 | S90: 3775953.85 | T90: 3775953.85 | U90: 3781110.105
B91: 76 | F91: Total | H91: 3911288 | I91: 3787537.87 | J91: 3787537.87 | K91: 3787537.87 | L91: 3787537.87 | M91: 3787537.87 | N91: 3787537.87 | O91: 3787537.87 | P91: 3787537.87 | Q91: 3787537.87 | R91: 3787537.87 | S91: 3787537.87 | T91: 3787537.87 | U91: 3792694.125
B92: 77
B93: 78 | D93: 390 | E93: Structures & Improvements
B94: 79 | F94: Distribution - Wyoming | H94: 369795.75 | I94: 369795.75 | J94: 369795.75 | K94: 1607117.2 | L94: 1607117.2 | M94: 1607117.2 | N94: 1607117.2 | O94: 1607117.2 | P94: 1607117.2 | Q94: 1610054.2 | R94: 1610054.2 | S94: 1610054.2 | T94: 1610054.2 | U94: 1350198.523
A95: ="%,FACCOUNT,TQGCACCTS,N"&(D93) -> %,FACCOUNT,TQGCACCTS,N390 | B95: 80 | F95: Distribution - Utah | H95: 28796982.74 | I95: 28294795.77 | J95: 36632281.1 | K95: 38786668.34 | L95: 41645291.41 | M95: 42582632.79 | N95: 42648696.69 | O95: 42696717.99 | P95: 43235000.58 | Q95: 43485867.86 | R95: 43277352.83 | S95: 43268310.27 | T95: 43449156.89 | U95: 40223057.12
B96: 81 | F96: General | H96: 48702162.59 | I96: 48704963.31 | J96: 50822167.42 | K96: 50852681.95 | L96: 50926959.79 | M96: 50944607.55 | N96: 50965884.49 | O96: 51041952.8 | P96: 51041952.8 | Q96: 51041952.8 | R96: 51079235.47 | S96: 51013931.4 | T96: 51014683.17 | U96: 50691226.05
B97: 82 | F97: Total | H97: 77868941.08 | I97: 77369554.83 | J97: 87824244.27 | K97: 91246467.49 | L97: 94179368.4 | M97: 95134357.54 | N97: 95221698.38 | O97: 95345787.99 | P97: 95884070.58 | Q97: 96137874.86 | R97: 95966642.5 | S97: 95892295.87 | T97: 96073894.26 | U97: 92264481.7
B98: 83
B99: 84 | D99: 391 | E99: Office Furniture & Equipment
B100: 85 | F100: Distribution - Wyoming | H100: 186766.51 | I100: 186766.51 | J100: 186766.51 | K100: 186766.51 | L100: 180960.98 | M100: 180960.98 | N100: 180960.98 | O100: 178421.98 | P100: 178421.98 | Q100: 178421.98 | R100: 168421.98 | S100: 168421.98 | T100: 168421.98 | U100: 179407.2179
A101: ="%,FACCOUNT,TQGCACCTS,N"&(D99) -> %,FACCOUNT,TQGCACCTS,N391 | B101: 86 | F101: Distribution - Utah | H101: 14334114.94 | I101: 14604927.81 | J101: 14604927.81 | K101: 14780393.89 | L101: 14434180.16 | M101: 14453973.2 | N101: 14601103.8 | O101: 14177800.73 | P101: 14243010.2 | Q101: 14372516.78 | R101: 12787006.36 | S101: 12948692.49 | T101: 13047737.01 | U101: 14141621.6
B102: 87 | F102: General | H102: 57168226.47 | I102: 57198549.32 | J102: 57219739.11 | K102: 58456120.65 | L102: 61972563.67 | M102: 44505532.54 | N102: 44635858.59 | O102: 42082261.39 | P102: 42080453.48 | Q102: 42082261.39 | R102: 39391714.5 | S102: 39391644.74 | T102: 39582500.49 | U102: 48116005.24
B103: 88 | F103: Total | H103: 71689107.92 | I103: 71990243.64 | J103: 72011433.43 | K103: 73423281.05 | L103: 76587704.81 | M103: 59140466.72 | N103: 59417923.37 | O103: 56438484.1 | P103: 56501885.66 | Q103: 56633200.15 | R103: 52347142.84 | S103: 52508759.21 | T103: 52798659.48 | U103: 62437034.06
B104: 89
B105: 90 | D105: 392 | E105: Transportation Equipment
B106: 91 | F106: Distribution - Wyoming | H106: 2803896.01 | I106: 2806850.57 | J106: 2882396.97 | K106: 2877562.7 | L106: 2877562.7 | M106: 2845508.48 | N106: 2806503.92 | O106: 2806503.92 | P106: 2806503.92 | Q106: 2806503.92 | R106: 2806503.92 | S106: 2806503.92 | T106: 3015429.18 | U106: 2836547.295
A107: ="%,FACCOUNT,TQGCACCTS,N"&(D105) -> %,FACCOUNT,TQGCACCTS,N392 | B107: 92 | F107: Distribution - Utah | H107: 50245487.24 | I107: 50439570.52 | J107: 50852323.54 | K107: 50915390.42 | L107: 51124024.92 | M107: 50349790.3 | N107: 49393619.89 | O107: 49443229.28 | P107: 49443229.28 | Q107: 49607393.32 | R107: 49793846 | S107: 49828945.35 | T107: 49437046.87 | U107: 50086052.49
B108: 93 | F108: General | H108: 0 | I108: 0 | J108: 0 | K108: 0 | L108: 0 | M108: 0 | N108: 0 | O108: 0 | P108: 0 | Q108: 0 | R108: 0 | S108: 0 | T108: 0 | U108: 0
B109: 94 | F109: Total | H109: 53049383.25 | I109: 53246421.09 | J109: 53734720.51 | K109: 53792953.12 | L109: 54001587.62 | M109: 53195298.78 | N109: 52200123.81 | O109: 52249733.2 | P109: 52249733.2 | Q109: 52413897.24 | R109: 52600349.92 | S109: 52635449.27 | T109: 52452476.05 | U109: 52922599.78
B110: 95
B111: 96 | D111: 393 | E111: Stores Equipment
B112: 97 | F112: Distribution - Wyoming | H112: 12371.89 | I112: 12371.89 | J112: 12371.89 | K112: 12371.89 | L112: 12371.89 | M112: 12371.89 | N112: 12371.89 | O112: 12371.89 | P112: 12371.89 | Q112: 12371.89 | R112: 12371.89 | S112: 12371.89 | T112: 12371.89 | U112: 12371.89
A113: ="%,FACCOUNT,TQGCACCTS,N"&(D111) -> %,FACCOUNT,TQGCACCTS,N393 | B113: 98 | F113: Distribution - Utah | H113: 45026.02 | I113: 45026.02 | J113: 45026.02 | K113: 45026.02 | L113: 45026.02 | M113: 45026.02 | N113: 45026.02 | O113: 45026.02 | P113: 45026.02 | Q113: 45026.02 | R113: 45026.02 | S113: 45026.02 | T113: 45026.02 | U113: 45026.02
B114: 99 | F114: Total | H114: 57397.91 | I114: 57397.91 | J114: 57397.91 | K114: 57397.91 | L114: 57397.91 | M114: 57397.91 | N114: 57397.91 | O114: 57397.91 | P114: 57397.91 | Q114: 57397.91 | R114: 57397.91 | S114: 57397.91 | T114: 57397.91 | U114: 57397.91
B115: 100
B116: 101 | D116: 394 | E116: Tools, Shop & Garage Equipment
B117: 102 | F117: Distribution - Wyoming | H117: 2229403.01 | I117: 2220363.16 | J117: 2220363.16 | K117: 2614218.66 | L117: 2614218.66 | M117: 2632043.1 | N117: 2632683.18 | O117: 2622572.71 | P117: 2622572.71 | Q117: 2625915.97 | R117: 2308319.52 | S117: 2320084.88 | T117: 2344115.19 | U117: 2476676.234
A118: ="%,FACCOUNT,TQGCACCTS,N"&(D116) -> %,FACCOUNT,TQGCACCTS,N394 | B118: 103 | F118: Distribution - Utah | H118: 28466336.14 | I118: 28512618.49 | J118: 28630569.95 | K118: 28854803.86 | L118: 28776820.04 | M118: 29024551.94 | N118: 29043445.52 | O118: 28724943.31 | P118: 28932884.26 | Q118: 29099120.42 | R118: 29452612.12 | S118: 29635233.78 | T118: 29872090.71 | U118: 28988068.09
B119: 104 | F119: General | H119: 0 | I119: 0 | J119: 0 | K119: 0 | L119: 0 | M119: 0 | N119: 0 | O119: 0 | P119: 0 | Q119: 0 | R119: 0 | S119: 0 | T119: 0 | U119: 0
B120: 105 | F120: Total | H120: 30695739.15 | I120: 30732981.65 | J120: 30850933.11 | K120: 31469022.52 | L120: 31391038.7 | M120: 31656595.04 | N120: 31676128.7 | O120: 31347516.02 | P120: 31555456.97 | Q120: 31725036.39 | R120: 31760931.64 | S120: 31955318.66 | T120: 32216205.9 | U120: 31464744.33
B121: 106
B122: 107 | D122: 395 | E122: Laboratory Equipment
B123: 108 | F123: Distribution - Wyoming | H123: 0 | I123: 0 | J123: 0 | K123: 0 | L123: 0 | M123: 0 | N123: 0 | O123: 0 | P123: 0 | Q123: 0 | R123: 0 | S123: 0 | T123: 0 | U123: 0
A124: ="%,FACCOUNT,TQGCACCTS,N"&(D122) -> %,FACCOUNT,TQGCACCTS,N395 | B124: 109 | F124: Distribution - Utah | H124: 61117.83 | I124: 61117.83 | J124: 61117.83 | K124: 61117.83 | L124: 61117.83 | M124: 61117.83 | N124: 61117.83 | O124: 61117.83 | P124: 61117.83 | Q124: 61117.83 | R124: 61117.83 | S124: 61117.83 | T124: 61117.83 | U124: 61117.83
B125: 110 | F125: General | H125: 0 | I125: 0 | J125: 0 | K125: 0 | L125: 0 | M125: 0 | N125: 0 | O125: 0 | P125: 0 | Q125: 0 | R125: 0 | S125: 0 | T125: 0 | U125: 0
B126: 111 | F126: Total | H126: 61117.83 | I126: 61117.83 | J126: 61117.83 | K126: 61117.83 | L126: 61117.83 | M126: 61117.83 | N126: 61117.83 | O126: 61117.83 | P126: 61117.83 | Q126: 61117.83 | R126: 61117.83 | S126: 61117.83 | T126: 61117.83 | U126: 61117.83
B127: 112
B128: 113 | D128: 396 | E128: Power Operated Equipment
B129: 114 | F129: Distribution - Wyoming | H129: 974544.97 | I129: 974544.97 | J129: 974544.97 | K129: 974544.97 | L129: 974544.97 | M129: 971291.14 | N129: 971291.14 | O129: 971291.14 | P129: 971291.14 | Q129: 971291.14 | R129: 963408.26 | S129: 965413.26 | T129: 965413.26 | U129: 971119.6846
A130: ="%,FACCOUNT,TQGCACCTS,N"&(D128) -> %,FACCOUNT,TQGCACCTS,N396 | B130: 115 | F130: Distribution - Utah | H130: 11278315.49 | I130: 11278315.49 | J130: 11282614.43 | K130: 11282614.43 | L130: 11282614.43 | M130: 11282614.43 | N130: 11198223.01 | O130: 11193609.78 | P130: 11189596.86 | Q130: 11189596.86 | R130: 11180863.27 | S130: 11180863.27 | T130: 11036358.32 | U130: 11224905.26
B131: 116 | F131: General | H131: 0 | I131: 0 | J131: 0 | K131: 0 | L131: 0 | M131: 0 | N131: 0 | O131: 0 | P131: 0 | Q131: 0 | R131: 0 | S131: 0 | T131: 0 | U131: 0
B132: 117 | F132: Total | H132: 12252860.46 | I132: 12252860.46 | J132: 12257159.4 | K132: 12257159.4 | L132: 12257159.4 | M132: 12253905.57 | N132: 12169514.15 | O132: 12164900.92 | P132: 12160888 | Q132: 12160888 | R132: 12144271.53 | S132: 12146276.53 | T132: 12001771.58 | U132: 12196024.95
B133: 118
B134: 119 | D134: 397 | E134: Communication Equipment
B135: 120 | F135: Distribution - Wyoming | H135: 49809.31 | I135: 49809.31 | J135: 49809.31 | K135: 49809.31 | L135: 49809.31 | M135: 49809.31 | N135: 49809.31 | O135: 49809.31 | P135: 91573.83 | Q135: 98853 | R135: 98857.01 | S135: 100365.69 | T135: 100365.69 | U135: 67783.51667
A136: ="%,FACCOUNT,TQGCACCTS,N"&(D134) -> %,FACCOUNT,TQGCACCTS,N397 | B136: 121 | F136: Distribution - Utah | H136: 16950242.46 | I136: 15150810.54 | J136: 15382643.05 | K136: 15581976.77 | L136: 15675305.12 | M136: 15675305.12 | N136: 15763113.45 | O136: 15652531.8 | P136: 15705182.18 | Q136: 15715937.99 | R136: 14315009.34 | S136: 14334407.17 | T136: 14370288.33 | U136: 15384373.99
B137: 122 | F137: Total | H137: 17000051.77 | I137: 15200619.85 | J137: 15432452.36 | K137: 15631786.08 | L137: 15725114.43 | M137: 15725114.43 | N137: 15812922.76 | O137: 15702341.11 | P137: 15796756.01 | Q137: 15814790.99 | R137: 14413866.35 | S137: 14434772.86 | T137: 14470654.02 | U137: 15452157.51
B138: 123
B139: 124 | D139: 398 | E139: Miscellaneous Equipment
B140: 125 | F140: Distribution - Wyoming | H140: 3863.92 | I140: 3863.92 | J140: 3863.92 | K140: 3863.92 | L140: 3863.92 | M140: 3863.92 | N140: 3863.92 | O140: 3863.92 | P140: 3863.92 | Q140: 3863.92 | R140: 3863.92 | S140: 3863.92 | T140: 3863.92 | U140: 3863.92
A141: ="%,FACCOUNT,TQGCACCTS,N"&(D139) -> %,FACCOUNT,TQGCACCTS,N398 | B141: 126 | F141: Distribution - Utah | H141: 272654.16 | I141: 272665.77 | J141: 272654.16 | K141: 295447.91 | L141: 325391.74 | M141: 325391.74 | N141: 325391.74 | O141: 328910.55 | P141: 328910.55 | Q141: 328910.55 | R141: 325277.08 | S141: 325277.08 | T141: 325277.08 | U141: 312766.2075
B142: 127 | F142: General | H142: 0 | I142: 0 | J142: 0 | K142: 0 | L142: 0 | M142: 0 | N142: 0 | O142: 0 | P142: 0 | Q142: 0 | R142: 0 | S142: 0 | T142: 0 | U142: 0
B143: 128 | F143: Total | H143: 276518.08 | I143: 276529.69 | J143: 276518.08 | K143: 299311.83 | L143: 329255.66 | M143: 329255.66 | N143: 329255.66 | O143: 332774.47 | P143: 332774.47 | Q143: 332774.47 | R143: 329141 | S143: 329141 | T143: 329141 | U143: 316630.1275
B144: 129
B145: 130 | E145: Total General Plant | H145: 266862405.5 | I145: 264975264.8 | J145: 276293514.8 | K145: 282026035.1 | L145: 288377282.6 | M145: 271341047.4 | N145: 270733620.4 | O145: 267487591.4 | P145: 268387618.5 | Q145: 269124515.7 | R145: 263468399.4 | S145: 263808067 | T145: 264248855.9 | U145: 270964882.3
B146: =+B145+1 -> 131
B147: 132 | C147: 101 | D147: Gas Plant in Service
B148: 133 | E148: Production | H148: 79968136 | I148: 79968136 | J148: 79968136 | K148: 79968136 | L148: 79968136 | M148: 79968136 | N148: 79968136 | O148: 79968136 | P148: 79968136 | Q148: 79968136 | R148: 79968136 | S148: 79968136 | T148: 79968136 | U148: 79968136
B149: 134 | E149: Distribution - Wyoming | H149: 74616050.77 | I149: 74671984.93 | J149: 75286479.29 | K149: 76222229.17 | L149: 76941299.3 | M149: 77089117.09 | N149: 77481584.38 | O149: 77599324.61 | P149: 77752607.33 | Q149: 77763501.34 | R149: 77798571.45 | S149: 77347090.12 | T149: 79408792.83 | U149: 76913850.9
B150: 135 | E150: Distribution - Utah | H150: 2184164094 | I150: 2239543714 | J150: 2263855799 | K150: 2272285242 | L150: 2284446301 | M150: 2293943490 | N150: 2299087190 | O150: 2313074027 | P150: 2331273860 | Q150: 2336972208 | R150: 2342958116 | S150: 2348332297 | T150: 2393235851 | U150: 2301206018
B151: 136 | E151: General | H151: 266862405.5 | I151: 264975264.8 | J151: 276293514.8 | K151: 282026035.1 | L151: 288377282.6 | M151: 271341047.4 | N151: 270733620.4 | O151: 267487591.4 | P151: 268387618.5 | Q151: 269124515.7 | R151: 263468399.4 | S151: 263808067 | T151: 264248855.9 | U151: 270964882.3
B152: 137 | E152: Total | H152: 2605610687 | I152: 2659159100 | J152: 2695403929 | K152: 2710501642 | L152: 2729733019 | M152: 2722341790 | N152: 2727270530 | O152: 2738129079 | P152: 2757382222 | Q152: 2763828361 | R152: 2764193223 | S152: 2769455590 | T152: 2816861636 | U152: 2729052887
B153: 138
B154: 139 | C154: 105 | D154: Gas Plant Held for Future Use
B155: 140 | E155: Distribution - Utah | H155: 5036.83 | I155: 5036.83 | J155: 5036.83 | K155: 5036.83 | L155: 5036.83 | M155: 5036.83 | N155: 5036.83 | O155: 5036.83 | P155: 5036.83 | Q155: 5036.83 | R155: 5036.83 | S155: 5036.83 | T155: 5036.83 | U155: 5036.83
A156: %,FACCOUNT,TQGCACCTS,N105 | B156: 141 | E156: Total | H156: 5036.83 | I156: 5036.83 | J156: 5036.83 | K156: 5036.83 | L156: 5036.83 | M156: 5036.83 | N156: 5036.83 | O156: 5036.83 | P156: 5036.83 | Q156: 5036.83 | R156: 5036.83 | S156: 5036.83 | T156: 5036.83 | U156: 5036.83
B157: 142
B158: 143 | C158: 106 | D158: Completed Construction Not Classified - Gas
B159: 144 | E159: Production | H159: 0 | I159: 0 | J159: 0 | K159: 0 | L159: 0 | M159: 0 | N159: 0 | O159: 0 | P159: 0 | Q159: 0 | R159: 0 | S159: 0 | T159: 0 | U159: 0
B160: 145 | E160: Distribution - Wyoming | H160: 909358.04 | I160: 1120918.79 | J160: 898256.46 | K160: 743792.91 | L160: 155755.46 | M160: 118669.23 | N160: 41327.62 | O160: 109182.78 | P160: 276963.56 | Q160: 950180.8 | R160: 1588249.67 | S160: 1993330.38 | T160: 2239100.69 | U160: 797571.4188
B161: 146 | E161: Distribution - Utah | H161: 13856961.85 | I161: 10408845.21 | J161: 9103425.84 | K161: 17405559.77 | L161: 19167111.4 | M161: 11100303.43 | N161: 16627548.82 | O161: 7179101.212 | P161: 6777010.31 | Q161: 9121644.75 | R161: 9719600.222 | S161: 12826474.79 | T161: 9308466.12 | U161: 11751611.65
B162: 147 | E162: General | H162: 1195212.94 | I162: 708590.78 | J162: 844986.55 | K162: 871491.64 | L162: 1995407.03 | M162: 1050953.39 | N162: 1490322.23 | O162: 462115.65 | P162: 471060.27 | Q162: 1131562.37 | R162: 1107897.09 | S162: 1200519.75 | T162: 1438369 | U162: 1054308.143
B163: 148 | E163: Total | H163: 15961532.83 | I163: 12238354.78 | J163: 10846668.85 | K163: 19020844.32 | L163: 21318273.89 | M163: 12269926.05 | N163: 18159198.67 | O163: 7750399.642 | P163: 7525034.14 | Q163: 11203387.92 | R163: 12415746.98 | S163: 16020324.92 | T163: 12985935.81 | U163: 13603491.21
B164: 149
B165: 150 | C165: 108 | D165: Accum Prov for Depreciation of Gas Plant in Service
B166: 151 | E166: Production | H166: -68698903.88 | I166: -68752717.28 | J166: -68801832.29 | K166: -68860077.49 | L166: -68927265.53 | M166: -68992546.74 | N166: -69047109.87 | O166: -69092261.78 | P166: -69148875.27 | Q166: -69202397.18 | R166: -69256660.72 | S166: -69314119.85 | T166: -69367366.51 | U166: -69035749.93
B167: 152 | E167: Distribution - Wyoming | H167: -21544141.78 | I167: -27545760.41 | J167: -21890644.92 | K167: -21345997.74 | L167: -21431368.72 | M167: -21551340.98 | N167: -21565256.16 | O167: -21440799.24 | P167: -21574450.35 | Q167: -21691853.88 | R167: -21221477.81 | S167: -20757179.85 | T167: -20797669.99 | U167: -21932253
B168: 153 | E168: Distribution - Utah | H168: -479795633.3 | I168: -476697127.6 | J168: -484584324.3 | K168: -487750624 | L168: -490365351.6 | M168: -493315380.7 | N168: -495628361.3 | O168: -493969005.9 | P168: -497252232.8 | Q168: -500051378.4 | R168: -503340730.2 | S168: -506346697.1 | T168: -509573960.4 | U168: -493665500.9
B169: 154 | E169: General | H169: -144776600.3 | I169: -145296683.2 | J169: -146454406.1 | K169: -149081871.3 | L169: -149721236.3 | M169: -132419416.8 | N169: -132602402.3 | O169: -129688646.3 | P169: -130830173 | Q169: -132007188.3 | R169: -126638206.5 | S169: -127752212.2 | T169: -127774055.2 | U169: -136563980.8
B170: 155 | E170: Total | H170: -714815279.2 | I170: -718292288.5 | J170: -721731207.6 | K170: -727038570.5 | L170: -730445222.1 | M170: -716278685.2 | N170: -718843129.6 | O170: -714190713.2 | P170: -718805731.4 | Q170: -722952817.8 | R170: -720457075.2 | S170: -724170209 | T170: -727513052.1 | U170: -721197484.6
B171: 156
B172: 157 | C172: 111 | D172: Accum Prov for Amortization of Gas Plant in Service
